Workbook

Sheet Steuerung
B2: Tropic GmbH, Rheingrafenstr. 20, 55543 Bad Kreuznach
B4: Personalbuchhaltung | F4: Gehaltsempfänger
B6: Klicken Sie auf die Buttons um Aufgaben in den entsprechenden Bereichen zu erledigen.
B9: Geben Sie Stammdaten ein, und überprüfen Sie die Eingabe in den entsprechenden Tabellen. | D9: Daten eingeben | F9: Daten überprüfen
B15: Urlaubstage planen | D15: Gehaltsliste erstellen | F15: verkürzte Gehaltsliste | H15: Buchen
B19: Belege erstellen
B22: Stammdaten der Mitarbeiterinnen und Mitarbeiter | D22: Monatsabrechung | F22: Ausdruck der Jahres-Lohnsteuerbescheinigung | H22: Briefe an Mitarbeiterinnen und Mitarbeiter verfassen
B26: Die Berechnung der Monats-Lohnsteuer basiert auf Excel-Tabellen von Peter Faber:
B27: Lohnsteuer, Solidaritätszuschlag und Kirchensteuer werden auf Basis der Steuergesetze von 2017 ermittelt.
B28: Stammdatensätze sind für 20 Mitarbeiterinnen und Mitarbeiter angelegt.
B29: Es können zusätzlich 10 Einstellungen vorgenommen werden.

Sheet ANDaten1
A2: Arbeitnehmerdaten 1 | C2: Personendaten eigeben
A3: Personendaten | C3: 1. Schaltfläche 'Arbeitnehmerdaten' anklicken
C4: 2. Personalnummer, Name und Vorname der Mitarbeiterin/des Mitarbeiters eingeben
C5: 3. Dateneingabe nach Klick auf Button 'Daten'
A7: Personalnummer | B7: Name | C7: Vorname | D7: Straße/Hausnummer | E7: PLZ | F7: Wohnort | G7: Telefon | H7: mobil | I7: Fax | J7: Email | K7: Eintrittsdatum | L7: Geburtsdatum | M7: Geburtsort | N7: Geschlecht | O7: Familienstand | P7: Kinderzahl | Q7: Staatsangehörigkeit | R7: Konfession | S7: Konf. Ehegatte | T7: Steuermerkmale | U7: Funktion | V7: Bildungsabschluss | W7: Ausbildung
A8: 100 | B8: Sommer | C8: Sylvia | D8: Sonnenhöhe | E8: 55543 | F8: Bad Kreuznach | G8: 06711526 | H8: 017045549876 | I8: 0671152-12 | J8: syliva.sommer@tropic.de | K8: 1980-01-01 | L8: 1954-07-12 | M8: Bad Kreuznach | N8: weiblich | O8: verheiratet | P8: 2 | Q8: deutsch | R8: evangelisch | S8: katholisch | T8: =IF(A8="","",CONCATENATE(IF(R8="evangelisch","ev",IF(R8="katholisch","rk","-")),"/",IF(S8="evangelisch","ev",IF(S8="katholisch","rk","-")))) -> ev/rk | U8: Geschäftsführerin | V8: Dipl.-Betriebswirtin | W8: Studium
A9: 101 | B9: Winter | C9: Walter | D9: Turmstr. 5 | E9: 55596 | F9: Waldböckelheim | G9: 067588272 | H9: 0170282828 | I9: 06758827-13 | J9: walter.winter@tropic.de | K9: 1982-01-01 | L9: 1956-01-02 | M9: Hannover | N9: männlich | O9: verheiratet | P9: 1 | Q9: deutsch | R9: katholisch | S9: katholisch | T9: =IF(A9="","",CONCATENATE(IF(R9="evangelisch","ev",IF(R9="katholisch","rk","-")),"/",IF(S9="evangelisch","ev",IF(S9="katholisch","rk","-")))) -> rk/rk | U9: Abteilungsleiter Materialwirtschaft | V9: Mittlere Reife | W9: Kfm. im Groß- und Außenhandel
A10: 102 | B10: Minardi | C10: Diana | D10: Kuhfeld 20 | E10: 55594 | F10: Rüdesheim | G10: 0671876 | H10: 017098765 | I10: 067187-01 | J10: diana.minardi@tropic.de | K10: 1990-08-01 | L10: 1960-04-05 | M10: Siena/Italien | N10: weiblich | O10: ledig | P10: 0 | Q10: italienisch | R10: katholisch | T10: rk/- | U10: Abteilungsleiterin | V10: Dipl.-Designerin | W10: Studium
A11: 103 | B11: Herbst | C11: Heiner | D11: Nußriede 20 | E11: 55595 | F11: Hüffelsheim | G11: 06712030 | H11: 0160212121 | I11: 0671203-02 | J11: heiner.herbst@tropic.de | K11: 01.07.1985 | L11: 1960-09-06 | M11: Lüneburg | N11: männlich | O11: verheiratet | P11: 3 | Q11: deutsch | R11: katholisch | S11: evangelisch | T11: rk/ev | U11: Abteilungsleiter | V11: Dipl.-Ing.(FH) | W11: Energieanlagenelektroniker
A12: 104 | B12: Polster | C12: Georg | D12: Auf dem Kamm 5 | E12: 55599 | F12: Bad Sonbernheim | G12: 067514523 | H12: 0170121212 | I12: 06751452-03 | J12: georg.polster@tropic.de | K12: 01.07.1981 | L12: 1949-03-21 | M12: Köln | N12: männlich | O12: verheiratet | P12: 3 | Q12: deutsch | R12: evangelisch | S12: evangelisch | T12: ev/ev | U12: Abteilunsleiter | V12: Abitur | W12: Industriekaufmann
A13: 105 | B13: Behrens | C13: Sonja | D13: Lange Reihe 4b | E13: 67823 | F13: Schiersfeld | G13: 06361111 | H13: 017034343434 | I13: 0636111-9 | J13: sonja.behrens@tropic.de | K13: 01.07.1990 | L13: 1965-08-05 | M13: Nienburg | N13: weiblich | O13: ledig | P13: 1 | Q13: deutsch | R13: evangelisch | T13: ev/- | U13: Abteilungsleiterin | V13: Abitur | W13: Industriekauffrau
A14: 106 | B14: Kaymak | C14: Ayse | D14: Ellerbachstr. 25 | E14: 55596 | F14: Weinsheim | G14: 0675854321 | H14: 0160456789 | J14: ayse.kaymak@tropic.de | K14: 01.08.2005 | L14: 1987-02-05 | M14: Hannover | N14: weiblich | O14: ledig | Q14: türkisch | R14: islamisch | T14: -/- | U14: Auszubildende | V14: Mittlere Reife | W14: Kauffrau für Bürokommunikation
A15: 107 | B15: Kaiser | C15: Sven | D15: Rährweg 45 | E15: 55411 | F15: Bingen | G15: 06215050 | H15: 0160987654 | I15: 0621505-120 | J15: sven.kaier@tropic.de | K15: 01.08.1990 | L15: 1970-03-17 | M15: Duisburg | N15: männlich | O15: verheiratet | P15: 2 | Q15: deutsch | R15: katholisch | S15: evangelisch | T15: rk/ev | U15: Einkäufer | V15: Mittlere Reife | W15: Kaufmann im Groß- und Außenhandel
A16: 108 | B16: Martin | C16: Felix | D16: Schmiedestr. 75 | E16: 55131 | F16: Mainz | G16: 061315678 | H16: 0160373737 | J16: felix.martin@tropic.de | K16: 01.09.2000 | L16: 1982-06-17 | M16: Hamburg | N16: männlich | O16: ledig | Q16: deutsch | R16: keine | T16: -/- | U16: Fachkraft für Lagerwirtschaft | V16: Mittlere Reife | W16: Kaufmann im Groß- und Außenhandel
A17: 109 | B17: Antonelli | C17: Claudia | D17: Weidengarten 35 | E17: 55595 | F17: Weinsheim | G17: 06758123 | H17: 0170456554 | I17: 0675812-130 | J17: claudia.antonelli@tropic.de | K17: 01.06.1995 | L17: 1970-07-24 | M17: Taormina/Italien | N17: weiblich | O17: verheiratet | P17: 2 | Q17: italienisch | R17: katholisch | S17: evangelisch | T17: rk/ev | U17: Designerin | V17: Dipl.-Designerin | W17: Studium
A18: 110 | B18: Seewald | C18: Manon | D18: Expo Plaza 2 | E18: 55270 | F18: Schwabenheim | G18: 061309876 | H18: 0170678678 | I18: 06130987-40 | J18: manon.seewald@tropic.de | K18: 01.06.1998 | L18: 1972-08-01 | M18: Cuxhaven | N18: weiblich | O18: verheiratet | P18: 1 | Q18: deutsch | R18: evangelisch | S18: evangelisch | T18: ev/ev | U18: Designerin | V18: Dipl.-Desigerin | W18: Studium
A19: 111 | B19: Senel | C19: Selami | D19: Ellerbachstr. 25 | E19: 55585 | F19: Norheim | G19: 06711357 | H19: 01608765456 | J19: selami.senel@tropic.de | K19: 01.08.1994 | L19: 1965-09-04 | M19: Istanbul/Türkei | N19: männlich | O19: verheiratet | P19: 3 | Q19: türkisch | R19: islamisch | S19: islamisch | T19: -/- | U19: Meister | V19: Mittlere Reife | W19: Werkzeugmacher
A20: 112 | B20: Weidenfeld | C20: Martin | D20: Osterriede 20a | E20: 55545 | F20: Langenlonsheim | G20: 067044689 | H20: 016045677654 | J20: martin.weidenfeld@tropic.de | K20: 01.01.1998 | L20: 1968-12-03 | M20: Hannover | N20: männlich | O20: verheiratet | P20: 2 | Q20: deutsch | R20: katholisch | S20: katholisch | T20: rk/rk | U20: Meister | V20: Mittlere Reife | W20: Werkzeugmacher
A21: 113 | B21: Zimmermann | C21: Horst | D21: Stefan-George-Platz 12 | E21: 55542 | F21: Waldalgesheim | G21: 067216543 | H21: 0160353567 | J21: horst.zimmermann@tropic.de | K21: 01.10.1996 | L21: 1963-01-29 | M21: Hamburg | N21: männlich | O21: verheiratet | P21: 2 | Q21: deutsch | R21: katholisch | S21: evangelisch | T21: rk/ev | U21: Finanzbuchhalter | V21: Dipl.-Betriebswirt (FH) | W21: Studium (FH)
A22: 114 | B22: Rünz-Jonzeck | C22: Tanja | D22: Auf der Hohl 28 | E22: 55268 | F22: Nieder-Olm | G22: 061312143 | H22: 017038384949 | I22: 06131214-30 | J22: tanja.rünzjonzeck@tropic.de | K22: 01.08.1995 | L22: 1974-06-14 | M22: Idar-Oberstein | N22: weiblich | O22: verheiratet | P22: 1 | Q22: deutsch | R22: evangelisch | S22: evangelisch | T22: ev/ev | U22: Personalbuchhalterin | V22: Dipl.-Betriebswirtin (FH) | W22: Studium (FH)
A23: 115 | B23: Wagner | C23: Christa | D23: Ellerbachblick 1 | E23: 55232 | F23: Alzey | G23: 067316576 | H23: 017198877665 | I23: 06731657-20 | J23: christa.wagner@tropic.de | K23: 01.08.1990 | L23: 1964-07-12 | M23: Miami/Florida | N23: weiblich | O23: ledig | Q23: deutsch | R23: lutheranisch | T23: -/- | U23: Sachbearbeiterin Marketing | V23: High school | W23: Werbekauffrau
A24: 116 | B24: Flöricke | C24: Susanne | D24: Fliederweg 12 | E24: 55599 | F24: Gau-Bickelheim | G24: 0679198765 | H24: 0170243546 | I24: 067919876-10 | J24: susanne.flöricke@tropic.de | K24: 01.08.1996 | L24: 1973-08-16 | M24: Koblenz | N24: weiblich | O24: ledig | P24: 1 | Q24: deutsch | R24: evangelisch | T24: ev/- | U24: Verkäuferin Großkunden | V24: Abitur | W24: Industriekauffrau
A25: 117 | B25: Piel-Oster | C25: Simone | D25: Donarstr. 15 | E25: 67822 | F25: Niedermoschel | G25: 06362321 | H25: 0170374658 | I25: 0636232-70 | J25: simone.piel@tropic.de | K25: 01.09.1992 | L25: 1970-11-23 | M25: Lüneburg | N25: weiblich | O25: verheiratet | Q25: deutsch | R25: evangelisch | S25: katholisch | T25: ev/rk | U25: Verkäuferin | V25: Mittlere Reife | W25: Einzelhandelskauffrau
A26: 118 | B26: Sauerland | C26: Mario | D26: Schlossstr. 12 | E26: 55437 | F26: Ockenheim | G26: 06752120 | H26: 0160345654 | J26: mario.sauerland@tropic.de | K26: 01.08.2006 | L26: 1986-04-23 | M26: Nienburg | N26: männlich | O26: ledig | Q26: deutsch | R26: katholisch | T26: rk/- | U26: Auszubildender | V26: Abitur | W26: Fachinformatiker Systemintegration
A27: 119 | B27: Ollek | C27: Tanja | D27: Lindenstr. 20 | E27: 55494 | F27: Rheinböllen | G27: 067645678 | H27: 0170364758 | J27: tanja.ollek@tropic.de | K27: 01.09.2006 | L27: 1988-07-05 | M27: Bremen | N27: weiblich | O27: ledig | Q27: deutsch | R27: evangelisch | T27: ev/- | U27: Auszubildende | V27: Mittlere Reife | W27: Kauffrau für Bürokommunikation

Sheet ANDaten2
A2: Arbeitnehmerdaten 2 | C2: Personendaten eigeben
A3: Gehaltsdaten | C3: 1. Schaltfläche 'Arbeitnehmerdaten' anklicken
C4: 2. Personalnummer, Name und Vorname der Mitarbeiterin/des Mitarbeiters eingeben
C5: 3. Dateneingabe nach Klick auf Button 'Daten'
A7: Personalnummer | B7: Name | C7: Vorname | D7: Kreditinstitut | E7: Bankleitzahl | F7: Kontonummer | G7: Steuerklasse | H7: Kinderfreibetrag | I7: Steuerfreibetrag | J7: Gehaltsgruppe | K7: Vertragsgehalt | L7: Urlaubsgeld | M7: monatl. Prämien | N7: vwL AG | O7: vwL AN | P7: sonstige Abzüge | Q7: Kirchensteuersatz | R7: Finanzamt | S7: Vermögensbildung | T7: Vertragsnummer
A8: =ANDaten1!A8 -> 100 | B8: =ANDaten1!B8 -> Sommer | C8: =ANDaten1!C8 -> Sylvia | D8: Sparkasse Hannover | E8: 25050180 | F8: 123456 | G8: 4 | H8: 1 | I8: 0 | J8: F1 | K8: 8500 | L8: 500 | N8: 0 | O8: 0 | Q8: 0.09 | R8: Hannover
A9: =IF(ANDaten1!A9="","",ANDaten1!A9) -> 101 | B9: =IF(ANDaten1!B9="","",ANDaten1!B9) -> Winter | C9: =IF(ANDaten1!C9="","",ANDaten1!C9) -> Walter | D9: Hannoversche Volksbank | E9: 25190001 | F9: 454545 | G9: 3 | H9: 1 | I9: 750 | J9: F2 | K9: 5500 | L9: 500 | N9: 15 | O9: 40 | Q9: 0.09 | R9: Hannover | S9: LBS Hannover | T9: 34343434
A10: =IF(ANDaten1!A10="","",ANDaten1!A10) -> 102 | B10: =IF(ANDaten1!B10="","",ANDaten1!B10) -> Minardi | C10: =IF(ANDaten1!C10="","",ANDaten1!C10) -> Diana | D10: Sparkasse Hannover | E10: 25050180 | F10: 999999 | G10: 1 | J10: F2 | K10: 5500 | L10: 500 | M10: 1800 | Q10: 0.09 | R10: Hannover
A11: =IF(ANDaten1!A11="","",ANDaten1!A11) -> 103 | B11: =IF(ANDaten1!B11="","",ANDaten1!B11) -> Herbst | C11: =IF(ANDaten1!C11="","",ANDaten1!C11) -> Heiner | D11: Dresdner Bank | E11: 25080020 | F11: 898989 | G11: 3 | H11: 2 | I11: 600 | J11: F2 | K11: 5500 | L11: 500 | M11: 200 | N11: 15 | O11: 40 | Q11: 0.09 | R11: Hannover | S11: Sparkasse Hannover | T11: 245542
A12: =IF(ANDaten1!A12="","",ANDaten1!A12) -> 104 | B12: =IF(ANDaten1!B12="","",ANDaten1!B12) -> Polster | C12: =IF(ANDaten1!C12="","",ANDaten1!C12) -> Georg | D12: Sparkasse Hannover | E12: 25050180 | F12: 555666 | G12: 3 | H12: 3 | J12: F2 | K12: 5500 | L12: 500 | M12: 1000 | N12: 15 | O12: 40 | Q12: 0.09 | R12: Hannover | S12: LBS Hannover | T12: 5678910
A13: =IF(ANDaten1!A13="","",ANDaten1!A13) -> 105 | B13: =IF(ANDaten1!B13="","",ANDaten1!B13) -> Behrens | C13: =IF(ANDaten1!C13="","",ANDaten1!C13) -> Sonja | D13: Sparkasse Hannover | E13: 25050180 | F13: 555444 | G13: 2 | H13: 1 | J13: F2 | K13: 5500 | L13: 500 | M13: 1000 | N13: 15 | O13: 40 | Q13: 0.09 | R13: Hannover | S13: Sparkasse Hannover | T13: 89898989
A14: =IF(ANDaten1!A14="","",ANDaten1!A14) -> 106 | B14: =IF(ANDaten1!B14="","",ANDaten1!B14) -> Kaymak | C14: =IF(ANDaten1!C14="","",ANDaten1!C14) -> Ayse | D14: Dresdner Bank | E14: 25080020 | F14: 787878 | G14: 1 | J14: AZB2 | K14: 650 | L14: 250 | N14: 15 | O14: 40 | R14: Hannover | S14: Wüstenrot | T14: 55554444
A15: =IF(ANDaten1!A15="","",ANDaten1!A15) -> 107 | B15: =IF(ANDaten1!B15="","",ANDaten1!B15) -> Kaiser | C15: =IF(ANDaten1!C15="","",ANDaten1!C15) -> Sven | D15: Hannoversche Volksbank | E15: 25190001 | F15: 114115 | G15: 3 | H15: 2 | J15: S2 | K15: 3400 | L15: 500 | N15: 15 | O15: 40 | Q15: 0.09 | R15: Hannover | S15: Wüstenrot | T15: 23232424
A16: =IF(ANDaten1!A16="","",ANDaten1!A16) -> 108 | B16: =IF(ANDaten1!B16="","",ANDaten1!B16) -> Martin | C16: =IF(ANDaten1!C16="","",ANDaten1!C16) -> Felix | D16: Hannoversche Volksbank | E16: 25190001 | F16: 484848 | G16: 1 | J16: S3 | K16: 3000 | L16: 500 | N16: 15 | O16: 40 | R16: Hannover | S16: LBS Hannover | T16: 43435656
A17: =IF(ANDaten1!A17="","",ANDaten1!A17) -> 109 | B17: =IF(ANDaten1!B17="","",ANDaten1!B17) -> Antonelli | C17: =IF(ANDaten1!C17="","",ANDaten1!C17) -> Claudia | D17: Hannoversche Volksbank | E17: 25190001 | F17: 666777 | G17: 4 | H17: 1 | J17: S1 | K17: 4500 | L17: 500 | M17: 250 | N17: 15 | O17: 40 | Q17: 0.09 | R17: Hannover | S17: LBS Hannover | T17: 23232323
A18: =IF(ANDaten1!A18="","",ANDaten1!A18) -> 110 | B18: =IF(ANDaten1!B18="","",ANDaten1!B18) -> Seewald | C18: =IF(ANDaten1!C18="","",ANDaten1!C18) -> Manon | D18: Sparkasse Hannover | E18: 25050180 | F18: 333444 | G18: 3 | H18: 1 | J18: S1 | K18: 4500 | L18: 500 | M18: 250 | N18: 15 | O18: 40 | Q18: 0.09 | R18: Hannover | S18: Sparkasse Hannover | T18: 245654
A19: =IF(ANDaten1!A19="","",ANDaten1!A19) -> 111 | B19: =IF(ANDaten1!B19="","",ANDaten1!B19) -> Senel | C19: =IF(ANDaten1!C19="","",ANDaten1!C19) -> Selami | D19: Dresdner Bank | E19: 25080020 | F19: 121212 | G19: 3 | H19: 3 | J19: S2 | K19: 3400 | L19: 500 | N19: 15 | O19: 40 | R19: Hannover | S19: LBS Hannover | T19: 37373737
A20: =IF(ANDaten1!A20="","",ANDaten1!A20) -> 112 | B20: =IF(ANDaten1!B20="","",ANDaten1!B20) -> Weidenfeld | C20: =IF(ANDaten1!C20="","",ANDaten1!C20) -> Martin | D20: Dresdner Bank | E20: 25080020 | F20: 234432 | G20: 4 | H20: 1 | J20: S2 | K20: 3400 | L20: 500 | Q20: 0.09 | R20: Hannover
A21: =IF(ANDaten1!A21="","",ANDaten1!A21) -> 113 | B21: =IF(ANDaten1!B21="","",ANDaten1!B21) -> Zimmermann | C21: =IF(ANDaten1!C21="","",ANDaten1!C21) -> Horst | D21: Sparkasse Hannover | E21: 25050180 | F21: 353535 | G21: 3 | H21: 2 | J21: S1 | K21: 4500 | L21: 500 | Q21: 0.09 | R21: Hannover
A22: =IF(ANDaten1!A22="","",ANDaten1!A22) -> 114 | B22: =IF(ANDaten1!B22="","",ANDaten1!B22) -> Rünz-Jonzeck | C22: =IF(ANDaten1!C22="","",ANDaten1!C22) -> Tanja | D22: Dresdner Bank | E22: 25080020 | F22: 393939 | G22: 5 | J22: S2 | K22: 3400 | L22: 500 | Q22: 0.09 | R22: Hannover
A23: =IF(ANDaten1!A23="","",ANDaten1!A23) -> 115 | B23: =IF(ANDaten1!B23="","",ANDaten1!B23) -> Wagner | C23: =IF(ANDaten1!C23="","",ANDaten1!C23) -> Christa | D23: Sparkasse Nienburg | E23: 25650106 | F23: 778899 | G23: 1 | J23: S1 | K23: 4500 | L23: 500 | M23: 500 | N23: 15 | O23: 40 | Q23: 0.09 | R23: Nienburg | S23: LBS Hannover | T23: 444555666
A24: =IF(ANDaten1!A24="","",ANDaten1!A24) -> 116 | B24: =IF(ANDaten1!B24="","",ANDaten1!B24) -> Flöricke | C24: =IF(ANDaten1!C24="","",ANDaten1!C24) -> Susanne | D24: Sparkasse Hannover | E24: 25050180 | F24: 263748 | G24: 2 | H24: 1 | J24: S2 | K24: 3400 | L24: 500 | N24: 15 | O24: 40 | Q24: 0.09 | R24: Hannover | S24: LBS Hannover | T24: 26374859
A25: =IF(ANDaten1!A25="","",ANDaten1!A25) -> 117 | B25: =IF(ANDaten1!B25="","",ANDaten1!B25) -> Piel-Oster | C25: =IF(ANDaten1!C25="","",ANDaten1!C25) -> Simone | D25: Sparkasse Hannover | E25: 25050180 | F25: 453627 | G25: 4 | J25: S2 | K25: 3400 | L25: 500 | Q25: 0.09 | R25: Hannover
A26: =IF(ANDaten1!A26="","",ANDaten1!A26) -> 118 | B26: =IF(ANDaten1!B26="","",ANDaten1!B26) -> Sauerland | C26: =IF(ANDaten1!C26="","",ANDaten1!C26) -> Mario | D26: Hannoversche Volksbank | E26: 25190001 | F26: 252525 | G26: 1 | J26: AZB1 | K26: 550 | L26: 250 | N26: 15 | O26: 40 | Q26: 0.09 | R26: Hannover | S26: LBS Hannover | T26: 273645
A27: =IF(ANDaten1!A27="","",ANDaten1!A27) -> 119 | B27: =IF(ANDaten1!B27="","",ANDaten1!B27) -> Ollek | C27: =IF(ANDaten1!C27="","",ANDaten1!C27) -> Tanja | D27: Sparkasse Hannover | E27: 25050180 | F27: 384956 | G27: 1 | J27: AZB1 | K27: 550 | L27: 250 | Q27: 0.09 | R27: Hannover
A28: =IF(ANDaten1!A28="","",ANDaten1!A28) ->  | B28: =IF(ANDaten1!B28="","",ANDaten1!B28) ->  | C28: =IF(ANDaten1!C28="","",ANDaten1!C28) -> 
A29: =IF(ANDaten1!A29="","",ANDaten1!A29) ->  | B29: =IF(ANDaten1!B29="","",ANDaten1!B29) ->  | C29: =IF(ANDaten1!C29="","",ANDaten1!C29) -> 
A30: =IF(ANDaten1!A30="","",ANDaten1!A30) ->  | B30: =IF(ANDaten1!B30="","",ANDaten1!B30) ->  | C30: =IF(ANDaten1!C30="","",ANDaten1!C30) -> 
A31: =IF(ANDaten1!A31="","",ANDaten1!A31) ->  | B31: =IF(ANDaten1!B31="","",ANDaten1!B31) ->  | C31: =IF(ANDaten1!C31="","",ANDaten1!C31) -> 
A32: =IF(ANDaten1!A32="","",ANDaten1!A32) ->  | B32: =IF(ANDaten1!B32="","",ANDaten1!B32) ->  | C32: =IF(ANDaten1!C32="","",ANDaten1!C32) -> 
A33: =IF(ANDaten1!A33="","",ANDaten1!A33) ->  | B33: =IF(ANDaten1!B33="","",ANDaten1!B33) ->  | C33: =IF(ANDaten1!C33="","",ANDaten1!C33) -> 
A34: =IF(ANDaten1!A34="","",ANDaten1!A34) ->  | B34: =IF(ANDaten1!B34="","",ANDaten1!B34) ->  | C34: =IF(ANDaten1!C34="","",ANDaten1!C34) -> 
A35: =IF(ANDaten1!A35="","",ANDaten1!A35) ->  | B35: =IF(ANDaten1!B35="","",ANDaten1!B35) ->  | C35: =IF(ANDaten1!C35="","",ANDaten1!C35) -> 
A36: =IF(ANDaten1!A36="","",ANDaten1!A36) ->  | B36: =IF(ANDaten1!B36="","",ANDaten1!B36) ->  | C36: =IF(ANDaten1!C36="","",ANDaten1!C36) -> 
A37: =IF(ANDaten1!A37="","",ANDaten1!A37) ->  | B37: =IF(ANDaten1!B37="","",ANDaten1!B37) ->  | C37: =IF(ANDaten1!C37="","",ANDaten1!C37) -> 

Sheet ANDaten3
A2: Arbeitnehmerdaten 3 | C2: Personendaten eigeben
A3: Arbeitszeitdaten | C3: 1. Schaltfläche 'Arbeitnehmerdaten' anklicken
C4: 2. Personalnummer, Name und Vorname der Mitarbeiterin/des Mitarbeiters eingeben
C5: 3. Dateneingabe nach Klick auf Button 'Daten'
A7: Personalnummer | B7: Name | C7: Vorname | D7: Wochenarbeitszeit/Stunden | E7: Urlaubsanspruch/Tage | F7: Resturlaub/Tage | G7: Krankheitstage | H7: sonstige Fehlzeiten | I7: Begründung
A8: =ANDaten1!A8 -> 100 | B8: =ANDaten1!B8 -> Sommer | C8: =ANDaten1!C8 -> Sylvia | E8: 34 | F8: 5
A9: =IF(ANDaten1!A9="","",ANDaten1!A9) -> 101 | B9: =IF(ANDaten1!B9="","",ANDaten1!B9) -> Winter | C9: =IF(ANDaten1!C9="","",ANDaten1!C9) -> Walter | D9: 40 | E9: 34 | G9: 2
A10: =IF(ANDaten1!A10="","",ANDaten1!A10) -> 102 | B10: =IF(ANDaten1!B10="","",ANDaten1!B10) -> Minardi | C10: =IF(ANDaten1!C10="","",ANDaten1!C10) -> Diana | E10: 34
A11: =IF(ANDaten1!A11="","",ANDaten1!A11) -> 103 | B11: =IF(ANDaten1!B11="","",ANDaten1!B11) -> Herbst | C11: =IF(ANDaten1!C11="","",ANDaten1!C11) -> Heiner | D11: 40 | E11: 34 | G11: 2
A12: =IF(ANDaten1!A12="","",ANDaten1!A12) -> 104 | B12: =IF(ANDaten1!B12="","",ANDaten1!B12) -> Polster | C12: =IF(ANDaten1!C12="","",ANDaten1!C12) -> Georg | D12: 40 | E12: 34 | F12: 10
A13: =IF(ANDaten1!A13="","",ANDaten1!A13) -> 105 | B13: =IF(ANDaten1!B13="","",ANDaten1!B13) -> Behrens | C13: =IF(ANDaten1!C13="","",ANDaten1!C13) -> Sonja | D13: 40 | E13: 34 | G13: 4
A14: =IF(ANDaten1!A14="","",ANDaten1!A14) -> 106 | B14: =IF(ANDaten1!B14="","",ANDaten1!B14) -> Kaymak | C14: =IF(ANDaten1!C14="","",ANDaten1!C14) -> Ayse | D14: 36 | E14: 30
A15: =IF(ANDaten1!A15="","",ANDaten1!A15) -> 107 | B15: =IF(ANDaten1!B15="","",ANDaten1!B15) -> Kaiser | C15: =IF(ANDaten1!C15="","",ANDaten1!C15) -> Sven | D15: 38.5 | E15: 34 | G15: 8
A16: =IF(ANDaten1!A16="","",ANDaten1!A16) -> 108 | B16: =IF(ANDaten1!B16="","",ANDaten1!B16) -> Martin | C16: =IF(ANDaten1!C16="","",ANDaten1!C16) -> Felix | D16: 38.5 | E16: 34 | G16: 12
A17: =IF(ANDaten1!A17="","",ANDaten1!A17) -> 109 | B17: =IF(ANDaten1!B17="","",ANDaten1!B17) -> Antonelli | C17: =IF(ANDaten1!C17="","",ANDaten1!C17) -> Claudia | D17: 38.5 | E17: 34 | F17: 10 | G17: 4
A18: =IF(ANDaten1!A18="","",ANDaten1!A18) -> 110 | B18: =IF(ANDaten1!B18="","",ANDaten1!B18) -> Seewald | C18: =IF(ANDaten1!C18="","",ANDaten1!C18) -> Manon | D18: 38.5 | E18: 34
A19: =IF(ANDaten1!A19="","",ANDaten1!A19) -> 111 | B19: =IF(ANDaten1!B19="","",ANDaten1!B19) -> Senel | C19: =IF(ANDaten1!C19="","",ANDaten1!C19) -> Selami | D19: 38.5 | E19: 34 | G19: 4
A20: =IF(ANDaten1!A20="","",ANDaten1!A20) -> 112 | B20: =IF(ANDaten1!B20="","",ANDaten1!B20) -> Weidenfeld | C20: =IF(ANDaten1!C20="","",ANDaten1!C20) -> Martin | D20: 38.5 | E20: 34 | G20: 10
A21: =IF(ANDaten1!A21="","",ANDaten1!A21) -> 113 | B21: =IF(ANDaten1!B21="","",ANDaten1!B21) -> Zimmermann | C21: =IF(ANDaten1!C21="","",ANDaten1!C21) -> Horst | D21: 38.5 | E21: 34 | F21: 6 | G21: 2
A22: =IF(ANDaten1!A22="","",ANDaten1!A22) -> 114 | B22: =IF(ANDaten1!B22="","",ANDaten1!B22) -> Rünz-Jonzeck | C22: =IF(ANDaten1!C22="","",ANDaten1!C22) -> Tanja | D22: 38.5 | E22: 34 | F22: 4 | G22: 2
A23: =IF(ANDaten1!A23="","",ANDaten1!A23) -> 115 | B23: =IF(ANDaten1!B23="","",ANDaten1!B23) -> Wagner | C23: =IF(ANDaten1!C23="","",ANDaten1!C23) -> Christa | D23: 38.5 | E23: 34 | G23: 2 | H23: 20 | I23: Trainerin einer Leistungssportgruppe mit Freistellung
A24: =IF(ANDaten1!A24="","",ANDaten1!A24) -> 116 | B24: =IF(ANDaten1!B24="","",ANDaten1!B24) -> Flöricke | C24: =IF(ANDaten1!C24="","",ANDaten1!C24) -> Susanne | D24: 38.5 | E24: 34 | G24: 5
A25: =IF(ANDaten1!A25="","",ANDaten1!A25) -> 117 | B25: =IF(ANDaten1!B25="","",ANDaten1!B25) -> Piel-Oster | C25: =IF(ANDaten1!C25="","",ANDaten1!C25) -> Simone | D25: 38.5 | E25: 34 | G25: 4
A26: =IF(ANDaten1!A26="","",ANDaten1!A26) -> 118 | B26: =IF(ANDaten1!B26="","",ANDaten1!B26) -> Sauerland | C26: =IF(ANDaten1!C26="","",ANDaten1!C26) -> Mario | D26: 36 | E26: 30
A27: =IF(ANDaten1!A27="","",ANDaten1!A27) -> 119 | B27: =IF(ANDaten1!B27="","",ANDaten1!B27) -> Ollek | C27: =IF(ANDaten1!C27="","",ANDaten1!C27) -> Tanja | D27: 36 | E27: 30
A28: =IF(ANDaten1!A28="","",ANDaten1!A28) ->  | B28: =IF(ANDaten1!B28="","",ANDaten1!B28) ->  | C28: =IF(ANDaten1!C28="","",ANDaten1!C28) -> 
A29: =IF(ANDaten1!A29="","",ANDaten1!A29) ->  | B29: =IF(ANDaten1!B29="","",ANDaten1!B29) ->  | C29: =IF(ANDaten1!C29="","",ANDaten1!C29) -> 
A30: =IF(ANDaten1!A30="","",ANDaten1!A30) ->  | B30: =IF(ANDaten1!B30="","",ANDaten1!B30) ->  | C30: =IF(ANDaten1!C30="","",ANDaten1!C30) -> 
A31: =IF(ANDaten1!A31="","",ANDaten1!A31) ->  | B31: =IF(ANDaten1!B31="","",ANDaten1!B31) ->  | C31: =IF(ANDaten1!C31="","",ANDaten1!C31) -> 
A32: =IF(ANDaten1!A32="","",ANDaten1!A32) ->  | B32: =IF(ANDaten1!B32="","",ANDaten1!B32) ->  | C32: =IF(ANDaten1!C32="","",ANDaten1!C32) -> 
A33: =IF(ANDaten1!A33="","",ANDaten1!A33) ->  | B33: =IF(ANDaten1!B33="","",ANDaten1!B33) ->  | C33: =IF(ANDaten1!C33="","",ANDaten1!C33) -> 
A34: =IF(ANDaten1!A34="","",ANDaten1!A34) ->  | B34: =IF(ANDaten1!B34="","",ANDaten1!B34) ->  | C34: =IF(ANDaten1!C34="","",ANDaten1!C34) -> 
A35: =IF(ANDaten1!A35="","",ANDaten1!A35) ->  | B35: =IF(ANDaten1!B35="","",ANDaten1!B35) ->  | C35: =IF(ANDaten1!C35="","",ANDaten1!C35) -> 
A36: =IF(ANDaten1!A36="","",ANDaten1!A36) ->  | B36: =IF(ANDaten1!B36="","",ANDaten1!B36) ->  | C36: =IF(ANDaten1!C36="","",ANDaten1!C36) -> 
A37: =IF(ANDaten1!A37="","",ANDaten1!A37) ->  | B37: =IF(ANDaten1!B37="","",ANDaten1!B37) ->  | C37: =IF(ANDaten1!C37="","",ANDaten1!C37) -> 

Sheet GehaltsL1
A2: Gehaltsliste | F2: Klicken Sie auf den Button und geben Sie Monat Jahr ein. Nehmen Sie ggf. Änderungen bei den Personaldaten vor | Q2: ja
A3: Daten der Personalbuchhaltung | Q3: nein
A5: Abrechnungsmonat: | C5: Januar | D5: Abrechnungsjahr: | E5: 2017 | R5: 0.0025
A6: Personal- | D6: Steuermerkmale | P6: Sozialversicherung | Y6: Vorschüsse und
A7: Nummer | B7: Name | C7: Vorname | D7: Steuerklasse | E7: Religion | F7: Kinder | G7: Vertragsgehalt | H7: Urlaubsgeld | I7: monatl. Prämien | J7: vwLAG | K7: Bruttogehalt | L7: Lohnsteuer | M7: SolZ | N7: Kirchensteuer | O7: Steuer gesamt | P7: KrankenV. | Q7: kinderlos; >23 | R7: Zusatzbeitrag | S7: PflegeV. | T7: RentenV. | U7: ArbeitslosenV. | V7: SozVers. | W7: Nettogehalt | X7: vwLAN | Y7: sonstige Abzüge | Z7: Auszahlung | AA7: AGAnteilSozVers
A8: =ANDaten1!A8 -> 100 | B8: =ANDaten1!B8 -> Sommer | C8: =ANDaten1!C8 -> Sylvia | D8: =ANDaten2!G8 -> 4 | E8: =ANDaten1!R8 -> evangelisch | F8: =ANDaten2!H8 -> 1 | G8: =ANDaten2!K8 -> 8500 | H8: =IF(C5="Juli",ANDaten2!L8,0) -> 0 | I8: =ANDaten2!M8 -> 0 | J8: =ANDaten2!N8 -> 0 | K8: =SUM(G8:J8) -> 8500 | L8: =IF(A8="","",Steuer2017!B$230/100) -> 2760.91 | N8: =IF(A8="","",IF(OR(E8="evangelisch",E8="katholisch"),TRUNC(Steuer2017!B$265*ANDaten2!Q8/100,2),0)) -> 236.89 | O8: =SUM(L8:N8) -> 2997.8 | P8: =IF($A8="","",IF(SozialV!E8=0%,0,IF($K8>SozialV!$G8,((SozialV!$G8*SozialV!$E8/2)+(SozialV!$G8*SozialV!$E$6)),($K8*SozialV!$E8/2)+($K8*SozialV!$E$6)))) -> 0 | Q8: nein | R8: =IF(OR(Q8="nein",Q8=""),"",$R$5) ->  | S8: =IF($A8="","",IF($P8=0,0,(IF($Q8="ja",IF($K8>SozialV!$G8,((SozialV!$G8*SozialV!$F8/2)+(SozialV!$G8*$R8)),($K8*SozialV!$F8/2)+($K8*$R8)),IF($K8>SozialV!$G8,(SozialV!$G8*SozialV!$F8)/2,($K8*SozialV!$F8)/2))))) -> 0 | T8: =IF(A8="","",IF(K8>SozialV!K8,(SozialV!K8*SozialV!I8)/2,(K8*SozialV!I8)/2)) -> 593.725 | U8: =IF(A8="","",IF(K8>SozialV!K8,(SozialV!K8*SozialV!J8)/2,(K8*SozialV!J8)/2)) -> 95.25 | V8: =ROUND(SUM(P8:U8),2) -> 688.98 | W8: =K8-O8-V8 -> 4813.22 | X8: =ANDaten2!O8 -> 0 | Y8: =ANDaten2!P8 -> 0 | Z8: =W8-X8-Y8 -> 4813.22 | AA8: =IF(A8="","",IF(Q8="nein",V8,V8-(IF(K8>SozialV!G8,((SozialV!G8*SozialV!$E$6)+(SozialV!G8*GehaltsL1!R8)),((GehaltsL1!K8*SozialV!$E$6)+(GehaltsL1!K8*GehaltsL1!R8)))))) -> 688.98
A9: =IF(ANDaten1!A9="","",ANDaten1!A9) -> 101 | B9: =IF(ANDaten1!B9="","",ANDaten1!B9) -> Winter | C9: =IF(ANDaten1!C9="","",ANDaten1!C9) -> Walter | D9: =IF(A9="","",ANDaten2!G9) -> 3 | E9: =IF(A9="","",ANDaten1!R9) -> katholisch | F9: =IF(A9="","",ANDaten2!H9) -> 1 | G9: =IF(A9="","",ANDaten2!K9) -> 5500 | H9: =IF(A9="","",IF($C$5="Juli",ANDaten2!L9,0)) -> 0 | I9: =IF(A9="","",ANDaten2!M9) -> 0 | J9: =IF(A9="","",ANDaten2!N9) -> 15 | K9: =IF(A9="","",SUM(G9:J9)) -> 5515 | L9: =IF(A9="","",Steuer2017!D$230/100) -> 957 | N9: =IF(A9="","",IF(OR(E9="evangelisch",E9="katholisch"),TRUNC(Steuer2017!D$265*ANDaten2!Q9/100,2),0)) -> 69.1 | O9: =IF(A9="","",SUM(L9:N9)) -> 1026.1 | P9: =IF($A9="","",IF(SozialV!E9=0%,0,IF($K9>SozialV!$G9,((SozialV!$G9*SozialV!$E9/2)+(SozialV!$G9*SozialV!$E$6)),($K9*SozialV!$E9/2)+($K9*SozialV!$E$6)))) -> 365.4 | Q9: nein | R9: =IF(OR(Q9="nein",Q9=""),"",$R$5) ->  | S9: =IF($A9="","",IF($P9=0,0,(IF($Q9="ja",IF($K9>SozialV!$G9,((SozialV!$G9*SozialV!$F9/2)+(SozialV!$G9*$R9)),($K9*SozialV!$F9/2)+($K9*$R9)),IF($K9>SozialV!$G9,(SozialV!$G9*SozialV!$F9)/2,($K9*SozialV!$F9)/2))))) -> 55.4625 | T9: =IF(A9="","",IF(K9>SozialV!K9,(SozialV!K9*SozialV!I9)/2,(K9*SozialV!I9)/2)) -> 515.6525 | U9: =IF(A9="","",IF(K9>SozialV!K9,(SozialV!K9*SozialV!J9)/2,(K9*SozialV!J9)/2)) -> 82.725 | V9: =IF(A9="","",ROUND(SUM(P9:U9),2)) -> 1019.24 | W9: =IF(A9="","",K9-O9-V9) -> 3469.66 | X9: =IF(A9="","",ANDaten2!O9) -> 40 | Y9: =IF(A9="","",ANDaten2!P9) -> 0 | Z9: =IF(A9="","",W9-X9-Y9) -> 3429.66 | AA9: =IF(A9="","",IF(Q9="nein",V9,V9-(IF(K9>SozialV!G9,((SozialV!G9*SozialV!$E$6)+(SozialV!G9*GehaltsL1!R9)),((GehaltsL1!K9*SozialV!$E$6)+(GehaltsL1!K9*GehaltsL1!R9)))))) -> 1019.24
A10: =IF(ANDaten1!A10="","",ANDaten1!A10) -> 102 | B10: =IF(ANDaten1!B10="","",ANDaten1!B10) -> Minardi | C10: =IF(ANDaten1!C10="","",ANDaten1!C10) -> Diana | D10: =IF(A10="","",ANDaten2!G10) -> 1 | E10: =IF(A10="","",ANDaten1!R10) -> katholisch | F10: =IF(A10="","",ANDaten2!H10) -> 0 | G10: =IF(A10="","",ANDaten2!K10) -> 5500 | H10: =IF(A10="","",IF($C$5="Juli",ANDaten2!L10,0)) -> 0 | I10: =IF(A10="","",ANDaten2!M10) -> 1800 | J10: =IF(A10="","",ANDaten2!N10) -> 0 | K10: =IF(A10="","",SUM(G10:J10)) -> 7300 | L10: =IF(A10="","",Steuer2017!E$230/100) -> 2256.91 | N10: =IF(A10="","",IF(OR(E10="evangelisch",E10="katholisch"),TRUNC(Steuer2017!E$265*ANDaten2!Q10/100,2),0)) -> 203.12 | O10: =IF(A10="","",SUM(L10:N10)) -> 2460.03 | P10: =IF($A10="","",IF(SozialV!E10=0%,0,IF($K10>SozialV!$G10,((SozialV!$G10*SozialV!$E10/2)+(SozialV!$G10*SozialV!$E$6)),($K10*SozialV!$E10/2)+($K10*SozialV!$E$6)))) -> 365.4 | Q10: ja | R10: 0.0025 | S10: =IF($A10="","",IF($P10=0,0,(IF($Q10="ja",IF($K10>SozialV!$G10,((SozialV!$G10*SozialV!$F10/2)+(SozialV!$G10*$R10)),($K10*SozialV!$F10/2)+($K10*$R10)),IF($K10>SozialV!$G10,(SozialV!$G10*SozialV!$F10)/2,($K10*SozialV!$F10)/2))))) -> 66.3375 | T10: =IF(A10="","",IF(K10>SozialV!K10,(SozialV!K10*SozialV!I10)/2,(K10*SozialV!I10)/2)) -> 593.725 | U10: =IF(A10="","",IF(K10>SozialV!K10,(SozialV!K10*SozialV!J10)/2,(K10*SozialV!J10)/2)) -> 95.25 | V10: =IF(A10="","",ROUND(SUM(P10:U10),2)) -> 1120.72 | W10: =IF(A10="","",K10-O10-V10) -> 3719.25 | X10: =IF(A10="","",ANDaten2!O10) -> 0 | Y10: =IF(A10="","",ANDaten2!P10) -> 0 | Z10: =IF(A10="","",W10-X10-Y10) -> 3719.25 | AA10: =IF(A10="","",IF(Q10="nein",V10,V10-(IF(K10>SozialV!G10,((SozialV!G10*SozialV!$E$6)+(SozialV!G10*GehaltsL1!R10)),((GehaltsL1!K10*SozialV!$E$6)+(GehaltsL1!K10*GehaltsL1!R10)))))) -> 1061.995
A11: =IF(ANDaten1!A11="","",ANDaten1!A11) -> 103 | B11: =IF(ANDaten1!B11="","",ANDaten1!B11) -> Herbst | C11: =IF(ANDaten1!C11="","",ANDaten1!C11) -> Heiner | D11: =IF(A11="","",ANDaten2!G11) -> 3 | E11: =IF(A11="","",ANDaten1!R11) -> katholisch | F11: =IF(A11="","",ANDaten2!H11) -> 2 | G11: =IF(A11="","",ANDaten2!K11) -> 5500 | H11: =IF(A11="","",IF($C$5="Juli",ANDaten2!L11,0)) -> 0 | I11: =IF(A11="","",ANDaten2!M11) -> 200 | J11: =IF(A11="","",ANDaten2!N11) -> 15 | K11: 5715 | L11: =IF(A11="","",Steuer2017!F$230/100) -> 1021.5 | N11: =IF(A11="","",IF(OR(E11="evangelisch",E11="katholisch"),TRUNC(Steuer2017!F$265*ANDaten2!Q11/100,2),0)) -> 58.18 | O11: 1079.68 | P11: =IF($A11="","",IF(SozialV!E11=0%,0,IF($K11>SozialV!$G11,((SozialV!$G11*SozialV!$E11/2)+(SozialV!$G11*SozialV!$E$6)),($K11*SozialV!$E11/2)+($K11*SozialV!$E$6)))) -> 365.4 | Q11: nein | S11: =IF($A11="","",IF($P11=0,0,(IF($Q11="ja",IF($K11>SozialV!$G11,((SozialV!$G11*SozialV!$F11/2)+(SozialV!$G11*$R11)),($K11*SozialV!$F11/2)+($K11*$R11)),IF($K11>SozialV!$G11,(SozialV!$G11*SozialV!$F11)/2,($K11*SozialV!$F11)/2))))) -> 55.4625 | T11: =IF(A11="","",IF(K11>SozialV!K11,(SozialV!K11*SozialV!I11)/2,(K11*SozialV!I11)/2)) -> 534.3525 | U11: =IF(A11="","",IF(K11>SozialV!K11,(SozialV!K11*SozialV!J11)/2,(K11*SozialV!J11)/2)) -> 85.725 | V11: 1040.94 | W11: 3594.38 | X11: =IF(A11="","",ANDaten2!O11) -> 40 | Y11: =IF(A11="","",ANDaten2!P11) -> 0 | Z11: 3554.38 | AA11: =IF(A11="","",IF(Q11="nein",V11,V11-(IF(K11>SozialV!G11,((SozialV!G11*SozialV!$E$6)+(SozialV!G11*GehaltsL1!R11)),((GehaltsL1!K11*SozialV!$E$6)+(GehaltsL1!K11*GehaltsL1!R11)))))) -> 1040.94
A12: =IF(ANDaten1!A12="","",ANDaten1!A12) -> 104 | B12: =IF(ANDaten1!B12="","",ANDaten1!B12) -> Polster | C12: =IF(ANDaten1!C12="","",ANDaten1!C12) -> Georg | D12: =IF(A12="","",ANDaten2!G12) -> 3 | E12: =IF(A12="","",ANDaten1!R12) -> evangelisch | F12: =IF(A12="","",ANDaten2!H12) -> 3 | G12: =IF(A12="","",ANDaten2!K12) -> 5500 | H12: =IF(A12="","",IF($C$5="Juli",ANDaten2!L12,0)) -> 0 | I12: =IF(A12="","",ANDaten2!M12) -> 1000 | J12: =IF(A12="","",ANDaten2!N12) -> 15 | K12: 6515 | L12: =IF(A12="","",Steuer2017!G$230/100) -> 1290 | N12: =IF(A12="","",IF(OR(E12="evangelisch",E12="katholisch"),TRUNC(Steuer2017!G$265*ANDaten2!Q12/100,2),0)) -> 63.25 | O12: 1353.25 | P12: =IF($A12="","",IF(SozialV!E12=0%,0,IF($K12>SozialV!$G12,((SozialV!$G12*SozialV!$E12/2)+(SozialV!$G12*SozialV!$E$6)),($K12*SozialV!$E12/2)+($K12*SozialV!$E$6)))) -> 365.4 | Q12: nein | S12: =IF(A12="","",IF(P12=0,0,(IF(Q12="ja",IF(K12>SozialV!G12,((SozialV!G12*SozialV!F12/2)+(SozialV!G12*R12)),(K12*SozialV!F12/2)+(K12*R12)),IF(K12>SozialV!G12,(SozialV!G12*SozialV!F12)/2,(K12*SozialV!F12)/2))))) -> 55.4625 | T12: =IF(A12="","",IF(K12>SozialV!K12,(SozialV!K12*SozialV!I12)/2,(K12*SozialV!I12)/2)) -> 593.725 | U12: =IF(A12="","",IF(K12>SozialV!K12,(SozialV!K12*SozialV!J12)/2,(K12*SozialV!J12)/2)) -> 95.25 | V12: 1109.84 | W12: 4051.91 | X12: =IF(A12="","",ANDaten2!O12) -> 40 | Y12: =IF(A12="","",ANDaten2!P12) -> 0 | Z12: 4011.91 | AA12: =IF(A12="","",IF(Q12="nein",V12,V12-(IF(K12>SozialV!G12,((SozialV!G12*SozialV!$E$6)+(SozialV!G12*GehaltsL1!R12)),((GehaltsL1!K12*SozialV!$E$6)+(GehaltsL1!K12*GehaltsL1!R12)))))) -> 1109.84
A13: =IF(ANDaten1!A13="","",ANDaten1!A13) -> 105 | B13: =IF(ANDaten1!B13="","",ANDaten1!B13) -> Behrens | C13: =IF(ANDaten1!C13="","",ANDaten1!C13) -> Sonja | D13: =IF(A13="","",ANDaten2!G13) -> 2 | E13: =IF(A13="","",ANDaten1!R13) -> evangelisch | F13: =IF(A13="","",ANDaten2!H13) -> 1 | G13: =IF(A13="","",ANDaten2!K13) -> 5500 | H13: =IF(A13="","",IF($C$5="Juli",ANDaten2!L13,0)) -> 0 | I13: =IF(A13="","",ANDaten2!M13) -> 1000 | J13: =IF(A13="","",ANDaten2!N13) -> 15 | K13: 6515 | L13: =IF(A13="","",Steuer2017!H$230/100) -> 1860.41 | N13: =IF(A13="","",IF(OR(E13="evangelisch",E13="katholisch"),TRUNC(Steuer2017!H$265*ANDaten2!Q13/100,2),0)) -> 144.27 | O13: 2004.68 | P13: =IF($A13="","",IF(SozialV!E13=0%,0,IF($K13>SozialV!$G13,((SozialV!$G13*SozialV!$E13/2)+(SozialV!$G13*SozialV!$E$6)),($K13*SozialV!$E13/2)+($K13*SozialV!$E$6)))) -> 365.4 | Q13: nein | S13: =IF(A13="","",IF(P13=0,0,(IF(Q13="ja",IF(K13>SozialV!G13,((SozialV!G13*SozialV!F13/2)+(SozialV!G13*R13)),(K13*SozialV!F13/2)+(K13*R13)),IF(K13>SozialV!G13,(SozialV!G13*SozialV!F13)/2,(K13*SozialV!F13)/2))))) -> 55.4625 | T13: =IF(A13="","",IF(K13>SozialV!K13,(SozialV!K13*SozialV!I13)/2,(K13*SozialV!I13)/2)) -> 593.725 | U13: =IF(A13="","",IF(K13>SozialV!K13,(SozialV!K13*SozialV!J13)/2,(K13*SozialV!J13)/2)) -> 95.25 | V13: 1109.84 | W13: 3400.48 | X13: =IF(A13="","",ANDaten2!O13) -> 40 | Y13: =IF(A13="","",ANDaten2!P13) -> 0 | Z13: 3360.48 | AA13: =IF(A13="","",IF(Q13="nein",V13,V13-(IF(K13>SozialV!G13,((SozialV!G13*SozialV!$E$6)+(SozialV!G13*GehaltsL1!R13)),((GehaltsL1!K13*SozialV!$E$6)+(GehaltsL1!K13*GehaltsL1!R13)))))) -> 1109.84
A14: =IF(ANDaten1!A14="","",ANDaten1!A14) -> 106 | B14: =IF(ANDaten1!B14="","",ANDaten1!B14) -> Kaymak | C14: =IF(ANDaten1!C14="","",ANDaten1!C14) -> Ayse | D14: =IF(A14="","",ANDaten2!G14) -> 1 | E14: =IF(A14="","",ANDaten1!R14) -> islamisch | F14: =IF(A14="","",ANDaten2!H14) -> 0 | G14: =IF(A14="","",ANDaten2!K14) -> 650 | H14: =IF(A14="","",IF($C$5="Juli",ANDaten2!L14,0)) -> 0 | I14: =IF(A14="","",ANDaten2!M14) -> 0 | J14: =IF(A14="","",ANDaten2!N14) -> 15 | K14: 665 | L14: =IF(A14="","",Steuer2017!I$230/100) -> 0 | N14: =IF(A14="","",IF(OR(E14="evangelisch",E14="katholisch"),TRUNC(Steuer2017!I$265*ANDaten2!Q14/100,2),0)) -> 0 | O14: 0 | P14: =IF($A14="","",IF(SozialV!E14=0%,0,IF($K14>SozialV!$G14,((SozialV!$G14*SozialV!$E14/2)+(SozialV!$G14*SozialV!$E$6)),($K14*SozialV!$E14/2)+($K14*SozialV!$E$6)))) -> 55.86 | Q14: nein | S14: =IF(A14="","",IF(P14=0,0,(IF(Q14="ja",IF(K14>SozialV!G14,((SozialV!G14*SozialV!F14/2)+(SozialV!G14*R14)),(K14*SozialV!F14/2)+(K14*R14)),IF(K14>SozialV!G14,(SozialV!G14*SozialV!F14)/2,(K14*SozialV!F14)/2))))) -> 8.47875 | T14: =IF(A14="","",IF(K14>SozialV!K14,(SozialV!K14*SozialV!I14)/2,(K14*SozialV!I14)/2)) -> 62.1775 | U14: =IF(A14="","",IF(K14>SozialV!K14,(SozialV!K14*SozialV!J14)/2,(K14*SozialV!J14)/2)) -> 9.975 | V14: 136.49 | W14: 528.51 | X14: =IF(A14="","",ANDaten2!O14) -> 40 | Y14: =IF(A14="","",ANDaten2!P14) -> 0 | Z14: 488.51 | AA14: =IF(A14="","",IF(Q14="nein",V14,V14-(IF(K14>SozialV!G14,((SozialV!G14*SozialV!$E$6)+(SozialV!G14*GehaltsL1!R14)),((GehaltsL1!K14*SozialV!$E$6)+(GehaltsL1!K14*GehaltsL1!R14)))))) -> 136.49
A15: =IF(ANDaten1!A15="","",ANDaten1!A15) -> 107 | B15: =IF(ANDaten1!B15="","",ANDaten1!B15) -> Kaiser | C15: =IF(ANDaten1!C15="","",ANDaten1!C15) -> Sven | D15: =IF(A15="","",ANDaten2!G15) -> 3 | E15: =IF(A15="","",ANDaten1!R15) -> katholisch | F15: =IF(A15="","",ANDaten2!H15) -> 2 | G15: =IF(A15="","",ANDaten2!K15) -> 3400 | H15: =IF(A15="","",IF($C$5="Juli",ANDaten2!L15,0)) -> 0 | I15: =IF(A15="","",ANDaten2!M15) -> 0 | J15: =IF(A15="","",ANDaten2!N15) -> 15 | K15: 3415 | L15: =IF(A15="","",Steuer2017!J$230/100) -> 352.66 | N15: =IF(A15="","",IF(OR(E15="evangelisch",E15="katholisch"),TRUNC(Steuer2017!J$265*ANDaten2!Q15/100,2),0)) -> 5.6 | O15: 358.26 | P15: =IF($A15="","",IF(SozialV!E15=0%,0,IF($K15>SozialV!$G15,((SozialV!$G15*SozialV!$E15/2)+(SozialV!$G15*SozialV!$E$6)),($K15*SozialV!$E15/2)+($K15*SozialV!$E$6)))) -> 286.86 | Q15: nein | S15: =IF(A15="","",IF(P15=0,0,(IF(Q15="ja",IF(K15>SozialV!G15,((SozialV!G15*SozialV!F15/2)+(SozialV!G15*R15)),(K15*SozialV!F15/2)+(K15*R15)),IF(K15>SozialV!G15,(SozialV!G15*SozialV!F15)/2,(K15*SozialV!F15)/2))))) -> 43.54125 | T15: =IF(A15="","",IF(K15>SozialV!K15,(SozialV!K15*SozialV!I15)/2,(K15*SozialV!I15)/2)) -> 319.3025 | U15: =IF(A15="","",IF(K15>SozialV!K15,(SozialV!K15*SozialV!J15)/2,(K15*SozialV!J15)/2)) -> 51.225 | V15: 700.93 | W15: 2355.81 | X15: =IF(A15="","",ANDaten2!O15) -> 40 | Y15: =IF(A15="","",ANDaten2!P15) -> 0 | Z15: 2315.81 | AA15: =IF(A15="","",IF(Q15="nein",V15,V15-(IF(K15>SozialV!G15,((SozialV!G15*SozialV!$E$6)+(SozialV!G15*GehaltsL1!R15)),((GehaltsL1!K15*SozialV!$E$6)+(GehaltsL1!K15*GehaltsL1!R15)))))) -> 700.93
A16: =IF(ANDaten1!A16="","",ANDaten1!A16) -> 108 | B16: =IF(ANDaten1!B16="","",ANDaten1!B16) -> Martin | C16: =IF(ANDaten1!C16="","",ANDaten1!C16) -> Felix | D16: =IF(A16="","",ANDaten2!G16) -> 1 | E16: =IF(A16="","",ANDaten1!R16) -> keine | F16: =IF(A16="","",ANDaten2!H16) -> 0 | G16: =IF(A16="","",ANDaten2!K16) -> 3000 | H16: =IF(A16="","",IF($C$5="Juli",ANDaten2!L16,0)) -> 0 | I16: =IF(A16="","",ANDaten2!M16) -> 0 | J16: =IF(A16="","",ANDaten2!N16) -> 15 | K16: 3015 | L16: =IF(A16="","",Steuer2017!K$230/100) -> 538 | N16: =IF(A16="","",IF(OR(E16="evangelisch",E16="katholisch"),TRUNC(Steuer2017!K$265*ANDaten2!Q16/100,2),0)) -> 0 | O16: 538 | P16: =IF($A16="","",IF(SozialV!E16=0%,0,IF($K16>SozialV!$G16,((SozialV!$G16*SozialV!$E16/2)+(SozialV!$G16*SozialV!$E$6)),($K16*SozialV!$E16/2)+($K16*SozialV!$E$6)))) -> 253.26 | Q16: ja | R16: 0.0025 | S16: =IF(A16="","",IF(P16=0,0,(IF(Q16="ja",IF(K16>SozialV!G16,((SozialV!G16*SozialV!F16/2)+(SozialV!G16*R16)),(K16*SozialV!F16/2)+(K16*R16)),IF(K16>SozialV!G16,(SozialV!G16*SozialV!F16)/2,(K16*SozialV!F16)/2))))) -> 45.97875 | T16: =IF(A16="","",IF(K16>SozialV!K16,(SozialV!K16*SozialV!I16)/2,(K16*SozialV!I16)/2)) -> 281.9025 | U16: =IF(A16="","",IF(K16>SozialV!K16,(SozialV!K16*SozialV!J16)/2,(K16*SozialV!J16)/2)) -> 45.225 | V16: 626.37 | W16: 1850.63 | X16: =IF(A16="","",ANDaten2!O16) -> 40 | Y16: =IF(A16="","",ANDaten2!P16) -> 0 | Z16: 1810.63 | AA16: =IF(A16="","",IF(Q16="nein",V16,V16-(IF(K16>SozialV!G16,((SozialV!G16*SozialV!$E$6)+(SozialV!G16*GehaltsL1!R16)),((GehaltsL1!K16*SozialV!$E$6)+(GehaltsL1!K16*GehaltsL1!R16)))))) -> 585.6675
A17: =IF(ANDaten1!A17="","",ANDaten1!A17) -> 109 | B17: =IF(ANDaten1!B17="","",ANDaten1!B17) -> Antonelli | C17: =IF(ANDaten1!C17="","",ANDaten1!C17) -> Claudia | D17: =IF(A17="","",ANDaten2!G17) -> 4 | E17: =IF(A17="","",ANDaten1!R17) -> katholisch | F17: =IF(A17="","",ANDaten2!H17) -> 1 | G17: =IF(A17="","",ANDaten2!K17) -> 4500 | H17: =IF(A17="","",IF($C$5="Juli",ANDaten2!L17,0)) -> 0 | I17: =IF(A17="","",ANDaten2!M17) -> 250 | J17: =IF(A17="","",ANDaten2!N17) -> 15 | K17: 4765 | L17: =IF(A17="","",Steuer2017!L$230/100) -> 1192.25 | N17: =IF(A17="","",IF(OR(E17="evangelisch",E17="katholisch"),TRUNC(Steuer2017!L$265*ANDaten2!Q17/100,2),0)) -> 95.91 | O17: 1288.16 | P17: =IF($A17="","",IF(SozialV!E17=0%,0,IF($K17>SozialV!$G17,((SozialV!$G17*SozialV!$E17/2)+(SozialV!$G17*SozialV!$E$6)),($K17*SozialV!$E17/2)+($K17*SozialV!$E$6)))) -> 365.4 | Q17: nein | S17: =IF(A17="","",IF(P17=0,0,(IF(Q17="ja",IF(K17>SozialV!G17,((SozialV!G17*SozialV!F17/2)+(SozialV!G17*R17)),(K17*SozialV!F17/2)+(K17*R17)),IF(K17>SozialV!G17,(SozialV!G17*SozialV!F17)/2,(K17*SozialV!F17)/2))))) -> 55.4625 | T17: =IF(A17="","",IF(K17>SozialV!K17,(SozialV!K17*SozialV!I17)/2,(K17*SozialV!I17)/2)) -> 445.5275 | U17: =IF(A17="","",IF(K17>SozialV!K17,(SozialV!K17*SozialV!J17)/2,(K17*SozialV!J17)/2)) -> 71.475 | V17: 937.87 | W17: 2538.97 | X17: =IF(A17="","",ANDaten2!O17) -> 40 | Y17: =IF(A17="","",ANDaten2!P17) -> 0 | Z17: 2498.97 | AA17: =IF(A17="","",IF(Q17="nein",V17,V17-(IF(K17>SozialV!G17,((SozialV!G17*SozialV!$E$6)+(SozialV!G17*GehaltsL1!R17)),((GehaltsL1!K17*SozialV!$E$6)+(GehaltsL1!K17*GehaltsL1!R17)))))) -> 937.87
A18: =IF(ANDaten1!A18="","",ANDaten1!A18) -> 110 | B18: =IF(ANDaten1!B18="","",ANDaten1!B18) -> Seewald | C18: =IF(ANDaten1!C18="","",ANDaten1!C18) -> Manon | D18: =IF(A18="","",ANDaten2!G18) -> 3 | E18: =IF(A18="","",ANDaten1!R18) -> evangelisch | F18: =IF(A18="","",ANDaten2!H18) -> 1 | G18: =IF(A18="","",ANDaten2!K18) -> 4500 | H18: =IF(A18="","",IF($C$5="Juli",ANDaten2!L18,0)) -> 0 | I18: =IF(A18="","",ANDaten2!M18) -> 250 | J18: =IF(A18="","",ANDaten2!N18) -> 15 | K18: 4765 | L18: =IF(A18="","",Steuer2017!M$230/100) -> 729.16 | N18: =IF(A18="","",IF(OR(E18="evangelisch",E18="katholisch"),TRUNC(Steuer2017!M$265*ANDaten2!Q18/100,2),0)) -> 49.69 | O18: 778.85 | P18: =IF($A18="","",IF(SozialV!E18=0%,0,IF($K18>SozialV!$G18,((SozialV!$G18*SozialV!$E18/2)+(SozialV!$G18*SozialV!$E$6)),($K18*SozialV!$E18/2)+($K18*SozialV!$E$6)))) -> 365.4 | Q18: nein | S18: =IF(A18="","",IF(P18=0,0,(IF(Q18="ja",IF(K18>SozialV!G18,((SozialV!G18*SozialV!F18/2)+(SozialV!G18*R18)),(K18*SozialV!F18/2)+(K18*R18)),IF(K18>SozialV!G18,(SozialV!G18*SozialV!F18)/2,(K18*SozialV!F18)/2))))) -> 55.4625 | T18: =IF(A18="","",IF(K18>SozialV!K18,(SozialV!K18*SozialV!I18)/2,(K18*SozialV!I18)/2)) -> 445.5275 | U18: =IF(A18="","",IF(K18>SozialV!K18,(SozialV!K18*SozialV!J18)/2,(K18*SozialV!J18)/2)) -> 71.475 | V18: 937.87 | W18: 3048.28 | X18: =IF(A18="","",ANDaten2!O18) -> 40 | Y18: =IF(A18="","",ANDaten2!P18) -> 0 | Z18: 3008.28 | AA18: =IF(A18="","",IF(Q18="nein",V18,V18-(IF(K18>SozialV!G18,((SozialV!G18*SozialV!$E$6)+(SozialV!G18*GehaltsL1!R18)),((GehaltsL1!K18*SozialV!$E$6)+(GehaltsL1!K18*GehaltsL1!R18)))))) -> 937.87
A19: =IF(ANDaten1!A19="","",ANDaten1!A19) -> 111 | B19: =IF(ANDaten1!B19="","",ANDaten1!B19) -> Senel | C19: =IF(ANDaten1!C19="","",ANDaten1!C19) -> Selami | D19: =IF(A19="","",ANDaten2!G19) -> 3 | E19: =IF(A19="","",ANDaten1!R19) -> islamisch | F19: =IF(A19="","",ANDaten2!H19) -> 3 | G19: =IF(A19="","",ANDaten2!K19) -> 3400 | H19: =IF(A19="","",IF($C$5="Juli",ANDaten2!L19,0)) -> 0 | I19: =IF(A19="","",ANDaten2!M19) -> 0 | J19: =IF(A19="","",ANDaten2!N19) -> 15 | K19: 3415 | L19: =IF(A19="","",Steuer2017!N$230/100) -> 352.66 | N19: =IF(A19="","",IF(OR(E19="evangelisch",E19="katholisch"),TRUNC(Steuer2017!N$265*ANDaten2!Q19/100,2),0)) -> 0 | O19: 352.66 | P19: =IF($A19="","",IF(SozialV!E19=0%,0,IF($K19>SozialV!$G19,((SozialV!$G19*SozialV!$E19/2)+(SozialV!$G19*SozialV!$E$6)),($K19*SozialV!$E19/2)+($K19*SozialV!$E$6)))) -> 286.86 | Q19: nein | S19: =IF(A19="","",IF(P19=0,0,(IF(Q19="ja",IF(K19>SozialV!G19,((SozialV!G19*SozialV!F19/2)+(SozialV!G19*R19)),(K19*SozialV!F19/2)+(K19*R19)),IF(K19>SozialV!G19,(SozialV!G19*SozialV!F19)/2,(K19*SozialV!F19)/2))))) -> 43.54125 | T19: =IF(A19="","",IF(K19>SozialV!K19,(SozialV!K19*SozialV!I19)/2,(K19*SozialV!I19)/2)) -> 319.3025 | U19: =IF(A19="","",IF(K19>SozialV!K19,(SozialV!K19*SozialV!J19)/2,(K19*SozialV!J19)/2)) -> 51.225 | V19: 700.93 | W19: 2361.41 | X19: =IF(A19="","",ANDaten2!O19) -> 40 | Y19: =IF(A19="","",ANDaten2!P19) -> 0 | Z19: 2321.41 | AA19: =IF(A19="","",IF(Q19="nein",V19,V19-(IF(K19>SozialV!G19,((SozialV!G19*SozialV!$E$6)+(SozialV!G19*GehaltsL1!R19)),((GehaltsL1!K19*SozialV!$E$6)+(GehaltsL1!K19*GehaltsL1!R19)))))) -> 700.93
A20: =IF(ANDaten1!A20="","",ANDaten1!A20) -> 112 | B20: =IF(ANDaten1!B20="","",ANDaten1!B20) -> Weidenfeld | C20: =IF(ANDaten1!C20="","",ANDaten1!C20) -> Martin | D20: =IF(A20="","",ANDaten2!G20) -> 4 | E20: =IF(A20="","",ANDaten1!R20) -> katholisch | F20: =IF(A20="","",ANDaten2!H20) -> 1 | G20: =IF(A20="","",ANDaten2!K20) -> 3400 | H20: =IF(A20="","",IF($C$5="Juli",ANDaten2!L20,0)) -> 0 | I20: =IF(A20="","",ANDaten2!M20) -> 0 | J20: =IF(A20="","",ANDaten2!N20) -> 0 | K20: 3400 | L20: =IF(A20="","",Steuer2017!O$230/100) -> 667.83 | N20: =IF(A20="","",IF(OR(E20="evangelisch",E20="katholisch"),TRUNC(Steuer2017!O$265*ANDaten2!Q20/100,2),0)) -> 50.74 | O20: 718.57 | P20: =IF($A20="","",IF(SozialV!E20=0%,0,IF($K20>SozialV!$G20,((SozialV!$G20*SozialV!$E20/2)+(SozialV!$G20*SozialV!$E$6)),($K20*SozialV!$E20/2)+($K20*SozialV!$E$6)))) -> 285.6 | Q20: nein | S20: =IF(A20="","",IF(P20=0,0,(IF(Q20="ja",IF(K20>SozialV!G20,((SozialV!G20*SozialV!F20/2)+(SozialV!G20*R20)),(K20*SozialV!F20/2)+(K20*R20)),IF(K20>SozialV!G20,(SozialV!G20*SozialV!F20)/2,(K20*SozialV!F20)/2))))) -> 43.35 | T20: =IF(A20="","",IF(K20>SozialV!K20,(SozialV!K20*SozialV!I20)/2,(K20*SozialV!I20)/2)) -> 317.9 | U20: =IF(A20="","",IF(K20>SozialV!K20,(SozialV!K20*SozialV!J20)/2,(K20*SozialV!J20)/2)) -> 51 | V20: 697.85 | W20: 1983.58 | X20: =IF(A20="","",ANDaten2!O20) -> 0 | Y20: =IF(A20="","",ANDaten2!P20) -> 0 | Z20: 1983.58 | AA20: =IF(A20="","",IF(Q20="nein",V20,V20-(IF(K20>SozialV!G20,((SozialV!G20*SozialV!$E$6)+(SozialV!G20*GehaltsL1!R20)),((GehaltsL1!K20*SozialV!$E$6)+(GehaltsL1!K20*GehaltsL1!R20)))))) -> 697.85
A21: =IF(ANDaten1!A21="","",ANDaten1!A21) -> 113 | B21: =IF(ANDaten1!B21="","",ANDaten1!B21) -> Zimmermann | C21: =IF(ANDaten1!C21="","",ANDaten1!C21) -> Horst | D21: 3 | E21: =IF(A21="","",ANDaten1!R21) -> katholisch | F21: =IF(A21="","",ANDaten2!H21) -> 2 | G21: =IF(A21="","",ANDaten2!K21) -> 4500 | H21: =IF(A21="","",IF($C$5="Juli",ANDaten2!L21,0)) -> 0 | I21: =IF(A21="","",ANDaten2!M21) -> 0 | J21: =IF(A21="","",ANDaten2!N21) -> 0 | K21: 4500 | L21: =IF(A21="","",Steuer2017!P$230/100) -> 651.33 | N21: =IF(A21="","",IF(OR(E21="evangelisch",E21="katholisch"),TRUNC(Steuer2017!P$265*ANDaten2!Q21/100,2),0)) -> 28.45 | O21: 679.78 | P21: =IF($A21="","",IF(SozialV!E21=0%,0,IF($K21>SozialV!$G21,((SozialV!$G21*SozialV!$E21/2)+(SozialV!$G21*SozialV!$E$6)),($K21*SozialV!$E21/2)+($K21*SozialV!$E$6)))) -> 365.4 | Q21: nein | S21: =IF(A21="","",IF(P21=0,0,(IF(Q21="ja",IF(K21>SozialV!G21,((SozialV!G21*SozialV!F21/2)+(SozialV!G21*R21)),(K21*SozialV!F21/2)+(K21*R21)),IF(K21>SozialV!G21,(SozialV!G21*SozialV!F21)/2,(K21*SozialV!F21)/2))))) -> 55.4625 | T21: =IF(A21="","",IF(K21>SozialV!K21,(SozialV!K21*SozialV!I21)/2,(K21*SozialV!I21)/2)) -> 420.75 | U21: =IF(A21="","",IF(K21>SozialV!K21,(SozialV!K21*SozialV!J21)/2,(K21*SozialV!J21)/2)) -> 67.5 | V21: 909.11 | W21: 2911.11 | X21: =IF(A21="","",ANDaten2!O21) -> 0 | Y21: =IF(A21="","",ANDaten2!P21) -> 0 | Z21: 2911.11 | AA21: =IF(A21="","",IF(Q21="nein",V21,V21-(IF(K21>SozialV!G21,((SozialV!G21*SozialV!$E$6)+(SozialV!G21*GehaltsL1!R21)),((GehaltsL1!K21*SozialV!$E$6)+(GehaltsL1!K21*GehaltsL1!R21)))))) -> 909.11
A22: =IF(ANDaten1!A22="","",ANDaten1!A22) -> 114 | B22: =IF(ANDaten1!B22="","",ANDaten1!B22) -> Rünz-Jonzeck | C22: =IF(ANDaten1!C22="","",ANDaten1!C22) -> Tanja | D22: 5 | E22: =IF(A22="","",ANDaten1!R22) -> evangelisch | F22: =IF(A22="","",ANDaten2!H22) -> 0 | G22: =IF(A22="","",ANDaten2!K22) -> 3400 | H22: =IF(A22="","",IF($C$5="Juli",ANDaten2!L22,0)) -> 0 | I22: =IF(A22="","",ANDaten2!M22) -> 0 | J22: =IF(A22="","",ANDaten2!N22) -> 0 | K22: 3400 | L22: =IF(A22="","",Steuer2017!Q$230/100) -> 1052.83 | N22: =IF(A22="","",IF(OR(E22="evangelisch",E22="katholisch"),TRUNC(Steuer2017!Q$265*ANDaten2!Q22/100,2),0)) -> 94.75 | O22: 1147.58 | P22: =IF($A22="","",IF(SozialV!E22=0%,0,IF($K22>SozialV!$G22,((SozialV!$G22*SozialV!$E22/2)+(SozialV!$G22*SozialV!$E$6)),($K22*SozialV!$E22/2)+($K22*SozialV!$E$6)))) -> 285.6 | Q22: ja | R22: 0.0025 | S22: =IF(A22="","",IF(P22=0,0,(IF(Q22="ja",IF(K22>SozialV!G22,((SozialV!G22*SozialV!F22/2)+(SozialV!G22*R22)),(K22*SozialV!F22/2)+(K22*R22)),IF(K22>SozialV!G22,(SozialV!G22*SozialV!F22)/2,(K22*SozialV!F22)/2))))) -> 51.85 | T22: =IF(A22="","",IF(K22>SozialV!K22,(SozialV!K22*SozialV!I22)/2,(K22*SozialV!I22)/2)) -> 317.9 | U22: =IF(A22="","",IF(K22>SozialV!K22,(SozialV!K22*SozialV!J22)/2,(K22*SozialV!J22)/2)) -> 51 | V22: 706.35 | W22: 1546.07 | X22: =IF(A22="","",ANDaten2!O22) -> 0 | Y22: =IF(A22="","",ANDaten2!P22) -> 0 | Z22: 1546.07 | AA22: =IF(A22="","",IF(Q22="nein",V22,V22-(IF(K22>SozialV!G22,((SozialV!G22*SozialV!$E$6)+(SozialV!G22*GehaltsL1!R22)),((GehaltsL1!K22*SozialV!$E$6)+(GehaltsL1!K22*GehaltsL1!R22)))))) -> 660.45
A23: =IF(ANDaten1!A23="","",ANDaten1!A23) -> 115 | B23: =IF(ANDaten1!B23="","",ANDaten1!B23) -> Wagner | C23: =IF(ANDaten1!C23="","",ANDaten1!C23) -> Christa | D23: =IF(A23="","",ANDaten2!G23) -> 1 | E23: =IF(A23="","",ANDaten1!R23) -> lutheranisch | F23: =IF(A23="","",ANDaten2!H23) -> 0 | G23: =IF(A23="","",ANDaten2!K23) -> 4500 | H23: =IF(A23="","",IF($C$5="Juli",ANDaten2!L23,0)) -> 0 | I23: =IF(A23="","",ANDaten2!M23) -> 500 | J23: =IF(A23="","",ANDaten2!N23) -> 15 | K23: 5015 | L23: =IF(A23="","",Steuer2017!R$230/100) -> 1297.25 | N23: =IF(A23="","",IF(OR(E23="evangelisch",E23="katholisch"),TRUNC(Steuer2017!R$265*ANDaten2!Q23/100,2),0)) -> 0 | O23: 1297.25 | P23: =IF($A23="","",IF(SozialV!E23=0%,0,IF($K23>SozialV!$G23,((SozialV!$G23*SozialV!$E23/2)+(SozialV!$G23*SozialV!$E$6)),($K23*SozialV!$E23/2)+($K23*SozialV!$E$6)))) -> 365.4 | Q23: ja | R23: 0.0025 | S23: =IF(A23="","",IF(P23=0,0,(IF(Q23="ja",IF(K23>SozialV!G23,((SozialV!G23*SozialV!F23/2)+(SozialV!G23*R23)),(K23*SozialV!F23/2)+(K23*R23)),IF(K23>SozialV!G23,(SozialV!G23*SozialV!F23)/2,(K23*SozialV!F23)/2))))) -> 66.3375 | T23: =IF(A23="","",IF(K23>SozialV!K23,(SozialV!K23*SozialV!I23)/2,(K23*SozialV!I23)/2)) -> 468.9025 | U23: =IF(A23="","",IF(K23>SozialV!K23,(SozialV!K23*SozialV!J23)/2,(K23*SozialV!J23)/2)) -> 75.225 | V23: 975.87 | W23: 2741.88 | X23: =IF(A23="","",ANDaten2!O23) -> 40 | Y23: =IF(A23="","",ANDaten2!P23) -> 0 | Z23: 2701.88 | AA23: =IF(A23="","",IF(Q23="nein",V23,V23-(IF(K23>SozialV!G23,((SozialV!G23*SozialV!$E$6)+(SozialV!G23*GehaltsL1!R23)),((GehaltsL1!K23*SozialV!$E$6)+(GehaltsL1!K23*GehaltsL1!R23)))))) -> 917.145
A24: =IF(ANDaten1!A24="","",ANDaten1!A24) -> 116 | B24: =IF(ANDaten1!B24="","",ANDaten1!B24) -> Flöricke | C24: =IF(ANDaten1!C24="","",ANDaten1!C24) -> Susanne | D24: =IF(A24="","",ANDaten2!G24) -> 2 | E24: =IF(A24="","",ANDaten1!R24) -> evangelisch | F24: =IF(A24="","",ANDaten2!H24) -> 1 | G24: =IF(A24="","",ANDaten2!K24) -> 3400 | H24: =IF(A24="","",IF($C$5="Juli",ANDaten2!L24,0)) -> 0 | I24: =IF(A24="","",ANDaten2!M24) -> 0 | J24: =IF(A24="","",ANDaten2!N24) -> 15 | K24: 3415 | L24: =IF(A24="","",Steuer2017!S$230/100) -> 618.33 | N24: =IF(A24="","",IF(OR(E24="evangelisch",E24="katholisch"),TRUNC(Steuer2017!S$265*ANDaten2!Q24/100,2),0)) -> 37.8 | O24: 656.13 | P24: =IF($A24="","",IF(SozialV!E24=0%,0,IF($K24>SozialV!$G24,((SozialV!$G24*SozialV!$E24/2)+(SozialV!$G24*SozialV!$E$6)),($K24*SozialV!$E24/2)+($K24*SozialV!$E$6)))) -> 286.86 | Q24: nein | S24: =IF(A24="","",IF(P24=0,0,(IF(Q24="ja",IF(K24>SozialV!G24,((SozialV!G24*SozialV!F24/2)+(SozialV!G24*R24)),(K24*SozialV!F24/2)+(K24*R24)),IF(K24>SozialV!G24,(SozialV!G24*SozialV!F24)/2,(K24*SozialV!F24)/2))))) -> 43.54125 | T24: =IF(A24="","",IF(K24>SozialV!K24,(SozialV!K24*SozialV!I24)/2,(K24*SozialV!I24)/2)) -> 319.3025 | U24: =IF(A24="","",IF(K24>SozialV!K24,(SozialV!K24*SozialV!J24)/2,(K24*SozialV!J24)/2)) -> 51.225 | V24: 700.93 | W24: 2057.94 | X24: =IF(A24="","",ANDaten2!O24) -> 40 | Y24: =IF(A24="","",ANDaten2!P24) -> 0 | Z24: 2017.94 | AA24: =IF(A24="","",IF(Q24="nein",V24,V24-(IF(K24>SozialV!G24,((SozialV!G24*SozialV!$E$6)+(SozialV!G24*GehaltsL1!R24)),((GehaltsL1!K24*SozialV!$E$6)+(GehaltsL1!K24*GehaltsL1!R24)))))) -> 700.93
A25: =IF(ANDaten1!A25="","",ANDaten1!A25) -> 117 | B25: =IF(ANDaten1!B25="","",ANDaten1!B25) -> Piel-Oster | C25: =IF(ANDaten1!C25="","",ANDaten1!C25) -> Simone | D25: =IF(A25="","",ANDaten2!G25) -> 4 | E25: =IF(A25="","",ANDaten1!R25) -> evangelisch | F25: =IF(A25="","",ANDaten2!H25) -> 0 | G25: =IF(A25="","",ANDaten2!K25) -> 3400 | H25: =IF(A25="","",IF($C$5="Juli",ANDaten2!L25,0)) -> 0 | I25: =IF(A25="","",ANDaten2!M25) -> 0 | J25: =IF(A25="","",ANDaten2!N25) -> 0 | K25: 3400 | L25: =IF(A25="","",Steuer2017!T$230/100) -> 667.83 | N25: =IF(A25="","",IF(OR(E25="evangelisch",E25="katholisch"),TRUNC(Steuer2017!T$265*ANDaten2!Q25/100,2),0)) -> 60.1 | O25: 727.93 | P25: =IF($A25="","",IF(SozialV!E25=0%,0,IF($K25>SozialV!$G25,((SozialV!$G25*SozialV!$E25/2)+(SozialV!$G25*SozialV!$E$6)),($K25*SozialV!$E25/2)+($K25*SozialV!$E$6)))) -> 285.6 | Q25: ja | R25: 0.0025 | S25: =IF(A25="","",IF(P25=0,0,(IF(Q25="ja",IF(K25>SozialV!G25,((SozialV!G25*SozialV!F25/2)+(SozialV!G25*R25)),(K25*SozialV!F25/2)+(K25*R25)),IF(K25>SozialV!G25,(SozialV!G25*SozialV!F25)/2,(K25*SozialV!F25)/2))))) -> 51.85 | T25: =IF(A25="","",IF(K25>SozialV!K25,(SozialV!K25*SozialV!I25)/2,(K25*SozialV!I25)/2)) -> 317.9 | U25: =IF(A25="","",IF(K25>SozialV!K25,(SozialV!K25*SozialV!J25)/2,(K25*SozialV!J25)/2)) -> 51 | V25: 706.35 | W25: 1965.72 | X25: =IF(A25="","",ANDaten2!O25) -> 0 | Y25: =IF(A25="","",ANDaten2!P25) -> 0 | Z25: 1965.72 | AA25: =IF(A25="","",IF(Q25="nein",V25,V25-(IF(K25>SozialV!G25,((SozialV!G25*SozialV!$E$6)+(SozialV!G25*GehaltsL1!R25)),((GehaltsL1!K25*SozialV!$E$6)+(GehaltsL1!K25*GehaltsL1!R25)))))) -> 660.45
A26: =IF(ANDaten1!A26="","",ANDaten1!A26) -> 118 | B26: =IF(ANDaten1!B26="","",ANDaten1!B26) -> Sauerland | C26: =IF(ANDaten1!C26="","",ANDaten1!C26) -> Mario | D26: =IF(A26="","",ANDaten2!G26) -> 1 | E26: =IF(A26="","",ANDaten1!R26) -> katholisch | F26: =IF(A26="","",ANDaten2!H26) -> 0 | G26: =IF(A26="","",ANDaten2!K26) -> 550 | H26: =IF(A26="","",IF($C$5="Juli",ANDaten2!L26,0)) -> 0 | I26: =IF(A26="","",ANDaten2!M26) -> 0 | J26: =IF(A26="","",ANDaten2!N26) -> 15 | K26: 565 | L26: =IF(A26="","",Steuer2017!U$230/100) -> 0 | N26: =IF(A26="","",IF(OR(E26="evangelisch",E26="katholisch"),TRUNC(Steuer2017!U$265*ANDaten2!Q26/100,2),0)) -> 0 | O26: 0 | P26: =IF($A26="","",IF(SozialV!E26=0%,0,IF($K26>SozialV!$G26,((SozialV!$G26*SozialV!$E26/2)+(SozialV!$G26*SozialV!$E$6)),($K26*SozialV!$E26/2)+($K26*SozialV!$E$6)))) -> 47.46 | Q26: nein | S26: =IF(A26="","",IF(P26=0,0,(IF(Q26="ja",IF(K26>SozialV!G26,((SozialV!G26*SozialV!F26/2)+(SozialV!G26*R26)),(K26*SozialV!F26/2)+(K26*R26)),IF(K26>SozialV!G26,(SozialV!G26*SozialV!F26)/2,(K26*SozialV!F26)/2))))) -> 7.20375 | T26: =IF(A26="","",IF(K26>SozialV!K26,(SozialV!K26*SozialV!I26)/2,(K26*SozialV!I26)/2)) -> 52.8275 | U26: =IF(A26="","",IF(K26>SozialV!K26,(SozialV!K26*SozialV!J26)/2,(K26*SozialV!J26)/2)) -> 8.475 | V26: 115.97 | W26: 449.03 | X26: =IF(A26="","",ANDaten2!O26) -> 40 | Y26: =IF(A26="","",ANDaten2!P26) -> 0 | Z26: 409.03 | AA26: =IF(A26="","",IF(Q26="nein",V26,V26-(IF(K26>SozialV!G26,((SozialV!G26*SozialV!$E$6)+(SozialV!G26*GehaltsL1!R26)),((GehaltsL1!K26*SozialV!$E$6)+(GehaltsL1!K26*GehaltsL1!R26)))))) -> 115.97
A27: =IF(ANDaten1!A27="","",ANDaten1!A27) -> 119 | B27: =IF(ANDaten1!B27="","",ANDaten1!B27) -> Ollek | C27: =IF(ANDaten1!C27="","",ANDaten1!C27) -> Tanja | D27: =IF(A27="","",ANDaten2!G27) -> 1 | E27: =IF(A27="","",ANDaten1!R27) -> evangelisch | F27: =IF(A27="","",ANDaten2!H27) -> 0 | G27: =IF(A27="","",ANDaten2!K27) -> 550 | H27: =IF(A27="","",IF($C$5="Juli",ANDaten2!L27,0)) -> 0 | I27: =IF(A27="","",ANDaten2!M27) -> 0 | J27: =IF(A27="","",ANDaten2!N27) -> 0 | K27: 550 | L27: =IF(A27="","",Steuer2017!V$230/100) -> 0 | N27: =IF(A27="","",IF(OR(E27="evangelisch",E27="katholisch"),TRUNC(Steuer2017!V$265*ANDaten2!Q27/100,2),0)) -> 0 | O27: 0 | P27: =IF($A27="","",IF(SozialV!E27=0%,0,IF($K27>SozialV!$G27,((SozialV!$G27*SozialV!$E27/2)+(SozialV!$G27*SozialV!$E$6)),($K27*SozialV!$E27/2)+($K27*SozialV!$E$6)))) -> 46.2 | Q27: nein | S27: =IF(A27="","",IF(P27=0,0,(IF(Q27="ja",IF(K27>SozialV!G27,((SozialV!G27*SozialV!F27/2)+(SozialV!G27*R27)),(K27*SozialV!F27/2)+(K27*R27)),IF(K27>SozialV!G27,(SozialV!G27*SozialV!F27)/2,(K27*SozialV!F27)/2))))) -> 7.0125 | T27: =IF(A27="","",IF(K27>SozialV!K27,(SozialV!K27*SozialV!I27)/2,(K27*SozialV!I27)/2)) -> 51.425 | U27: =IF(A27="","",IF(K27>SozialV!K27,(SozialV!K27*SozialV!J27)/2,(K27*SozialV!J27)/2)) -> 8.25 | V27: 112.89 | W27: 437.11 | X27: =IF(A27="","",ANDaten2!O27) -> 0 | Y27: =IF(A27="","",ANDaten2!P27) -> 0 | Z27: 437.11 | AA27: =IF(A27="","",IF(Q27="nein",V27,V27-(IF(K27>SozialV!G27,((SozialV!G27*SozialV!$E$6)+(SozialV!G27*GehaltsL1!R27)),((GehaltsL1!K27*SozialV!$E$6)+(GehaltsL1!K27*GehaltsL1!R27)))))) -> 112.89
A28: =IF(ANDaten1!A28="","",ANDaten1!A28) ->  | B28: =IF(ANDaten1!B28="","",ANDaten1!B28) ->  | C28: =IF(ANDaten1!C28="","",ANDaten1!C28) ->  | D28: =IF(A28="","",ANDaten2!G28) ->  | E28: =IF(A28="","",ANDaten1!R28) ->  | F28: =IF(A28="","",ANDaten2!H28) ->  | G28: =IF(A28="","",ANDaten2!K28) ->  | H28: =IF(A28="","",IF($C$5="Juli",ANDaten2!L28,0)) ->  | I28: =IF(A28="","",ANDaten2!M28) ->  | J28: =IF(A28="","",ANDaten2!N28) ->  | L28: =IF(A28="","",Steuer2017!W$230/100) ->  | N28: =IF(A28="","",IF(OR(E28="evangelisch",E28="katholisch"),TRUNC(Steuer2017!W$265*ANDaten2!Q28/100,2),0)) ->  | P28: =IF($A28="","",IF(SozialV!E28=0%,0,IF($K28>SozialV!$G28,((SozialV!$G28*SozialV!$E28/2)+(SozialV!$G28*SozialV!$E$6)),($K28*SozialV!$E28/2)+($K28*SozialV!$E$6)))) ->  | S28: =IF(A28="","",IF(P28=0,0,(IF(Q28="ja",IF(K28>SozialV!G28,((SozialV!G28*SozialV!F28/2)+(SozialV!G28*R28)),(K28*SozialV!F28/2)+(K28*R28)),IF(K28>SozialV!G28,(SozialV!G28*SozialV!F28)/2,(K28*SozialV!F28)/2))))) ->  | T28: =IF(A28="","",IF(K28>SozialV!K28,(SozialV!K28*SozialV!I28)/2,(K28*SozialV!I28)/2)) ->  | U28: =IF(A28="","",IF(K28>SozialV!K28,(SozialV!K28*SozialV!J28)/2,(K28*SozialV!J28)/2)) ->  | X28: =IF(A28="","",ANDaten2!O28) ->  | Y28: =IF(A28="","",ANDaten2!P28) ->  | AA28: =IF(A28="","",IF(Q28="nein",V28,V28-(IF(K28>SozialV!G28,((SozialV!G28*SozialV!$E$6)+(SozialV!G28*GehaltsL1!R28)),((GehaltsL1!K28*SozialV!$E$6)+(GehaltsL1!K28*GehaltsL1!R28)))))) -> 
A29: =IF(ANDaten1!A29="","",ANDaten1!A29) ->  | B29: =IF(ANDaten1!B29="","",ANDaten1!B29) ->  | C29: =IF(ANDaten1!C29="","",ANDaten1!C29) ->  | D29: =IF(A29="","",ANDaten2!G29) ->  | E29: =IF(A29="","",ANDaten1!R29) ->  | F29: =IF(A29="","",ANDaten2!H29) ->  | G29: =IF(A29="","",ANDaten2!K29) ->  | H29: =IF(A29="","",IF($C$5="Juli",ANDaten2!L29,0)) ->  | I29: =IF(A29="","",ANDaten2!M29) ->  | J29: =IF(A29="","",ANDaten2!N29) ->  | L29: =IF(A29="","",Steuer2017!X$230/100) ->  | N29: =IF(A29="","",IF(OR(E29="evangelisch",E29="katholisch"),TRUNC(Steuer2017!X$265*ANDaten2!Q29/100,2),0)) ->  | P29: =IF($A29="","",IF(SozialV!E29=0%,0,IF($K29>SozialV!$G29,((SozialV!$G29*SozialV!$E29/2)+(SozialV!$G29*SozialV!$E$6)),($K29*SozialV!$E29/2)+($K29*SozialV!$E$6)))) ->  | S29: =IF(A29="","",IF(P29=0,0,(IF(Q29="ja",IF(K29>SozialV!G29,((SozialV!G29*SozialV!F29/2)+(SozialV!G29*R29)),(K29*SozialV!F29/2)+(K29*R29)),IF(K29>SozialV!G29,(SozialV!G29*SozialV!F29)/2,(K29*SozialV!F29)/2))))) ->  | T29: =IF(A29="","",IF(K29>SozialV!K29,(SozialV!K29*SozialV!I29)/2,(K29*SozialV!I29)/2)) ->  | U29: =IF(A29="","",IF(K29>SozialV!K29,(SozialV!K29*SozialV!J29)/2,(K29*SozialV!J29)/2)) ->  | X29: =IF(A29="","",ANDaten2!O29) ->  | Y29: =IF(A29="","",ANDaten2!P29) ->  | AA29: =IF(A29="","",IF(Q29="nein",V29,V29-(IF(K29>SozialV!G29,((SozialV!G29*SozialV!$E$6)+(SozialV!G29*GehaltsL1!R29)),((GehaltsL1!K29*SozialV!$E$6)+(GehaltsL1!K29*GehaltsL1!R29)))))) -> 
A30: =IF(ANDaten1!A30="","",ANDaten1!A30) ->  | B30: =IF(ANDaten1!B30="","",ANDaten1!B30) ->  | C30: =IF(ANDaten1!C30="","",ANDaten1!C30) ->  | D30: =IF(A30="","",ANDaten2!G30) ->  | E30: =IF(A30="","",ANDaten1!R30) ->  | F30: =IF(A30="","",ANDaten2!H30) ->  | G30: =IF(A30="","",ANDaten2!K30) ->  | H30: =IF(A30="","",IF($C$5="Juli",ANDaten2!L30,0)) ->  | I30: =IF(A30="","",ANDaten2!M30) ->  | J30: =IF(A30="","",ANDaten2!N30) ->  | L30: =IF(A30="","",Steuer2017!Y$230/100) ->  | N30: =IF(A30="","",IF(OR(E30="evangelisch",E30="katholisch"),TRUNC(Steuer2017!Y$265*ANDaten2!Q30/100,2),0)) ->  | P30: =IF($A30="","",IF(SozialV!E30=0%,0,IF($K30>SozialV!$G30,((SozialV!$G30*SozialV!$E30/2)+(SozialV!$G30*SozialV!$E$6)),($K30*SozialV!$E30/2)+($K30*SozialV!$E$6)))) ->  | S30: =IF(A30="","",IF(P30=0,0,(IF(Q30="ja",IF(K30>SozialV!G30,((SozialV!G30*SozialV!F30/2)+(SozialV!G30*R30)),(K30*SozialV!F30/2)+(K30*R30)),IF(K30>SozialV!G30,(SozialV!G30*SozialV!F30)/2,(K30*SozialV!F30)/2))))) ->  | T30: =IF(A30="","",IF(K30>SozialV!K30,(SozialV!K30*SozialV!I30)/2,(K30*SozialV!I30)/2)) ->  | U30: =IF(A30="","",IF(K30>SozialV!K30,(SozialV!K30*SozialV!J30)/2,(K30*SozialV!J30)/2)) ->  | X30: =IF(A30="","",ANDaten2!O30) ->  | Y30: =IF(A30="","",ANDaten2!P30) ->  | AA30: =IF(A30="","",IF(Q30="nein",V30,V30-(IF(K30>SozialV!G30,((SozialV!G30*SozialV!$E$6)+(SozialV!G30*GehaltsL1!R30)),((GehaltsL1!K30*SozialV!$E$6)+(GehaltsL1!K30*GehaltsL1!R30)))))) -> 
A31: =IF(ANDaten1!A31="","",ANDaten1!A31) ->  | B31: =IF(ANDaten1!B31="","",ANDaten1!B31) ->  | C31: =IF(ANDaten1!C31="","",ANDaten1!C31) ->  | D31: =IF(A31="","",ANDaten2!G31) ->  | E31: =IF(A31="","",ANDaten1!R31) ->  | F31: =IF(A31="","",ANDaten2!H31) ->  | G31: =IF(A31="","",ANDaten2!K31) ->  | H31: =IF(A31="","",IF($C$5="Juli",ANDaten2!L31,0)) ->  | I31: =IF(A31="","",ANDaten2!M31) ->  | J31: =IF(A31="","",ANDaten2!N31) ->  | L31: =IF(A31="","",Steuer2017!Z$230/100) ->  | N31: =IF(A31="","",IF(OR(E31="evangelisch",E31="katholisch"),TRUNC(Steuer2017!Z$265*ANDaten2!Q31/100,2),0)) ->  | P31: =IF($A31="","",IF(SozialV!E31=0%,0,IF($K31>SozialV!$G31,((SozialV!$G31*SozialV!$E31/2)+(SozialV!$G31*SozialV!$E$6)),($K31*SozialV!$E31/2)+($K31*SozialV!$E$6)))) ->  | S31: =IF(A31="","",IF(P31=0,0,(IF(Q31="ja",IF(K31>SozialV!G31,((SozialV!G31*SozialV!F31/2)+(SozialV!G31*R31)),(K31*SozialV!F31/2)+(K31*R31)),IF(K31>SozialV!G31,(SozialV!G31*SozialV!F31)/2,(K31*SozialV!F31)/2))))) ->  | T31: =IF(A31="","",IF(K31>SozialV!K31,(SozialV!K31*SozialV!I31)/2,(K31*SozialV!I31)/2)) ->  | U31: =IF(A31="","",IF(K31>SozialV!K31,(SozialV!K31*SozialV!J31)/2,(K31*SozialV!J31)/2)) ->  | X31: =IF(A31="","",ANDaten2!O31) ->  | Y31: =IF(A31="","",ANDaten2!P31) ->  | AA31: =IF(A31="","",IF(Q31="nein",V31,V31-(IF(K31>SozialV!G31,((SozialV!G31*SozialV!$E$6)+(SozialV!G31*GehaltsL1!R31)),((GehaltsL1!K31*SozialV!$E$6)+(GehaltsL1!K31*GehaltsL1!R31)))))) -> 
A32: =IF(ANDaten1!A32="","",ANDaten1!A32) ->  | B32: =IF(ANDaten1!B32="","",ANDaten1!B32) ->  | C32: =IF(ANDaten1!C32="","",ANDaten1!C32) ->  | D32: =IF(A32="","",ANDaten2!G32) ->  | E32: =IF(A32="","",ANDaten1!R32) ->  | F32: =IF(A32="","",ANDaten2!H32) ->  | G32: =IF(A32="","",ANDaten2!K32) ->  | H32: =IF(A32="","",IF($C$5="Juli",ANDaten2!L32,0)) ->  | I32: =IF(A32="","",ANDaten2!M32) ->  | J32: =IF(A32="","",ANDaten2!N32) ->  | L32: =IF(A32="","",Steuer2017!AA$230/100) ->  | N32: =IF(A32="","",IF(OR(E32="evangelisch",E32="katholisch"),TRUNC(Steuer2017!AA$265*ANDaten2!Q32/100,2),0)) ->  | P32: =IF($A32="","",IF(SozialV!E32=0%,0,IF($K32>SozialV!$G32,((SozialV!$G32*SozialV!$E32/2)+(SozialV!$G32*SozialV!$E$6)),($K32*SozialV!$E32/2)+($K32*SozialV!$E$6)))) ->  | S32: =IF(A32="","",IF(P32=0,0,(IF(Q32="ja",IF(K32>SozialV!G32,((SozialV!G32*SozialV!F32/2)+(SozialV!G32*R32)),(K32*SozialV!F32/2)+(K32*R32)),IF(K32>SozialV!G32,(SozialV!G32*SozialV!F32)/2,(K32*SozialV!F32)/2))))) ->  | T32: =IF(A32="","",IF(K32>SozialV!K32,(SozialV!K32*SozialV!I32)/2,(K32*SozialV!I32)/2)) ->  | U32: =IF(A32="","",IF(K32>SozialV!K32,(SozialV!K32*SozialV!J32)/2,(K32*SozialV!J32)/2)) ->  | X32: =IF(A32="","",ANDaten2!O32) ->  | Y32: =IF(A32="","",ANDaten2!P32) ->  | AA32: =IF(A32="","",IF(Q32="nein",V32,V32-(IF(K32>SozialV!G32,((SozialV!G32*SozialV!$E$6)+(SozialV!G32*GehaltsL1!R32)),((GehaltsL1!K32*SozialV!$E$6)+(GehaltsL1!K32*GehaltsL1!R32)))))) -> 
A33: =IF(ANDaten1!A33="","",ANDaten1!A33) ->  | B33: =IF(ANDaten1!B33="","",ANDaten1!B33) ->  | C33: =IF(ANDaten1!C33="","",ANDaten1!C33) ->  | D33: =IF(A33="","",ANDaten2!G33) ->  | E33: =IF(A33="","",ANDaten1!R33) ->  | F33: =IF(A33="","",ANDaten2!H33) ->  | G33: =IF(A33="","",ANDaten2!K33) ->  | H33: =IF(A33="","",IF($C$5="Juli",ANDaten2!L33,0)) ->  | I33: =IF(A33="","",ANDaten2!M33) ->  | J33: =IF(A33="","",ANDaten2!N33) ->  | L33: =IF(A33="","",Steuer2017!AB$230/100) ->  | N33: =IF(A33="","",IF(OR(E33="evangelisch",E33="katholisch"),TRUNC(Steuer2017!AB$265*ANDaten2!Q33/100,2),0)) ->  | P33: =IF($A33="","",IF(SozialV!E33=0%,0,IF($K33>SozialV!$G33,((SozialV!$G33*SozialV!$E33/2)+(SozialV!$G33*SozialV!$E$6)),($K33*SozialV!$E33/2)+($K33*SozialV!$E$6)))) ->  | S33: =IF(A33="","",IF(P33=0,0,(IF(Q33="ja",IF(K33>SozialV!G33,((SozialV!G33*SozialV!F33/2)+(SozialV!G33*R33)),(K33*SozialV!F33/2)+(K33*R33)),IF(K33>SozialV!G33,(SozialV!G33*SozialV!F33)/2,(K33*SozialV!F33)/2))))) ->  | T33: =IF(A33="","",IF(K33>SozialV!K33,(SozialV!K33*SozialV!I33)/2,(K33*SozialV!I33)/2)) ->  | U33: =IF(A33="","",IF(K33>SozialV!K33,(SozialV!K33*SozialV!J33)/2,(K33*SozialV!J33)/2)) ->  | X33: =IF(A33="","",ANDaten2!O33) ->  | Y33: =IF(A33="","",ANDaten2!P33) ->  | AA33: =IF(A33="","",IF(Q33="nein",V33,V33-(IF(K33>SozialV!G33,((SozialV!G33*SozialV!$E$6)+(SozialV!G33*GehaltsL1!R33)),((GehaltsL1!K33*SozialV!$E$6)+(GehaltsL1!K33*GehaltsL1!R33)))))) -> 
A34: =IF(ANDaten1!A34="","",ANDaten1!A34) ->  | B34: =IF(ANDaten1!B34="","",ANDaten1!B34) ->  | C34: =IF(ANDaten1!C34="","",ANDaten1!C34) ->  | D34: =IF(A34="","",ANDaten2!G34) ->  | E34: =IF(A34="","",ANDaten1!R34) ->  | F34: =IF(A34="","",ANDaten2!H34) ->  | G34: =IF(A34="","",ANDaten2!K34) ->  | H34: =IF(A34="","",IF($C$5="Juli",ANDaten2!L34,0)) ->  | I34: =IF(A34="","",ANDaten2!M34) ->  | J34: =IF(A34="","",ANDaten2!N34) ->  | L34: =IF(A34="","",Steuer2017!AC$230/100) ->  | N34: =IF(A34="","",IF(OR(E34="evangelisch",E34="katholisch"),TRUNC(Steuer2017!AC$265*ANDaten2!Q34/100,2),0)) ->  | P34: =IF($A34="","",IF(SozialV!E34=0%,0,IF($K34>SozialV!$G34,((SozialV!$G34*SozialV!$E34/2)+(SozialV!$G34*SozialV!$E$6)),($K34*SozialV!$E34/2)+($K34*SozialV!$E$6)))) ->  | S34: =IF(A34="","",IF(P34=0,0,(IF(Q34="ja",IF(K34>SozialV!G34,((SozialV!G34*SozialV!F34/2)+(SozialV!G34*R34)),(K34*SozialV!F34/2)+(K34*R34)),IF(K34>SozialV!G34,(SozialV!G34*SozialV!F34)/2,(K34*SozialV!F34)/2))))) ->  | T34: =IF(A34="","",IF(K34>SozialV!K34,(SozialV!K34*SozialV!I34)/2,(K34*SozialV!I34)/2)) ->  | U34: =IF(A34="","",IF(K34>SozialV!K34,(SozialV!K34*SozialV!J34)/2,(K34*SozialV!J34)/2)) ->  | X34: =IF(A34="","",ANDaten2!O34) ->  | Y34: =IF(A34="","",ANDaten2!P34) ->  | AA34: =IF(A34="","",IF(Q34="nein",V34,V34-(IF(K34>SozialV!G34,((SozialV!G34*SozialV!$E$6)+(SozialV!G34*GehaltsL1!R34)),((GehaltsL1!K34*SozialV!$E$6)+(GehaltsL1!K34*GehaltsL1!R34)))))) -> 
A35: =IF(ANDaten1!A35="","",ANDaten1!A35) ->  | B35: =IF(ANDaten1!B35="","",ANDaten1!B35) ->  | C35: =IF(ANDaten1!C35="","",ANDaten1!C35) ->  | D35: =IF(A35="","",ANDaten2!G35) ->  | E35: =IF(A35="","",ANDaten1!R35) ->  | F35: =IF(A35="","",ANDaten2!H35) ->  | G35: =IF(A35="","",ANDaten2!K35) ->  | H35: =IF(A35="","",IF($C$5="Juli",ANDaten2!L35,0)) ->  | I35: =IF(A35="","",ANDaten2!M35) ->  | J35: =IF(A35="","",ANDaten2!N35) ->  | L35: =IF(A35="","",Steuer2017!AD$230/100) ->  | N35: =IF(A35="","",IF(OR(E35="evangelisch",E35="katholisch"),TRUNC(Steuer2017!AD$265*ANDaten2!Q35/100,2),0)) ->  | P35: =IF($A35="","",IF(SozialV!E35=0%,0,IF($K35>SozialV!$G35,((SozialV!$G35*SozialV!$E35/2)+(SozialV!$G35*SozialV!$E$6)),($K35*SozialV!$E35/2)+($K35*SozialV!$E$6)))) ->  | S35: =IF(A35="","",IF(P35=0,0,(IF(Q35="ja",IF(K35>SozialV!G35,((SozialV!G35*SozialV!F35/2)+(SozialV!G35*R35)),(K35*SozialV!F35/2)+(K35*R35)),IF(K35>SozialV!G35,(SozialV!G35*SozialV!F35)/2,(K35*SozialV!F35)/2))))) ->  | T35: =IF(A35="","",IF(K35>SozialV!K35,(SozialV!K35*SozialV!I35)/2,(K35*SozialV!I35)/2)) ->  | U35: =IF(A35="","",IF(K35>SozialV!K35,(SozialV!K35*SozialV!J35)/2,(K35*SozialV!J35)/2)) ->  | X35: =IF(A35="","",ANDaten2!O35) ->  | Y35: =IF(A35="","",ANDaten2!P35) ->  | AA35: =IF(A35="","",IF(Q35="nein",V35,V35-(IF(K35>SozialV!G35,((SozialV!G35*SozialV!$E$6)+(SozialV!G35*GehaltsL1!R35)),((GehaltsL1!K35*SozialV!$E$6)+(GehaltsL1!K35*GehaltsL1!R35)))))) -> 
A36: =IF(ANDaten1!A36="","",ANDaten1!A36) ->  | B36: =IF(ANDaten1!B36="","",ANDaten1!B36) ->  | C36: =IF(ANDaten1!C36="","",ANDaten1!C36) ->  | D36: =IF(A36="","",ANDaten2!G36) ->  | E36: =IF(A36="","",ANDaten1!R36) ->  | F36: =IF(A36="","",ANDaten2!H36) ->  | G36: =IF(A36="","",ANDaten2!K36) ->  | H36: =IF(A36="","",IF($C$5="Juli",ANDaten2!L36,0)) ->  | I36: =IF(A36="","",ANDaten2!M36) ->  | J36: =IF(A36="","",ANDaten2!N36) ->  | L36: =IF(A36="","",Steuer2017!AE$230/100) ->  | N36: =IF(A36="","",IF(OR(E36="evangelisch",E36="katholisch"),TRUNC(Steuer2017!AE$265*ANDaten2!Q36/100,2),0)) ->  | P36: =IF($A36="","",IF(SozialV!E36=0%,0,IF($K36>SozialV!$G36,((SozialV!$G36*SozialV!$E36/2)+(SozialV!$G36*SozialV!$E$6)),($K36*SozialV!$E36/2)+($K36*SozialV!$E$6)))) ->  | S36: =IF(A36="","",IF(P36=0,0,(IF(Q36="ja",IF(K36>SozialV!G36,((SozialV!G36*SozialV!F36/2)+(SozialV!G36*R36)),(K36*SozialV!F36/2)+(K36*R36)),IF(K36>SozialV!G36,(SozialV!G36*SozialV!F36)/2,(K36*SozialV!F36)/2))))) ->  | T36: =IF(A36="","",IF(K36>SozialV!K36,(SozialV!K36*SozialV!I36)/2,(K36*SozialV!I36)/2)) ->  | U36: =IF(A36="","",IF(K36>SozialV!K36,(SozialV!K36*SozialV!J36)/2,(K36*SozialV!J36)/2)) ->  | X36: =IF(A36="","",ANDaten2!O36) ->  | Y36: =IF(A36="","",ANDaten2!P36) ->  | AA36: =IF(A36="","",IF(Q36="nein",V36,V36-(IF(K36>SozialV!G36,((SozialV!G36*SozialV!$E$6)+(SozialV!G36*GehaltsL1!R36)),((GehaltsL1!K36*SozialV!$E$6)+(GehaltsL1!K36*GehaltsL1!R36)))))) -> 
A37: =IF(ANDaten1!A37="","",ANDaten1!A37) ->  | B37: =IF(ANDaten1!B37="","",ANDaten1!B37) ->  | C37: =IF(ANDaten1!C37="","",ANDaten1!C37) ->  | D37: =IF(A37="","",ANDaten2!G37) ->  | E37: =IF(A37="","",ANDaten1!R37) ->  | F37: =IF(A37="","",ANDaten2!H37) ->  | G37: =IF(A37="","",ANDaten2!K37) ->  | H37: =IF(A37="","",IF($C$5="Juli",ANDaten2!L37,0)) ->  | I37: =IF(A37="","",ANDaten2!M37) ->  | J37: =IF(A37="","",ANDaten2!N37) ->  | L37: =IF(A37="","",Steuer2017!AF$230/100) ->  | N37: =IF(A37="","",IF(OR(E37="evangelisch",E37="katholisch"),TRUNC(Steuer2017!AF$265*ANDaten2!Q37/100,2),0)) ->  | P37: =IF($A37="","",IF(SozialV!E37=0%,0,IF($K37>SozialV!$G37,((SozialV!$G37*SozialV!$E37/2)+(SozialV!$G37*SozialV!$E$6)),($K37*SozialV!$E37/2)+($K37*SozialV!$E$6)))) ->  | S37: =IF(A37="","",IF(P37=0,0,(IF(Q37="ja",IF(K37>SozialV!G37,((SozialV!G37*SozialV!F37/2)+(SozialV!G37*R37)),(K37*SozialV!F37/2)+(K37*R37)),IF(K37>SozialV!G37,(SozialV!G37*SozialV!F37)/2,(K37*SozialV!F37)/2))))) ->  | T37: =IF(A37="","",IF(K37>SozialV!K37,(SozialV!K37*SozialV!I37)/2,(K37*SozialV!I37)/2)) ->  | U37: =IF(A37="","",IF(K37>SozialV!K37,(SozialV!K37*SozialV!J37)/2,(K37*SozialV!J37)/2)) ->  | X37: =IF(A37="","",ANDaten2!O37) ->  | Y37: =IF(A37="","",ANDaten2!P37) ->  | AA37: =IF(A37="","",IF(Q37="nein",V37,V37-(IF(K37>SozialV!G37,((SozialV!G37*SozialV!$E$6)+(SozialV!G37*GehaltsL1!R37)),((GehaltsL1!K37*SozialV!$E$6)+(GehaltsL1!K37*GehaltsL1!R37)))))) -> 
A38: Gehaltslistensummen | G38: =SUM(G8:G37) -> 79150 | H38: =SUM(H8:H37) -> 0 | I38: 5000 | J38: 195 | K38: 84345 | L38: 18266.86 | M38: 0 | N38: =SUM(N8:N37) -> 1197.85 | O38: 19464.71 | P38: 5408.76 | S38: 867.26 | T38: 7565.5525 | U38: 1213.725 | V38: 15055.34 | W38: 49824.95 | X38: 520 | Y38: 0 | Z38: 49304.95 | AA38: 14805.3875

Sheet GehaltsL2
A2: Gehaltsliste 2 | D2: Wählen Sie zum Ausdruck der Gehaltsliste in Ihrem Druckmenu nur Sie Seite 1 aus. | K2: Buchungen
A3: Daten der Finanzbuchhaltung
A5: Abrechnungsmonat: | C5: =GehaltsL1!C5 -> Januar | D5: Jahr: | E5: =GehaltsL1!E5 -> 2017 | K5: Entnehmen Sie die Gehaltslistensummen der Zeile 38
A6: Personal- | D6: Vertrags- | E6: Urlaubs- | F6: monatl. Prämien | H6: Brutto- | I6: Steuer | J6: SozVers. | K6: Netto- | M6: Vorsch. | O6: AGAnteil | P6: SV-Voraus-
A7: Nummer | B7: Name | C7: Vorname | D7: gehalt | E7: geld | G7: vwLAG | H7: gehalt | I7: gesamt | J7: gesamt | K7: gehalt | L7: vwLAN | M7: so. Abz. | N7: Auszahlung | O7: SozVers. | P7: zahlung
A8: =GehaltsL1!A8:C8 -> 100 | B8: =GehaltsL1!B8 -> Sommer | C8: =GehaltsL1!C8 -> Sylvia | D8: =GehaltsL1!G8 -> 8500 | E8: =GehaltsL1!H8 -> 0 | F8: =GehaltsL1!I8 -> 0 | G8: =GehaltsL1!J8 -> 0 | H8: =GehaltsL1!K8 -> 8500 | I8: =GehaltsL1!O8 -> 2997.8 | J8: =GehaltsL1!V8 -> 688.98 | K8: =GehaltsL1!W8 -> 4813.22 | L8: =GehaltsL1!X8 -> 0 | M8: =GehaltsL1!Y8 -> 0 | N8: =GehaltsL1!Z8 -> 4813.22 | O8: =GehaltsL1!AA8 -> 688.98 | P8: =IF(A8="","",J8+O8) -> 1377.96
A9: =IF(ANDaten1!A9="","",ANDaten1!A9) -> 101 | B9: =IF(ANDaten1!B9="","",ANDaten1!B9) -> Winter | C9: =IF(ANDaten1!C9="","",ANDaten1!C9) -> Walter | D9: =IF(A9="","",GehaltsL1!G9) -> 5500 | E9: =IF(A9="","",GehaltsL1!H9) -> 0 | F9: =IF(A9="","",GehaltsL1!I9) -> 0 | G9: =IF(A9="","",GehaltsL1!J9) -> 15 | H9: =IF(A9="","",GehaltsL1!K9) -> 5515 | I9: =IF(A9="","",GehaltsL1!O9) -> 1026.1 | J9: =GehaltsL1!V9 -> 1019.24 | K9: =IF(A9="","",GehaltsL1!W9) -> 3469.66 | L9: =IF(A9="","",GehaltsL1!X9) -> 40 | M9: =IF(A9="","",GehaltsL1!Y9) -> 0 | N9: =IF(A9="","",GehaltsL1!Z9) -> 3429.66 | O9: =GehaltsL1!AA9 -> 1019.24 | P9: =IF(A9="","",J9+O9) -> 2038.48
A10: =IF(ANDaten1!A10="","",ANDaten1!A10) -> 102 | B10: =IF(ANDaten1!B10="","",ANDaten1!B10) -> Minardi | C10: =IF(ANDaten1!C10="","",ANDaten1!C10) -> Diana | D10: =IF(A10="","",GehaltsL1!G10) -> 5500 | E10: =IF(A10="","",GehaltsL1!H10) -> 0 | F10: =IF(A10="","",GehaltsL1!I10) -> 1800 | G10: =IF(A10="","",GehaltsL1!J10) -> 0 | H10: =IF(A10="","",GehaltsL1!K10) -> 7300 | I10: =IF(A10="","",GehaltsL1!O10) -> 2460.03 | J10: =GehaltsL1!V10 -> 1120.72 | K10: =IF(A10="","",GehaltsL1!W10) -> 3719.25 | L10: =IF(A10="","",GehaltsL1!X10) -> 0 | M10: =IF(A10="","",GehaltsL1!Y10) -> 0 | N10: =IF(A10="","",GehaltsL1!Z10) -> 3719.25 | O10: =GehaltsL1!AA10 -> 1061.995 | P10: 2182.715
A11: =IF(ANDaten1!A11="","",ANDaten1!A11) -> 103 | B11: =IF(ANDaten1!B11="","",ANDaten1!B11) -> Herbst | C11: =IF(ANDaten1!C11="","",ANDaten1!C11) -> Heiner | D11: =IF(A11="","",GehaltsL1!G11) -> 5500 | E11: =IF(A11="","",GehaltsL1!H11) -> 0 | F11: =IF(A11="","",GehaltsL1!I11) -> 200 | G11: =IF(A11="","",GehaltsL1!J11) -> 15 | H11: =IF(A11="","",GehaltsL1!K11) -> 5715 | I11: =IF(A11="","",GehaltsL1!O11) -> 1079.68 | J11: =GehaltsL1!V11 -> 1040.94 | K11: =IF(A11="","",GehaltsL1!W11) -> 3594.38 | L11: =IF(A11="","",GehaltsL1!X11) -> 40 | M11: =IF(A11="","",GehaltsL1!Y11) -> 0 | N11: =IF(A11="","",GehaltsL1!Z11) -> 3554.38 | O11: =GehaltsL1!AA11 -> 1040.94 | P11: 2081.88
A12: =IF(ANDaten1!A12="","",ANDaten1!A12) -> 104 | B12: =IF(ANDaten1!B12="","",ANDaten1!B12) -> Polster | C12: =IF(ANDaten1!C12="","",ANDaten1!C12) -> Georg | D12: =IF(A12="","",GehaltsL1!G12) -> 5500 | E12: =IF(A12="","",GehaltsL1!H12) -> 0 | F12: =IF(A12="","",GehaltsL1!I12) -> 1000 | G12: =IF(A12="","",GehaltsL1!J12) -> 15 | H12: =IF(A12="","",GehaltsL1!K12) -> 6515 | I12: =IF(A12="","",GehaltsL1!O12) -> 1353.25 | J12: =GehaltsL1!V12 -> 1109.84 | K12: =IF(A12="","",GehaltsL1!W12) -> 4051.91 | L12: =IF(A12="","",GehaltsL1!X12) -> 40 | M12: =IF(A12="","",GehaltsL1!Y12) -> 0 | N12: =IF(A12="","",GehaltsL1!Z12) -> 4011.91 | O12: =GehaltsL1!AA12 -> 1109.84 | P12: 2219.68
A13: =IF(ANDaten1!A13="","",ANDaten1!A13) -> 105 | B13: =IF(ANDaten1!B13="","",ANDaten1!B13) -> Behrens | C13: =IF(ANDaten1!C13="","",ANDaten1!C13) -> Sonja | D13: =IF(A13="","",GehaltsL1!G13) -> 5500 | E13: =IF(A13="","",GehaltsL1!H13) -> 0 | F13: =IF(A13="","",GehaltsL1!I13) -> 1000 | G13: =IF(A13="","",GehaltsL1!J13) -> 15 | H13: =IF(A13="","",GehaltsL1!K13) -> 6515 | I13: =IF(A13="","",GehaltsL1!O13) -> 2004.68 | J13: =GehaltsL1!V13 -> 1109.84 | K13: =IF(A13="","",GehaltsL1!W13) -> 3400.48 | L13: =IF(A13="","",GehaltsL1!X13) -> 40 | M13: =IF(A13="","",GehaltsL1!Y13) -> 0 | N13: =IF(A13="","",GehaltsL1!Z13) -> 3360.48 | O13: =GehaltsL1!AA13 -> 1109.84 | P13: 2219.68
A14: =IF(ANDaten1!A14="","",ANDaten1!A14) -> 106 | B14: =IF(ANDaten1!B14="","",ANDaten1!B14) -> Kaymak | C14: =IF(ANDaten1!C14="","",ANDaten1!C14) -> Ayse | D14: =IF(A14="","",GehaltsL1!G14) -> 650 | E14: =IF(A14="","",GehaltsL1!H14) -> 0 | F14: =IF(A14="","",GehaltsL1!I14) -> 0 | G14: =IF(A14="","",GehaltsL1!J14) -> 15 | H14: =IF(A14="","",GehaltsL1!K14) -> 665 | I14: =IF(A14="","",GehaltsL1!O14) -> 0 | J14: =GehaltsL1!V14 -> 136.49 | K14: =IF(A14="","",GehaltsL1!W14) -> 528.51 | L14: =IF(A14="","",GehaltsL1!X14) -> 40 | M14: =IF(A14="","",GehaltsL1!Y14) -> 0 | N14: =IF(A14="","",GehaltsL1!Z14) -> 488.51 | O14: =GehaltsL1!AA14 -> 136.49 | P14: 272.98
A15: =IF(ANDaten1!A15="","",ANDaten1!A15) -> 107 | B15: =IF(ANDaten1!B15="","",ANDaten1!B15) -> Kaiser | C15: =IF(ANDaten1!C15="","",ANDaten1!C15) -> Sven | D15: =IF(A15="","",GehaltsL1!G15) -> 3400 | E15: =IF(A15="","",GehaltsL1!H15) -> 0 | F15: =IF(A15="","",GehaltsL1!I15) -> 0 | G15: =IF(A15="","",GehaltsL1!J15) -> 15 | H15: =IF(A15="","",GehaltsL1!K15) -> 3415 | I15: =IF(A15="","",GehaltsL1!O15) -> 358.26 | J15: =GehaltsL1!V15 -> 700.93 | K15: =IF(A15="","",GehaltsL1!W15) -> 2355.81 | L15: =IF(A15="","",GehaltsL1!X15) -> 40 | M15: =IF(A15="","",GehaltsL1!Y15) -> 0 | N15: =IF(A15="","",GehaltsL1!Z15) -> 2315.81 | O15: =GehaltsL1!AA15 -> 700.93 | P15: 1401.86
A16: =IF(ANDaten1!A16="","",ANDaten1!A16) -> 108 | B16: =IF(ANDaten1!B16="","",ANDaten1!B16) -> Martin | C16: =IF(ANDaten1!C16="","",ANDaten1!C16) -> Felix | D16: =IF(A16="","",GehaltsL1!G16) -> 3000 | E16: =IF(A16="","",GehaltsL1!H16) -> 0 | F16: =IF(A16="","",GehaltsL1!I16) -> 0 | G16: =IF(A16="","",GehaltsL1!J16) -> 15 | H16: =IF(A16="","",GehaltsL1!K16) -> 3015 | I16: =IF(A16="","",GehaltsL1!O16) -> 538 | J16: =GehaltsL1!V16 -> 626.37 | K16: =IF(A16="","",GehaltsL1!W16) -> 1850.63 | L16: =IF(A16="","",GehaltsL1!X16) -> 40 | M16: =IF(A16="","",GehaltsL1!Y16) -> 0 | N16: =IF(A16="","",GehaltsL1!Z16) -> 1810.63 | O16: =GehaltsL1!AA16 -> 585.6675 | P16: 1212.0375
A17: =IF(ANDaten1!A17="","",ANDaten1!A17) -> 109 | B17: =IF(ANDaten1!B17="","",ANDaten1!B17) -> Antonelli | C17: =IF(ANDaten1!C17="","",ANDaten1!C17) -> Claudia | D17: =IF(A17="","",GehaltsL1!G17) -> 4500 | E17: =IF(A17="","",GehaltsL1!H17) -> 0 | F17: =IF(A17="","",GehaltsL1!I17) -> 250 | G17: =IF(A17="","",GehaltsL1!J17) -> 15 | H17: =IF(A17="","",GehaltsL1!K17) -> 4765 | I17: =IF(A17="","",GehaltsL1!O17) -> 1288.16 | J17: =GehaltsL1!V17 -> 937.87 | K17: =IF(A17="","",GehaltsL1!W17) -> 2538.97 | L17: =IF(A17="","",GehaltsL1!X17) -> 40 | M17: =IF(A17="","",GehaltsL1!Y17) -> 0 | N17: =IF(A17="","",GehaltsL1!Z17) -> 2498.97 | O17: =GehaltsL1!AA17 -> 937.87 | P17: 1875.74
A18: =IF(ANDaten1!A18="","",ANDaten1!A18) -> 110 | B18: =IF(ANDaten1!B18="","",ANDaten1!B18) -> Seewald | C18: =IF(ANDaten1!C18="","",ANDaten1!C18) -> Manon | D18: =IF(A18="","",GehaltsL1!G18) -> 4500 | E18: =IF(A18="","",GehaltsL1!H18) -> 0 | F18: =IF(A18="","",GehaltsL1!I18) -> 250 | G18: =IF(A18="","",GehaltsL1!J18) -> 15 | H18: =IF(A18="","",GehaltsL1!K18) -> 4765 | I18: =IF(A18="","",GehaltsL1!O18) -> 778.85 | J18: =GehaltsL1!V18 -> 937.87 | K18: =IF(A18="","",GehaltsL1!W18) -> 3048.28 | L18: =IF(A18="","",GehaltsL1!X18) -> 40 | M18: =IF(A18="","",GehaltsL1!Y18) -> 0 | N18: =IF(A18="","",GehaltsL1!Z18) -> 3008.28 | O18: =GehaltsL1!AA18 -> 937.87 | P18: 1875.74
A19: =IF(ANDaten1!A19="","",ANDaten1!A19) -> 111 | B19: =IF(ANDaten1!B19="","",ANDaten1!B19) -> Senel | C19: =IF(ANDaten1!C19="","",ANDaten1!C19) -> Selami | D19: =IF(A19="","",GehaltsL1!G19) -> 3400 | E19: =IF(A19="","",GehaltsL1!H19) -> 0 | F19: =IF(A19="","",GehaltsL1!I19) -> 0 | G19: =IF(A19="","",GehaltsL1!J19) -> 15 | H19: =IF(A19="","",GehaltsL1!K19) -> 3415 | I19: =IF(A19="","",GehaltsL1!O19) -> 352.66 | J19: =GehaltsL1!V19 -> 700.93 | K19: =IF(A19="","",GehaltsL1!W19) -> 2361.41 | L19: =IF(A19="","",GehaltsL1!X19) -> 40 | M19: =IF(A19="","",GehaltsL1!Y19) -> 0 | N19: =IF(A19="","",GehaltsL1!Z19) -> 2321.41 | O19: =GehaltsL1!AA19 -> 700.93 | P19: 1401.86
A20: =IF(ANDaten1!A20="","",ANDaten1!A20) -> 112 | B20: =IF(ANDaten1!B20="","",ANDaten1!B20) -> Weidenfeld | C20: =IF(ANDaten1!C20="","",ANDaten1!C20) -> Martin | D20: =IF(A20="","",GehaltsL1!G20) -> 3400 | E20: =IF(A20="","",GehaltsL1!H20) -> 0 | F20: =IF(A20="","",GehaltsL1!I20) -> 0 | G20: =IF(A20="","",GehaltsL1!J20) -> 0 | H20: =IF(A20="","",GehaltsL1!K20) -> 3400 | I20: =IF(A20="","",GehaltsL1!O20) -> 718.57 | J20: =GehaltsL1!V20 -> 697.85 | K20: =IF(A20="","",GehaltsL1!W20) -> 1983.58 | L20: =IF(A20="","",GehaltsL1!X20) -> 0 | M20: =IF(A20="","",GehaltsL1!Y20) -> 0 | N20: =IF(A20="","",GehaltsL1!Z20) -> 1983.58 | O20: =GehaltsL1!AA20 -> 697.85 | P20: 1395.7
A21: =IF(ANDaten1!A21="","",ANDaten1!A21) -> 113 | B21: =IF(ANDaten1!B21="","",ANDaten1!B21) -> Zimmermann | C21: =IF(ANDaten1!C21="","",ANDaten1!C21) -> Horst | D21: =IF(A21="","",GehaltsL1!G21) -> 4500 | E21: =IF(A21="","",GehaltsL1!H21) -> 0 | F21: =IF(A21="","",GehaltsL1!I21) -> 0 | G21: =IF(A21="","",GehaltsL1!J21) -> 0 | H21: =IF(A21="","",GehaltsL1!K21) -> 4500 | I21: =IF(A21="","",GehaltsL1!O21) -> 679.78 | J21: =GehaltsL1!V21 -> 909.11 | K21: =IF(A21="","",GehaltsL1!W21) -> 2911.11 | L21: =IF(A21="","",GehaltsL1!X21) -> 0 | M21: =IF(A21="","",GehaltsL1!Y21) -> 0 | N21: =IF(A21="","",GehaltsL1!Z21) -> 2911.11 | O21: =GehaltsL1!AA21 -> 909.11 | P21: 1818.22
A22: =IF(ANDaten1!A22="","",ANDaten1!A22) -> 114 | B22: =IF(ANDaten1!B22="","",ANDaten1!B22) -> Rünz-Jonzeck | C22: =IF(ANDaten1!C22="","",ANDaten1!C22) -> Tanja | D22: =IF(A22="","",GehaltsL1!G22) -> 3400 | E22: =IF(A22="","",GehaltsL1!H22) -> 0 | F22: =IF(A22="","",GehaltsL1!I22) -> 0 | G22: =IF(A22="","",GehaltsL1!J22) -> 0 | H22: =IF(A22="","",GehaltsL1!K22) -> 3400 | I22: =IF(A22="","",GehaltsL1!O22) -> 1147.58 | J22: =GehaltsL1!V22 -> 706.35 | K22: =IF(A22="","",GehaltsL1!W22) -> 1546.07 | L22: =IF(A22="","",GehaltsL1!X22) -> 0 | M22: =IF(A22="","",GehaltsL1!Y22) -> 0 | N22: =IF(A22="","",GehaltsL1!Z22) -> 1546.07 | O22: =GehaltsL1!AA22 -> 660.45 | P22: 1366.8
A23: =IF(ANDaten1!A23="","",ANDaten1!A23) -> 115 | B23: =IF(ANDaten1!B23="","",ANDaten1!B23) -> Wagner | C23: =IF(ANDaten1!C23="","",ANDaten1!C23) -> Christa | D23: =IF(A23="","",GehaltsL1!G23) -> 4500 | E23: =IF(A23="","",GehaltsL1!H23) -> 0 | F23: =IF(A23="","",GehaltsL1!I23) -> 500 | G23: =IF(A23="","",GehaltsL1!J23) -> 15 | H23: =IF(A23="","",GehaltsL1!K23) -> 5015 | I23: =IF(A23="","",GehaltsL1!O23) -> 1297.25 | J23: =GehaltsL1!V23 -> 975.87 | K23: =IF(A23="","",GehaltsL1!W23) -> 2741.88 | L23: =IF(A23="","",GehaltsL1!X23) -> 40 | M23: =IF(A23="","",GehaltsL1!Y23) -> 0 | N23: =IF(A23="","",GehaltsL1!Z23) -> 2701.88 | O23: =GehaltsL1!AA23 -> 917.145 | P23: 1893.015
A24: =IF(ANDaten1!A24="","",ANDaten1!A24) -> 116 | B24: =IF(ANDaten1!B24="","",ANDaten1!B24) -> Flöricke | C24: =IF(ANDaten1!C24="","",ANDaten1!C24) -> Susanne | D24: =IF(A24="","",GehaltsL1!G24) -> 3400 | E24: =IF(A24="","",GehaltsL1!H24) -> 0 | F24: =IF(A24="","",GehaltsL1!I24) -> 0 | G24: =IF(A24="","",GehaltsL1!J24) -> 15 | H24: =IF(A24="","",GehaltsL1!K24) -> 3415 | I24: =IF(A24="","",GehaltsL1!O24) -> 656.13 | J24: =GehaltsL1!V24 -> 700.93 | K24: =IF(A24="","",GehaltsL1!W24) -> 2057.94 | L24: =IF(A24="","",GehaltsL1!X24) -> 40 | M24: =IF(A24="","",GehaltsL1!Y24) -> 0 | N24: =IF(A24="","",GehaltsL1!Z24) -> 2017.94 | O24: =GehaltsL1!AA24 -> 700.93 | P24: 1401.86
A25: =IF(ANDaten1!A25="","",ANDaten1!A25) -> 117 | B25: =IF(ANDaten1!B25="","",ANDaten1!B25) -> Piel-Oster | C25: =IF(ANDaten1!C25="","",ANDaten1!C25) -> Simone | D25: =IF(A25="","",GehaltsL1!G25) -> 3400 | E25: =IF(A25="","",GehaltsL1!H25) -> 0 | F25: =IF(A25="","",GehaltsL1!I25) -> 0 | G25: =IF(A25="","",GehaltsL1!J25) -> 0 | H25: =IF(A25="","",GehaltsL1!K25) -> 3400 | I25: =IF(A25="","",GehaltsL1!O25) -> 727.93 | J25: =GehaltsL1!V25 -> 706.35 | K25: =IF(A25="","",GehaltsL1!W25) -> 1965.72 | L25: =IF(A25="","",GehaltsL1!X25) -> 0 | M25: =IF(A25="","",GehaltsL1!Y25) -> 0 | N25: =IF(A25="","",GehaltsL1!Z25) -> 1965.72 | O25: =GehaltsL1!AA25 -> 660.45 | P25: 1366.8
A26: =IF(ANDaten1!A26="","",ANDaten1!A26) -> 118 | B26: =IF(ANDaten1!B26="","",ANDaten1!B26) -> Sauerland | C26: =IF(ANDaten1!C26="","",ANDaten1!C26) -> Mario | D26: =IF(A26="","",GehaltsL1!G26) -> 550 | E26: =IF(A26="","",GehaltsL1!H26) -> 0 | F26: =IF(A26="","",GehaltsL1!I26) -> 0 | G26: =IF(A26="","",GehaltsL1!J26) -> 15 | H26: =IF(A26="","",GehaltsL1!K26) -> 565 | I26: =IF(A26="","",GehaltsL1!O26) -> 0 | J26: =GehaltsL1!V26 -> 115.97 | K26: =IF(A26="","",GehaltsL1!W26) -> 449.03 | L26: =IF(A26="","",GehaltsL1!X26) -> 40 | M26: =IF(A26="","",GehaltsL1!Y26) -> 0 | N26: =IF(A26="","",GehaltsL1!Z26) -> 409.03 | O26: =GehaltsL1!AA26 -> 115.97 | P26: 231.94
A27: =IF(ANDaten1!A27="","",ANDaten1!A27) -> 119 | B27: =IF(ANDaten1!B27="","",ANDaten1!B27) -> Ollek | C27: =IF(ANDaten1!C27="","",ANDaten1!C27) -> Tanja | D27: =IF(A27="","",GehaltsL1!G27) -> 550 | E27: =IF(A27="","",GehaltsL1!H27) -> 0 | F27: =IF(A27="","",GehaltsL1!I27) -> 0 | G27: =IF(A27="","",GehaltsL1!J27) -> 0 | H27: =IF(A27="","",GehaltsL1!K27) -> 550 | I27: =IF(A27="","",GehaltsL1!O27) -> 0 | J27: =GehaltsL1!V27 -> 112.89 | K27: =IF(A27="","",GehaltsL1!W27) -> 437.11 | L27: =IF(A27="","",GehaltsL1!X27) -> 0 | M27: =IF(A27="","",GehaltsL1!Y27) -> 0 | N27: =IF(A27="","",GehaltsL1!Z27) -> 437.11 | O27: =GehaltsL1!AA27 -> 112.89 | P27: 225.78
A28: =IF(ANDaten1!A28="","",ANDaten1!A28) ->  | B28: =IF(ANDaten1!B28="","",ANDaten1!B28) ->  | C28: =IF(ANDaten1!C28="","",ANDaten1!C28) ->  | D28: =IF(A28="","",GehaltsL1!G28) ->  | E28: =IF(A28="","",GehaltsL1!H28) ->  | F28: =IF(A28="","",GehaltsL1!I28) ->  | G28: =IF(A28="","",GehaltsL1!J28) ->  | H28: =IF(A28="","",GehaltsL1!K28) ->  | I28: =IF(A28="","",GehaltsL1!O28) ->  | J28: =GehaltsL1!V28 ->  | K28: =IF(A28="","",GehaltsL1!W28) ->  | L28: =IF(A28="","",GehaltsL1!X28) ->  | M28: =IF(A28="","",GehaltsL1!Y28) ->  | N28: =IF(A28="","",GehaltsL1!Z28) ->  | O28: =GehaltsL1!AA28 -> 
A29: =IF(ANDaten1!A29="","",ANDaten1!A29) ->  | B29: =IF(ANDaten1!B29="","",ANDaten1!B29) ->  | C29: =IF(ANDaten1!C29="","",ANDaten1!C29) ->  | D29: =IF(A29="","",GehaltsL1!G29) ->  | E29: =IF(A29="","",GehaltsL1!H29) ->  | F29: =IF(A29="","",GehaltsL1!I29) ->  | G29: =IF(A29="","",GehaltsL1!J29) ->  | H29: =IF(A29="","",GehaltsL1!K29) ->  | I29: =IF(A29="","",GehaltsL1!O29) ->  | J29: =GehaltsL1!V29 ->  | K29: =IF(A29="","",GehaltsL1!W29) ->  | L29: =IF(A29="","",GehaltsL1!X29) ->  | M29: =IF(A29="","",GehaltsL1!Y29) ->  | N29: =IF(A29="","",GehaltsL1!Z29) ->  | O29: =GehaltsL1!AA29 -> 
A30: =IF(ANDaten1!A30="","",ANDaten1!A30) ->  | B30: =IF(ANDaten1!B30="","",ANDaten1!B30) ->  | C30: =IF(ANDaten1!C30="","",ANDaten1!C30) ->  | D30: =IF(A30="","",GehaltsL1!G30) ->  | E30: =IF(A30="","",GehaltsL1!H30) ->  | F30: =IF(A30="","",GehaltsL1!I30) ->  | G30: =IF(A30="","",GehaltsL1!J30) ->  | H30: =IF(A30="","",GehaltsL1!K30) ->  | I30: =IF(A30="","",GehaltsL1!O30) ->  | J30: =GehaltsL1!V30 ->  | K30: =IF(A30="","",GehaltsL1!W30) ->  | L30: =IF(A30="","",GehaltsL1!X30) ->  | M30: =IF(A30="","",GehaltsL1!Y30) ->  | N30: =IF(A30="","",GehaltsL1!Z30) ->  | O30: =GehaltsL1!AA30 -> 
A31: =IF(ANDaten1!A31="","",ANDaten1!A31) ->  | B31: =IF(ANDaten1!B31="","",ANDaten1!B31) ->  | C31: =IF(ANDaten1!C31="","",ANDaten1!C31) ->  | D31: =IF(A31="","",GehaltsL1!G31) ->  | E31: =IF(A31="","",GehaltsL1!H31) ->  | F31: =IF(A31="","",GehaltsL1!I31) ->  | G31: =IF(A31="","",GehaltsL1!J31) ->  | H31: =IF(A31="","",GehaltsL1!K31) ->  | I31: =IF(A31="","",GehaltsL1!O31) ->  | J31: =GehaltsL1!V31 ->  | K31: =IF(A31="","",GehaltsL1!W31) ->  | L31: =IF(A31="","",GehaltsL1!X31) ->  | M31: =IF(A31="","",GehaltsL1!Y31) ->  | N31: =IF(A31="","",GehaltsL1!Z31) ->  | O31: =GehaltsL1!AA31 -> 
A32: =IF(ANDaten1!A32="","",ANDaten1!A32) ->  | B32: =IF(ANDaten1!B32="","",ANDaten1!B32) ->  | C32: =IF(ANDaten1!C32="","",ANDaten1!C32) ->  | D32: =IF(A32="","",GehaltsL1!G32) ->  | E32: =IF(A32="","",GehaltsL1!H32) ->  | F32: =IF(A32="","",GehaltsL1!I32) ->  | G32: =IF(A32="","",GehaltsL1!J32) ->  | H32: =IF(A32="","",GehaltsL1!K32) ->  | I32: =IF(A32="","",GehaltsL1!O32) ->  | J32: =GehaltsL1!V32 ->  | K32: =IF(A32="","",GehaltsL1!W32) ->  | L32: =IF(A32="","",GehaltsL1!X32) ->  | M32: =IF(A32="","",GehaltsL1!Y32) ->  | N32: =IF(A32="","",GehaltsL1!Z32) ->  | O32: =GehaltsL1!AA32 -> 
A33: =IF(ANDaten1!A33="","",ANDaten1!A33) ->  | B33: =IF(ANDaten1!B33="","",ANDaten1!B33) ->  | C33: =IF(ANDaten1!C33="","",ANDaten1!C33) ->  | D33: =IF(A33="","",GehaltsL1!G33) ->  | E33: =IF(A33="","",GehaltsL1!H33) ->  | F33: =IF(A33="","",GehaltsL1!I33) ->  | G33: =IF(A33="","",GehaltsL1!J33) ->  | H33: =IF(A33="","",GehaltsL1!K33) ->  | I33: =IF(A33="","",GehaltsL1!O33) ->  | J33: =GehaltsL1!V33 ->  | K33: =IF(A33="","",GehaltsL1!W33) ->  | L33: =IF(A33="","",GehaltsL1!X33) ->  | M33: =IF(A33="","",GehaltsL1!Y33) ->  | N33: =IF(A33="","",GehaltsL1!Z33) ->  | O33: =GehaltsL1!AA33 -> 
A34: =IF(ANDaten1!A34="","",ANDaten1!A34) ->  | B34: =IF(ANDaten1!B34="","",ANDaten1!B34) ->  | C34: =IF(ANDaten1!C34="","",ANDaten1!C34) ->  | D34: =IF(A34="","",GehaltsL1!G34) ->  | E34: =IF(A34="","",GehaltsL1!H34) ->  | F34: =IF(A34="","",GehaltsL1!I34) ->  | G34: =IF(A34="","",GehaltsL1!J34) ->  | H34: =IF(A34="","",GehaltsL1!K34) ->  | I34: =IF(A34="","",GehaltsL1!O34) ->  | J34: =GehaltsL1!V34 ->  | K34: =IF(A34="","",GehaltsL1!W34) ->  | L34: =IF(A34="","",GehaltsL1!X34) ->  | M34: =IF(A34="","",GehaltsL1!Y34) ->  | N34: =IF(A34="","",GehaltsL1!Z34) ->  | O34: =GehaltsL1!AA34 -> 
A35: =IF(ANDaten1!A35="","",ANDaten1!A35) ->  | B35: =IF(ANDaten1!B35="","",ANDaten1!B35) ->  | C35: =IF(ANDaten1!C35="","",ANDaten1!C35) ->  | D35: =IF(A35="","",GehaltsL1!G35) ->  | E35: =IF(A35="","",GehaltsL1!H35) ->  | F35: =IF(A35="","",GehaltsL1!I35) ->  | G35: =IF(A35="","",GehaltsL1!J35) ->  | H35: =IF(A35="","",GehaltsL1!K35) ->  | I35: =IF(A35="","",GehaltsL1!O35) ->  | J35: =GehaltsL1!V35 ->  | K35: =IF(A35="","",GehaltsL1!W35) ->  | L35: =IF(A35="","",GehaltsL1!X35) ->  | M35: =IF(A35="","",GehaltsL1!Y35) ->  | N35: =IF(A35="","",GehaltsL1!Z35) ->  | O35: =GehaltsL1!AA35 -> 
A36: =IF(ANDaten1!A36="","",ANDaten1!A36) ->  | B36: =IF(ANDaten1!B36="","",ANDaten1!B36) ->  | C36: =IF(ANDaten1!C36="","",ANDaten1!C36) ->  | D36: =IF(A36="","",GehaltsL1!G36) ->  | E36: =IF(A36="","",GehaltsL1!H36) ->  | F36: =IF(A36="","",GehaltsL1!I36) ->  | G36: =IF(A36="","",GehaltsL1!J36) ->  | H36: =IF(A36="","",GehaltsL1!K36) ->  | I36: =IF(A36="","",GehaltsL1!O36) ->  | J36: =GehaltsL1!V36 ->  | K36: =IF(A36="","",GehaltsL1!W36) ->  | L36: =IF(A36="","",GehaltsL1!X36) ->  | M36: =IF(A36="","",GehaltsL1!Y36) ->  | N36: =IF(A36="","",GehaltsL1!Z36) ->  | O36: =GehaltsL1!AA36 -> 
A37: =IF(ANDaten1!A37="","",ANDaten1!A37) ->  | B37: =IF(ANDaten1!B37="","",ANDaten1!B37) ->  | C37: =IF(ANDaten1!C37="","",ANDaten1!C37) ->  | D37: =IF(A37="","",GehaltsL1!G37) ->  | E37: =IF(A37="","",GehaltsL1!H37) ->  | F37: =IF(A37="","",GehaltsL1!I37) ->  | G37: =IF(A37="","",GehaltsL1!J37) ->  | H37: =IF(A37="","",GehaltsL1!K37) ->  | I37: =IF(A37="","",GehaltsL1!O37) ->  | J37: =GehaltsL1!V37 ->  | K37: =IF(A37="","",GehaltsL1!W37) ->  | L37: =IF(A37="","",GehaltsL1!X37) ->  | M37: =IF(A37="","",GehaltsL1!Y37) ->  | N37: =IF(A37="","",GehaltsL1!Z37) ->  | O37: =GehaltsL1!AA37 -> 
A38: Gehaltslistensummen | D38: =SUM(D8:D37) -> 79150 | E38: =SUM(E8:E37) -> 0 | F38: 5000 | G38: 195 | H38: 84345 | I38: 19464.71 | J38: 15055.34 | K38: 49824.95 | L38: 520 | M38: 0 | N38: 49304.95 | O38: 14805.3875 | P38: 29860.7275

Sheet Kontierung
A2: Kontierung | D2: Eingabe der Buchungssätze
A3: Buchungen lt. Gehaltsliste | D3: 1. Durch Klick auf die Buttons. (Entnehmen Sie die Beträge der Gehaltsliste.)
D5: 2. Durch Direkteingabe in diesem Arbeitsblatt.
D6: 3. Über die Buttons in der Gehaltsliste.
A8: Monat: | B8: =GehaltsL1!$C$5 -> Januar | C8: Jahr: | D8: =GehaltsL1!$E$5 -> 2017
A9: Vorauszahlung der Sozialversicherung (Sammelbuchung, Arbeitnehmer und Arbeitgeberanteil) | F9: =IF(AND(C13=GehaltsL2!P38,F13=GehaltsL2!P38),"rechnerisch richtig","rechnerisch falsch") -> rechnerisch falsch
A11: Soll | D11: Haben
A12: Kontonummer | B12: Konto | C12: € | D12: Kontonummer | E12: Konto | F12: €
B13: =IF(A13="","",VLOOKUP(A13,A45:B56,2)) ->  | E13: =IF(D13="","",VLOOKUP(D13,$A$45:$C$56,2)) -> 
A15: Gehaltsbuchung (Sammelbuchung) | F15: =IF(AND(SUM(C19:C23)=GehaltsL2!H38,SUM(F19:F23)=(GehaltsL2!I38+GehaltsL2!J38+GehaltsL2!L38+GehaltsL2!M38+GehaltsL2!N38)),"rechnerisch richtig","rechnerisch falsch") -> rechnerisch falsch
A17: Soll | D17: Haben
A18: Kontonummer | B18: Konto | C18: € | D18: Kontonummer | E18: Konto | F18: €
B19: =IF(A19="","",VLOOKUP(A19,$A$45:$C$56,2)) ->  | E19: =IF(D19="","",VLOOKUP(D19,$A$45:$C$56,2)) -> 
B20: =IF(A20="","",VLOOKUP(A20,$A$45:$C$56,2)) ->  | E20: =IF(D20="","",VLOOKUP(D20,$A$45:$C$56,2)) -> 
B21: =IF(A21="","",VLOOKUP(A21,$A$45:$C$56,2)) ->  | E21: =IF(D21="","",VLOOKUP(D21,A45:B56,2)) -> 
B22: =IF(A22="","",VLOOKUP(A22,$A$45:$C$56,2)) ->  | E22: =IF(D22="","",VLOOKUP(D22,$A$45:$C$56,2)) -> 
E23: =IF(D23="","",VLOOKUP(D23,$A$45:$C$56,2)) -> 
A25: Arbeitgeberanteil zur Sozialversicherung (Sammelbuchung) | F25: =IF(AND(C29=GehaltsL2!O38,F29=GehaltsL2!O38),"rechnerisch richtig","rechnerisch falsch") -> rechnerisch falsch
A27: Soll | D27: Haben
A28: Kontonummer | B28: Konto | C28: € | D28: Kontonummer | E28: Konto | F28: €
B29: =IF(A29="","",VLOOKUP(A29,$A$45:$C$56,2)) ->  | E29: =IF(D29="","",VLOOKUP(D29,A45:B56,2)) -> 
A31: Banküberweisung der noch abzuführenden Abgaben (Sammelbuchung) | F31: =IF(AND(SUM(C35:C36)=(F35+F36),SUM(F35:F36)=(F20+F22)),"rechnerisch richtig","rechnerisch falsch") -> rechnerisch richtig
A33: Soll | D33: Haben
A34: Kontonummer | B34: Konto | C34: € | D34: Kontonummer | E34: Konto | F34: €
B35: =IF(A35="","",VLOOKUP(A35,$A$45:$C$56,2)) ->  | E35: =IF(D35="","",VLOOKUP(D35,$A$45:$C$56,2)) -> 
B36: =IF(A36="","",VLOOKUP(A36,$A$45:$C$56,2)) ->  | E36: =IF(D36="","",VLOOKUP(D36,$A$45:$C$56,2)) -> 
A41: Kontenplan
A42: (Lohn- und Gehaltsbuchungen)
A44: Nummer | B44: Abkürzung | C44: Kontenbezeichnung
A45: 2640 | B45: SV-Vorauszahlung | C45: Vorauszahlung der Sozialversicherungsbeiträge
A46: 2650 | B46: Ford. a. Mitarbeiter | C46: Forderungen an Mitarbeiter
A47: 2800 | B47: Kreditinstitute (Bank) | C47: Kreditinstitute (Bank)
A48: 4830 | B48: Sonst. Verb. g. Finanzbeh. | C48: Sonstige Verbindlichieten gegenüber Finanzbehörden
A49: 4860 | B49: Verb. a. vwL | C49: Verbindlichkeiten aus vermögenswirksamen Leistungen
A50: 6200 | B50: Löhne | C50: Löhne
A51: 6210 | B51: Urlaubsgeld | C51: Urlaubs- und Weihnachtsgeld
A52: 6220 | B52: Sonst. tarifl. o. vertr. Aufw. | C52: Sonstige tarifliche oder vertragliche Aufwendungen (Lohnbereich)
A53: 6300 | B53: Gehälter | C53: Gehälter
A54: 6310 | B54: Urlaubsgeld | C54: Urlaubs- und Weihnachtsgeld
A55: 6320 | B55: Sonst. tarifl. o. vertr. Aufw. | C55: Sonstige tarifliche oder vertragliche Aufwendungen (Gehaltsbereich)
A56: 6410 | B56: AG-Anteil z. Sozialvers. | C56: Arbeitgeberanteil zur Sozialversicherung

Sheet PersKarte
A2: Personalkarte | D2: Tropic GmbH, Rheingrafenstr. 20, 55543 Bad Kreuznach | G2: Personalkarte
G3: Klicken Sie zur Erstellung der Personalkarte auf den Button, und geben Sie die Personalnummer ein.
A4: Personalnummer | B4: 115
A6: Name | B6: =VLOOKUP($B$4,ANDaten1!$A$8:$W$31,2) -> Wagner | D6: Telefon | E6: =VLOOKUP($B$4,ANDaten1!$A$8:$W$31,7) -> 067316576
A7: Vorname | B7: =VLOOKUP($B$4,ANDaten1!$A$8:$W$31,3) -> Christa | D7: mobil | E7: =VLOOKUP($B$4,ANDaten1!$A$8:$W$31,8) -> 017198877665
A8: Straße, Nr. | B8: =VLOOKUP($B$4,ANDaten1!$A$8:$W$31,4) -> Ellerbachblick 1 | D8: Fax | E8: =VLOOKUP($B$4,ANDaten1!$A$8:$W$31,9) -> 06731657-20
A9: Postleitzahl | B9: =VLOOKUP($B$4,ANDaten1!$A$8:$W$31,5) -> 55232 | D9: Email | E9: =VLOOKUP($B$4,ANDaten1!$A$8:$W$31,10) -> christa.wagner@tropic.de | G9: Geben Sie 'sonstige Qualifikationen' und 'Bemerkungen' direkt in der Personalkarte ein.
A10: Wohnort | B10: =VLOOKUP($B$4,ANDaten1!$A$8:$W$31,6) -> Alzey
A12: Geburtsdatum | B12: =VLOOKUP($B$4,ANDaten1!$A$8:$W$31,12) -> 1964-07-12 | D12: Eintritt | E12: =VLOOKUP($B$4,ANDaten1!$A$8:$W$31,11) -> 01.08.1990 | G12: Wählen Sie zum Ausdruck der Personalkarte in Ihrem Druckmenu nur die Seite 1 aus.
A13: Geburtsort | B13: =VLOOKUP($B$4,ANDaten1!$A$8:$W$31,13) -> Miami/Florida | D13: Funktion | E13: =VLOOKUP($B$4,ANDaten1!$A$8:$W$31,21) -> Sachbearbeiterin Marketing
A14: Geschlecht | B14: =VLOOKUP($B$4,ANDaten1!$A$8:$W$31,14) -> weiblich | D14: Bildungsabschluss | E14: =VLOOKUP($B$4,ANDaten1!$A$8:$W$31,22) -> High school
A15: Familienstand | B15: =VLOOKUP($B$4,ANDaten1!$A$8:$W$31,15) -> ledig | D15: Ausbildung | E15: =VLOOKUP($B$4,ANDaten1!$A$8:$W$31,23) -> Werbekauffrau
A16: Kinderzahl | B16: =VLOOKUP($B$4,ANDaten1!$A$8:$W$31,16) -> 0 | D16: sonstige Qualifikationen
A17: Staatsangehörigkeit | B17: =VLOOKUP($B$4,ANDaten1!$A$8:$W$31,17) -> deutsch
A18: Konfession | B18: =VLOOKUP($B$4,ANDaten1!$A$8:$W$31,18) -> lutheranisch
A20: Gehaltsgruppe | B20: =VLOOKUP($B$4,ANDaten2!$A$8:$Q$37,10) -> S1 | D20: Kreditinstitut | E20: =VLOOKUP($B$4,ANDaten2!$A$8:$Q$37,4) -> Sparkasse Nienburg
A21: Steuerklasse | B21: =VLOOKUP($B$4,ANDaten2!$A$8:$Q$37,7) -> 1 | D21: Bankleitzahl | E21: =VLOOKUP($B$4,ANDaten2!$A$8:$Q$37,5) -> 25650106
A22: Kinderfreibetrag | B22: =VLOOKUP($B$4,ANDaten2!$A$8:$Q$37,8) -> 0 | D22: Kontonummer | E22: =VLOOKUP($B$4,ANDaten2!$A$8:$Q$37,6) -> 778899
A23: Steuerfreibetrag | B23: =VLOOKUP($B$4,ANDaten2!$A$8:$Q$37,9) -> 0 | D23: Finanzamt | E23: =VLOOKUP($B$4,ANDaten2!$A$8:$T$37,18) -> Nienburg
A25: Vertragsgehalt | B25: =VLOOKUP($B$4,ANDaten2!$A$8:$Q$37,11) -> 4500 | D25: Krankenkasse | E25: =VLOOKUP($B$4,SozialV!$A$8:$L$37,4) -> Kölner Krankenkasse
A26: Urlaubsgeld | B26: =VLOOKUP($B$4,ANDaten2!$A$8:$Q$37,12) -> 500 | D26: Beitragssatz | E26: =VLOOKUP($B$4,SozialV!$A$8:$L$37,5) -> 0.146
A27: vwLAG | B27: =VLOOKUP($B$4,ANDaten2!$A$8:$Q$37,14) -> 15 | D27: Rentenvers. | E27: =VLOOKUP($B$4,SozialV!$A$8:$L$37,8) -> Deutsche Rentenversicherung
A28: vwLAN | B28: =VLOOKUP($B$4,ANDaten2!$A$8:$Q$37,15) -> 40 | D28: SozVersNr. | E28: =VLOOKUP($B$4,SozialV!$A$8:$L$37,12) -> 56120764W669
A30: Wochenarbeitszeit | B30: =VLOOKUP($B$4,ANDaten3!$A$8:$I$37,4) -> 38.5 | D30: Vermögensbildung | E30: =VLOOKUP($B$4,ANDaten2!$A$8:$T$37,19) -> LBS Hannover
A31: Urlaub Tage/Jahr | B31: =VLOOKUP($B$4,ANDaten3!$A$8:$I$37,5) -> 34 | D31: Vertragsnummer | E31: =VLOOKUP($B$4,ANDaten2!$A$8:$T$37,20) -> 444555666
A33: Bemerkungen
A34: Kurzbeurteilungen
A40: Fehlzeiten
A46: sonstige
A52: Kündigung, Begründung

Sheet LGAbrechnung
A2: Tropic GmbH, Rheingrafenstr. 20, 55543 Bad Kreuznach | G2: Lohn-/Gehaltsabrechnung | M2: Gehaltsabrechnung
A3: =IF(VLOOKUP($I$5,ANDaten1!$A$8:$W$37,14)="männlich","Herr","Frau") -> Frau | G3: Monat: | H3: Januar | J3: Datum: | K3: =TODAY() -> 2020-08-28 | M3: Klicken Sie zur Aufstellung der Gehaltsabrechnung auf den Button, und geben Sie die erforderlichen Daten ein.
A4: =CONCATENATE(VLOOKUP($I$5,ANDaten1!$A$8:$W$37,3)," ",(VLOOKUP($I$5,ANDaten1!$A$8:$W$37,2))) -> Diana Minardi | G4: Jahr: | I4: 2017
A5: =VLOOKUP($I$5,ANDaten1!$A$8:$W$37,4) -> Kuhfeld 20 | G5: Personal-Nr.: | I5: 102
A6: =CONCATENATE(VLOOKUP($I$5,ANDaten1!$A$8:$W$37,5)," ",(VLOOKUP($I$5,ANDaten1!$A$8:$W$37,6))) -> 55594 Rüdesheim | G6: Lohngruppe: | I6: ------
G7: Gehaltsgruppe: | I7: =VLOOKUP($I$5,ANDaten2!$A$8:$Q$37,10) -> F2
K8: €
A9: Geburtstag: | C9: =VLOOKUP($I$5,ANDaten1!$A$8:$W$37,12) -> 1960-04-05 | D9: Steuerklasse: | F9: =VLOOKUP($I$5,ANDaten2!$A$8:$Q$37,7) -> 1 | G9: Vertragslohn/Vertragsgehalt | K9: =VLOOKUP($I$5,ANDaten2!$A$8:$Q$37,11) -> 5500 | M9: Wählen Sie zum Ausdruck der Gehaltsabrechnung in Ihrem Druckmenu nur die 1 aus.
A10: Eintritt | C10: =VLOOKUP($I$5,ANDaten1!$A$8:$W$37,11) -> 1990-08-01 | D10: Freibetrag: | E10: =VLOOKUP($I$5,ANDaten2!$A$8:$Q$37,9) -> 0 | G10: Urlaubsgeld | K10: =IF(H3="Juli",VLOOKUP($I$5,ANDaten2!$A$8:$Q$37,12),0) -> 0
A11: Familienstand: | C11: =VLOOKUP($I$5,ANDaten1!$A$8:$W$37,15) -> ledig | D11: Krankenkasse: | G11: Prämien | K11: =VLOOKUP($I$5,ANDaten2!$A$8:$Q$37,13) -> 1800
A12: Kinderzahl: | C12: =VLOOKUP($I$5,ANDaten1!$A$8:$W$37,16) -> 0 | D12: =VLOOKUP(I5,SozialV!A8:D37,4) -> Barmer Ersatzkasse | G12: vermögenswirksamen Leistungen Arbeitgeber | K12: =VLOOKUP($I$5,ANDaten2!$A$8:$Q$37,14) -> 0
A13: Kinderfreibetrag: | C13: =VLOOKUP($I$5,ANDaten2!$A$8:$Q$37,8) -> 0 | D13: Konfession: | F13: =VLOOKUP($I$5,ANDaten1!$A$8:$W$37,17) -> italienisch | G13: Bruttolohn/Bruttogehalt | K13: =VLOOKUP($I$5,GehaltsL1!$A$8:$AA$37,11) -> 7300
A14: Brutto | B14: Lohn- steuer | C14: Kirchen- steuer | D14: Soli.- zuschlag | E14: Steuer gesamt | F14: Kranken- vers. | G14: Pflege- vers. | H14: Renten- vers. | I14: Arbeitsl.- vers. | J14: Sozialvers. gesamt | K14: gesetzl. Abzüge
A16: =K13 -> 7300 | B16: =VLOOKUP($I$5,GehaltsL1!$A$8:$AA$37,12) -> 2256.91 | C16: =VLOOKUP($I$5,GehaltsL1!$A$8:$AA$37,14) -> 203.12 | D16: =VLOOKUP($I$5,GehaltsL1!$A$8:$AA$37,13) -> 0 | E16: =VLOOKUP($I$5,GehaltsL1!$A$8:$AA$37,15) -> 2460.03 | F16: =VLOOKUP($I$5,GehaltsL1!$A$8:$AA$37,16) -> 365.4 | G16: =VLOOKUP($I$5,GehaltsL1!$A$8:$AA$37,19) -> 66.3375 | H16: =VLOOKUP($I$5,GehaltsL1!$A$8:$AA$37,20) -> 593.725 | I16: =VLOOKUP($I$5,GehaltsL1!$A$8:$AA$37,21) -> 95.25 | J16: =VLOOKUP($I$5,GehaltsL1!$A$8:$AA$37,22) -> 1120.72 | K16: =E16+J16 -> 3580.75
A17: Bankverbindung | C17: =VLOOKUP($I$5,ANDaten2!$A$8:$Q$37,4) -> Sparkasse Hannover | G17: Nettolohn/Nettogehalt | K17: =VLOOKUP($I$5,GehaltsL1!$A$8:$AA$37,23) -> 3719.25
A18: Bankleitzahl | C18: =VLOOKUP($I$5,ANDaten2!$A$8:$Q$37,5) -> 25050180 | G18: sonstige Abzüge + Vorschüsse | J18: 0 | K18: =VLOOKUP($I$5,GehaltsL1!$A$8:$AA$37,25)+J18 -> 0
A19: Konto-Nr.: | C19: =VLOOKUP($I$5,ANDaten2!$A$8:$Q$37,6) -> 999999 | G19: vermögenswirksame Leistungen Arbeitnehmer | K19: =VLOOKUP($I$5,GehaltsL1!$A$8:$AA$37,24) -> 0
A20: Der Beleg ist maschinell erstellt und ohne Unterschrift gültig. | G20: Auszahlung | K20: =VLOOKUP($I$5,GehaltsL1!$A$8:$AA$37,26) -> 3719.25

Sheet Lohnsteuer
A1: =CONCATENATE("Ausdruck der elektronischen Lohnsteuerbescheinigung für"," ",GehaltsL1!E5) -> Ausdruck der elektronischen Lohnsteuerbescheinigung für 2017 | H1: Lohnsteuerbescheinigung
A2: Nachstehende Daten wurden maschinell an die Finanzverwaltung übertragen | H2: Klicken Sie auf den Button um die Lohnsteuer- bescheinigung für ein ausgewähltes Jahr zu erstellen
A4: Tropic GmbH, Rheingrafenstr. 20, 55543 Bad Kreuznach | D4: 1. Dauer des Dienstverhältnisses | F4: vom - bis
F5: 01.01.-31.12.
A6: =IF(VLOOKUP($B$18,ANDaten1!$A$8:$W$37,14)="männlich","Herr","Frau") -> Herr | D6: 2. Zeiträume ohne Anspruch auf Arbeitslohn | F6: Anzahl "U":
A7: =CONCATENATE(VLOOKUP(B18,ANDaten1!A8:F37,3)," ",(VLOOKUP(B18,ANDaten1!A8:F37,2))) -> Heiner Herbst
A8: =VLOOKUP($B$18,ANDaten1!$A$8:$F$37,4) -> Nußriede 20 | D8: 3. Bruttoarbeitslohn einschl. Sachbezüge ohne 9. und 10. | F8: =A52*(VLOOKUP($B$18,GehaltsL1!$A$8:$N$37,7))+A52*(VLOOKUP($B$18,GehaltsL1!$A$8:$N$37,9))+A52*(VLOOKUP($B$18,GehaltsL1!$A$8:$N$37,10))-(A55*GehaltsL1!J8)+A43+A46 -> 69080
D9: 4. Einbehaltene Lohnsteuer von 3. | F9: =(A52*VLOOKUP($B$18,GehaltsL1!$A$8:$N$37,12))+Steuer2017!AH227 -> 13035.16 | H9: Fehlende Angaben zu den Monatsbezügen können Sie in dem folgenden Menu durch Klick auf den Button 'Personaldatenänderungen' nachtragen.
A10: =CONCATENATE(VLOOKUP(B18,ANDaten1!A8:F37,5)," ",(VLOOKUP(B18,ANDaten1!A8:F37,6))) -> 55595 Hüffelsheim | D10: 5. Einbehaltener Solidaritätszuschlag von 3. | F10: 0
D11: 6. Einbehaltene Kirchensteuer des Arbeitnehmers von 3. | F11: =(A52*VLOOKUP($B$18,GehaltsL1!$A$8:$N$37,14))+Steuer2017!$AH$262 -> 790.28
D12: 7. Einbehaltene Kirchensteuer des Ehegatten von 3. (nur bei konfessionsverschiedener Ehe)
H13: Alle zusätzlichen Entgelte, die von den konstanten Monatsbezügen abweichen, müssen summiert und im Feld 7. eingetragen werden.
D14: 8. In 3. enthaltene steuerbegünstige Versorgungsbezüge.
D15: 9. Steuerbegünstige Versorgungsbezüge für mehrere Kalenderjahre
A17: eTIN | B17: =IF(OR(B18=100,B18=105,B18=110,B18=115,B18=120),"AXYV5665UZXW",IF(OR(B18=101,B18=106,B18=111,B18=116),"BLKU4378ZVBNI",IF(OR(B18=102,B18=107,B18=112,B18=117),"ZTRU7521OKLJ",IF(OR(B18=103,B18=108,B18=113,B18=118),"UITR8787LKJH",IF(OR(B18=121,B18=124,B18=127,B18=114),"UTKJ4669JHGN",IF(OR(B18=115,B18=129,B18=109,B18=123,B18=126),"RTGV8769UXYQ","TJKE9632HYXC")))))) -> UITR8787LKJH | D17: 10. Ermäßigt besteuerter Arbeitslohn für mehrere Kalenderjahre (ohne 9) und ermäßigt besteuerte Entschädigungen | H17: Im Feld 5. muss die Dauer des Beschäftigungs-verhälnisses in Monaten angegeben werden. (Bei ganzjähriger Beschäftigung 12)
A18: Personalnummer: | B18: 103
A19: Geburtsdatum: | B19: =VLOOKUP($B$18,ANDaten1!A8:L37,12) -> 1960-09-06 | D19: 11. Einbehaltene Lohnsteuer von 9. und 10.
D20: 12. Einbehaltener Solidaritätszuschlag von 9. und 10.
D21: 13. Einbehaltene Kirchensteuer des Arbeitnehmers von 9. und 10. | H21: Wenn vermögenswirksame Leistungen nicht für volle 12 Monate Anspruch genommen werden, geben Sie im Feld 6. die Anzahl der Monate an, in den keine vermögens- wirksamen Sparleistungen gezahlt wurden.
A22: Steuerklasse | B22: vom - bis
A23: =ANDaten2!G8 -> 4 | B23: =F5 -> 01.01.-31.12. | D23: 14. Einbehaltene Kirchensteuer des Ehegatten von 9. und 10. (nur bei konfessionsverschiedener Ehe)
A25: Zahl der Kinderfreibeträge | B25: vom - bis | D25: 15. Kurzarbeitergeld, Winterausfallgeld, Zuschuss zum Metterschaftsgeld, Verdienstausfallentschädigung (Infektionsschutzgesetz) Aufstockungsbetrag, Altersteilzeitzuschlag
A26: =ANDaten2!H8 -> 1 | B26: =F5 -> 01.01.-31.12. | H26: Wählen Sie zum Ausdruck der Lohnsteuerbescheinigung in Ihrem Druckmenu nur die Seite 1 aus.
D27: 16. Steuerfreier Arbeitslohn nach | E27: Doppelbesteuerungsabkommen
A29: Steuerfreier Jahresbetrag | B29: vom - bis | E29: Auslandstätigkeitserlass
A31: =ANDaten2!I8 -> 0 | B31: =IF(A31=0,"",F5) ->  | D31: 17. Steuerfreie Arbeitgeberleistungen für Fahrten zwischen Wohnung und Arbeitsstätte
A33: Hinzurechnungsbetrag | B33: vom - bis | D33: 18. Pauschalbesteuerte Arbeitgeberleistungen für Fahrten zwischen Wohnung und Arbeitsstätte
B34: =IF(A34="","",F8) -> 
D35: 19. Steuerfreie Beträge des Arbeitgebers an eine Penionskasse oder Pensionsfonds
A36: Kirchensteuermerkmale | B36: vom - bis
A37: =VLOOKUP(B18,ANDaten1!A8:T37,20) -> rk/ev | B37: =F5 -> 01.01.-31.12. | D37: 20. Steurpflichtige Entschädigungen und Arbeitslohn für mehrere Kalenderjahr, die nicht ermäßigt besteuert werden - in 3. enthalten
A39: Anwendung Tabelle: | D39: 21. Steuerfreie Verpflungszuschüsse bei Auswärtstätigkeiten
D41: 22. Steuerfreie Arbeitgeberleistungen bei doppelter Haushaltsführung
A42: Im Bruttoarbeitslohn enthaltenes Urlaubsgeld:
A43: =VLOOKUP(B18,ANDaten2!A8:L37,12) -> 500 | D43: 23. Steuerfrei Arbeitgeberzuschüsse zur freiwilligen Krankenversicherung und zur Pflegeversicherung
A45: Im Bruttolohn enthaltene Einmalprämien und Zusatzentgelte: | D45: 24. Arbeitnehmeranteil am Gesamtsozialversicherungsbeitrag
A46: 0
D47: 25. Ausgezahltes Kindergeld
A48: Im Bruttoarbeitslohn enthaltene vermögenswirksame Leistungen:
A49: =IF(A55=0,12*(VLOOKUP(B18,ANDaten2!A8:N37,14)),(12-A55)*(VLOOKUP(B18,ANDaten2!A8:N37,14))) -> 180 | D49: 26. Steuerpflichtiger Arbeitgeberanteil zur Zusaatzversorgung
A51: Dauer der Beschäftigung in Monaten | D51: 27. Arbeitnehmeranteil zur Zusatzversorung
A52: 12
E53: Bruttoarbeitslohn/Monat | F53: =VLOOKUP($B$18,GehaltsL1!$A$8:$K$37,11) -> 5715
A54: Monate ohne Bezug vermögenswirksamer Leistungen: | E54: Lohnsteuer/Monat | F54: =VLOOKUP($B$18,GehaltsL1!$A$8:$L$37,12) -> 1021.5
A55: 0 | E55: Steuerfreibetrag | F55: =VLOOKUP(B18,ANDaten2!A8:I37,9) -> 600
E56: nicht ausgezahlte vwL | F56: =A55*(VLOOKUP(B18,GehaltsL1!A8:J37,10)) -> 0
E57: Solidaritätszuschlag | F57: =VLOOKUP($B$18,GehaltsL1!$A$8:$M$37,13) -> 0
A58: Anschrift des Arbeitgebers: | E58: Kirchensteuersatz | F58: =IF(F59=0,0,VLOOKUP(B18,ANDaten2!A8:T37,17)) -> 0.09
A59: Tropic GmbH | E59: Kirchensteuer | F59: =VLOOKUP($B$18,GehaltsL1!$A$8:$N$37,14) -> 58.18
A60: Rheingrafenstr. 20 | D60: Finanzamt, an das die Lohnsteuer abgeführt wurde (Name und dessen vierstellige Nr.)
A61: 55543 Bad Kreuznach | D61: Bad Kreuznach | F61: 2324

Sheet SozialV
A2: Sozialversicherung | C2: Personendaten eigeben | H2: Bei Krankverversicherungspflicht wird mit einem einheitlichen Zusatzbeitragssatz gerechnet.
A3: Beitragsätze | C3: 1. Schaltfläche 'Sozialversicherung' anklicken
C4: 2. Gültige Beitragssätze eingeben. (Krankenversicherung über 'Arbeitnehmerdaten'.)
D6: Krankenversicherung Zusatzbeitragssatz: | E6: 0.011 | F6: Pflegeversicherung | G6: Beitragsbemessungsgrenze | H6: Rentenversicherung | J6: Arbeitslosenversicherung | K6: Beitragsbemessungsgrenze
A7: Personalnummer | B7: Name | C7: Vorname | D7: Krankenkasse | E7: Beitragssatz | F7: Beitragssatz | G7: Kranken- u. Pflegevers. | H7: Täger | I7: Beitragssatz | J7: Beitragssatz | K7: Renten- u. Arbeitslosenvers. | L7: Sozialversicherungsnummer
A8: =ANDaten1!A8 -> 100 | B8: =ANDaten1!B8 -> Sommer | C8: =ANDaten1!C8 -> Sylvia | D8: privat | E8: 0 | F8: 0.0255 | G8: 4350 | H8: =IF(A8="","","Deutsche Rentenversicherung") -> Deutsche Rentenversicherung | I8: 0.187 | J8: 0.03 | K8: 6350 | L8: 53120754S654
A9: =IF(ANDaten1!A9="","",ANDaten1!A9) -> 101 | B9: =IF(ANDaten1!B9="","",ANDaten1!B9) -> Winter | C9: =IF(ANDaten1!C9="","",ANDaten1!C9) -> Walter | D9: DAK | E9: 0.146 | F9: =IF(A9="","",$F$8) -> 0.0255 | G9: =IF(A9="","",$G$8) -> 4350 | H9: Deutsche Rentenversicherung | I9: =IF(A9="","",$I$8) -> 0.187 | J9: =IF(A9="","",$J$8) -> 0.03 | K9: =IF(A9="","",$K$8) -> 6350 | L9: 53020156W335
A10: =IF(ANDaten1!A10="","",ANDaten1!A10) -> 102 | B10: =IF(ANDaten1!B10="","",ANDaten1!B10) -> Minardi | C10: =IF(ANDaten1!C10="","",ANDaten1!C10) -> Diana | D10: Barmer Ersatzkasse | E10: 0.146 | F10: =IF(A10="","",$F$8) -> 0.0255 | G10: 4350 | H10: Deutsche Rentenversicherung | I10: =IF(A10="","",$I$8) -> 0.187 | J10: =IF(A10="","",$J$8) -> 0.03 | K10: 6350 | L10: 13050460M766
A11: =IF(ANDaten1!A11="","",ANDaten1!A11) -> 103 | B11: =IF(ANDaten1!B11="","",ANDaten1!B11) -> Herbst | C11: =IF(ANDaten1!C11="","",ANDaten1!C11) -> Heiner | D11: Techniker Krankenkasse | E11: 0.146 | F11: 0.0255 | G11: 4350 | H11: Deutsche Rentenversicherung | I11: 0.187 | J11: 0.03 | K11: 6350 | L11: 64060960H287
A12: =IF(ANDaten1!A12="","",ANDaten1!A12) -> 104 | B12: =IF(ANDaten1!B12="","",ANDaten1!B12) -> Polster | C12: =IF(ANDaten1!C12="","",ANDaten1!C12) -> Georg | D12: DAK | E12: 0.146 | F12: 0.0255 | G12: 4350 | H12: Deutsche Rentenversicherung | I12: 0.187 | J12: 0.03 | K12: 6350 | L12: 64210349P143
A13: =IF(ANDaten1!A13="","",ANDaten1!A13) -> 105 | B13: =IF(ANDaten1!B13="","",ANDaten1!B13) -> Behrens | C13: =IF(ANDaten1!C13="","",ANDaten1!C13) -> Sonja | D13: DAK | E13: 0.146 | F13: 0.0255 | G13: 4350 | H13: Deutsche Rentenversicherung | I13: 0.187 | J13: 0.03 | K13: 6350 | L13: 65050865B723
A14: =IF(ANDaten1!A14="","",ANDaten1!A14) -> 106 | B14: =IF(ANDaten1!B14="","",ANDaten1!B14) -> Kaymak | C14: =IF(ANDaten1!C14="","",ANDaten1!C14) -> Ayse | D14: Barmer Ersatzkasse | E14: 0.146 | F14: 0.0255 | G14: 4350 | H14: Deutsche Rentenversicherung | I14: 0.187 | J14: 0.03 | K14: 6350 | L14: 55050287K855
A15: =IF(ANDaten1!A15="","",ANDaten1!A15) -> 107 | B15: =IF(ANDaten1!B15="","",ANDaten1!B15) -> Kaiser | C15: =IF(ANDaten1!C15="","",ANDaten1!C15) -> Sven | D15: AOK | E15: 0.146 | F15: 0.0255 | G15: 4350 | H15: Deutsche Rentenversicherung | I15: 0.187 | J15: 0.03 | K15: 6350 | L15: 64170370K288
A16: =IF(ANDaten1!A16="","",ANDaten1!A16) -> 108 | B16: =IF(ANDaten1!B16="","",ANDaten1!B16) -> Martin | C16: =IF(ANDaten1!C16="","",ANDaten1!C16) -> Felix | D16: AOK | E16: 0.146 | F16: 0.0255 | G16: 4350 | H16: Deutsche Rentenversicherung | I16: 0.187 | J16: 0.03 | K16: 6350 | L16: 13170685M237
A17: =IF(ANDaten1!A17="","",ANDaten1!A17) -> 109 | B17: =IF(ANDaten1!B17="","",ANDaten1!B17) -> Antonelli | C17: =IF(ANDaten1!C17="","",ANDaten1!C17) -> Claudia | D17: Barmer Ersatzkasse | E17: 0.146 | F17: 0.0255 | G17: 4350 | H17: Deutsche Rentenversicherung | I17: 0.187 | J17: 0.03 | K17: 6350 | L17: 13240770A669
A18: =IF(ANDaten1!A18="","",ANDaten1!A18) -> 110 | B18: =IF(ANDaten1!B18="","",ANDaten1!B18) -> Seewald | C18: =IF(ANDaten1!C18="","",ANDaten1!C18) -> Manon | D18: DAK | E18: 0.146 | F18: 0.0255 | G18: 4350 | H18: Deutsche Rentenversicherung | I18: 0.187 | J18: 0.03 | K18: 6350 | L18: 19010872S656
A19: =IF(ANDaten1!A19="","",ANDaten1!A19) -> 111 | B19: =IF(ANDaten1!B19="","",ANDaten1!B19) -> Senel | C19: =IF(ANDaten1!C19="","",ANDaten1!C19) -> Selami | D19: AOK | E19: 0.146 | F19: 0.0255 | G19: 4350 | H19: Deutsche Rentenversicherung | I19: 0.187 | J19: 0.03 | K19: 6350 | L19: 13040965S234
A20: =IF(ANDaten1!A20="","",ANDaten1!A20) -> 112 | B20: =IF(ANDaten1!B20="","",ANDaten1!B20) -> Weidenfeld | C20: =IF(ANDaten1!C20="","",ANDaten1!C20) -> Martin | D20: AOK Hannover | E20: 0.146 | F20: 0.0255 | G20: 4350 | H20: Deutsche Rentenversicherung | I20: 0.187 | J20: 0.03 | K20: 6350 | L20: 13031268W305
A21: =IF(ANDaten1!A21="","",ANDaten1!A21) -> 113 | B21: =IF(ANDaten1!B21="","",ANDaten1!B21) -> Zimmermann | C21: =IF(ANDaten1!C21="","",ANDaten1!C21) -> Horst | D21: DAK | E21: 0.146 | F21: 0.0255 | G21: 4350 | H21: Deutsche Rentenversicherung | I21: 0.187 | J21: 0.03 | K21: 6350 | L21: 13290163Z323
A22: =IF(ANDaten1!A22="","",ANDaten1!A22) -> 114 | B22: =IF(ANDaten1!B22="","",ANDaten1!B22) -> Rünz-Jonzeck | C22: =IF(ANDaten1!C22="","",ANDaten1!C22) -> Tanja | D22: Barmer Ersatzkasse | E22: 0.146 | F22: 0.0255 | G22: 4350 | H22: Deutsche Rentenversicherung | I22: 0.187 | J22: 0.03 | K22: 6350 | L22: 13140674R758
A23: =IF(ANDaten1!A23="","",ANDaten1!A23) -> 115 | B23: =IF(ANDaten1!B23="","",ANDaten1!B23) -> Wagner | C23: =IF(ANDaten1!C23="","",ANDaten1!C23) -> Christa | D23: Kölner Krankenkasse | E23: 0.146 | F23: 0.0255 | G23: 4350 | H23: Deutsche Rentenversicherung | I23: 0.187 | J23: 0.03 | K23: 6350 | L23: 56120764W669
A24: =IF(ANDaten1!A24="","",ANDaten1!A24) -> 116 | B24: =IF(ANDaten1!B24="","",ANDaten1!B24) -> Flöricke | C24: =IF(ANDaten1!C24="","",ANDaten1!C24) -> Susanne | D24: DAK | E24: 0.146 | F24: 0.0255 | G24: 4350 | H24: Deutsche Rentenversicherung | I24: 0.187 | J24: 0.03 | K24: 6350 | L24: 13160873F785
A25: =IF(ANDaten1!A25="","",ANDaten1!A25) -> 117 | B25: =IF(ANDaten1!B25="","",ANDaten1!B25) -> Piel-Oster | C25: =IF(ANDaten1!C25="","",ANDaten1!C25) -> Simone | D25: DAK | E25: 0.146 | F25: 0.0255 | G25: 4350 | H25: Deutsche Rentenversicherung | I25: 0.187 | J25: 0.03 | K25: 6350 | L25: 12231170P667
A26: =IF(ANDaten1!A26="","",ANDaten1!A26) -> 118 | B26: =IF(ANDaten1!B26="","",ANDaten1!B26) -> Sauerland | C26: =IF(ANDaten1!C26="","",ANDaten1!C26) -> Mario | D26: AOK | E26: 0.146 | F26: 0.0255 | G26: 4350 | H26: Deutsche Rentenversicherung | I26: 0.187 | J26: 0.03 | K26: 6350 | L26: 13230486S246
A27: =IF(ANDaten1!A27="","",ANDaten1!A27) -> 119 | B27: =IF(ANDaten1!B27="","",ANDaten1!B27) -> Ollek | C27: =IF(ANDaten1!C27="","",ANDaten1!C27) -> Tanja | D27: DAK | E27: 0.146 | F27: 0.0255 | G27: 4350 | H27: Deutsche Rentenversicherung | I27: 0.187 | J27: 0.03 | K27: 6350 | L27: 13050788O767
A28: =IF(ANDaten1!A28="","",ANDaten1!A28) ->  | B28: =IF(ANDaten1!B28="","",ANDaten1!B28) ->  | C28: =IF(ANDaten1!C28="","",ANDaten1!C28) ->  | H28: Deutsche Rentenversicherung
A29: =IF(ANDaten1!A29="","",ANDaten1!A29) ->  | B29: =IF(ANDaten1!B29="","",ANDaten1!B29) ->  | C29: =IF(ANDaten1!C29="","",ANDaten1!C29) ->  | H29: Deutsche Rentenversicherung
A30: =IF(ANDaten1!A30="","",ANDaten1!A30) ->  | B30: =IF(ANDaten1!B30="","",ANDaten1!B30) ->  | C30: =IF(ANDaten1!C30="","",ANDaten1!C30) ->  | H30: Deutsche Rentenversicherung
A31: =IF(ANDaten1!A31="","",ANDaten1!A31) ->  | B31: =IF(ANDaten1!B31="","",ANDaten1!B31) ->  | C31: =IF(ANDaten1!C31="","",ANDaten1!C31) ->  | H31: Deutsche Rentenversicherung
A32: =IF(ANDaten1!A32="","",ANDaten1!A32) ->  | B32: =IF(ANDaten1!B32="","",ANDaten1!B32) ->  | C32: =IF(ANDaten1!C32="","",ANDaten1!C32) ->  | H32: Deutsche Rentenversicherung
A33: =IF(ANDaten1!A33="","",ANDaten1!A33) ->  | B33: =IF(ANDaten1!B33="","",ANDaten1!B33) ->  | C33: =IF(ANDaten1!C33="","",ANDaten1!C33) ->  | H33: Deutsche Rentenversicherung
A34: =IF(ANDaten1!A34="","",ANDaten1!A34) ->  | B34: =IF(ANDaten1!B34="","",ANDaten1!B34) ->  | C34: =IF(ANDaten1!C34="","",ANDaten1!C34) ->  | H34: Deutsche Rentenversicherung
A35: =IF(ANDaten1!A35="","",ANDaten1!A35) ->  | B35: =IF(ANDaten1!B35="","",ANDaten1!B35) ->  | C35: =IF(ANDaten1!C35="","",ANDaten1!C35) ->  | H35: Deutsche Rentenversicherung
A36: =IF(ANDaten1!A36="","",ANDaten1!A36) ->  | B36: =IF(ANDaten1!B36="","",ANDaten1!B36) ->  | C36: =IF(ANDaten1!C36="","",ANDaten1!C36) ->  | H36: Deutsche Rentenversicherung
A37: =IF(ANDaten1!A37="","",ANDaten1!A37) ->  | B37: =IF(ANDaten1!B37="","",ANDaten1!B37) ->  | C37: =IF(ANDaten1!C37="","",ANDaten1!C37) ->  | H37: Deutsche Rentenversicherung

Sheet Urlaub
A2: Urlaubsplanung | D2: Klicken Sie auf den entsprechenden Button um Planungsjahr und Planungmonat einzugeben.
D3: Benutzen Sie zur Unterscheidung der Werk-, Sonn- und Feiertage einen aktuellen Kalender.
D4: (Einen Jahreskalender als Excel-Tabelle finden Sie auf der CD.)
D5: Nehmen Sie die Urlaubsplanung durch geeignete Symbole vor.
A6: Planungsjahr: | C6: 2017 | E6: z.B.: | G6: = | H6: Urlaubstage | L6: W | M6: = | N6: Werktage | Q6: Sa | R6: = | S6: Samstag | V6: So | W6: = | X6: Sonntag | AA6: F | AB6: = | AC6: Feiertag
A7: Planungsmonat: | C7: Juli | D7: Tragen Sie die in Anspruch genommenen Urlaubstage für den aktuellen Monat und die Vormonate ein.
A9: Pers.-Nr. | B9: Name | C9: Vorname | D9: Urlaub | F9: Tage | AK9: Urlaubstage | AM9: Resturlaub des Jahres
D10: gesamt | E10: Rest | F10: 1 | G10: 2 | H10: 3 | I10: 4 | J10: 5 | K10: 6 | L10: 7 | M10: 8 | N10: 9 | O10: 10 | P10: 11 | Q10: 12 | R10: 13 | S10: 14 | T10: 15 | U10: 16 | V10: 17 | W10: 18 | X10: 19 | Y10: 20 | Z10: 21 | AA10: 22 | AB10: 23 | AC10: 24 | AD10: 25 | AE10: 26 | AF10: 27 | AG10: 28 | AH10: 29 | AI10: 30 | AJ10: 31 | AK10: Monat | AL10: Vormonate
A11: =ANDaten3!A8 -> 100 | B11: =ANDaten3!B8 -> Sommer | C11: =ANDaten3!C8 -> Sylvia | D11: =IF(A11="","",ANDaten3!E8) -> 34 | E11: =IF(B11="","",ANDaten3!F8) -> 5 | AM11: =(E11+D11)-(AK11-AL11) -> 39
A12: =IF(ANDaten1!A9="","",ANDaten1!A9) -> 101 | B12: =IF(ANDaten1!B9="","",ANDaten1!B9) -> Winter | C12: =IF(ANDaten1!C9="","",ANDaten1!C9) -> Walter | D12: =IF(A12="","",ANDaten3!E9) -> 34 | E12: =IF(B12="","",ANDaten3!F9) -> 0 | AM12: =IF(A12="","",(E12+D12)-(AK12-AL12)) -> 34
A13: =IF(ANDaten1!A10="","",ANDaten1!A10) -> 102 | B13: =IF(ANDaten1!B10="","",ANDaten1!B10) -> Minardi | C13: =IF(ANDaten1!C10="","",ANDaten1!C10) -> Diana | D13: =IF(A13="","",ANDaten3!E10) -> 34 | E13: =IF(B13="","",ANDaten3!F10) -> 0 | AM13: =IF(A13="","",(E13+D13)-(AK13-AL13)) -> 34
A14: =IF(ANDaten1!A11="","",ANDaten1!A11) -> 103 | B14: =IF(ANDaten1!B11="","",ANDaten1!B11) -> Herbst | C14: =IF(ANDaten1!C11="","",ANDaten1!C11) -> Heiner | D14: =IF(A14="","",ANDaten3!E11) -> 34 | E14: =IF(B14="","",ANDaten3!F11) -> 0 | AM14: 34
A15: =IF(ANDaten1!A12="","",ANDaten1!A12) -> 104 | B15: =IF(ANDaten1!B12="","",ANDaten1!B12) -> Polster | C15: =IF(ANDaten1!C12="","",ANDaten1!C12) -> Georg | D15: =IF(A15="","",ANDaten3!E12) -> 34 | E15: =IF(B15="","",ANDaten3!F12) -> 10 | AM15: 44
A16: =IF(ANDaten1!A13="","",ANDaten1!A13) -> 105 | B16: =IF(ANDaten1!B13="","",ANDaten1!B13) -> Behrens | C16: =IF(ANDaten1!C13="","",ANDaten1!C13) -> Sonja | D16: =IF(A16="","",ANDaten3!E13) -> 34 | E16: =IF(B16="","",ANDaten3!F13) -> 0 | AM16: 34
A17: =IF(ANDaten1!A14="","",ANDaten1!A14) -> 106 | B17: =IF(ANDaten1!B14="","",ANDaten1!B14) -> Kaymak | C17: =IF(ANDaten1!C14="","",ANDaten1!C14) -> Ayse | D17: =IF(A17="","",ANDaten3!E14) -> 30 | E17: =IF(B17="","",ANDaten3!F14) -> 0 | AM17: 30
A18: =IF(ANDaten1!A15="","",ANDaten1!A15) -> 107 | B18: =IF(ANDaten1!B15="","",ANDaten1!B15) -> Kaiser | C18: =IF(ANDaten1!C15="","",ANDaten1!C15) -> Sven | D18: =IF(A18="","",ANDaten3!E15) -> 34 | E18: =IF(B18="","",ANDaten3!F15) -> 0 | AM18: 34
A19: =IF(ANDaten1!A16="","",ANDaten1!A16) -> 108 | B19: =IF(ANDaten1!B16="","",ANDaten1!B16) -> Martin | C19: =IF(ANDaten1!C16="","",ANDaten1!C16) -> Felix | D19: =IF(A19="","",ANDaten3!E16) -> 34 | E19: =IF(B19="","",ANDaten3!F16) -> 0 | AM19: 34
A20: =IF(ANDaten1!A17="","",ANDaten1!A17) -> 109 | B20: =IF(ANDaten1!B17="","",ANDaten1!B17) -> Antonelli | C20: =IF(ANDaten1!C17="","",ANDaten1!C17) -> Claudia | D20: =IF(A20="","",ANDaten3!E17) -> 34 | E20: =IF(B20="","",ANDaten3!F17) -> 10 | AM20: 44
A21: =IF(ANDaten1!A18="","",ANDaten1!A18) -> 110 | B21: =IF(ANDaten1!B18="","",ANDaten1!B18) -> Seewald | C21: =IF(ANDaten1!C18="","",ANDaten1!C18) -> Manon | D21: =IF(A21="","",ANDaten3!E18) -> 34 | E21: =IF(B21="","",ANDaten3!F18) -> 0 | AM21: 34
A22: =IF(ANDaten1!A19="","",ANDaten1!A19) -> 111 | B22: =IF(ANDaten1!B19="","",ANDaten1!B19) -> Senel | C22: =IF(ANDaten1!C19="","",ANDaten1!C19) -> Selami | D22: =IF(A22="","",ANDaten3!E19) -> 34 | E22: =IF(B22="","",ANDaten3!F19) -> 0 | AM22: 34
A23: =IF(ANDaten1!A20="","",ANDaten1!A20) -> 112 | B23: =IF(ANDaten1!B20="","",ANDaten1!B20) -> Weidenfeld | C23: =IF(ANDaten1!C20="","",ANDaten1!C20) -> Martin | D23: =IF(A23="","",ANDaten3!E20) -> 34 | E23: =IF(B23="","",ANDaten3!F20) -> 0 | AM23: 34
A24: =IF(ANDaten1!A21="","",ANDaten1!A21) -> 113 | B24: =IF(ANDaten1!B21="","",ANDaten1!B21) -> Zimmermann | C24: =IF(ANDaten1!C21="","",ANDaten1!C21) -> Horst | D24: =IF(A24="","",ANDaten3!E21) -> 34 | E24: =IF(B24="","",ANDaten3!F21) -> 6 | AM24: 40
A25: =IF(ANDaten1!A22="","",ANDaten1!A22) -> 114 | B25: =IF(ANDaten1!B22="","",ANDaten1!B22) -> Rünz-Jonzeck | C25: =IF(ANDaten1!C22="","",ANDaten1!C22) -> Tanja | D25: =IF(A25="","",ANDaten3!E22) -> 34 | E25: =IF(B25="","",ANDaten3!F22) -> 4 | AM25: 38
A26: =IF(ANDaten1!A23="","",ANDaten1!A23) -> 115 | B26: =IF(ANDaten1!B23="","",ANDaten1!B23) -> Wagner | C26: =IF(ANDaten1!C23="","",ANDaten1!C23) -> Christa | D26: =IF(A26="","",ANDaten3!E23) -> 34 | E26: =IF(B26="","",ANDaten3!F23) -> 0 | AM26: 34
A27: =IF(ANDaten1!A24="","",ANDaten1!A24) -> 116 | B27: =IF(ANDaten1!B24="","",ANDaten1!B24) -> Flöricke | C27: =IF(ANDaten1!C24="","",ANDaten1!C24) -> Susanne | D27: =IF(A27="","",ANDaten3!E24) -> 34 | E27: =IF(B27="","",ANDaten3!F24) -> 0 | AM27: 34
A28: =IF(ANDaten1!A25="","",ANDaten1!A25) -> 117 | B28: =IF(ANDaten1!B25="","",ANDaten1!B25) -> Piel-Oster | C28: =IF(ANDaten1!C25="","",ANDaten1!C25) -> Simone | D28: =IF(A28="","",ANDaten3!E25) -> 34 | E28: =IF(B28="","",ANDaten3!F25) -> 0 | AM28: 34
A29: =IF(ANDaten1!A26="","",ANDaten1!A26) -> 118 | B29: =IF(ANDaten1!B26="","",ANDaten1!B26) -> Sauerland | C29: =IF(ANDaten1!C26="","",ANDaten1!C26) -> Mario | D29: =IF(A29="","",ANDaten3!E26) -> 30 | E29: =IF(B29="","",ANDaten3!F26) -> 0 | AM29: 30
A30: =IF(ANDaten1!A27="","",ANDaten1!A27) -> 119 | B30: =IF(ANDaten1!B27="","",ANDaten1!B27) -> Ollek | C30: =IF(ANDaten1!C27="","",ANDaten1!C27) -> Tanja | D30: =IF(A30="","",ANDaten3!E27) -> 30 | E30: =IF(B30="","",ANDaten3!F27) -> 0 | AM30: 30
A31: =IF(ANDaten1!A28="","",ANDaten1!A28) ->  | B31: =IF(ANDaten1!B28="","",ANDaten1!B28) ->  | C31: =IF(ANDaten1!C28="","",ANDaten1!C28) ->  | D31: =IF(A31="","",ANDaten3!E28) ->  | E31: =IF(B31="","",ANDaten3!F28) -> 
A32: =IF(ANDaten1!A29="","",ANDaten1!A29) ->  | B32: =IF(ANDaten1!B29="","",ANDaten1!B29) ->  | C32: =IF(ANDaten1!C29="","",ANDaten1!C29) ->  | D32: =IF(A32="","",ANDaten3!E29) ->  | E32: =IF(B32="","",ANDaten3!F29) -> 
A33: =IF(ANDaten1!A30="","",ANDaten1!A30) ->  | B33: =IF(ANDaten1!B30="","",ANDaten1!B30) ->  | C33: =IF(ANDaten1!C30="","",ANDaten1!C30) ->  | D33: =IF(A33="","",ANDaten3!E30) ->  | E33: =IF(B33="","",ANDaten3!F30) -> 
A34: =IF(ANDaten1!A31="","",ANDaten1!A31) ->  | B34: =IF(ANDaten1!B31="","",ANDaten1!B31) ->  | C34: =IF(ANDaten1!C31="","",ANDaten1!C31) ->  | D34: =IF(A34="","",ANDaten3!E31) ->  | E34: =IF(B34="","",ANDaten3!F31) -> 
A35: =IF(ANDaten1!A32="","",ANDaten1!A32) ->  | B35: =IF(ANDaten1!B32="","",ANDaten1!B32) ->  | C35: =IF(ANDaten1!C32="","",ANDaten1!C32) ->  | D35: =IF(A35="","",ANDaten3!E32) ->  | E35: =IF(B35="","",ANDaten3!F32) -> 
A36: =IF(ANDaten1!A33="","",ANDaten1!A33) ->  | B36: =IF(ANDaten1!B33="","",ANDaten1!B33) ->  | C36: =IF(ANDaten1!C33="","",ANDaten1!C33) ->  | D36: =IF(A36="","",ANDaten3!E33) ->  | E36: =IF(B36="","",ANDaten3!F33) -> 
A37: =IF(ANDaten1!A34="","",ANDaten1!A34) ->  | B37: =IF(ANDaten1!B34="","",ANDaten1!B34) ->  | C37: =IF(ANDaten1!C34="","",ANDaten1!C34) ->  | D37: =IF(A37="","",ANDaten3!E34) ->  | E37: =IF(B37="","",ANDaten3!F34) -> 
A38: =IF(ANDaten1!A35="","",ANDaten1!A35) ->  | B38: =IF(ANDaten1!B35="","",ANDaten1!B35) ->  | C38: =IF(ANDaten1!C35="","",ANDaten1!C35) ->  | D38: =IF(A38="","",ANDaten3!E35) ->  | E38: =IF(B38="","",ANDaten3!F35) -> 
A39: =IF(ANDaten1!A36="","",ANDaten1!A36) ->  | B39: =IF(ANDaten1!B36="","",ANDaten1!B36) ->  | C39: =IF(ANDaten1!C36="","",ANDaten1!C36) ->  | D39: =IF(A39="","",ANDaten3!E36) ->  | E39: =IF(B39="","",ANDaten3!F36) -> 
A40: =IF(ANDaten1!A37="","",ANDaten1!A37) ->  | B40: =IF(ANDaten1!B37="","",ANDaten1!B37) ->  | C40: =IF(ANDaten1!C37="","",ANDaten1!C37) ->  | D40: =IF(A40="","",ANDaten3!E37) ->  | E40: =IF(B40="","",ANDaten3!F37) -> 

Sheet Briefe
I1: Briefe an das Personal
B2: Tropic GmbH, Rheingrafenstr. 20, 55543 Bad Kreuznach
I3: Klicken Sie auf den Button und geben Sie die Personalnummer, Versendungsform und Angaben der Bezugszeile ein, und wählen Sie einen Betreff aus.
B6: =IF(VLOOKUP($B$17,ANDaten1!$A$8:$W$37,14)="männlich","Herr","Frau") -> Herr
B7: =CONCATENATE(VLOOKUP($B$17,ANDaten1!$A$8:$W$37,3)," ",(VLOOKUP($B$17,ANDaten1!$A$8:$W$37,2))) -> Heiner Herbst
B8: =VLOOKUP($B$17,ANDaten1!$A$8:$W$37,4) -> Nußriede 20 | F8: Rheingrafenstr. 20
F9: 55543 Bad Kreuznach
B10: =CONCATENATE(VLOOKUP($B$17,ANDaten1!$A$8:$W$37,5)," ",(VLOOKUP($B$17,ANDaten1!$A$8:$W$37,6))) -> 55595 Hüffelsheim | F10: Tel.: 0671 2004-0 | I10: Setzen Sie den Cursor in das Textfeld (Zelle B23) und geben Sie den Brieftext ein.
F11: Fax: (49) 0671 2004-10
F12: info@tropic.de
I13: Wählen Sie zum Ausdruck des Briefes in Ihrem Druckmenu nur die Seite 1 aus.
B16: Personal-Nr.: | C16: Ihre Nachricht vom: | D16: Unsere Zeichen: | E16: Unsere Nachricht vom: | F16: Durchwahl: | G16: Datum:
B17: 103 | E17: 1954-07-12 | F17: 05112004-301 | G17: =TODAY() -> 2020-08-28
B19: Geburtstag
B21: =CONCATENATE(IF(B6="Frau","Sehr geehrte Frau","Sehr geehrter Herr")," ",(VLOOKUP($B$17,ANDaten1!$A$8:$W$37,2)),",") -> Sehr geehrter Herr Herbst,
B58: Bankverbindung: Kto-Nr.: 123 456 bei der Sparkasse Hannover, BLZ 250 501 80
B59: Handelsregister Hannover, HRB 2233

Sheet Steuer (hidden)
A1: PersNr.: | B1: 100 | C1: PersNr.: | D1: 101 | E1: 102 | F1: 103 | G1: 104 | H1: 105 | I1: 106 | J1: 107 | K1: 108 | L1: 109 | M1: 110 | N1: 111 | O1: 112 | P1: 113 | Q1: 114 | R1: 115 | S1: 116 | T1: 117 | U1: 118 | V1: 119 | W1: 120 | X1: 121 | Y1: 122 | Z1: 123 | AA1: 124 | AB1: 125 | AC1: 126 | AD1: 127 | AE1: 128 | AF1: 128 | AG1: Lohnsteuer für Zusatzentgelte
A2: Eingangsparameter | AG2: Eingangsparameter
A3: AJAHR | B3: 0 | D3: 0 | E3: 0 | F3: 0 | G3: 0 | H3: 0 | I3: 0 | J3: 0 | K3: 0 | L3: 0 | M3: 0 | N3: 0 | O3: 0 | P3: 0 | Q3: 0 | R3: 0 | S3: 0 | T3: 0 | U3: 0 | V3: 0 | W3: 0 | X3: 0 | Y3: 0 | Z3: 0 | AA3: 0 | AB3: 0 | AC3: 0 | AD3: 0 | AE3: 0 | AF3: 0 | AG3: AJAHR | AH3: 0
A4: ALTER1 | B4: 0 | D4: 0 | E4: 0 | F4: 0 | G4: 0 | H4: 0 | I4: 0 | J4: 0 | K4: 0 | L4: 0 | M4: 0 | N4: 0 | O4: 0 | P4: 0 | Q4: 0 | R4: 0 | S4: 0 | T4: 0 | U4: 0 | V4: 0 | W4: 0 | X4: 0 | Y4: 0 | Z4: 0 | AA4: 0 | AB4: 0 | AC4: 0 | AD4: 0 | AE4: 0 | AF4: 0 | AG4: ALTER1 | AH4: 0
A5: HINZUR | B5: 0 | D5: 0 | E5: 0 | F5: 0 | G5: 0 | H5: 0 | I5: 0 | J5: 0 | K5: 0 | L5: 0 | M5: 0 | N5: 0 | O5: 0 | P5: 0 | Q5: 0 | R5: 0 | S5: 0 | T5: 0 | U5: 0 | V5: 0 | W5: 0 | X5: 0 | Y5: 0 | Z5: 0 | AA5: 0 | AB5: 0 | AC5: 0 | AD5: 0 | AE5: 0 | AF5: 0 | AG5: HINZUR | AH5: 0
A6: KRV | B6: 0 | D6: 0 | E6: 0 | F6: 0 | G6: 0 | H6: 0 | I6: 0 | J6: 0 | K6: 0 | L6: 0 | M6: 0 | N6: 0 | O6: 0 | P6: 0 | Q6: 0 | R6: 0 | S6: 0 | T6: 0 | U6: 0 | V6: 0 | W6: 0 | X6: 0 | Y6: 0 | Z6: 0 | AA6: 0 | AB6: 0 | AC6: 0 | AD6: 0 | AE6: 0 | AF6: 0 | AG6: KRV | AH6: 0
A7: LZZ | B7: 2 | D7: 2 | E7: 2 | F7: 2 | G7: 2 | H7: 2 | I7: 2 | J7: 2 | K7: 2 | L7: 2 | M7: 2 | N7: 2 | O7: 2 | P7: 2 | Q7: 2 | R7: 2 | S7: 2 | T7: 2 | U7: 2 | V7: 2 | W7: 2 | X7: 2 | Y7: 2 | Z7: 2 | AA7: 2 | AB7: 2 | AC7: 2 | AD7: 2 | AE7: 2 | AF7: 2 | AG7: LZZ | AH7: 2
A8: R | B8: 1 | D8: 1 | E8: 1 | F8: 1 | G8: 1 | H8: 1 | I8: 1 | J8: 1 | K8: 1 | L8: 1 | M8: 1 | N8: 1 | O8: 1 | P8: 1 | Q8: 1 | R8: 1 | S8: 1 | T8: 1 | U8: 1 | V8: 1 | W8: 1 | X8: 1 | Y8: 1 | Z8: 1 | AA8: 1 | AB8: 1 | AC8: 1 | AD8: 1 | AE8: 1 | AF8: 1 | AG8: R | AH8: 1
A9: RE4 | B9: =GehaltsL1!$K8*100 -> 850000 | D9: =GehaltsL1!$K9*100 -> 551500 | E9: =GehaltsL1!$K10*100 -> 730000 | F9: =GehaltsL1!$K11*100 -> 571500 | G9: =GehaltsL1!$K12*100 -> 651500 | H9: =GehaltsL1!$K13*100 -> 651500 | I9: =GehaltsL1!$K14*100 -> 66500 | J9: =GehaltsL1!$K15*100 -> 341500 | K9: =GehaltsL1!$K16*100 -> 301500 | L9: =GehaltsL1!$K17*100 -> 476500 | M9: =GehaltsL1!$K18*100 -> 476500 | N9: =GehaltsL1!$K19*100 -> 341500 | O9: =GehaltsL1!$K20*100 -> 340000 | P9: =GehaltsL1!$K21*100 -> 450000 | Q9: =GehaltsL1!$K22*100 -> 340000 | R9: =GehaltsL1!$K23*100 -> 501500 | S9: =GehaltsL1!$K24*100 -> 341500 | T9: =GehaltsL1!$K25*100 -> 340000 | U9: =GehaltsL1!$K26*100 -> 56500 | V9: =GehaltsL1!$K27*100 -> 55000 | W9: =GehaltsL1!$K28*100 ->  | X9: =GehaltsL1!$K29*100 ->  | Y9: =GehaltsL1!$K30*100 ->  | Z9: =GehaltsL1!$K31*100 ->  | AA9: =GehaltsL1!$K32*100 ->  | AB9: =GehaltsL1!$K33*100 ->  | AC9: =GehaltsL1!$K34*100 ->  | AD9: =GehaltsL1!$K35*100 ->  | AE9: =GehaltsL1!$K36*100 ->  | AF9: =GehaltsL1!$K37*100 ->  | AG9: RE4 | AH9: =(Lohnsteuer!$A$43+Lohnsteuer!$A$46+Lohnsteuer!$F$53-Lohnsteuer!$F$56)*100 -> 621500
A10: STERBE | B10: 0 | D10: 0 | E10: 0 | F10: 0 | G10: 0 | H10: 0 | I10: 0 | J10: 0 | K10: 0 | L10: 0 | M10: 0 | N10: 0 | O10: 0 | P10: 0 | Q10: 0 | R10: 0 | S10: 0 | T10: 0 | U10: 0 | V10: 0 | W10: 0 | X10: 0 | Y10: 0 | Z10: 0 | AA10: 0 | AB10: 0 | AC10: 0 | AD10: 0 | AE10: 0 | AF10: 0 | AG10: STERBE | AH10: 0
A11: STKL | B11: =ANDaten2!$G8 -> 4 | D11: =ANDaten2!$G9 -> 3 | E11: =ANDaten2!$G10 -> 1 | F11: =ANDaten2!$G11 -> 3 | G11: =ANDaten2!$G12 -> 3 | H11: =ANDaten2!$G13 -> 2 | I11: =ANDaten2!$G14 -> 1 | J11: =ANDaten2!$G15 -> 3 | K11: =ANDaten2!$G16 -> 1 | L11: =ANDaten2!$G17 -> 4 | M11: =ANDaten2!$G18 -> 3 | N11: =ANDaten2!$G19 -> 3 | O11: =ANDaten2!$G20 -> 4 | P11: =ANDaten2!$G21 -> 3 | Q11: =ANDaten2!$G22 -> 5 | R11: =ANDaten2!$G23 -> 1 | S11: =ANDaten2!$G24 -> 2 | T11: =ANDaten2!$G25 -> 4 | U11: =ANDaten2!$G26 -> 1 | V11: =ANDaten2!$G27 -> 1 | W11: =ANDaten2!$G28 -> 0 | X11: =ANDaten2!$G29 -> 0 | Y11: =ANDaten2!$G30 -> 0 | Z11: =ANDaten2!$G31 -> 0 | AA11: =ANDaten2!$G32 -> 0 | AB11: =ANDaten2!$G33 -> 0 | AC11: =ANDaten2!$G34 -> 0 | AD11: =ANDaten2!$G35 -> 0 | AE11: =ANDaten2!$G36 -> 0 | AF11: =ANDaten2!$G37 -> 0 | AG11: STKL | AH11: =Lohnsteuer!$A$23 -> 4
A12: VBEZ | B12: 0 | D12: 0 | E12: 0 | F12: 0 | G12: 0 | H12: 0 | I12: 0 | J12: 0 | K12: 0 | L12: 0 | M12: 0 | N12: 0 | O12: 0 | P12: 0 | Q12: 0 | R12: 0 | S12: 0 | T12: 0 | U12: 0 | V12: 0 | W12: 0 | X12: 0 | Y12: 0 | Z12: 0 | AA12: 0 | AB12: 0 | AC12: 0 | AD12: 0 | AE12: 0 | AF12: 0 | AG12: VBEZ | AH12: 0
A13: VBEZM | B13: 0 | D13: 0 | E13: 0 | F13: 0 | G13: 0 | H13: 0 | I13: 0 | J13: 0 | K13: 0 | L13: 0 | M13: 0 | N13: 0 | O13: 0 | P13: 0 | Q13: 0 | R13: 0 | S13: 0 | T13: 0 | U13: 0 | V13: 0 | W13: 0 | X13: 0 | Y13: 0 | Z13: 0 | AA13: 0 | AB13: 0 | AC13: 0 | AD13: 0 | AE13: 0 | AF13: 0 | AG13: VBEZM | AH13: 0
A14: VBEZS | B14: 0 | D14: 0 | E14: 0 | F14: 0 | G14: 0 | H14: 0 | I14: 0 | J14: 0 | K14: 0 | L14: 0 | M14: 0 | N14: 0 | O14: 0 | P14: 0 | Q14: 0 | R14: 0 | S14: 0 | T14: 0 | U14: 0 | V14: 0 | W14: 0 | X14: 0 | Y14: 0 | Z14: 0 | AA14: 0 | AB14: 0 | AC14: 0 | AD14: 0 | AE14: 0 | AF14: 0 | AG14: VBEZS | AH14: 0
A15: VJAHR | B15: 0 | D15: 0 | E15: 0 | F15: 0 | G15: 0 | H15: 0 | I15: 0 | J15: 0 | K15: 0 | L15: 0 | M15: 0 | N15: 0 | O15: 0 | P15: 0 | Q15: 0 | R15: 0 | S15: 0 | T15: 0 | U15: 0 | V15: 0 | W15: 0 | X15: 0 | Y15: 0 | Z15: 0 | AA15: 0 | AB15: 0 | AC15: 0 | AD15: 0 | AE15: 0 | AF15: 0 | AG15: VJAHR | AH15: 0
A16: WFUNDF | B16: =ANDaten2!$I8 -> 0 | D16: =ANDaten2!$I9 -> 750 | E16: =ANDaten2!$I10 -> 0 | F16: =ANDaten2!$I11 -> 600 | G16: =ANDaten2!$I12 -> 0 | H16: =ANDaten2!$I13 -> 0 | I16: =ANDaten2!$I14 -> 0 | J16: =ANDaten2!$I15 -> 0 | K16: =ANDaten2!$I16 -> 0 | L16: =ANDaten2!$I17 -> 0 | M16: =ANDaten2!$I18 -> 0 | N16: =ANDaten2!$I19 -> 0 | O16: =ANDaten2!$I20 -> 0 | P16: =ANDaten2!$I21 -> 0 | Q16: =ANDaten2!$I22 -> 0 | R16: =ANDaten2!$I23 -> 0 | S16: =ANDaten2!$I24 -> 0 | T16: =ANDaten2!$I25 -> 0 | U16: =ANDaten2!$I26 -> 0 | V16: =ANDaten2!$I27 -> 0 | W16: =ANDaten2!$I28 -> 0 | X16: =ANDaten2!$I29 -> 0 | Y16: =ANDaten2!$I30 -> 0 | Z16: =ANDaten2!$I31 -> 0 | AA16: =ANDaten2!$I32 -> 0 | AB16: =ANDaten2!$I33 -> 0 | AC16: =ANDaten2!$I34 -> 0 | AD16: =ANDaten2!$I35 -> 0 | AE16: =ANDaten2!$I36 -> 0 | AF16: =ANDaten2!$I37 -> 0 | AG16: WFUNDF | AH16: =Lohnsteuer!$F$55 -> 600
A17: ZKF | B17: =ANDaten2!$H8 -> 1 | D17: =ANDaten2!$H9 -> 1 | E17: =ANDaten2!$H10 -> 0 | F17: =ANDaten2!$H11 -> 2 | G17: =ANDaten2!$H12 -> 3 | H17: =ANDaten2!$H13 -> 1 | I17: =ANDaten2!$H14 -> 0 | J17: =ANDaten2!$H15 -> 2 | K17: =ANDaten2!$H16 -> 0 | L17: =ANDaten2!$H17 -> 1 | M17: =ANDaten2!$H18 -> 1 | N17: =ANDaten2!$H19 -> 3 | O17: =ANDaten2!$H20 -> 1 | P17: =ANDaten2!$H21 -> 2 | Q17: =ANDaten2!$H22 -> 0 | R17: =ANDaten2!$H23 -> 0 | S17: =ANDaten2!$H24 -> 1 | T17: =ANDaten2!$H25 -> 0 | U17: =ANDaten2!$H26 -> 0 | V17: =ANDaten2!$H27 -> 0 | W17: =ANDaten2!$H28 -> 0 | X17: =ANDaten2!$H29 -> 0 | Y17: =ANDaten2!$H30 -> 0 | Z17: =ANDaten2!$H31 -> 0 | AA17: =ANDaten2!$H32 -> 0 | AB17: =ANDaten2!$H33 -> 0 | AC17: =ANDaten2!$H34 -> 0 | AD17: =ANDaten2!$H35 -> 0 | AE17: =ANDaten2!$H36 -> 0 | AF17: =ANDaten2!$H37 -> 0 | AG17: ZKF | AH17: =Lohnsteuer!$A$26 -> 1
A18: ZMVB | B18: 0 | D18: 0 | E18: 0 | F18: 0 | G18: 0 | H18: 0 | I18: 0 | J18: 0 | K18: 0 | L18: 0 | M18: 0 | N18: 0 | O18: 0 | P18: 0 | Q18: 0 | R18: 0 | S18: 0 | T18: 0 | U18: 0 | V18: 0 | W18: 0 | X18: 0 | Y18: 0 | Z18: 0 | AA18: 0 | AB18: 0 | AC18: 0 | AD18: 0 | AE18: 0 | AF18: 0 | AG18: ZMVB | AH18: 0
A20: zurück zur Startseite | AG20: zurück zur Startseite
A22: Interne Felder | AG22: Interne Felder
A24: MRE4LZZ | AG24: MRE4LZZ
A25: J | B25: =IF(B12=0,0,IF(B15<2006,1,IF(B15<2040,B15-2004,36))) -> 0 | D25: =IF(D12=0,0,IF(D15<2006,1,IF(D15<2040,D15-2004,36))) -> 0 | E25: 0 | F25: 0 | G25: 0 | H25: 0 | I25: 0 | J25: 0 | K25: 0 | L25: =IF(L12=0,0,IF(L15<2006,1,IF(L15<2040,L15-2004,36))) -> 0 | M25: 0 | N25: 0 | O25: 0 | P25: 0 | Q25: 0 | R25: 0 | S25: 0 | T25: 0 | U25: 0 | V25: 0 | W25: 0 | X25: 0 | Y25: 0 | Z25: 0 | AA25: 0 | AB25: 0 | AC25: 0 | AD25: 0 | AE25: 0 | AF25: 0 | AG25: J | AH25: =IF(AH12=0,0,IF(AH15<2006,1,IF(AH15<2040,AH15-2004,36))) -> 0
A26: TAB1 | B26: =IF(B12=0,0,0.4-(B25-1)*0.016+IF(B25>16,(B25-16)*0.008,0)) -> 0 | D26: =IF(D12=0,0,0.4-(D25-1)*0.016+IF(D25>16,(D25-16)*0.008,0)) -> 0 | E26: 0 | F26: 0 | G26: 0 | H26: 0 | I26: 0 | J26: 0 | K26: 0 | L26: 0 | M26: 0 | N26: 0 | O26: 0 | P26: 0 | Q26: 0 | R26: 0 | S26: 0 | T26: 0 | U26: 0 | V26: 0 | W26: 0 | X26: 0 | Y26: 0 | Z26: 0 | AA26: 0 | AB26: 0 | AC26: 0 | AD26: 0 | AE26: 0 | AF26: 0 | AG26: TAB1 | AH26: =IF(AH12=0,0,0.4-(AH25-1)*0.016+IF(AH25>16,(AH25-16)*0.008,0)) -> 0
A27: TAB2 | B27: =IF(B12=0,0,3000-(B25-1)*120+IF(B25>16,(B25-16)*60,0)) -> 0 | D27: =IF(D12=0,0,3000-(D25-1)*120+IF(D25>16,(D25-16)*60,0)) -> 0 | E27: 0 | F27: 0 | G27: 0 | H27: 0 | I27: 0 | J27: 0 | K27: 0 | L27: =IF(L12=0,0,3000-(L25-1)*120+IF(L25>16,(L25-16)*60,0)) -> 0 | M27: 0 | N27: 0 | O27: 0 | P27: 0 | Q27: 0 | R27: 0 | S27: 0 | T27: 0 | U27: 0 | V27: 0 | W27: 0 | X27: 0 | Y27: 0 | Z27: 0 | AA27: 0 | AB27: 0 | AC27: 0 | AD27: 0 | AE27: 0 | AF27: 0 | AG27: TAB2 | AH27: =IF(AH12=0,0,3000-(AH25-1)*120+IF(AH25>16,(AH25-16)*60,0)) -> 0
A28: TAB3 | B28: =IF(B12=0,0,900-(B25-1)*36+IF(B25>16,(B25-16)*18,0)) -> 0 | D28: =IF(D12=0,0,900-(D25-1)*36+IF(D25>16,(D25-16)*18,0)) -> 0 | E28: 0 | F28: 0 | G28: 0 | H28: 0 | I28: 0 | J28: 0 | K28: 0 | L28: =IF(L12=0,0,900-(L25-1)*36+IF(L25>16,(L25-16)*18,0)) -> 0 | M28: 0 | N28: 0 | O28: 0 | P28: 0 | Q28: 0 | R28: 0 | S28: 0 | T28: 0 | U28: 0 | V28: 0 | W28: 0 | X28: 0 | Y28: 0 | Z28: 0 | AA28: 0 | AB28: 0 | AC28: 0 | AD28: 0 | AE28: 0 | AF28: 0 | AG28: TAB3 | AH28: =IF(AH12=0,0,900-(AH25-1)*36+IF(AH25>16,(AH25-16)*18,0)) -> 0
A29: VBEZB | B29: =IF(B12=0,0,IF(B7<>1,B13*12+B14,B13*B18+B14)) -> 0 | D29: =IF(D12=0,0,IF(D7<>1,D13*12+D14,D13*D18+D14)) -> 0 | E29: 0 | F29: 0 | G29: 0 | H29: 0 | I29: 0 | J29: 0 | K29: 0 | L29: =IF(L12=0,0,IF(L7<>1,L13*12+L14,L13*L18+L14)) -> 0 | M29: 0 | N29: 0 | O29: 0 | P29: 0 | Q29: 0 | R29: 0 | S29: 0 | T29: 0 | U29: 0 | V29: 0 | W29: 0 | X29: 0 | Y29: 0 | Z29: 0 | AA29: 0 | AB29: 0 | AC29: 0 | AD29: 0 | AE29: 0 | AF29: 0 | AG29: VBEZB | AH29: =IF(AH12=0,0,IF(AH7<>1,AH13*12+AH14,AH13*AH18+AH14)) -> 0
A30: HFVB | B30: =IF(B12=0,0,IF(B7<>1,B27*100,IF(B10>0,B27*100,B27/12*B18*100))) -> 0 | D30: =IF(D12=0,0,IF(D7<>1,D27*100,IF(D10>0,D27*100,D27/12*D18*100))) -> 0 | E30: 0 | F30: 0 | G30: 0 | H30: 0 | I30: 0 | J30: 0 | K30: 0 | L30: =IF(L12=0,0,IF(L7<>1,L27*100,IF(L10>0,L27*100,L27/12*L18*100))) -> 0 | M30: 0 | N30: 0 | O30: 0 | P30: 0 | Q30: 0 | R30: 0 | S30: 0 | T30: 0 | U30: 0 | V30: 0 | W30: 0 | X30: 0 | Y30: 0 | Z30: 0 | AA30: 0 | AB30: 0 | AC30: 0 | AD30: 0 | AE30: 0 | AF30: 0 | AG30: HFVB | AH30: =IF(AH12=0,0,IF(AH7<>1,AH27*100,IF(AH10>0,AH27*100,AH27/12*AH18*100))) -> 0
A31: FVBZ | B31: =IF(B12=0,0,IF(B7<>1,B28,IF(B10>0,B28,ROUNDUP(B28/12*B18,0)))) -> 0 | D31: =IF(D12=0,0,IF(D7<>1,D28,IF(D10>0,D28,ROUNDUP(D28/12*D18,0)))) -> 0 | E31: 0 | F31: 0 | G31: 0 | H31: 0 | I31: 0 | J31: 0 | K31: 0 | L31: =IF(L12=0,0,IF(L7<>1,L28,IF(L10>0,L28,ROUNDUP(L28/12*L18,0)))) -> 0 | M31: 0 | N31: 0 | O31: 0 | P31: 0 | Q31: 0 | R31: 0 | S31: 0 | T31: 0 | U31: 0 | V31: 0 | W31: 0 | X31: 0 | Y31: 0 | Z31: 0 | AA31: 0 | AB31: 0 | AC31: 0 | AD31: 0 | AE31: 0 | AF31: 0 | AG31: FVBZ | AH31: =IF(AH12=0,0,IF(AH7<>1,AH28,IF(AH10>0,AH28,ROUNDUP(AH28/12*AH18,0)))) -> 0
A32: FVB | B32: =IF(B12=0,0,ROUNDUP(B29*B26,0)) -> 0 | D32: =IF(D12=0,0,ROUNDUP(D29*D26,0)) -> 0 | E32: 0 | F32: 0 | G32: 0 | H32: 0 | I32: 0 | J32: 0 | K32: 0 | L32: =IF(L12=0,0,ROUNDUP(L29*L26,0)) -> 0 | M32: 0 | N32: 0 | O32: 0 | P32: 0 | Q32: 0 | R32: 0 | S32: 0 | T32: 0 | U32: 0 | V32: 0 | W32: 0 | X32: 0 | Y32: 0 | Z32: 0 | AA32: 0 | AB32: 0 | AC32: 0 | AD32: 0 | AE32: 0 | AF32: 0 | AG32: FVB | AH32: =IF(AH12=0,0,ROUNDUP(AH29*AH26,0)) -> 0
A33: FVB | B33: =IF(B32>B30,B30,B32) -> 0 | D33: =IF(D32>D30,D30,D32) -> 0 | E33: 0 | F33: 0 | G33: 0 | H33: 0 | I33: 0 | J33: 0 | K33: 0 | L33: 0 | M33: 0 | N33: 0 | O33: 0 | P33: 0 | Q33: 0 | R33: 0 | S33: 0 | T33: 0 | U33: 0 | V33: 0 | W33: 0 | X33: 0 | Y33: 0 | Z33: 0 | AA33: 0 | AB33: 0 | AC33: 0 | AD33: 0 | AE33: 0 | AF33: 0 | AG33: FVB | AH33: =IF(AH32>AH30,AH30,AH32) -> 0
A34: JW | B34: =B33 -> 0 | D34: =D33 -> 0 | E34: 0 | F34: 0 | G34: 0 | H34: 0 | I34: 0 | J34: 0 | K34: 0 | L34: 0 | M34: 0 | N34: 0 | O34: 0 | P34: 0 | Q34: 0 | R34: 0 | S34: 0 | T34: 0 | U34: 0 | V34: 0 | W34: 0 | X34: 0 | Y34: 0 | Z34: 0 | AA34: 0 | AB34: 0 | AC34: 0 | AD34: 0 | AE34: 0 | AF34: 0 | AG34: JW | AH34: =AH33 -> 0
A36: UPANTEIL | AG36: UPANTEIL
A37: ANTEIL2 | B37: =IF(B7=1,B34,IF(B7=2,ROUNDUP(B34/12,0),IF(B7=3,ROUNDUP((B34*7)/360,0),ROUNDUP(B34/360,0)))) -> 0 | D37: =IF(D7=1,D34,IF(D7=2,ROUNDUP(D34/12,0),IF(D7=3,ROUNDUP((D34*7)/360,0),ROUNDUP(D34/360,0)))) -> 0 | E37: 0 | F37: 0 | G37: 0 | H37: 0 | I37: 0 | J37: 0 | K37: 0 | L37: =IF(L7=1,L34,IF(L7=2,ROUNDUP(L34/12,0),IF(L7=3,ROUNDUP((L34*7)/360,0),ROUNDUP(L34/360,0)))) -> 0 | M37: 0 | N37: 0 | O37: 0 | P37: 0 | Q37: 0 | R37: 0 | S37: 0 | T37: 0 | U37: 0 | V37: 0 | W37: 0 | X37: 0 | Y37: 0 | Z37: 0 | AA37: 0 | AB37: 0 | AC37: 0 | AD37: 0 | AE37: 0 | AF37: 0 | AG37: ANTEIL2 | AH37: =IF(AH7=1,AH34,IF(AH7=2,ROUNDUP(AH34/12,0),IF(AH7=3,ROUNDUP((AH34*7)/360,0),ROUNDUP(AH34/360,0)))) -> 0
A38: FVB | B38: =IF(B12=0,0,B37) -> 0 | D38: =IF(D12=0,0,D37) -> 0 | E38: 0 | F38: 0 | G38: 0 | H38: 0 | I38: 0 | J38: 0 | K38: 0 | L38: 0 | M38: 0 | N38: 0 | O38: 0 | P38: 0 | Q38: 0 | R38: 0 | S38: 0 | T38: 0 | U38: 0 | V38: 0 | W38: 0 | X38: 0 | Y38: 0 | Z38: 0 | AA38: 0 | AB38: 0 | AC38: 0 | AD38: 0 | AE38: 0 | AF38: 0 | AG38: FVB | AH38: =IF(AH12=0,0,AH37) -> 0
A39: K | B39: =IF(B4=0,0,IF(B3<2006,1,IF(B3<2040,B3-2004,36))) -> 0 | D39: =IF(D4=0,0,IF(D3<2006,1,IF(D3<2040,D3-2004,36))) -> 0 | E39: 0 | F39: 0 | G39: 0 | H39: 0 | I39: 0 | J39: 0 | K39: 0 | L39: =IF(L4=0,0,IF(L3<2006,1,IF(L3<2040,L3-2004,36))) -> 0 | M39: 0 | N39: 0 | O39: 0 | P39: 0 | Q39: 0 | R39: 0 | S39: 0 | T39: 0 | U39: 0 | V39: 0 | W39: 0 | X39: 0 | Y39: 0 | Z39: 0 | AA39: 0 | AB39: 0 | AC39: 0 | AD39: 0 | AE39: 0 | AF39: 0 | AG39: K | AH39: =IF(AH4=0,0,IF(AH3<2006,1,IF(AH3<2040,AH3-2004,36))) -> 0
A40: TAB4 | B40: =IF(B4=0,0,0.4-(B39-1)*0.016+IF(B39>16,(B39-16)*0.008,0)) -> 0 | D40: =IF(D4=0,0,0.4-(D39-1)*0.016+IF(D39>16,(D39-16)*0.008,0)) -> 0 | E40: 0 | F40: 0 | G40: 0 | H40: 0 | I40: 0 | J40: 0 | K40: 0 | L40: 0 | M40: 0 | N40: 0 | O40: 0 | P40: 0 | Q40: 0 | R40: 0 | S40: 0 | T40: 0 | U40: 0 | V40: 0 | W40: 0 | X40: 0 | Y40: 0 | Z40: 0 | AA40: 0 | AB40: 0 | AC40: 0 | AD40: 0 | AE40: 0 | AF40: 0 | AG40: TAB4 | AH40: =IF(AH4=0,0,0.4-(AH39-1)*0.016+IF(AH39>16,(AH39-16)*0.008,0)) -> 0
A41: TAB5 | B41: =IF(B4=0,0,1900-(B39-1)*76+IF(B39>16,(B39-16)*38,0)) -> 0 | D41: =IF(D4=0,0,1900-(D39-1)*76+IF(D39>16,(D39-16)*38,0)) -> 0 | E41: 0 | F41: 0 | G41: 0 | H41: 0 | I41: 0 | J41: 0 | K41: 0 | L41: =IF(L4=0,0,1900-(L39-1)*76+IF(L39>16,(L39-16)*38,0)) -> 0 | M41: 0 | N41: 0 | O41: 0 | P41: 0 | Q41: 0 | R41: 0 | S41: 0 | T41: 0 | U41: 0 | V41: 0 | W41: 0 | X41: 0 | Y41: 0 | Z41: 0 | AA41: 0 | AB41: 0 | AC41: 0 | AD41: 0 | AE41: 0 | AF41: 0 | AG41: TAB5 | AH41: =IF(AH4=0,0,1900-(AH39-1)*76+IF(AH39>16,(AH39-16)*38,0)) -> 0
A42: BMG | B42: =IF(B4=0,0,B9-B12) -> 0 | D42: =IF(D4=0,0,D9-D12) -> 0 | E42: 0 | F42: 0 | G42: 0 | H42: 0 | I42: 0 | J42: 0 | K42: 0 | L42: =IF(L4=0,0,L9-L12) -> 0 | M42: 0 | N42: 0 | O42: 0 | P42: 0 | Q42: 0 | R42: 0 | S42: 0 | T42: 0 | U42: 0 | V42: 0 | W42: 0 | X42: 0 | Y42: 0 | Z42: 0 | AA42: 0 | AB42: 0 | AC42: 0 | AD42: 0 | AE42: 0 | AF42: 0 | AG42: BMG | AH42: =IF(AH4=0,0,AH9-AH12) -> 0
A43: ALTE | B43: =IF(B4=0,0,ROUNDUP(B42*B40,0)) -> 0 | D43: =IF(D4=0,0,ROUNDUP(D42*D40,0)) -> 0 | E43: 0 | F43: 0 | G43: 0 | H43: 0 | I43: 0 | J43: 0 | K43: 0 | L43: 0 | M43: 0 | N43: 0 | O43: 0 | P43: 0 | Q43: 0 | R43: 0 | S43: 0 | T43: 0 | U43: 0 | V43: 0 | W43: 0 | X43: 0 | Y43: 0 | Z43: 0 | AA43: 0 | AB43: 0 | AC43: 0 | AD43: 0 | AE43: 0 | AF43: 0 | AG43: ALTE | AH43: =IF(AH4=0,0,ROUNDUP(AH42*AH40,0)) -> 0
A44: JW | B44: =IF(B4=0,0,B41*100) -> 0 | D44: =IF(D4=0,0,D41*100) -> 0 | E44: 0 | F44: 0 | G44: 0 | H44: 0 | I44: 0 | J44: 0 | K44: 0 | L44: =IF(L4=0,0,L41*100) -> 0 | M44: 0 | N44: 0 | O44: 0 | P44: 0 | Q44: 0 | R44: 0 | S44: 0 | T44: 0 | U44: 0 | V44: 0 | W44: 0 | X44: 0 | Y44: 0 | Z44: 0 | AA44: 0 | AB44: 0 | AC44: 0 | AD44: 0 | AE44: 0 | AF44: 0 | AG44: JW | AH44: =IF(AH4=0,0,AH41*100) -> 0
A46: UPANTEIL | AG46: UPANTEIL
A47: ANTEIL2 | B47: =IF(B7=1,B44,IF(B7=2,ROUNDUP(B44/12,0),IF(B7=3,ROUNDUP((B44*7)/360,0),ROUNDUP(B44/360,0)))) -> 0 | D47: =IF(D7=1,D44,IF(D7=2,ROUNDUP(D44/12,0),IF(D7=3,ROUNDUP((D44*7)/360,0),ROUNDUP(D44/360,0)))) -> 0 | E47: 0 | F47: 0 | G47: 0 | H47: 0 | I47: 0 | J47: 0 | K47: 0 | L47: =IF(L7=1,L44,IF(L7=2,ROUNDUP(L44/12,0),IF(L7=3,ROUNDUP((L44*7)/360,0),ROUNDUP(L44/360,0)))) -> 0 | M47: 0 | N47: 0 | O47: 0 | P47: 0 | Q47: 0 | R47: 0 | S47: 0 | T47: 0 | U47: 0 | V47: 0 | W47: 0 | X47: 0 | Y47: 0 | Z47: 0 | AA47: 0 | AB47: 0 | AC47: 0 | AD47: 0 | AE47: 0 | AF47: 0 | AG47: ANTEIL2 | AH47: =IF(AH7=1,AH44,IF(AH7=2,ROUNDUP(AH44/12,0),IF(AH7=3,ROUNDUP((AH44*7)/360,0),ROUNDUP(AH44/360,0)))) -> 0
A48: ALTE | B48: =IF(B43>B47,B47,B43) -> 0 | D48: =IF(D43>D47,D47,D43) -> 0 | E48: 0 | F48: 0 | G48: 0 | H48: 0 | I48: 0 | J48: 0 | K48: 0 | L48: 0 | M48: 0 | N48: 0 | O48: 0 | P48: 0 | Q48: 0 | R48: 0 | S48: 0 | T48: 0 | U48: 0 | V48: 0 | W48: 0 | X48: 0 | Y48: 0 | Z48: 0 | AA48: 0 | AB48: 0 | AC48: 0 | AD48: 0 | AE48: 0 | AF48: 0 | AG48: ALTE | AH48: =IF(AH43>AH47,AH47,AH43) -> 0
A50: RE4LZZ | B50: =B9-B38-B48-B16+B5 -> 850000 | D50: =D9-D38-D48-D16+D5 -> 550750 | E50: 730000 | F50: 570900 | G50: 651500 | H50: 651500 | I50: 66500 | J50: 341500 | K50: 301500 | L50: =L9-L38-L48-L16+L5 -> 476500 | M50: 476500 | N50: 341500 | O50: 340000 | P50: 450000 | Q50: 340000 | R50: 501500 | S50: 341500 | T50: 340000 | U50: 56500 | V50: 55000 | AG50: RE4LZZ | AH50: =AH9-AH38-AH48-AH16+AH5 -> 620900
A51: RE4LZZV | B51: =B9-B38-B48 -> 850000 | D51: =D9-D38-D48 -> 551500 | E51: 730000 | F51: 571500 | G51: 651500 | H51: 651500 | I51: 66500 | J51: 341500 | K51: 301500 | L51: =L9-L38-L48 -> 476500 | M51: 476500 | N51: 341500 | O51: 340000 | P51: 450000 | Q51: 340000 | R51: 501500 | S51: 341500 | T51: 340000 | U51: 56500 | V51: 55000 | AG51: RE4LZZV | AH51: =AH9-AH38-AH48 -> 621500
A53: MRE4 | AG53: MRE4
A54: ZRE4 | B54: =IF(B7=1,ROUNDDOWN(B50/100,0),IF(B7=2,ROUNDDOWN((B50+0.67)*0.12,0),IF(B7=3,ROUNDDOWN(((B50+0.89)*3.6)/7,0),ROUNDDOWN((B50+0.56)*3.6,0)))) -> 102000 | D54: =IF(D7=1,ROUNDDOWN(D50/100,0),IF(D7=2,ROUNDDOWN((D50+0.67)*0.12,0),IF(D7=3,ROUNDDOWN(((D50+0.89)*3.6)/7,0),ROUNDDOWN((D50+0.56)*3.6,0)))) -> 66090 | E54: 87600 | F54: 68508 | G54: 78180 | H54: 78180 | I54: 7980 | J54: 40980 | K54: 36180 | L54: =IF(L7=1,ROUNDDOWN(L50/100,0),IF(L7=2,ROUNDDOWN((L50+0.67)*0.12,0),IF(L7=3,ROUNDDOWN(((L50+0.89)*3.6)/7,0),ROUNDDOWN((L50+0.56)*3.6,0)))) -> 57180 | M54: 57180 | N54: 40980 | O54: 40800 | P54: 54000 | Q54: 40800 | R54: 60180 | S54: 40980 | T54: 40800 | U54: 6780 | V54: 6600 | AG54: ZRE4 | AH54: =IF(AH7=1,ROUNDDOWN(AH50/100,0),IF(AH7=2,ROUNDDOWN((AH50+0.67)*0.12,0),IF(AH7=3,ROUNDDOWN(((AH50+0.89)*3.6)/7,0),ROUNDDOWN((AH50+0.56)*3.6,0)))) -> 74508
A55: ZRE4VP | B55: =IF(B7=1,ROUNDDOWN(B51/100,0),IF(B7=2,ROUNDDOWN((B51+0.67)*0.12,0),IF(B7=3,ROUNDDOWN(((B51+0.89)*3.6)/7,0),ROUNDDOWN((B51+0.56)*3.6,0)))) -> 102000 | D55: =IF(D7=1,ROUNDDOWN(D51/100,0),IF(D7=2,ROUNDDOWN((D51+0.67)*0.12,0),IF(D7=3,ROUNDDOWN(((D51+0.89)*3.6)/7,0),ROUNDDOWN((D51+0.56)*3.6,0)))) -> 66180 | E55: 87600 | F55: 68580 | G55: 78180 | H55: 78180 | I55: 7980 | J55: 40980 | K55: 36180 | L55: =IF(L7=1,ROUNDDOWN(L51/100,0),IF(L7=2,ROUNDDOWN((L51+0.67)*0.12,0),IF(L7=3,ROUNDDOWN(((L51+0.89)*3.6)/7,0),ROUNDDOWN((L51+0.56)*3.6,0)))) -> 57180 | M55: 57180 | N55: 40980 | O55: 40800 | P55: 54000 | Q55: 40800 | R55: 60180 | S55: 40980 | T55: 40800 | U55: 6780 | V55: 6600 | AG55: ZRE4VP | AH55: =IF(AH7=1,ROUNDDOWN(AH51/100,0),IF(AH7=2,ROUNDDOWN((AH51+0.67)*0.12,0),IF(AH7=3,ROUNDDOWN(((AH51+0.89)*3.6)/7,0),ROUNDDOWN((AH51+0.56)*3.6,0)))) -> 74580
A56: ZVBEZ | B56: =IF(B7=1,ROUNDDOWN((B12-B38)/100,0),IF(B7=2,ROUNDDOWN((B12-B38+0.67)*0.12,0),IF(B7=3,ROUNDDOWN(((B12-B38+0.89)*3.6)/7,0),ROUNDDOWN((B12-B38+0.56)*3.6,0)))) -> 0 | D56: =IF(D7=1,ROUNDDOWN((D12-D38)/100,0),IF(D7=2,ROUNDDOWN((D12-D38+0.67)*0.12,0),IF(D7=3,ROUNDDOWN(((D12-D38+0.89)*3.6)/7,0),ROUNDDOWN((D12-D38+0.56)*3.6,0)))) -> 0 | E56: 0 | F56: 0 | G56: 0 | H56: 0 | I56: 0 | J56: 0 | K56: 0 | L56: =IF(L7=1,ROUNDDOWN((L12-L38)/100,0),IF(L7=2,ROUNDDOWN((L12-L38+0.67)*0.12,0),IF(L7=3,ROUNDDOWN(((L12-L38+0.89)*3.6)/7,0),ROUNDDOWN((L12-L38+0.56)*3.6,0)))) -> 0 | M56: 0 | N56: 0 | O56: 0 | P56: 0 | Q56: 0 | R56: 0 | S56: 0 | T56: 0 | U56: 0 | V56: 0 | W56: 0 | X56: 0 | Y56: 0 | Z56: 0 | AA56: 0 | AB56: 0 | AC56: 0 | AD56: 0 | AE56: 0 | AF56: 0 | AG56: ZVBEZ | AH56: =IF(AH7=1,ROUNDDOWN((AH12-AH38)/100,0),IF(AH7=2,ROUNDDOWN((AH12-AH38+0.67)*0.12,0),IF(AH7=3,ROUNDDOWN(((AH12-AH38+0.89)*3.6)/7,0),ROUNDDOWN((AH12-AH38+0.56)*3.6,0)))) -> 0
A57: ZRE4 | B57: =IF(B50<0,0,B54) -> 102000 | D57: =IF(D50<0,0,D54) -> 66090 | E57: 87600 | F57: 68508 | G57: 78180 | H57: 78180 | I57: 7980 | J57: 40980 | K57: 36180 | L57: =IF(L50<0,0,L54) -> 57180 | M57: 57180 | N57: 40980 | O57: 40800 | P57: 54000 | Q57: 40800 | R57: 60180 | S57: 40980 | T57: 40800 | U57: 6780 | V57: 6600 | AG57: ZRE4 | AH57: =IF(AH50<0,0,AH54) -> 74508
A58: ZRE4VP | B58: =IF(B51<0,0,B55) -> 102000 | D58: 66180 | E58: 87600 | F58: 68580 | G58: 78180 | H58: 78180 | I58: 7980 | J58: 40980 | K58: 36180 | L58: =IF(L51<0,0,L55) -> 57180 | M58: 57180 | N58: 40980 | O58: 40800 | P58: 54000 | Q58: 40800 | R58: 60180 | S58: 40980 | T58: 40800 | U58: 6780 | V58: 6600 | AG58: ZRE4VP | AH58: =IF(AH51<0,0,AH55) -> 74580
A59: ZVBEZ | B59: =IF(B12=0,IF(B38=0,0,B56),IF(B12-B38<0,0,B56)) -> 0 | D59: =IF(D12=0,IF(D38=0,0,D56),IF(D12-D38<0,0,D56)) -> 0 | E59: 0 | F59: 0 | G59: 0 | H59: 0 | I59: 0 | J59: 0 | K59: 0 | L59: =IF(L12=0,IF(L38=0,0,L56),IF(L12-L38<0,0,L56)) -> 0 | M59: 0 | N59: 0 | O59: 0 | P59: 0 | Q59: 0 | R59: 0 | S59: 0 | T59: 0 | U59: 0 | V59: 0 | W59: 0 | X59: 0 | Y59: 0 | Z59: 0 | AA59: 0 | AB59: 0 | AC59: 0 | AD59: 0 | AE59: 0 | AF59: 0 | AG59: ZVBEZ | AH59: =IF(AH12=0,IF(AH38=0,0,AH56),IF(AH12-AH38<0,0,AH56)) -> 0
A61: MZTABFB | AG61: MZTABFB
A62: KZTAB | B62: =IF(B11=3,2,1) -> 1 | D62: =IF(D11=3,2,1) -> 2 | E62: 1 | F62: 2 | G62: 2 | H62: 1 | I62: 1 | J62: 2 | K62: 1 | L62: =IF(L11=3,2,1) -> 1 | M62: 2 | N62: 2 | O62: 1 | P62: 2 | Q62: 1 | R62: 1 | S62: 1 | T62: 1 | U62: 1 | V62: 1 | W62: 1 | X62: 1 | Y62: 1 | Z62: 1 | AA62: 1 | AB62: 1 | AC62: 1 | AD62: 1 | AE62: 1 | AF62: 1 | AG62: KZTAB | AH62: =IF(AH11=3,2,1) -> 1
A63: ANP | B63: =IF(B11>5,0,IF(B59=0,0,IF(B59-IF(B59<B31,B59,B31)<102,B59-IF(B59<B31,B59,B31),102)))+IF(B11>5,0,IF(B57=B59,0,IF(B57-B59<920,B57-B59,920))) -> 920 | D63: =IF(D11>5,0,IF(D59=0,0,IF(D59-IF(D59<D31,D59,D31)<102,D59-IF(D59<D31,D59,D31),102)))+IF(D11>5,0,IF(D57=D59,0,IF(D57-D59<920,D57-D59,920))) -> 920 | E63: 920 | F63: 920 | G63: 920 | H63: 920 | I63: 920 | J63: 920 | K63: 920 | L63: =IF(L11>5,0,IF(L59=0,0,IF(L59-IF(L59<L31,L59,L31)<102,L59-IF(L59<L31,L59,L31),102)))+IF(L11>5,0,IF(L57=L59,0,IF(L57-L59<920,L57-L59,920))) -> 920 | M63: 920 | N63: 920 | O63: 920 | P63: 920 | Q63: 920 | R63: 920 | S63: 920 | T63: 920 | U63: 920 | V63: 920 | AG63: ANP | AH63: =IF(AH11>5,0,IF(AH59=0,0,IF(AH59-IF(AH59<AH31,AH59,AH31)<102,AH59-IF(AH59<AH31,AH59,AH31),102)))+IF(AH11>5,0,IF(AH57=AH59,0,IF(AH57-AH59<920,AH57-AH59,920))) -> 920
A64: EFA | B64: =IF(B11=2,1308,0) -> 0 | D64: =IF(D11=2,1308,0) -> 0 | E64: 0 | F64: 0 | G64: 0 | H64: 1308 | I64: 0 | J64: 0 | K64: 0 | L64: =IF(L11=2,1308,0) -> 0 | M64: 0 | N64: 0 | O64: 0 | P64: 0 | Q64: 0 | R64: 0 | S64: 1308 | T64: 0 | U64: 0 | V64: 0 | W64: 0 | X64: 0 | Y64: 0 | Z64: 0 | AA64: 0 | AB64: 0 | AC64: 0 | AD64: 0 | AE64: 0 | AF64: 0 | AG64: EFA | AH64: =IF(AH11=2,1308,0) -> 0
A65: SAP | B65: =IF(B11=3,72,IF(B11>4,0,36)) -> 36 | D65: =IF(D11=3,72,IF(D11>4,0,36)) -> 72 | E65: 36 | F65: 72 | G65: 72 | H65: 36 | I65: 36 | J65: 72 | K65: 36 | L65: =IF(L11=3,72,IF(L11>4,0,36)) -> 36 | M65: 72 | N65: 72 | O65: 36 | P65: 72 | Q65: 0 | R65: 36 | S65: 36 | T65: 36 | U65: 36 | V65: 36 | W65: 36 | X65: 36 | Y65: 36 | Z65: 36 | AA65: 36 | AB65: 36 | AC65: 36 | AD65: 36 | AE65: 36 | AF65: 36 | AG65: SAP | AH65: =IF(AH11=3,72,IF(AH11>4,0,36)) -> 36
A66: KFB | B66: =IF(B11<4,B17*5808,IF(B11=4,B17*2904,0)) -> 2904 | D66: =IF(D11<4,D17*5808,IF(D11=4,D17*2904,0)) -> 5808 | E66: 0 | F66: 11616 | G66: 17424 | H66: 5808 | I66: 0 | J66: 11616 | K66: 0 | L66: =IF(L11<4,L17*5808,IF(L11=4,L17*2904,0)) -> 2904 | M66: 5808 | N66: 17424 | O66: 2904 | P66: 11616 | Q66: 0 | R66: 0 | S66: 5808 | T66: 0 | U66: 0 | V66: 0 | W66: 0 | X66: 0 | Y66: 0 | Z66: 0 | AA66: 0 | AB66: 0 | AC66: 0 | AD66: 0 | AE66: 0 | AF66: 0 | AG66: KFB | AH66: =IF(AH11<4,AH17*5808,IF(AH11=4,AH17*2904,0)) -> 2904
A67: ZTABFB | B67: =B64+B63+B65+IF(B59<B31,B59,B31) -> 956 | D67: =D64+D63+D65+IF(D59<D31,D59,D31) -> 992 | E67: 956 | F67: 992 | G67: 992 | H67: 2264 | I67: 956 | J67: 992 | K67: 956 | L67: =L64+L63+L65+IF(L59<L31,L59,L31) -> 956 | M67: 992 | N67: 992 | O67: 956 | P67: 992 | Q67: 920 | R67: 956 | S67: 2264 | T67: 956 | U67: 956 | V67: 956 | AG67: ZTABFB | AH67: =AH64+AH63+AH65+IF(AH59<AH31,AH59,AH31) -> 956
A69: MLSTJAHR | AG69: MLSTJAHR
A70: VSP: STKL>4 | B70: 0 | D70: 0 | E70: 0 | F70: 0 | G70: 0 | H70: 0 | I70: 0 | J70: 0 | K70: 0 | L70: 0 | M70: 0 | N70: 0 | O70: 0 | P70: 0 | Q70: 0 | R70: 0 | S70: 0 | T70: 0 | U70: 0 | V70: 0 | W70: 0 | X70: 0 | Y70: 0 | Z70: 0 | AA70: 0 | AB70: 0 | AC70: 0 | AD70: 0 | AE70: 0 | AF70: 0 | AG70: VSP: STKL>4 | AH70: 0
A72: UPEVP | AG72: UPEVP
A73: VSP1 | B73: 0 | D73: 0 | E73: 0 | F73: 0 | G73: 0 | H73: 0 | I73: 0 | J73: 0 | K73: 0 | L73: 0 | M73: 0 | N73: 0 | O73: 0 | P73: 0 | Q73: 0 | R73: 0 | S73: 0 | T73: 0 | U73: 0 | V73: 0 | W73: 0 | X73: 0 | Y73: 0 | Z73: 0 | AA73: 0 | AB73: 0 | AC73: 0 | AD73: 0 | AE73: 0 | AF73: 0 | AG73: VSP1 | AH73: 0
A74: ZRE4VP | B74: =IF(B11>4,0,IF(B55>63000,63000,B55)) -> 63000 | D74: =IF(D11>4,0,IF(D55>63000,63000,D55)) -> 63000 | E74: 63000 | F74: 63000 | G74: 63000 | H74: 63000 | I74: 7980 | J74: 40980 | K74: 36180 | L74: =IF(L11>4,0,IF(L55>63000,63000,L55)) -> 57180 | M74: 57180 | N74: 40980 | O74: 40800 | P74: 54000 | Q74: 0 | R74: 60180 | S74: 40980 | T74: 40800 | U74: 6780 | V74: 6600 | AG74: ZRE4VP | AH74: =IF(AH11>4,0,IF(AH55>63000,63000,AH55)) -> 63000
A75: VSP1 | B75: =TRUNC((0.28*B74)*0.0995,2) -> 1755.18 | D75: =TRUNC((0.28*D74)*0.0995,2) -> 1755.18 | E75: 1755.18 | F75: 1755.18 | G75: 1755.18 | H75: 1755.18 | I75: 222.32 | J75: 1141.7 | K75: 1007.97 | L75: 1593.03 | M75: 1593.03 | N75: 1141.7 | O75: 1136.68 | P75: 1504.44 | Q75: 0 | R75: 1676.61 | S75: 1141.7 | T75: 1136.68 | U75: 188.89 | V75: 183.87 | AG75: VSP1 | AH75: =TRUNC((0.28*AH74)*0.0995,2) -> 1755.18
A76: VSP1 | B76: =IF(B6=1,B73,B75) -> 1755.18 | D76: =IF(D6=1,D73,D75) -> 1755.18 | E76: 1755.18 | F76: 1755.18 | G76: 1755.18 | H76: 1755.18 | I76: 222.32 | J76: 1141.7 | K76: 1007.97 | L76: 1593.03 | M76: 1593.03 | N76: 1141.7 | O76: 1136.68 | P76: 1504.44 | Q76: 0 | R76: 1676.61 | S76: 1141.7 | T76: 1136.68 | U76: 188.89 | V76: 183.87 | AG76: VSP1 | AH76: =IF(AH6=1,AH73,AH75) -> 1755.18
A77: VSP2 | B77: =TRUNC(0.11*B74,2) -> 6930 | D77: =TRUNC(0.11*D74,2) -> 6930 | E77: 6930 | F77: 6930 | G77: 6930 | H77: 6930 | I77: 877.8 | J77: 4507.8 | K77: 3979.8 | L77: =TRUNC(0.11*L74,2) -> 6289.8 | M77: 6289.8 | N77: 4507.8 | O77: 4488 | P77: 5940 | Q77: 0 | R77: 6619.8 | S77: 4507.8 | T77: 4488 | U77: 745.8 | V77: 726 | AG77: VSP2 | AH77: =TRUNC(0.11*AH74,2) -> 6930
A78: VHB | B78: =IF(B11>4,0,1500*B62) -> 1500 | D78: =IF(D11>4,0,1500*D62) -> 3000 | E78: 1500 | F78: 3000 | G78: 3000 | H78: 1500 | I78: 1500 | J78: 3000 | K78: 1500 | L78: =IF(L11>4,0,1500*L62) -> 1500 | M78: 3000 | N78: 3000 | O78: 1500 | P78: 3000 | Q78: 0 | R78: 1500 | S78: 1500 | T78: 1500 | U78: 1500 | V78: 1500 | W78: 1500 | X78: 1500 | Y78: 1500 | Z78: 1500 | AA78: 1500 | AB78: 1500 | AC78: 1500 | AD78: 1500 | AE78: 1500 | AF78: 1500 | AG78: VHB | AH78: =IF(AH11>4,0,1500*AH62) -> 1500
A79: VSP2 | B79: =IF(B77>B78,B78,B77) -> 1500 | D79: =IF(D77>D78,D78,D77) -> 3000 | E79: 1500 | F79: 3000 | G79: 3000 | H79: 1500 | I79: 877.8 | J79: 3000 | K79: 1500 | L79: 1500 | M79: 3000 | N79: 3000 | O79: 1500 | P79: 3000 | Q79: 0 | R79: 1500 | S79: 1500 | T79: 1500 | U79: 745.8 | V79: 726 | AG79: VSP2 | AH79: =IF(AH77>AH78,AH78,AH77) -> 1500
A80: VSPN | B80: =ROUNDUP(B76+B79,0) -> 3256 | D80: =ROUNDUP(D76+D79,0) -> 4756 | E80: 3256 | F80: 4756 | G80: 4756 | H80: 3256 | I80: 1101 | J80: 4142 | K80: 2508 | L80: 3094 | M80: 4594 | N80: 4142 | O80: 2637 | P80: 4505 | Q80: 0 | R80: 3177 | S80: 2642 | T80: 2637 | U80: 935 | V80: 910 | AG80: VSPN | AH80: =ROUNDUP(AH76+AH79,0) -> 3256
A82: MVSP | AG82: MVSP
A83: VSPO | B83: =IF(B11>4,0,B74*0.2) -> 12600 | D83: =IF(D11>4,0,D74*0.2) -> 12600 | E83: 12600 | F83: 12600 | G83: 12600 | H83: 12600 | I83: 1596 | J83: 8196 | K83: 7236 | L83: =IF(L11>4,0,L74*0.2) -> 11436 | M83: 11436 | N83: 8196 | O83: 8160 | P83: 10800 | Q83: 0 | R83: 12036 | S83: 8196 | T83: 8160 | U83: 1356 | V83: 1320 | AG83: VSPO | AH83: =IF(AH11>4,0,AH74*0.2) -> 12600
A84: VSPVOR | B84: =IF(B11>4,0,3068*B62) -> 3068 | D84: =IF(D11>4,0,3068*D62) -> 6136 | E84: 3068 | F84: 6136 | G84: 6136 | H84: 3068 | I84: 3068 | J84: 6136 | K84: 3068 | L84: =IF(L11>4,0,3068*L62) -> 3068 | M84: 6136 | N84: 6136 | O84: 3068 | P84: 6136 | Q84: 0 | R84: 3068 | S84: 3068 | T84: 3068 | U84: 3068 | V84: 3068 | W84: 3068 | X84: 3068 | Y84: 3068 | Z84: 3068 | AA84: 3068 | AB84: 3068 | AC84: 3068 | AD84: 3068 | AE84: 3068 | AF84: 3068 | AG84: VSPVOR | AH84: =IF(AH11>4,0,3068*AH62) -> 3068
A85: VSPMAX1 | B85: =IF(B11>4,0,1334*B62) -> 1334 | D85: =IF(D11>4,0,1334*D62) -> 2668 | E85: 1334 | F85: 2668 | G85: 2668 | H85: 1334 | I85: 1334 | J85: 2668 | K85: 1334 | L85: =IF(L11>4,0,1334*L62) -> 1334 | M85: 2668 | N85: 2668 | O85: 1334 | P85: 2668 | Q85: 0 | R85: 1334 | S85: 1334 | T85: 1334 | U85: 1334 | V85: 1334 | W85: 1334 | X85: 1334 | Y85: 1334 | Z85: 1334 | AA85: 1334 | AB85: 1334 | AC85: 1334 | AD85: 1334 | AE85: 1334 | AF85: 1334 | AG85: VSPMAX1 | AH85: =IF(AH11>4,0,1334*AH62) -> 1334
A86: VSPMAX2 | B86: =IF(B11>4,0,667*B62) -> 667 | D86: =IF(D11>4,0,667*D62) -> 1334 | E86: 667 | F86: 1334 | G86: 1334 | H86: 667 | I86: 667 | J86: 1334 | K86: 667 | L86: =IF(L11>4,0,667*L62) -> 667 | M86: 1334 | N86: 1334 | O86: 667 | P86: 1334 | Q86: 0 | R86: 667 | S86: 667 | T86: 667 | U86: 667 | V86: 667 | W86: 667 | X86: 667 | Y86: 667 | Z86: 667 | AA86: 667 | AB86: 667 | AC86: 667 | AD86: 667 | AE86: 667 | AF86: 667 | AG86: VSPMAX2 | AH86: =IF(AH11>4,0,667*AH62) -> 667
A87: VSPKURZ | B87: =IF(B11>4,0,1134*B62) -> 1134 | D87: =IF(D11>4,0,1134*D62) -> 2268 | E87: 1134 | F87: 2268 | G87: 2268 | H87: 1134 | I87: 1134 | J87: 2268 | K87: 1134 | L87: =IF(L11>4,0,1134*L62) -> 1134 | M87: 2268 | N87: 2268 | O87: 1134 | P87: 2268 | Q87: 0 | R87: 1134 | S87: 1134 | T87: 1134 | U87: 1134 | V87: 1134 | W87: 1134 | X87: 1134 | Y87: 1134 | Z87: 1134 | AA87: 1134 | AB87: 1134 | AC87: 1134 | AD87: 1134 | AE87: 1134 | AF87: 1134 | AG87: VSPKURZ | AH87: =IF(AH11>4,0,1134*AH62) -> 1134
A88: VSP: KRV=1 | B88: =IF(B83>B87,B87,ROUNDDOWN(B83,0)) -> 1134 | D88: =IF(D83>D87,D87,ROUNDDOWN(D83,0)) -> 2268 | E88: 1134 | F88: 2268 | G88: 2268 | H88: 1134 | I88: 1134 | J88: 2268 | K88: 1134 | L88: 1134 | M88: 2268 | N88: 2268 | O88: 1134 | P88: 2268 | Q88: 0 | R88: 1134 | S88: 1134 | T88: 1134 | U88: 1134 | V88: 1134 | AG88: VSP: KRV=1 | AH88: =IF(AH83>AH87,AH87,ROUNDDOWN(AH83,0)) -> 1134
A90: UMVSP | AG90: UMVSP
A91: VSPVOR | B91: =IF(B11>4,0,ROUNDDOWN(B84-(B55*0.16),2)) -> -13252 | D91: =IF(D11>4,0,ROUNDDOWN(D84-(D55*0.16),2)) -> -4452.8 | E91: -10948 | F91: -4836.8 | G91: -6372.8 | H91: -9440.8 | I91: 1791.2 | J91: -420.8 | K91: -2720.8 | L91: =IF(L11>4,0,ROUNDDOWN(L84-(L55*0.16),2)) -> -6080.8 | M91: -3012.8 | N91: -420.8 | O91: -3460 | P91: -2504 | Q91: 0 | R91: -6560.8 | S91: -3488.8 | T91: -3460 | U91: 1983.2 | V91: 2012 | AG91: VSPVOR | AH91: =IF(AH11>4,0,ROUNDDOWN(AH84-(AH55*0.16),2)) -> -8864.8
A92: VSPVOR | B92: =IF(B91<0,0,B91) -> 0 | D92: =IF(D91<0,0,D91) -> 0 | E92: 0 | F92: 0 | G92: 0 | H92: 0 | I92: 1791.2 | J92: 0 | K92: 0 | L92: 0 | M92: 0 | N92: 0 | O92: 0 | P92: 0 | Q92: 0 | R92: 0 | S92: 0 | T92: 0 | U92: 1983.2 | V92: 2012 | AG92: VSPVOR | AH92: =IF(AH91<0,0,AH91) -> 0
A93: VSP | B93: =ROUNDDOWN(IF(B83<B92,B83,IF((B83-B92)<B85,B92+(B83-B92),IF(ROUND(((B83-B92)-B85)/2,2)<B86,B92+B85+ROUND(((B83-B92)-B85)/2,2),B92+B85+B86))),0) -> 2001 | D93: =ROUNDDOWN(IF(D83<D92,D83,IF((D83-D92)<D85,D92+(D83-D92),IF(ROUND(((D83-D92)-D85)/2,2)<D86,D92+D85+ROUND(((D83-D92)-D85)/2,2),D92+D85+D86))),0) -> 4002 | E93: 2001 | F93: 4002 | G93: 4002 | H93: 2001 | I93: 1596 | J93: 4002 | K93: 2001 | L93: 2001 | M93: 4002 | N93: 4002 | O93: 2001 | P93: 4002 | Q93: 0 | R93: 2001 | S93: 2001 | T93: 2001 | U93: 1356 | V93: 1320 | AG93: VSP | AH93: =ROUNDDOWN(IF(AH83<AH92,AH83,IF((AH83-AH92)<AH85,AH92+(AH83-AH92),IF(ROUND(((AH83-AH92)-AH85)/2,2)<AH86,AH92+AH85+ROUND(((AH83-AH92)-AH85)/2,2),AH92+AH85+AH86))),0) -> 2001
A95: VSP | B95: =IF(B6=1,MAX(B88,B80),IF(B11<5,MAX(B93,B80),B70)) -> 3256 | D95: =IF(D6=1,MAX(D88,D80),IF(D11<5,MAX(D93,D80),D70)) -> 4756 | E95: 3256 | F95: 4756 | G95: 4756 | H95: 3256 | I95: 1596 | J95: 4142 | K95: 2508 | L95: =IF(L6=1,MAX(L88,L80),IF(L11<5,MAX(L93,L80),L70)) -> 3094 | M95: 4594 | N95: 4142 | O95: 2637 | P95: 4505 | Q95: 0 | R95: 3177 | S95: 2642 | T95: 2637 | U95: 1356 | V95: 1320 | AG95: VSP | AH95: =IF(AH6=1,MAX(AH88,AH80),IF(AH11<5,MAX(AH93,AH80),AH70)) -> 3256
A96: ZVE | B96: =ROUNDDOWN(B57-B67-B95,0) -> 97788 | D96: =ROUNDDOWN(D57-D67-D95,0) -> 60342 | E96: 83388 | F96: 62760 | G96: 72432 | H96: 72660 | I96: 5428 | J96: 35846 | K96: 32716 | L96: 53130 | M96: 51594 | N96: 35846 | O96: 37207 | P96: 48503 | Q96: 39880 | R96: 56047 | S96: 36074 | T96: 37207 | U96: 4468 | V96: 4324 | AG96: ZVE | AH96: =ROUNDDOWN(AH57-AH67-AH95,0) -> 70296
A97: ZVE, X | B97: =IF(B96<1,0,ROUNDDOWN(B96/B62,0)) -> 97788 | D97: =IF(D96<1,0,ROUNDDOWN(D96/D62,0)) -> 30171 | E97: 83388 | F97: 31380 | G97: 36216 | H97: 72660 | I97: 5428 | J97: 17923 | K97: 32716 | L97: 53130 | M97: 25797 | N97: 17923 | O97: 37207 | P97: 24251 | Q97: 39880 | R97: 56047 | S97: 36074 | T97: 37207 | U97: 4468 | V97: 4324 | AG97: ZVE, X | AH97: =IF(AH96<1,0,ROUNDDOWN(AH96/AH62,0)) -> 70296
A99: UPTAB07 | AG99: UPTAB07
A100: ST | B100: 0 | D100: 0 | E100: 0 | F100: 0 | G100: 0 | H100: 0 | I100: 0 | J100: 0 | K100: 0 | L100: 0 | M100: 0 | N100: 0 | O100: 0 | P100: 0 | Q100: 0 | R100: 0 | S100: 0 | T100: 0 | U100: 0 | V100: 0 | W100: 0 | X100: 0 | Y100: 0 | Z100: 0 | AA100: 0 | AB100: 0 | AC100: 0 | AD100: 0 | AE100: 0 | AF100: 0 | AG100: ST | AH100: 0
A101: Y | B101: =IF(B11>4,0,TRUNC((B97-7664)/10000,6)) -> 9.0124 | D101: =IF(D11>4,0,TRUNC((D97-7664)/10000,6)) -> 2.2507 | E101: 7.5724 | F101: 2.3716 | G101: 2.8552 | H101: 6.4996 | I101: -0.2236 | J101: 1.0259 | K101: 2.5052 | L101: =IF(L11>4,0,TRUNC((L97-7664)/10000,6)) -> 4.5466 | M101: 1.8133 | N101: 1.0259 | O101: 2.9543 | P101: 1.6587 | Q101: 0 | R101: 4.8383 | S101: 2.841 | T101: 2.9543 | U101: -0.3196 | V101: -0.334 | AG101: Y | AH101: =IF(AH11>4,0,TRUNC((AH97-7664)/10000,6)) -> 6.2632
A102: RW | B102: =B101*883.74 -> 7964.618376 | D102: =D101*883.74 -> 1989.033618 | E102: 6692.032776 | F102: 2095.877784 | G102: 2523.254448 | H102: 5743.956504 | I102: -197.604264 | J102: 906.628866 | K102: 2213.945448 | L102: 4018.012284 | M102: 1602.485742 | N102: 906.628866 | O102: 2610.833082 | P102: 1465.859538 | Q102: 0 | R102: 4275.799242 | S102: 2510.70534 | T102: 2610.833082 | U102: -282.443304 | V102: -295.16916 | AG102: RW | AH102: =AH101*883.74 -> 5535.040368
A103: RW | B103: =IF(B11>4,0,B102+1500) -> 9464.618376 | D103: =IF(D11>4,0,D102+1500) -> 3489.033618 | E103: 8192.032776 | F103: 3595.877784 | G103: 4023.254448 | H103: 7243.956504 | I103: 1302.395736 | J103: 2406.628866 | K103: 3713.945448 | L103: 5518.012284 | M103: 3102.485742 | N103: 2406.628866 | O103: 4110.833082 | P103: 2965.859538 | Q103: 0 | R103: 5775.799242 | S103: 4010.70534 | T103: 4110.833082 | U103: 1217.556696 | V103: 1204.83084 | AG103: RW | AH103: =IF(AH11>4,0,AH102+1500) -> 7035.040368
A104: ST | B104: =ROUNDDOWN(B103*B101,0) -> 85298 | D104: =ROUNDDOWN(D103*D101,0) -> 7852 | E104: 62033 | F104: 8527 | G104: 11487 | H104: 47082 | I104: -291 | J104: 2468 | K104: 9304 | L104: 25088 | M104: 5625 | N104: 2468 | O104: 12144 | P104: 4919 | Q104: 0 | R104: 27945 | S104: 11394 | T104: 12144 | U104: -389 | V104: -402 | AG104: ST | AH104: =ROUNDDOWN(AH103*AH101,0) -> 44061
A105: Y | B105: =IF(B11>4,0,TRUNC((B97-12739)/10000,6)) -> 8.5049 | D105: =IF(D11>4,0,TRUNC((D97-12739)/10000,6)) -> 1.7432 | E105: 7.0649 | F105: 1.8641 | G105: 2.3477 | H105: 5.9921 | I105: -0.7311 | J105: 0.5184 | K105: 1.9977 | L105: =IF(L11>4,0,TRUNC((L97-12739)/10000,6)) -> 4.0391 | M105: 1.3058 | N105: 0.5184 | O105: 2.4468 | P105: 1.1512 | Q105: 0 | R105: 4.3308 | S105: 2.3335 | T105: 2.4468 | U105: -0.8271 | V105: -0.8415 | AG105: Y | AH105: =IF(AH11>4,0,TRUNC((AH97-12739)/10000,6)) -> 5.7557
A106: RW | B106: =B105*228.74 -> 1945.410826 | D106: =D105*228.74 -> 398.739568 | E106: 1616.025226 | F106: 426.394234 | G106: 537.012898 | H106: 1370.632954 | I106: -167.231814 | J106: 118.578816 | K106: 456.953898 | L106: 923.903734 | M106: 298.688692 | N106: 118.578816 | O106: 559.681032 | P106: 263.325488 | Q106: 0 | R106: 990.627192 | S106: 533.76479 | T106: 559.681032 | U106: -189.190854 | V106: -192.48471 | AG106: RW | AH106: =AH105*228.74 -> 1316.558818
A107: RW | B107: =IF(B11>4,0,B106+2397) -> 4342.410826 | D107: =IF(D11>4,0,D106+2397) -> 2795.739568 | E107: 4013.025226 | F107: 2823.394234 | G107: 2934.012898 | H107: 3767.632954 | I107: 2229.768186 | J107: 2515.578816 | K107: 2853.953898 | L107: 3320.903734 | M107: 2695.688692 | N107: 2515.578816 | O107: 2956.681032 | P107: 2660.325488 | Q107: 0 | R107: 3387.627192 | S107: 2930.76479 | T107: 2956.681032 | U107: 2207.809146 | V107: 2204.51529 | AG107: RW | AH107: =IF(AH11>4,0,AH106+2397) -> 3713.558818
A108: RW | B108: =B107*B105 -> 36931.76983 | D108: =D107*D105 -> 4873.533215 | E108: 28351.62192 | F108: 5263.089192 | G108: 6888.182081 | H108: 22576.03342 | I108: -1630.183521 | J108: 1304.076058 | K108: 5701.343702 | L108: 13413.46227 | M108: 3520.030294 | N108: 1304.076058 | O108: 7234.407149 | P108: 3062.566702 | Q108: 0 | R108: 14671.13584 | S108: 6838.939637 | T108: 7234.407149 | U108: -1826.078945 | V108: -1855.099617 | AG108: RW | AH108: =AH107*AH105 -> 21374.13049
A109: ST | B109: =IF(B11>4,0,ROUNDDOWN(B108+989,0)) -> 37920 | D109: =IF(D11>4,0,ROUNDDOWN(D108+989,0)) -> 5862 | E109: 29340 | F109: 6252 | G109: 7877 | H109: 23565 | I109: -641 | J109: 2293 | K109: 6690 | L109: 14402 | M109: 4509 | N109: 2293 | O109: 8223 | P109: 4051 | Q109: 0 | R109: 15660 | S109: 7827 | T109: 8223 | U109: -837 | V109: -866 | AG109: ST | AH109: =IF(AH11>4,0,ROUNDDOWN(AH108+989,0)) -> 22363
A110: ST | B110: =IF(B11>4,0,ROUNDDOWN((B97*0.42)-7914,0)) -> 33156 | D110: =IF(D11>4,0,ROUNDDOWN((D97*0.42)-7914,0)) -> 4757 | E110: 27108 | F110: 5265 | G110: 7296 | H110: 22603 | I110: -5634 | J110: -386 | K110: 5826 | L110: =IF(L11>4,0,ROUNDDOWN((L97*0.42)-7914,0)) -> 14400 | M110: 2920 | N110: -386 | O110: 7712 | P110: 2271 | Q110: 0 | R110: 15625 | S110: 7237 | T110: 7712 | U110: -6037 | V110: -6097 | AG110: ST | AH110: =IF(AH11>4,0,ROUNDDOWN((AH97*0.42)-7914,0)) -> 21610
A111: ST | B111: =IF(B11>4,0,ROUNDDOWN((B97*0.45)-15414,0)) -> 28590 | D111: =IF(D11>4,0,ROUNDDOWN((D97*0.45)-15414,0)) -> -1837 | E111: 22110 | F111: -1293 | G111: 883 | H111: 17283 | I111: -12971 | J111: -7348 | K111: -691 | L111: =IF(L11>4,0,ROUNDDOWN((L97*0.45)-15414,0)) -> 8494 | M111: -3805 | N111: -7348 | O111: 1329 | P111: -4501 | Q111: 0 | R111: 9807 | S111: 819 | T111: 1329 | U111: -13403 | V111: -13468 | AG111: ST | AH111: =IF(AH11>4,0,ROUNDDOWN((AH97*0.45)-15414,0)) -> 16219
A112: ST | B112: =IF(B97<7665,B100,IF(B97<12740,B104*B62,IF(B97<52152,B109*B62,IF(B97<250001,B110*B62,B111*B62)))) -> 33156 | D112: =IF(D97<7665,D100,IF(D97<12740,D104*D62,IF(D97<52152,D109*D62,IF(D97<250001,D110*D62,D111*D62)))) -> 11724 | E112: 27108 | F112: 12504 | G112: 15754 | H112: 22603 | I112: 0 | J112: 4586 | K112: 6690 | L112: 14400 | M112: 9018 | N112: 4586 | O112: 8223 | P112: 8102 | Q112: 0 | R112: 15625 | S112: 7827 | T112: 8223 | U112: 0 | V112: 0 | AG112: ST | AH112: =IF(AH97<7665,AH100,IF(AH97<12740,AH104*AH62,IF(AH97<52152,AH109*AH62,IF(AH97<250001,AH110*AH62,AH111*AH62)))) -> 21610
A114: MST5-6 | AG114: MST5-6
A115: ZZX | B115: =IF(B11>4,B97,0) -> 0 | D115: =IF(D11>4,D97,0) -> 0 | E115: 0 | F115: 0 | G115: 0 | H115: 0 | I115: 0 | J115: 0 | K115: 0 | L115: =IF(L11>4,L97,0) -> 0 | M115: 0 | N115: 0 | O115: 0 | P115: 0 | Q115: 39880 | R115: 0 | S115: 0 | T115: 0 | U115: 0 | V115: 0 | W115: 0 | X115: 0 | Y115: 0 | Z115: 0 | AA115: 0 | AB115: 0 | AC115: 0 | AD115: 0 | AE115: 0 | AF115: 0 | AG115: ZZX | AH115: =IF(AH11>4,AH97,0) -> 0
A116: ZX | B116: =IF(B115>25812,25812,B115) -> 0 | D116: =IF(D115>25812,25812,D115) -> 0 | E116: 0 | F116: 0 | G116: 0 | H116: 0 | I116: 0 | J116: 0 | K116: 0 | L116: 0 | M116: 0 | N116: 0 | O116: 0 | P116: 0 | Q116: 25812 | R116: 0 | S116: 0 | T116: 0 | U116: 0 | V116: 0 | W116: 0 | X116: 0 | Y116: 0 | Z116: 0 | AA116: 0 | AB116: 0 | AC116: 0 | AD116: 0 | AE116: 0 | AF116: 0 | AG116: ZX | AH116: =IF(AH115>25812,25812,AH115) -> 0
A118: UP5-6 | AG118: UP5-6
A119: X | B119: =B116*1.25 -> 0 | D119: =D116*1.25 -> 0 | E119: 0 | F119: 0 | G119: 0 | H119: 0 | I119: 0 | J119: 0 | K119: 0 | L119: =L116*1.25 -> 0 | M119: 0 | N119: 0 | O119: 0 | P119: 0 | Q119: 32265 | R119: 0 | S119: 0 | T119: 0 | U119: 0 | V119: 0 | W119: 0 | X119: 0 | Y119: 0 | Z119: 0 | AA119: 0 | AB119: 0 | AC119: 0 | AD119: 0 | AE119: 0 | AF119: 0 | AG119: X | AH119: =AH116*1.25 -> 0
A121: UPTAB07 | AG121: UPTAB07
A122: ST | B122: 0 | D122: 0 | E122: 0 | F122: 0 | G122: 0 | H122: 0 | I122: 0 | J122: 0 | K122: 0 | L122: 0 | M122: 0 | N122: 0 | O122: 0 | P122: 0 | Q122: 0 | R122: 0 | S122: 0 | T122: 0 | U122: 0 | V122: 0 | W122: 0 | X122: 0 | Y122: 0 | Z122: 0 | AA122: 0 | AB122: 0 | AC122: 0 | AD122: 0 | AE122: 0 | AF122: 0 | AG122: ST | AH122: 0
A123: Y | B123: =TRUNC((B119-7664)/10000,6) -> -0.7664 | D123: =TRUNC((D119-7664)/10000,6) -> -0.7664 | E123: -0.7664 | F123: -0.7664 | G123: -0.7664 | H123: -0.7664 | I123: -0.7664 | J123: -0.7664 | K123: -0.7664 | L123: =TRUNC((L119-7664)/10000,6) -> -0.7664 | M123: -0.7664 | N123: -0.7664 | O123: -0.7664 | P123: -0.7664 | Q123: 2.4601 | R123: -0.7664 | S123: -0.7664 | T123: -0.7664 | U123: -0.7664 | V123: -0.7664 | W123: -0.7664 | X123: -0.7664 | Y123: -0.7664 | Z123: -0.7664 | AA123: -0.7664 | AB123: -0.7664 | AC123: -0.7664 | AD123: -0.7664 | AE123: -0.7664 | AF123: -0.7664 | AG123: Y | AH123: =TRUNC((AH119-7664)/10000,6) -> -0.7664
A124: RW | B124: =B123*883.74 -> -677.298336 | D124: =D123*883.74 -> -677.298336 | E124: -677.298336 | F124: -677.298336 | G124: -677.298336 | H124: -677.298336 | I124: -677.298336 | J124: -677.298336 | K124: -677.298336 | L124: -677.298336 | M124: -677.298336 | N124: -677.298336 | O124: -677.298336 | P124: -677.298336 | Q124: 2174.088774 | R124: -677.298336 | S124: -677.298336 | T124: -677.298336 | U124: -677.298336 | V124: -677.298336 | W124: -677.298336 | X124: -677.298336 | Y124: -677.298336 | Z124: -677.298336 | AA124: -677.298336 | AB124: -677.298336 | AC124: -677.298336 | AD124: -677.298336 | AE124: -677.298336 | AF124: -677.298336 | AG124: RW | AH124: =AH123*883.74 -> -677.298336
A125: RW | B125: =B124+1500 -> 822.701664 | D125: =D124+1500 -> 822.701664 | E125: 822.701664 | F125: 822.701664 | G125: 822.701664 | H125: 822.701664 | I125: 822.701664 | J125: 822.701664 | K125: 822.701664 | L125: 822.701664 | M125: 822.701664 | N125: 822.701664 | O125: 822.701664 | P125: 822.701664 | Q125: 3674.088774 | R125: 822.701664 | S125: 822.701664 | T125: 822.701664 | U125: 822.701664 | V125: 822.701664 | W125: 822.701664 | X125: 822.701664 | Y125: 822.701664 | Z125: 822.701664 | AA125: 822.701664 | AB125: 822.701664 | AC125: 822.701664 | AD125: 822.701664 | AE125: 822.701664 | AF125: 822.701664 | AG125: RW | AH125: =AH124+1500 -> 822.701664
A126: ST | B126: =ROUNDDOWN(B125*B123,0) -> -630 | D126: =ROUNDDOWN(D125*D123,0) -> -630 | E126: -630 | F126: -630 | G126: -630 | H126: -630 | I126: -630 | J126: -630 | K126: -630 | L126: -630 | M126: -630 | N126: -630 | O126: -630 | P126: -630 | Q126: 9038 | R126: -630 | S126: -630 | T126: -630 | U126: -630 | V126: -630 | W126: -630 | X126: -630 | Y126: -630 | Z126: -630 | AA126: -630 | AB126: -630 | AC126: -630 | AD126: -630 | AE126: -630 | AF126: -630 | AG126: ST | AH126: =ROUNDDOWN(AH125*AH123,0) -> -630
A127: Y | B127: =TRUNC((B119-12739)/10000,6) -> -1.2739 | D127: =TRUNC((D119-12739)/10000,6) -> -1.2739 | E127: -1.2739 | F127: -1.2739 | G127: -1.2739 | H127: -1.2739 | I127: -1.2739 | J127: -1.2739 | K127: -1.2739 | L127: =TRUNC((L119-12739)/10000,6) -> -1.2739 | M127: -1.2739 | N127: -1.2739 | O127: -1.2739 | P127: -1.2739 | Q127: 1.9526 | R127: -1.2739 | S127: -1.2739 | T127: -1.2739 | U127: -1.2739 | V127: -1.2739 | W127: -1.2739 | X127: -1.2739 | Y127: -1.2739 | Z127: -1.2739 | AA127: -1.2739 | AB127: -1.2739 | AC127: -1.2739 | AD127: -1.2739 | AE127: -1.2739 | AF127: -1.2739 | AG127: Y | AH127: =TRUNC((AH119-12739)/10000,6) -> -1.2739
A128: RW | B128: =B127*228.74 -> -291.391886 | D128: =D127*228.74 -> -291.391886 | E128: -291.391886 | F128: -291.391886 | G128: -291.391886 | H128: -291.391886 | I128: -291.391886 | J128: -291.391886 | K128: -291.391886 | L128: -291.391886 | M128: -291.391886 | N128: -291.391886 | O128: -291.391886 | P128: -291.391886 | Q128: 446.637724 | R128: -291.391886 | S128: -291.391886 | T128: -291.391886 | U128: -291.391886 | V128: -291.391886 | W128: -291.391886 | X128: -291.391886 | Y128: -291.391886 | Z128: -291.391886 | AA128: -291.391886 | AB128: -291.391886 | AC128: -291.391886 | AD128: -291.391886 | AE128: -291.391886 | AF128: -291.391886 | AG128: RW | AH128: =AH127*228.74 -> -291.391886
A129: RW | B129: =B128+2397 -> 2105.608114 | D129: =D128+2397 -> 2105.608114 | E129: 2105.608114 | F129: 2105.608114 | G129: 2105.608114 | H129: 2105.608114 | I129: 2105.608114 | J129: 2105.608114 | K129: 2105.608114 | L129: 2105.608114 | M129: 2105.608114 | N129: 2105.608114 | O129: 2105.608114 | P129: 2105.608114 | Q129: 2843.637724 | R129: 2105.608114 | S129: 2105.608114 | T129: 2105.608114 | U129: 2105.608114 | V129: 2105.608114 | W129: 2105.608114 | X129: 2105.608114 | Y129: 2105.608114 | Z129: 2105.608114 | AA129: 2105.608114 | AB129: 2105.608114 | AC129: 2105.608114 | AD129: 2105.608114 | AE129: 2105.608114 | AF129: 2105.608114 | AG129: RW | AH129: =AH128+2397 -> 2105.608114
A130: RW | B130: =B129*B127 -> -2682.334176 | D130: =D129*D127 -> -2682.334176 | E130: -2682.334176 | F130: -2682.334176 | G130: -2682.334176 | H130: -2682.334176 | I130: -2682.334176 | J130: -2682.334176 | K130: -2682.334176 | L130: -2682.334176 | M130: -2682.334176 | N130: -2682.334176 | O130: -2682.334176 | P130: -2682.334176 | Q130: 5552.48702 | R130: -2682.334176 | S130: -2682.334176 | T130: -2682.334176 | U130: -2682.334176 | V130: -2682.334176 | W130: -2682.334176 | X130: -2682.334176 | Y130: -2682.334176 | Z130: -2682.334176 | AA130: -2682.334176 | AB130: -2682.334176 | AC130: -2682.334176 | AD130: -2682.334176 | AE130: -2682.334176 | AF130: -2682.334176 | AG130: RW | AH130: =AH129*AH127 -> -2682.334176
A131: ST | B131: =ROUNDDOWN(B130+989,0) -> -1693 | D131: =ROUNDDOWN(D130+989,0) -> -1693 | E131: -1693 | F131: -1693 | G131: -1693 | H131: -1693 | I131: -1693 | J131: -1693 | K131: -1693 | L131: -1693 | M131: -1693 | N131: -1693 | O131: -1693 | P131: -1693 | Q131: 6541 | R131: -1693 | S131: -1693 | T131: -1693 | U131: -1693 | V131: -1693 | W131: -1693 | X131: -1693 | Y131: -1693 | Z131: -1693 | AA131: -1693 | AB131: -1693 | AC131: -1693 | AD131: -1693 | AE131: -1693 | AF131: -1693 | AG131: ST | AH131: =ROUNDDOWN(AH130+989,0) -> -1693
A132: ST | B132: =ROUNDDOWN((B119*0.42)-7914,0) -> -7914 | D132: =ROUNDDOWN((D119*0.42)-7914,0) -> -7914 | E132: -7914 | F132: -7914 | G132: -7914 | H132: -7914 | I132: -7914 | J132: -7914 | K132: -7914 | L132: =ROUNDDOWN((L119*0.42)-7914,0) -> -7914 | M132: -7914 | N132: -7914 | O132: -7914 | P132: -7914 | Q132: 5637 | R132: -7914 | S132: -7914 | T132: -7914 | U132: -7914 | V132: -7914 | W132: -7914 | X132: -7914 | Y132: -7914 | Z132: -7914 | AA132: -7914 | AB132: -7914 | AC132: -7914 | AD132: -7914 | AE132: -7914 | AF132: -7914 | AG132: ST | AH132: =ROUNDDOWN((AH119*0.42)-7914,0) -> -7914
A133: ST | B133: =ROUNDDOWN((B119*0.45)-15414,0) -> -15414 | D133: =ROUNDDOWN((D119*0.45)-15414,0) -> -15414 | E133: -15414 | F133: -15414 | G133: -15414 | H133: -15414 | I133: -15414 | J133: -15414 | K133: -15414 | L133: =ROUNDDOWN((L119*0.45)-15414,0) -> -15414 | M133: -15414 | N133: -15414 | O133: -15414 | P133: -15414 | Q133: -894 | R133: -15414 | S133: -15414 | T133: -15414 | U133: -15414 | V133: -15414 | W133: -15414 | X133: -15414 | Y133: -15414 | Z133: -15414 | AA133: -15414 | AB133: -15414 | AC133: -15414 | AD133: -15414 | AE133: -15414 | AF133: -15414 | AG133: ST | AH133: =ROUNDDOWN((AH119*0.45)-15414,0) -> -15414
A134: ST | B134: =IF(B119<7665,B122,IF(B119<12740,B126*B62,IF(B119<52152,B131*B62,IF(B119<250001,B132*B62,B133*B62)))) -> 0 | D134: =IF(D119<7665,D122,IF(D119<12740,D126*D62,IF(D119<52152,D131*D62,IF(D119<250001,D132*D62,D133*D62)))) -> 0 | E134: 0 | F134: 0 | G134: 0 | H134: 0 | I134: 0 | J134: 0 | K134: 0 | L134: 0 | M134: 0 | N134: 0 | O134: 0 | P134: 0 | Q134: 6541 | R134: 0 | S134: 0 | T134: 0 | U134: 0 | V134: 0 | W134: 0 | X134: 0 | Y134: 0 | Z134: 0 | AA134: 0 | AB134: 0 | AC134: 0 | AD134: 0 | AE134: 0 | AF134: 0 | AG134: ST | AH134: =IF(AH119<7665,AH122,IF(AH119<12740,AH126*AH62,IF(AH119<52152,AH131*AH62,IF(AH119<250001,AH132*AH62,AH133*AH62)))) -> 0
A135: ST1 | B135: =B134 -> 0 | D135: =D134 -> 0 | E135: 0 | F135: 0 | G135: 0 | H135: 0 | I135: 0 | J135: 0 | K135: 0 | L135: 0 | M135: 0 | N135: 0 | O135: 0 | P135: 0 | Q135: 6541 | R135: 0 | S135: 0 | T135: 0 | U135: 0 | V135: 0 | W135: 0 | X135: 0 | Y135: 0 | Z135: 0 | AA135: 0 | AB135: 0 | AC135: 0 | AD135: 0 | AE135: 0 | AF135: 0 | AG135: ST1 | AH135: =AH134 -> 0
A136: X | B136: =B116*0.75 -> 0 | D136: =D116*0.75 -> 0 | E136: 0 | F136: 0 | G136: 0 | H136: 0 | I136: 0 | J136: 0 | K136: 0 | L136: =L116*0.75 -> 0 | M136: 0 | N136: 0 | O136: 0 | P136: 0 | Q136: 19359 | R136: 0 | S136: 0 | T136: 0 | U136: 0 | V136: 0 | W136: 0 | X136: 0 | Y136: 0 | Z136: 0 | AA136: 0 | AB136: 0 | AC136: 0 | AD136: 0 | AE136: 0 | AF136: 0 | AG136: X | AH136: =AH116*0.75 -> 0
A138: UPTAB07 | AG138: UPTAB07
A139: ST | B139: 0 | D139: 0 | E139: 0 | F139: 0 | G139: 0 | H139: 0 | I139: 0 | J139: 0 | K139: 0 | L139: 0 | M139: 0 | N139: 0 | O139: 0 | P139: 0 | Q139: 0 | R139: 0 | S139: 0 | T139: 0 | U139: 0 | V139: 0 | W139: 0 | X139: 0 | Y139: 0 | Z139: 0 | AA139: 0 | AB139: 0 | AC139: 0 | AD139: 0 | AE139: 0 | AF139: 0 | AG139: ST | AH139: 0
A140: Y | B140: =TRUNC((B136-7664)/10000,6) -> -0.7664 | D140: =TRUNC((D136-7664)/10000,6) -> -0.7664 | E140: -0.7664 | F140: -0.7664 | G140: -0.7664 | H140: -0.7664 | I140: -0.7664 | J140: -0.7664 | K140: -0.7664 | L140: =TRUNC((L136-7664)/10000,6) -> -0.7664 | M140: -0.7664 | N140: -0.7664 | O140: -0.7664 | P140: -0.7664 | Q140: 1.1695 | R140: -0.7664 | S140: -0.7664 | T140: -0.7664 | U140: -0.7664 | V140: -0.7664 | W140: -0.7664 | X140: -0.7664 | Y140: -0.7664 | Z140: -0.7664 | AA140: -0.7664 | AB140: -0.7664 | AC140: -0.7664 | AD140: -0.7664 | AE140: -0.7664 | AF140: -0.7664 | AG140: Y | AH140: =TRUNC((AH136-7664)/10000,6) -> -0.7664
A141: RW | B141: =B140*883.74 -> -677.298336 | D141: =D140*883.74 -> -677.298336 | E141: -677.298336 | F141: -677.298336 | G141: -677.298336 | H141: -677.298336 | I141: -677.298336 | J141: -677.298336 | K141: -677.298336 | L141: -677.298336 | M141: -677.298336 | N141: -677.298336 | O141: -677.298336 | P141: -677.298336 | Q141: 1033.53393 | R141: -677.298336 | S141: -677.298336 | T141: -677.298336 | U141: -677.298336 | V141: -677.298336 | W141: -677.298336 | X141: -677.298336 | Y141: -677.298336 | Z141: -677.298336 | AA141: -677.298336 | AB141: -677.298336 | AC141: -677.298336 | AD141: -677.298336 | AE141: -677.298336 | AF141: -677.298336 | AG141: RW | AH141: =AH140*883.74 -> -677.298336
A142: RW | B142: =B141+1500 -> 822.701664 | D142: =D141+1500 -> 822.701664 | E142: 822.701664 | F142: 822.701664 | G142: 822.701664 | H142: 822.701664 | I142: 822.701664 | J142: 822.701664 | K142: 822.701664 | L142: 822.701664 | M142: 822.701664 | N142: 822.701664 | O142: 822.701664 | P142: 822.701664 | Q142: 2533.53393 | R142: 822.701664 | S142: 822.701664 | T142: 822.701664 | U142: 822.701664 | V142: 822.701664 | W142: 822.701664 | X142: 822.701664 | Y142: 822.701664 | Z142: 822.701664 | AA142: 822.701664 | AB142: 822.701664 | AC142: 822.701664 | AD142: 822.701664 | AE142: 822.701664 | AF142: 822.701664 | AG142: RW | AH142: =AH141+1500 -> 822.701664
A143: ST | B143: =ROUNDDOWN(B142*B140,0) -> -630 | D143: =ROUNDDOWN(D142*D140,0) -> -630 | E143: -630 | F143: -630 | G143: -630 | H143: -630 | I143: -630 | J143: -630 | K143: -630 | L143: -630 | M143: -630 | N143: -630 | O143: -630 | P143: -630 | Q143: 2962 | R143: -630 | S143: -630 | T143: -630 | U143: -630 | V143: -630 | W143: -630 | X143: -630 | Y143: -630 | Z143: -630 | AA143: -630 | AB143: -630 | AC143: -630 | AD143: -630 | AE143: -630 | AF143: -630 | AG143: ST | AH143: =ROUNDDOWN(AH142*AH140,0) -> -630
A144: Y | B144: =TRUNC((B136-12739)/10000,6) -> -1.2739 | D144: =TRUNC((D136-12739)/10000,6) -> -1.2739 | E144: -1.2739 | F144: -1.2739 | G144: -1.2739 | H144: -1.2739 | I144: -1.2739 | J144: -1.2739 | K144: -1.2739 | L144: =TRUNC((L136-12739)/10000,6) -> -1.2739 | M144: -1.2739 | N144: -1.2739 | O144: -1.2739 | P144: -1.2739 | Q144: 0.662 | R144: -1.2739 | S144: -1.2739 | T144: -1.2739 | U144: -1.2739 | V144: -1.2739 | W144: -1.2739 | X144: -1.2739 | Y144: -1.2739 | Z144: -1.2739 | AA144: -1.2739 | AB144: -1.2739 | AC144: -1.2739 | AD144: -1.2739 | AE144: -1.2739 | AF144: -1.2739 | AG144: Y | AH144: =TRUNC((AH136-12739)/10000,6) -> -1.2739
A145: RW | B145: =B144*228.74 -> -291.391886 | D145: =D144*228.74 -> -291.391886 | E145: -291.391886 | F145: -291.391886 | G145: -291.391886 | H145: -291.391886 | I145: -291.391886 | J145: -291.391886 | K145: -291.391886 | L145: -291.391886 | M145: -291.391886 | N145: -291.391886 | O145: -291.391886 | P145: -291.391886 | Q145: 151.42588 | R145: -291.391886 | S145: -291.391886 | T145: -291.391886 | U145: -291.391886 | V145: -291.391886 | W145: -291.391886 | X145: -291.391886 | Y145: -291.391886 | Z145: -291.391886 | AA145: -291.391886 | AB145: -291.391886 | AC145: -291.391886 | AD145: -291.391886 | AE145: -291.391886 | AF145: -291.391886 | AG145: RW | AH145: =AH144*228.74 -> -291.391886
A146: RW | B146: =B145+2397 -> 2105.608114 | D146: =D145+2397 -> 2105.608114 | E146: 2105.608114 | F146: 2105.608114 | G146: 2105.608114 | H146: 2105.608114 | I146: 2105.608114 | J146: 2105.608114 | K146: 2105.608114 | L146: 2105.608114 | M146: 2105.608114 | N146: 2105.608114 | O146: 2105.608114 | P146: 2105.608114 | Q146: 2548.42588 | R146: 2105.608114 | S146: 2105.608114 | T146: 2105.608114 | U146: 2105.608114 | V146: 2105.608114 | W146: 2105.608114 | X146: 2105.608114 | Y146: 2105.608114 | Z146: 2105.608114 | AA146: 2105.608114 | AB146: 2105.608114 | AC146: 2105.608114 | AD146: 2105.608114 | AE146: 2105.608114 | AF146: 2105.608114 | AG146: RW | AH146: =AH145+2397 -> 2105.608114
A147: RW | B147: =B146*B144 -> -2682.334176 | D147: =D146*D144 -> -2682.334176 | E147: -2682.334176 | F147: -2682.334176 | G147: -2682.334176 | H147: -2682.334176 | I147: -2682.334176 | J147: -2682.334176 | K147: -2682.334176 | L147: -2682.334176 | M147: -2682.334176 | N147: -2682.334176 | O147: -2682.334176 | P147: -2682.334176 | Q147: 1687.057933 | R147: -2682.334176 | S147: -2682.334176 | T147: -2682.334176 | U147: -2682.334176 | V147: -2682.334176 | W147: -2682.334176 | X147: -2682.334176 | Y147: -2682.334176 | Z147: -2682.334176 | AA147: -2682.334176 | AB147: -2682.334176 | AC147: -2682.334176 | AD147: -2682.334176 | AE147: -2682.334176 | AF147: -2682.334176 | AG147: RW | AH147: =AH146*AH144 -> -2682.334176
A148: ST | B148: =ROUNDDOWN(B147+989,0) -> -1693 | D148: =ROUNDDOWN(D147+989,0) -> -1693 | E148: -1693 | F148: -1693 | G148: -1693 | H148: -1693 | I148: -1693 | J148: -1693 | K148: -1693 | L148: -1693 | M148: -1693 | N148: -1693 | O148: -1693 | P148: -1693 | Q148: 2676 | R148: -1693 | S148: -1693 | T148: -1693 | U148: -1693 | V148: -1693 | W148: -1693 | X148: -1693 | Y148: -1693 | Z148: -1693 | AA148: -1693 | AB148: -1693 | AC148: -1693 | AD148: -1693 | AE148: -1693 | AF148: -1693 | AG148: ST | AH148: =ROUNDDOWN(AH147+989,0) -> -1693
A149: ST | B149: =ROUNDDOWN((B136*0.42)-7914,0) -> -7914 | D149: =ROUNDDOWN((D136*0.42)-7914,0) -> -7914 | E149: -7914 | F149: -7914 | G149: -7914 | H149: -7914 | I149: -7914 | J149: -7914 | K149: -7914 | L149: =ROUNDDOWN((L136*0.42)-7914,0) -> -7914 | M149: -7914 | N149: -7914 | O149: -7914 | P149: -7914 | Q149: 216 | R149: -7914 | S149: -7914 | T149: -7914 | U149: -7914 | V149: -7914 | W149: -7914 | X149: -7914 | Y149: -7914 | Z149: -7914 | AA149: -7914 | AB149: -7914 | AC149: -7914 | AD149: -7914 | AE149: -7914 | AF149: -7914 | AG149: ST | AH149: =ROUNDDOWN((AH136*0.42)-7914,0) -> -7914
A150: ST | B150: =ROUNDDOWN((B136*0.45)-15414,0) -> -15414 | D150: =ROUNDDOWN((D136*0.45)-15414,0) -> -15414 | E150: -15414 | F150: -15414 | G150: -15414 | H150: -15414 | I150: -15414 | J150: -15414 | K150: -15414 | L150: =ROUNDDOWN((L136*0.45)-15414,0) -> -15414 | M150: -15414 | N150: -15414 | O150: -15414 | P150: -15414 | Q150: -6702 | R150: -15414 | S150: -15414 | T150: -15414 | U150: -15414 | V150: -15414 | W150: -15414 | X150: -15414 | Y150: -15414 | Z150: -15414 | AA150: -15414 | AB150: -15414 | AC150: -15414 | AD150: -15414 | AE150: -15414 | AF150: -15414 | AG150: ST | AH150: =ROUNDDOWN((AH136*0.45)-15414,0) -> -15414
A151: ST | B151: =IF(B136<7665,B139,IF(B136<12740,B143*B62,IF(B136<52152,B148*B62,IF(B136<250001,B149*B62,B150*B62)))) -> 0 | D151: =IF(D136<7665,D139,IF(D136<12740,D143*D62,IF(D136<52152,D148*D62,IF(D136<250001,D149*D62,D150*D62)))) -> 0 | E151: 0 | F151: 0 | G151: 0 | H151: 0 | I151: 0 | J151: 0 | K151: 0 | L151: 0 | M151: 0 | N151: 0 | O151: 0 | P151: 0 | Q151: 2676 | R151: 0 | S151: 0 | T151: 0 | U151: 0 | V151: 0 | W151: 0 | X151: 0 | Y151: 0 | Z151: 0 | AA151: 0 | AB151: 0 | AC151: 0 | AD151: 0 | AE151: 0 | AF151: 0 | AG151: ST | AH151: =IF(AH136<7665,AH139,IF(AH136<12740,AH143*AH62,IF(AH136<52152,AH148*AH62,IF(AH136<250001,AH149*AH62,AH150*AH62)))) -> 0
A152: ST2 | B152: =B151 -> 0 | D152: =D151 -> 0 | E152: 0 | F152: 0 | G152: 0 | H152: 0 | I152: 0 | J152: 0 | K152: 0 | L152: 0 | M152: 0 | N152: 0 | O152: 0 | P152: 0 | Q152: 2676 | R152: 0 | S152: 0 | T152: 0 | U152: 0 | V152: 0 | W152: 0 | X152: 0 | Y152: 0 | Z152: 0 | AA152: 0 | AB152: 0 | AC152: 0 | AD152: 0 | AE152: 0 | AF152: 0 | AG152: ST2 | AH152: =AH151 -> 0
A153: DIFF | B153: =(B135-B152)*2 -> 0 | D153: =(D135-D152)*2 -> 0 | E153: 0 | F153: 0 | G153: 0 | H153: 0 | I153: 0 | J153: 0 | K153: 0 | L153: 0 | M153: 0 | N153: 0 | O153: 0 | P153: 0 | Q153: 7730 | R153: 0 | S153: 0 | T153: 0 | U153: 0 | V153: 0 | W153: 0 | X153: 0 | Y153: 0 | Z153: 0 | AA153: 0 | AB153: 0 | AC153: 0 | AD153: 0 | AE153: 0 | AF153: 0 | AG153: DIFF | AH153: =(AH135-AH152)*2 -> 0
A154: MIST | B154: =ROUNDDOWN(B116*0.15,0) -> 0 | D154: =ROUNDDOWN(D116*0.15,0) -> 0 | E154: 0 | F154: 0 | G154: 0 | H154: 0 | I154: 0 | J154: 0 | K154: 0 | L154: =ROUNDDOWN(L116*0.15,0) -> 0 | M154: 0 | N154: 0 | O154: 0 | P154: 0 | Q154: 3871 | R154: 0 | S154: 0 | T154: 0 | U154: 0 | V154: 0 | W154: 0 | X154: 0 | Y154: 0 | Z154: 0 | AA154: 0 | AB154: 0 | AC154: 0 | AD154: 0 | AE154: 0 | AF154: 0 | AG154: MIST | AH154: =ROUNDDOWN(AH116*0.15,0) -> 0
A155: ST | B155: =IF(B154>B153,B154,B153) -> 0 | D155: =IF(D154>D153,D154,D153) -> 0 | E155: 0 | F155: 0 | G155: 0 | H155: 0 | I155: 0 | J155: 0 | K155: 0 | L155: 0 | M155: 0 | N155: 0 | O155: 0 | P155: 0 | Q155: 7730 | R155: 0 | S155: 0 | T155: 0 | U155: 0 | V155: 0 | W155: 0 | X155: 0 | Y155: 0 | Z155: 0 | AA155: 0 | AB155: 0 | AC155: 0 | AD155: 0 | AE155: 0 | AF155: 0 | AG155: ST | AH155: =IF(AH154>AH153,AH154,AH153) -> 0
A156: ZX | B156: =IF(B115>9144,9144,B155) -> 0 | D156: =IF(D115>9144,9144,D155) -> 0 | E156: 0 | F156: 0 | G156: 0 | H156: 0 | I156: 0 | J156: 0 | K156: 0 | L156: 0 | M156: 0 | N156: 0 | O156: 0 | P156: 0 | Q156: 9144 | R156: 0 | S156: 0 | T156: 0 | U156: 0 | V156: 0 | W156: 0 | X156: 0 | Y156: 0 | Z156: 0 | AA156: 0 | AB156: 0 | AC156: 0 | AD156: 0 | AE156: 0 | AF156: 0 | AG156: ZX | AH156: =IF(AH115>9144,9144,AH155) -> 0
A157: VERGL | B157: =B155 -> 0 | D157: =D155 -> 0 | E157: 0 | F157: 0 | G157: 0 | H157: 0 | I157: 0 | J157: 0 | K157: 0 | L157: =L155 -> 0 | M157: 0 | N157: 0 | O157: 0 | P157: 0 | Q157: 7730 | R157: 0 | S157: 0 | T157: 0 | U157: 0 | V157: 0 | W157: 0 | X157: 0 | Y157: 0 | Z157: 0 | AA157: 0 | AB157: 0 | AC157: 0 | AD157: 0 | AE157: 0 | AF157: 0 | AG157: VERGL | AH157: =AH155 -> 0
A159: UP5-6 | AG159: UP5-6
A160: X | B160: =B156*1.25 -> 0 | D160: =D156*1.25 -> 0 | E160: 0 | F160: 0 | G160: 0 | H160: 0 | I160: 0 | J160: 0 | K160: 0 | L160: =L156*1.25 -> 0 | M160: 0 | N160: 0 | O160: 0 | P160: 0 | Q160: 11430 | R160: 0 | S160: 0 | T160: 0 | U160: 0 | V160: 0 | W160: 0 | X160: 0 | Y160: 0 | Z160: 0 | AA160: 0 | AB160: 0 | AC160: 0 | AD160: 0 | AE160: 0 | AF160: 0 | AG160: X | AH160: =AH156*1.25 -> 0
A162: UPTAB07 | AG162: UPTAB07
A163: ST | B163: 0 | D163: 0 | E163: 0 | F163: 0 | G163: 0 | H163: 0 | I163: 0 | J163: 0 | K163: 0 | L163: 0 | M163: 0 | N163: 0 | O163: 0 | P163: 0 | Q163: 0 | R163: 0 | S163: 0 | T163: 0 | U163: 0 | V163: 0 | W163: 0 | X163: 0 | Y163: 0 | Z163: 0 | AA163: 0 | AB163: 0 | AC163: 0 | AD163: 0 | AE163: 0 | AF163: 0 | AG163: ST | AH163: 0
A164: Y | B164: =TRUNC((B160-7664)/10000,6) -> -0.7664 | D164: =TRUNC((D160-7664)/10000,6) -> -0.7664 | E164: -0.7664 | F164: -0.7664 | G164: -0.7664 | H164: -0.7664 | I164: -0.7664 | J164: -0.7664 | K164: -0.7664 | L164: =TRUNC((L160-7664)/10000,6) -> -0.7664 | M164: -0.7664 | N164: -0.7664 | O164: -0.7664 | P164: -0.7664 | Q164: 0.3766 | R164: -0.7664 | S164: -0.7664 | T164: -0.7664 | U164: -0.7664 | V164: -0.7664 | W164: -0.7664 | X164: -0.7664 | Y164: -0.7664 | Z164: -0.7664 | AA164: -0.7664 | AB164: -0.7664 | AC164: -0.7664 | AD164: -0.7664 | AE164: -0.7664 | AF164: -0.7664 | AG164: Y | AH164: =TRUNC((AH160-7664)/10000,6) -> -0.7664
A165: RW | B165: =B164*883.74 -> -677.298336 | D165: =D164*883.74 -> -677.298336 | E165: -677.298336 | F165: -677.298336 | G165: -677.298336 | H165: -677.298336 | I165: -677.298336 | J165: -677.298336 | K165: -677.298336 | L165: -677.298336 | M165: -677.298336 | N165: -677.298336 | O165: -677.298336 | P165: -677.298336 | Q165: 332.816484 | R165: -677.298336 | S165: -677.298336 | T165: -677.298336 | U165: -677.298336 | V165: -677.298336 | W165: -677.298336 | X165: -677.298336 | Y165: -677.298336 | Z165: -677.298336 | AA165: -677.298336 | AB165: -677.298336 | AC165: -677.298336 | AD165: -677.298336 | AE165: -677.298336 | AF165: -677.298336 | AG165: RW | AH165: =AH164*883.74 -> -677.298336
A166: RW | B166: =B165+1500 -> 822.701664 | D166: =D165+1500 -> 822.701664 | E166: 822.701664 | F166: 822.701664 | G166: 822.701664 | H166: 822.701664 | I166: 822.701664 | J166: 822.701664 | K166: 822.701664 | L166: 822.701664 | M166: 822.701664 | N166: 822.701664 | O166: 822.701664 | P166: 822.701664 | Q166: 1832.816484 | R166: 822.701664 | S166: 822.701664 | T166: 822.701664 | U166: 822.701664 | V166: 822.701664 | W166: 822.701664 | X166: 822.701664 | Y166: 822.701664 | Z166: 822.701664 | AA166: 822.701664 | AB166: 822.701664 | AC166: 822.701664 | AD166: 822.701664 | AE166: 822.701664 | AF166: 822.701664 | AG166: RW | AH166: =AH165+1500 -> 822.701664
A167: ST | B167: =ROUNDDOWN(B166*B164,0) -> -630 | D167: =ROUNDDOWN(D166*D164,0) -> -630 | E167: -630 | F167: -630 | G167: -630 | H167: -630 | I167: -630 | J167: -630 | K167: -630 | L167: -630 | M167: -630 | N167: -630 | O167: -630 | P167: -630 | Q167: 690 | R167: -630 | S167: -630 | T167: -630 | U167: -630 | V167: -630 | W167: -630 | X167: -630 | Y167: -630 | Z167: -630 | AA167: -630 | AB167: -630 | AC167: -630 | AD167: -630 | AE167: -630 | AF167: -630 | AG167: ST | AH167: =ROUNDDOWN(AH166*AH164,0) -> -630
A168: Y | B168: =TRUNC((B160-12739)/10000,6) -> -1.2739 | D168: =TRUNC((D160-12739)/10000,6) -> -1.2739 | E168: -1.2739 | F168: -1.2739 | G168: -1.2739 | H168: -1.2739 | I168: -1.2739 | J168: -1.2739 | K168: -1.2739 | L168: =TRUNC((L160-12739)/10000,6) -> -1.2739 | M168: -1.2739 | N168: -1.2739 | O168: -1.2739 | P168: -1.2739 | Q168: -0.1309 | R168: -1.2739 | S168: -1.2739 | T168: -1.2739 | U168: -1.2739 | V168: -1.2739 | W168: -1.2739 | X168: -1.2739 | Y168: -1.2739 | Z168: -1.2739 | AA168: -1.2739 | AB168: -1.2739 | AC168: -1.2739 | AD168: -1.2739 | AE168: -1.2739 | AF168: -1.2739 | AG168: Y | AH168: =TRUNC((AH160-12739)/10000,6) -> -1.2739
A169: RW | B169: =B168*228.74 -> -291.391886 | D169: =D168*228.74 -> -291.391886 | E169: -291.391886 | F169: -291.391886 | G169: -291.391886 | H169: -291.391886 | I169: -291.391886 | J169: -291.391886 | K169: -291.391886 | L169: -291.391886 | M169: -291.391886 | N169: -291.391886 | O169: -291.391886 | P169: -291.391886 | Q169: -29.942066 | R169: -291.391886 | S169: -291.391886 | T169: -291.391886 | U169: -291.391886 | V169: -291.391886 | W169: -291.391886 | X169: -291.391886 | Y169: -291.391886 | Z169: -291.391886 | AA169: -291.391886 | AB169: -291.391886 | AC169: -291.391886 | AD169: -291.391886 | AE169: -291.391886 | AF169: -291.391886 | AG169: RW | AH169: =AH168*228.74 -> -291.391886
A170: RW | B170: =B169+2397 -> 2105.608114 | D170: =D169+2397 -> 2105.608114 | E170: 2105.608114 | F170: 2105.608114 | G170: 2105.608114 | H170: 2105.608114 | I170: 2105.608114 | J170: 2105.608114 | K170: 2105.608114 | L170: 2105.608114 | M170: 2105.608114 | N170: 2105.608114 | O170: 2105.608114 | P170: 2105.608114 | Q170: 2367.057934 | R170: 2105.608114 | S170: 2105.608114 | T170: 2105.608114 | U170: 2105.608114 | V170: 2105.608114 | W170: 2105.608114 | X170: 2105.608114 | Y170: 2105.608114 | Z170: 2105.608114 | AA170: 2105.608114 | AB170: 2105.608114 | AC170: 2105.608114 | AD170: 2105.608114 | AE170: 2105.608114 | AF170: 2105.608114 | AG170: RW | AH170: =AH169+2397 -> 2105.608114
A171: RW | B171: =B170*B168 -> -2682.334176 | D171: =D170*D168 -> -2682.334176 | E171: -2682.334176 | F171: -2682.334176 | G171: -2682.334176 | H171: -2682.334176 | I171: -2682.334176 | J171: -2682.334176 | K171: -2682.334176 | L171: -2682.334176 | M171: -2682.334176 | N171: -2682.334176 | O171: -2682.334176 | P171: -2682.334176 | Q171: -309.8478836 | R171: -2682.334176 | S171: -2682.334176 | T171: -2682.334176 | U171: -2682.334176 | V171: -2682.334176 | W171: -2682.334176 | X171: -2682.334176 | Y171: -2682.334176 | Z171: -2682.334176 | AA171: -2682.334176 | AB171: -2682.334176 | AC171: -2682.334176 | AD171: -2682.334176 | AE171: -2682.334176 | AF171: -2682.334176 | AG171: RW | AH171: =AH170*AH168 -> -2682.334176
A172: ST | B172: =ROUNDDOWN(B171+989,0) -> -1693 | D172: =ROUNDDOWN(D171+989,0) -> -1693 | E172: -1693 | F172: -1693 | G172: -1693 | H172: -1693 | I172: -1693 | J172: -1693 | K172: -1693 | L172: -1693 | M172: -1693 | N172: -1693 | O172: -1693 | P172: -1693 | Q172: 679 | R172: -1693 | S172: -1693 | T172: -1693 | U172: -1693 | V172: -1693 | W172: -1693 | X172: -1693 | Y172: -1693 | Z172: -1693 | AA172: -1693 | AB172: -1693 | AC172: -1693 | AD172: -1693 | AE172: -1693 | AF172: -1693 | AG172: ST | AH172: =ROUNDDOWN(AH171+989,0) -> -1693
A173: ST | B173: =ROUNDDOWN((B160*0.42)-7914,0) -> -7914 | D173: =ROUNDDOWN((D160*0.42)-7914,0) -> -7914 | E173: -7914 | F173: -7914 | G173: -7914 | H173: -7914 | I173: -7914 | J173: -7914 | K173: -7914 | L173: =ROUNDDOWN((L160*0.42)-7914,0) -> -7914 | M173: -7914 | N173: -7914 | O173: -7914 | P173: -7914 | Q173: -3113 | R173: -7914 | S173: -7914 | T173: -7914 | U173: -7914 | V173: -7914 | W173: -7914 | X173: -7914 | Y173: -7914 | Z173: -7914 | AA173: -7914 | AB173: -7914 | AC173: -7914 | AD173: -7914 | AE173: -7914 | AF173: -7914 | AG173: ST | AH173: =ROUNDDOWN((AH160*0.42)-7914,0) -> -7914
A174: ST | B174: =ROUNDDOWN((B160*0.45)-15414,0) -> -15414 | D174: =ROUNDDOWN((D160*0.45)-15414,0) -> -15414 | E174: -15414 | F174: -15414 | G174: -15414 | H174: -15414 | I174: -15414 | J174: -15414 | K174: -15414 | L174: =ROUNDDOWN((L160*0.45)-15414,0) -> -15414 | M174: -15414 | N174: -15414 | O174: -15414 | P174: -15414 | Q174: -10270 | R174: -15414 | S174: -15414 | T174: -15414 | U174: -15414 | V174: -15414 | W174: -15414 | X174: -15414 | Y174: -15414 | Z174: -15414 | AA174: -15414 | AB174: -15414 | AC174: -15414 | AD174: -15414 | AE174: -15414 | AF174: -15414 | AG174: ST | AH174: =ROUNDDOWN((AH160*0.45)-15414,0) -> -15414
A175: ST | B175: =IF(B160<7665,B163,IF(B160<12740,B167*B62,IF(B160<52152,B172*B62,IF(B160<250001,B173*B62,B174*B62)))) -> 0 | D175: =IF(D160<7665,D163,IF(D160<12740,D167*D62,IF(D160<52152,D172*D62,IF(D160<250001,D173*D62,D174*D62)))) -> 0 | E175: 0 | F175: 0 | G175: 0 | H175: 0 | I175: 0 | J175: 0 | K175: 0 | L175: 0 | M175: 0 | N175: 0 | O175: 0 | P175: 0 | Q175: 690 | R175: 0 | S175: 0 | T175: 0 | U175: 0 | V175: 0 | W175: 0 | X175: 0 | Y175: 0 | Z175: 0 | AA175: 0 | AB175: 0 | AC175: 0 | AD175: 0 | AE175: 0 | AF175: 0 | AG175: ST | AH175: =IF(AH160<7665,AH163,IF(AH160<12740,AH167*AH62,IF(AH160<52152,AH172*AH62,IF(AH160<250001,AH173*AH62,AH174*AH62)))) -> 0
A176: ST1 | B176: =B175 -> 0 | D176: =D175 -> 0 | E176: 0 | F176: 0 | G176: 0 | H176: 0 | I176: 0 | J176: 0 | K176: 0 | L176: 0 | M176: 0 | N176: 0 | O176: 0 | P176: 0 | Q176: 690 | R176: 0 | S176: 0 | T176: 0 | U176: 0 | V176: 0 | W176: 0 | X176: 0 | Y176: 0 | Z176: 0 | AA176: 0 | AB176: 0 | AC176: 0 | AD176: 0 | AE176: 0 | AF176: 0 | AG176: ST1 | AH176: =AH175 -> 0
A177: X | B177: =B156*0.75 -> 0 | D177: =D156*0.75 -> 0 | E177: 0 | F177: 0 | G177: 0 | H177: 0 | I177: 0 | J177: 0 | K177: 0 | L177: =L156*0.75 -> 0 | M177: 0 | N177: 0 | O177: 0 | P177: 0 | Q177: 6858 | R177: 0 | S177: 0 | T177: 0 | U177: 0 | V177: 0 | W177: 0 | X177: 0 | Y177: 0 | Z177: 0 | AA177: 0 | AB177: 0 | AC177: 0 | AD177: 0 | AE177: 0 | AF177: 0 | AG177: X | AH177: =AH156*0.75 -> 0
A179: UPTAB07 | AG179: UPTAB07
A180: ST | B180: 0 | D180: 0 | E180: 0 | F180: 0 | G180: 0 | H180: 0 | I180: 0 | J180: 0 | K180: 0 | L180: 0 | M180: 0 | N180: 0 | O180: 0 | P180: 0 | Q180: 0 | R180: 0 | S180: 0 | T180: 0 | U180: 0 | V180: 0 | W180: 0 | X180: 0 | Y180: 0 | Z180: 0 | AA180: 0 | AB180: 0 | AC180: 0 | AD180: 0 | AE180: 0 | AF180: 0 | AG180: ST | AH180: 0
A181: Y | B181: =TRUNC((B177-7664)/10000,6) -> -0.7664 | D181: =TRUNC((D177-7664)/10000,6) -> -0.7664 | E181: -0.7664 | F181: -0.7664 | G181: -0.7664 | H181: -0.7664 | I181: -0.7664 | J181: -0.7664 | K181: -0.7664 | L181: =TRUNC((L177-7664)/10000,6) -> -0.7664 | M181: -0.7664 | N181: -0.7664 | O181: -0.7664 | P181: -0.7664 | Q181: -0.0806 | R181: -0.7664 | S181: -0.7664 | T181: -0.7664 | U181: -0.7664 | V181: -0.7664 | W181: -0.7664 | X181: -0.7664 | Y181: -0.7664 | Z181: -0.7664 | AA181: -0.7664 | AB181: -0.7664 | AC181: -0.7664 | AD181: -0.7664 | AE181: -0.7664 | AF181: -0.7664 | AG181: Y | AH181: =TRUNC((AH177-7664)/10000,6) -> -0.7664
A182: RW | B182: =B181*883.74 -> -677.298336 | D182: =D181*883.74 -> -677.298336 | E182: -677.298336 | F182: -677.298336 | G182: -677.298336 | H182: -677.298336 | I182: -677.298336 | J182: -677.298336 | K182: -677.298336 | L182: -677.298336 | M182: -677.298336 | N182: -677.298336 | O182: -677.298336 | P182: -677.298336 | Q182: -71.229444 | R182: -677.298336 | S182: -677.298336 | T182: -677.298336 | U182: -677.298336 | V182: -677.298336 | W182: -677.298336 | X182: -677.298336 | Y182: -677.298336 | Z182: -677.298336 | AA182: -677.298336 | AB182: -677.298336 | AC182: -677.298336 | AD182: -677.298336 | AE182: -677.298336 | AF182: -677.298336 | AG182: RW | AH182: =AH181*883.74 -> -677.298336
A183: RW | B183: =B182+1500 -> 822.701664 | D183: =D182+1500 -> 822.701664 | E183: 822.701664 | F183: 822.701664 | G183: 822.701664 | H183: 822.701664 | I183: 822.701664 | J183: 822.701664 | K183: 822.701664 | L183: 822.701664 | M183: 822.701664 | N183: 822.701664 | O183: 822.701664 | P183: 822.701664 | Q183: 1428.770556 | R183: 822.701664 | S183: 822.701664 | T183: 822.701664 | U183: 822.701664 | V183: 822.701664 | W183: 822.701664 | X183: 822.701664 | Y183: 822.701664 | Z183: 822.701664 | AA183: 822.701664 | AB183: 822.701664 | AC183: 822.701664 | AD183: 822.701664 | AE183: 822.701664 | AF183: 822.701664 | AG183: RW | AH183: =AH182+1500 -> 822.701664
A184: ST | B184: =ROUNDDOWN(B183*B181,0) -> -630 | D184: =ROUNDDOWN(D183*D181,0) -> -630 | E184: -630 | F184: -630 | G184: -630 | H184: -630 | I184: -630 | J184: -630 | K184: -630 | L184: -630 | M184: -630 | N184: -630 | O184: -630 | P184: -630 | Q184: -115 | R184: -630 | S184: -630 | T184: -630 | U184: -630 | V184: -630 | W184: -630 | X184: -630 | Y184: -630 | Z184: -630 | AA184: -630 | AB184: -630 | AC184: -630 | AD184: -630 | AE184: -630 | AF184: -630 | AG184: ST | AH184: =ROUNDDOWN(AH183*AH181,0) -> -630
A185: Y | B185: =TRUNC((B177-12739)/10000,6) -> -1.2739 | D185: =TRUNC((D177-12739)/10000,6) -> -1.2739 | E185: -1.2739 | F185: -1.2739 | G185: -1.2739 | H185: -1.2739 | I185: -1.2739 | J185: -1.2739 | K185: -1.2739 | L185: =TRUNC((L177-12739)/10000,6) -> -1.2739 | M185: -1.2739 | N185: -1.2739 | O185: -1.2739 | P185: -1.2739 | Q185: -0.5881 | R185: -1.2739 | S185: -1.2739 | T185: -1.2739 | U185: -1.2739 | V185: -1.2739 | W185: -1.2739 | X185: -1.2739 | Y185: -1.2739 | Z185: -1.2739 | AA185: -1.2739 | AB185: -1.2739 | AC185: -1.2739 | AD185: -1.2739 | AE185: -1.2739 | AF185: -1.2739 | AG185: Y | AH185: =TRUNC((AH177-12739)/10000,6) -> -1.2739
A186: RW | B186: =B185*228.74 -> -291.391886 | D186: =D185*228.74 -> -291.391886 | E186: -291.391886 | F186: -291.391886 | G186: -291.391886 | H186: -291.391886 | I186: -291.391886 | J186: -291.391886 | K186: -291.391886 | L186: -291.391886 | M186: -291.391886 | N186: -291.391886 | O186: -291.391886 | P186: -291.391886 | Q186: -134.521994 | R186: -291.391886 | S186: -291.391886 | T186: -291.391886 | U186: -291.391886 | V186: -291.391886 | W186: -291.391886 | X186: -291.391886 | Y186: -291.391886 | Z186: -291.391886 | AA186: -291.391886 | AB186: -291.391886 | AC186: -291.391886 | AD186: -291.391886 | AE186: -291.391886 | AF186: -291.391886 | AG186: RW | AH186: =AH185*228.74 -> -291.391886
A187: RW | B187: =B186+2397 -> 2105.608114 | D187: =D186+2397 -> 2105.608114 | E187: 2105.608114 | F187: 2105.608114 | G187: 2105.608114 | H187: 2105.608114 | I187: 2105.608114 | J187: 2105.608114 | K187: 2105.608114 | L187: 2105.608114 | M187: 2105.608114 | N187: 2105.608114 | O187: 2105.608114 | P187: 2105.608114 | Q187: 2262.478006 | R187: 2105.608114 | S187: 2105.608114 | T187: 2105.608114 | U187: 2105.608114 | V187: 2105.608114 | W187: 2105.608114 | X187: 2105.608114 | Y187: 2105.608114 | Z187: 2105.608114 | AA187: 2105.608114 | AB187: 2105.608114 | AC187: 2105.608114 | AD187: 2105.608114 | AE187: 2105.608114 | AF187: 2105.608114 | AG187: RW | AH187: =AH186+2397 -> 2105.608114
A188: RW | B188: =B187*B185 -> -2682.334176 | D188: =D187*D185 -> -2682.334176 | E188: -2682.334176 | F188: -2682.334176 | G188: -2682.334176 | H188: -2682.334176 | I188: -2682.334176 | J188: -2682.334176 | K188: -2682.334176 | L188: -2682.334176 | M188: -2682.334176 | N188: -2682.334176 | O188: -2682.334176 | P188: -2682.334176 | Q188: -1330.563315 | R188: -2682.334176 | S188: -2682.334176 | T188: -2682.334176 | U188: -2682.334176 | V188: -2682.334176 | W188: -2682.334176 | X188: -2682.334176 | Y188: -2682.334176 | Z188: -2682.334176 | AA188: -2682.334176 | AB188: -2682.334176 | AC188: -2682.334176 | AD188: -2682.334176 | AE188: -2682.334176 | AF188: -2682.334176 | AG188: RW | AH188: =AH187*AH185 -> -2682.334176
A189: ST | B189: =ROUNDDOWN(B188+989,0) -> -1693 | D189: =ROUNDDOWN(D188+989,0) -> -1693 | E189: -1693 | F189: -1693 | G189: -1693 | H189: -1693 | I189: -1693 | J189: -1693 | K189: -1693 | L189: -1693 | M189: -1693 | N189: -1693 | O189: -1693 | P189: -1693 | Q189: -341 | R189: -1693 | S189: -1693 | T189: -1693 | U189: -1693 | V189: -1693 | W189: -1693 | X189: -1693 | Y189: -1693 | Z189: -1693 | AA189: -1693 | AB189: -1693 | AC189: -1693 | AD189: -1693 | AE189: -1693 | AF189: -1693 | AG189: ST | AH189: =ROUNDDOWN(AH188+989,0) -> -1693
A190: ST | B190: =ROUNDDOWN((B177*0.42)-7914,0) -> -7914 | D190: =ROUNDDOWN((D177*0.42)-7914,0) -> -7914 | E190: -7914 | F190: -7914 | G190: -7914 | H190: -7914 | I190: -7914 | J190: -7914 | K190: -7914 | L190: =ROUNDDOWN((L177*0.42)-7914,0) -> -7914 | M190: -7914 | N190: -7914 | O190: -7914 | P190: -7914 | Q190: -5033 | R190: -7914 | S190: -7914 | T190: -7914 | U190: -7914 | V190: -7914 | W190: -7914 | X190: -7914 | Y190: -7914 | Z190: -7914 | AA190: -7914 | AB190: -7914 | AC190: -7914 | AD190: -7914 | AE190: -7914 | AF190: -7914 | AG190: ST | AH190: =ROUNDDOWN((AH177*0.42)-7914,0) -> -7914
A191: ST | B191: =ROUNDDOWN((B177*0.45)-15414,0) -> -15414 | D191: =ROUNDDOWN((D177*0.45)-15414,0) -> -15414 | E191: -15414 | F191: -15414 | G191: -15414 | H191: -15414 | I191: -15414 | J191: -15414 | K191: -15414 | L191: =ROUNDDOWN((L177*0.45)-15414,0) -> -15414 | M191: -15414 | N191: -15414 | O191: -15414 | P191: -15414 | Q191: -12327 | R191: -15414 | S191: -15414 | T191: -15414 | U191: -15414 | V191: -15414 | W191: -15414 | X191: -15414 | Y191: -15414 | Z191: -15414 | AA191: -15414 | AB191: -15414 | AC191: -15414 | AD191: -15414 | AE191: -15414 | AF191: -15414 | AG191: ST | AH191: =ROUNDDOWN((AH177*0.45)-15414,0) -> -15414
A192: ST | B192: =IF(B177<7665,B180,IF(B177<12740,B184*B62,IF(B177<52152,B189*B62,IF(B177<250001,B190*B62,B191*B62)))) -> 0 | D192: =IF(D177<7665,D180,IF(D177<12740,D184*D62,IF(D177<52152,D189*D62,IF(D177<250001,D190*D62,D191*D62)))) -> 0 | E192: 0 | F192: 0 | G192: 0 | H192: 0 | I192: 0 | J192: 0 | K192: 0 | L192: 0 | M192: 0 | N192: 0 | O192: 0 | P192: 0 | Q192: 0 | R192: 0 | S192: 0 | T192: 0 | U192: 0 | V192: 0 | W192: 0 | X192: 0 | Y192: 0 | Z192: 0 | AA192: 0 | AB192: 0 | AC192: 0 | AD192: 0 | AE192: 0 | AF192: 0 | AG192: ST | AH192: =IF(AH177<7665,AH180,IF(AH177<12740,AH184*AH62,IF(AH177<52152,AH189*AH62,IF(AH177<250001,AH190*AH62,AH191*AH62)))) -> 0
A193: ST2 | B193: =B192 -> 0 | D193: =D192 -> 0 | E193: 0 | F193: 0 | G193: 0 | H193: 0 | I193: 0 | J193: 0 | K193: 0 | L193: 0 | M193: 0 | N193: 0 | O193: 0 | P193: 0 | Q193: 0 | R193: 0 | S193: 0 | T193: 0 | U193: 0 | V193: 0 | W193: 0 | X193: 0 | Y193: 0 | Z193: 0 | AA193: 0 | AB193: 0 | AC193: 0 | AD193: 0 | AE193: 0 | AF193: 0 | AG193: ST2 | AH193: =AH192 -> 0
A194: DIFF | B194: =(B176-B193)*2 -> 0 | D194: =(D176-D193)*2 -> 0 | E194: 0 | F194: 0 | G194: 0 | H194: 0 | I194: 0 | J194: 0 | K194: 0 | L194: 0 | M194: 0 | N194: 0 | O194: 0 | P194: 0 | Q194: 1380 | R194: 0 | S194: 0 | T194: 0 | U194: 0 | V194: 0 | W194: 0 | X194: 0 | Y194: 0 | Z194: 0 | AA194: 0 | AB194: 0 | AC194: 0 | AD194: 0 | AE194: 0 | AF194: 0 | AG194: DIFF | AH194: =(AH176-AH193)*2 -> 0
A195: MIST | B195: =ROUNDDOWN(B156*0.15,0) -> 0 | D195: =ROUNDDOWN(D156*0.15,0) -> 0 | E195: 0 | F195: 0 | G195: 0 | H195: 0 | I195: 0 | J195: 0 | K195: 0 | L195: =ROUNDDOWN(L156*0.15,0) -> 0 | M195: 0 | N195: 0 | O195: 0 | P195: 0 | Q195: 1371 | R195: 0 | S195: 0 | T195: 0 | U195: 0 | V195: 0 | W195: 0 | X195: 0 | Y195: 0 | Z195: 0 | AA195: 0 | AB195: 0 | AC195: 0 | AD195: 0 | AE195: 0 | AF195: 0 | AG195: MIST | AH195: =ROUNDDOWN(AH156*0.15,0) -> 0
A196: ST | B196: =IF(B195>B194,B195,B194) -> 0 | D196: =IF(D195>D194,D195,D194) -> 0 | E196: 0 | F196: 0 | G196: 0 | H196: 0 | I196: 0 | J196: 0 | K196: 0 | L196: 0 | M196: 0 | N196: 0 | O196: 0 | P196: 0 | Q196: 1380 | R196: 0 | S196: 0 | T196: 0 | U196: 0 | V196: 0 | W196: 0 | X196: 0 | Y196: 0 | Z196: 0 | AA196: 0 | AB196: 0 | AC196: 0 | AD196: 0 | AE196: 0 | AF196: 0 | AG196: ST | AH196: =IF(AH195>AH194,AH195,AH194) -> 0
A197: HOCH | B197: =ROUNDDOWN(B196+((B115-9144)*0.42),0) -> -3840 | D197: =ROUNDDOWN(D196+((D115-9144)*0.42),0) -> -3840 | E197: -3840 | F197: -3840 | G197: -3840 | H197: -3840 | I197: -3840 | J197: -3840 | K197: -3840 | L197: -3840 | M197: -3840 | N197: -3840 | O197: -3840 | P197: -3840 | Q197: 14289 | R197: -3840 | S197: -3840 | T197: -3840 | U197: -3840 | V197: -3840 | W197: -3840 | X197: -3840 | Y197: -3840 | Z197: -3840 | AA197: -3840 | AB197: -3840 | AC197: -3840 | AD197: -3840 | AE197: -3840 | AF197: -3840 | AG197: HOCH | AH197: =ROUNDDOWN(AH196+((AH115-9144)*0.42),0) -> -3840
A198: ST | B198: =IF(B197<B157,B197,B157) -> -3840 | D198: =IF(D197<D157,D197,D157) -> -3840 | E198: -3840 | F198: -3840 | G198: -3840 | H198: -3840 | I198: -3840 | J198: -3840 | K198: -3840 | L198: -3840 | M198: -3840 | N198: -3840 | O198: -3840 | P198: -3840 | Q198: 7730 | R198: -3840 | S198: -3840 | T198: -3840 | U198: -3840 | V198: -3840 | W198: -3840 | X198: -3840 | Y198: -3840 | Z198: -3840 | AA198: -3840 | AB198: -3840 | AC198: -3840 | AD198: -3840 | AE198: -3840 | AF198: -3840 | AG198: ST | AH198: =IF(AH197<AH157,AH197,AH157) -> -3840
A199: ST | B199: =IF(B115>200000,ROUNDDOWN((B155+(200000-25812)*0.42)+(B115-200000)*0.45,0),IF(B115>25812,ROUNDDOWN(B155+((B115-25812)*0.42),0),IF(B115>9144,B198,B155))) -> 0 | D199: =IF(D115>200000,ROUNDDOWN((D155+(200000-25812)*0.42)+(D115-200000)*0.45,0),IF(D115>25812,ROUNDDOWN(D155+((D115-25812)*0.42),0),IF(D115>9144,D198,D155))) -> 0 | E199: 0 | F199: 0 | G199: 0 | H199: 0 | I199: 0 | J199: 0 | K199: 0 | L199: 0 | M199: 0 | N199: 0 | O199: 0 | P199: 0 | Q199: 13638 | R199: 0 | S199: 0 | T199: 0 | U199: 0 | V199: 0 | W199: 0 | X199: 0 | Y199: 0 | Z199: 0 | AA199: 0 | AB199: 0 | AC199: 0 | AD199: 0 | AE199: 0 | AF199: 0 | AG199: ST | AH199: =IF(AH115>200000,ROUNDDOWN((AH155+(200000-25812)*0.42)+(AH115-200000)*0.45,0),IF(AH115>25812,ROUNDDOWN(AH155+((AH115-25812)*0.42),0),IF(AH115>9144,AH198,AH155))) -> 0
A201: LSTJAHR | B201: =IF(B11<5,B112,B199) -> 33156 | D201: =IF(D11<5,D112,D199) -> 11724 | E201: 27108 | F201: 12504 | G201: 15754 | H201: 22603 | I201: 0 | J201: 4586 | K201: 6690 | L201: =IF(L11<5,L112,L199) -> 14400 | M201: 9018 | N201: 4586 | O201: 8223 | P201: 8102 | Q201: 13638 | R201: 15625 | S201: 7827 | T201: 8223 | U201: 0 | V201: 0 | AG201: LSTJAHR | AH201: =IF(AH11<5,AH112,AH199) -> 21610
A202: JW | B202: =B201*100 -> 3315600 | D202: =D201*100 -> 1172400 | E202: 2710800 | F202: 1250400 | G202: 1575400 | H202: 2260300 | I202: 0 | J202: 458600 | K202: 669000 | L202: 1440000 | M202: 901800 | N202: 458600 | O202: 822300 | P202: 810200 | Q202: 1363800 | R202: 1562500 | S202: 782700 | T202: 822300 | U202: 0 | V202: 0 | AG202: JW | AH202: =AH201*100 -> 2161000
AH203: =(AH206/100)-Lohnsteuer!$F$54 -> 779.33
A204: UPANTEIL | AG204: UPANTEIL
A205: ANTEIL1 | B205: =IF(B7=1,B202,IF(B7=2,ROUNDDOWN(B202/12,0),IF(B7=3,ROUNDDOWN((B202*7)/360,0),ROUNDDOWN(B202/360,0)))) -> 276300 | D205: =IF(D7=1,D202,IF(D7=2,ROUNDDOWN(D202/12,0),IF(D7=3,ROUNDDOWN((D202*7)/360,0),ROUNDDOWN(D202/360,0)))) -> 97700 | E205: 225900 | F205: 104200 | G205: 131283 | H205: 188358 | I205: 0 | J205: 38216 | K205: 55750 | L205: =IF(L7=1,L202,IF(L7=2,ROUNDDOWN(L202/12,0),IF(L7=3,ROUNDDOWN((L202*7)/360,0),ROUNDDOWN(L202/360,0)))) -> 120000 | M205: 75150 | N205: 38216 | O205: 68525 | P205: 67516 | Q205: 113650 | R205: 130208 | S205: 65225 | T205: 68525 | U205: 0 | V205: 0 | AG205: ANTEIL1 | AH205: =IF(AH7=1,AH202,IF(AH7=2,ROUNDDOWN(AH202/12,0),IF(AH7=3,ROUNDDOWN((AH202*7)/360,0),ROUNDDOWN(AH202/360,0)))) -> 180083
A206: LSTLZZ | B206: =B205 -> 276300 | D206: =D205 -> 97700 | E206: 225900 | F206: 104200 | G206: 131283 | H206: 188358 | I206: 0 | J206: 38216 | K206: 55750 | L206: 120000 | M206: 75150 | N206: 38216 | O206: 68525 | P206: 67516 | Q206: 113650 | R206: 130208 | S206: 65225 | T206: 68525 | U206: 0 | V206: 0 | AG206: LSTLZZ | AH206: =AH205 -> 180083
A207: ZTABFB | B207: =B67+B66 -> 3860 | D207: =D67+D66 -> 6800 | E207: 956 | F207: 12608 | G207: 18416 | H207: 8072 | I207: 956 | J207: 12608 | K207: 956 | L207: =L67+L66 -> 3860 | M207: 6800 | N207: 18416 | O207: 3860 | P207: 12608 | Q207: 920 | R207: 956 | S207: 8072 | T207: 956 | U207: 956 | V207: 956 | AG207: ZTABFB | AH207: =AH67+AH66 -> 3860
A208: ZVE | B208: =B57-B207-B95 -> 94884 | D208: =D57-D207-D95 -> 54534 | E208: 83388 | F208: 51144 | G208: 55008 | H208: 66852 | I208: 5428 | J208: 24230 | K208: 32716 | L208: 50226 | M208: 45786 | N208: 18422 | O208: 34303 | P208: 36887 | Q208: 39880 | R208: 56047 | S208: 30266 | T208: 37207 | U208: 4468 | V208: 4324 | AG208: ZVE | AH208: =AH57-AH207-AH95 -> 67392
A209: ZVE, X | B209: =IF(B208<36,0,ROUNDDOWN(B208/B62,0)) -> 94884 | D209: =IF(D208<36,0,ROUNDDOWN(D208/D62,0)) -> 27267 | E209: 83388 | F209: 25572 | G209: 27504 | H209: 66852 | I209: 5428 | J209: 12115 | K209: 32716 | L209: 50226 | M209: 22893 | N209: 9211 | O209: 34303 | P209: 18443 | Q209: 39880 | R209: 56047 | S209: 30266 | T209: 37207 | U209: 4468 | V209: 4324 | AG209: ZVE, X | AH209: =IF(AH208<36,0,ROUNDDOWN(AH208/AH62,0)) -> 67392
A211: UPTAB07 | AG211: UPTAB07
A212: ST | B212: 0 | D212: 0 | E212: 0 | F212: 0 | G212: 0 | H212: 0 | I212: 0 | J212: 0 | K212: 0 | L212: 0 | M212: 0 | N212: 0 | O212: 0 | P212: 0 | Q212: 0 | R212: 0 | S212: 0 | T212: 0 | U212: 0 | V212: 0 | W212: 0 | X212: 0 | Y212: 0 | Z212: 0 | AA212: 0 | AB212: 0 | AC212: 0 | AD212: 0 | AE212: 0 | AF212: 0 | AG212: ST | AH212: 0
A213: Y | B213: =TRUNC((B209-7664)/10000,6) -> 8.722 | D213: =TRUNC((D209-7664)/10000,6) -> 1.9603 | E213: 7.5724 | F213: 1.7908 | G213: 1.984 | H213: 5.9188 | I213: -0.2236 | J213: 0.4451 | K213: 2.5052 | L213: =TRUNC((L209-7664)/10000,6) -> 4.2562 | M213: 1.5229 | N213: 0.1547 | O213: 2.6639 | P213: 1.0779 | Q213: 3.2216 | R213: 4.8383 | S213: 2.2602 | T213: 2.9543 | U213: -0.3196 | V213: -0.334 | AG213: Y | AH213: =TRUNC((AH209-7664)/10000,6) -> 5.9728
A214: RW | B214: =B213*883.74 -> 7707.98028 | D214: =D213*883.74 -> 1732.395522 | E214: 6692.032776 | F214: 1582.601592 | G214: 1753.34016 | H214: 5230.680312 | I214: -197.604264 | J214: 393.352674 | K214: 2213.945448 | L214: 3761.374188 | M214: 1345.847646 | N214: 136.714578 | O214: 2354.194986 | P214: 952.583346 | Q214: 2847.056784 | R214: 4275.799242 | S214: 1997.429148 | T214: 2610.833082 | U214: -282.443304 | V214: -295.16916 | AG214: RW | AH214: =AH213*883.74 -> 5278.402272
A215: RW | B215: =B214+1500 -> 9207.98028 | D215: =D214+1500 -> 3232.395522 | E215: 8192.032776 | F215: 3082.601592 | G215: 3253.34016 | H215: 6730.680312 | I215: 1302.395736 | J215: 1893.352674 | K215: 3713.945448 | L215: 5261.374188 | M215: 2845.847646 | N215: 1636.714578 | O215: 3854.194986 | P215: 2452.583346 | Q215: 4347.056784 | R215: 5775.799242 | S215: 3497.429148 | T215: 4110.833082 | U215: 1217.556696 | V215: 1204.83084 | AG215: RW | AH215: =AH214+1500 -> 6778.402272
A216: ST | B216: =ROUNDDOWN(B215*B213,0) -> 80312 | D216: =ROUNDDOWN(D215*D213,0) -> 6336 | E216: 62033 | F216: 5520 | G216: 6454 | H216: 39837 | I216: -291 | J216: 842 | K216: 9304 | L216: 22393 | M216: 4333 | N216: 253 | O216: 10267 | P216: 2643 | Q216: 14004 | R216: 27945 | S216: 7904 | T216: 12144 | U216: -389 | V216: -402 | AG216: ST | AH216: =ROUNDDOWN(AH215*AH213,0) -> 40486
A217: Y | B217: =TRUNC((B209-12739)/10000,6) -> 8.2145 | D217: =TRUNC((D209-12739)/10000,6) -> 1.4528 | E217: 7.0649 | F217: 1.2833 | G217: 1.4765 | H217: 5.4113 | I217: -0.7311 | J217: -0.0624 | K217: 1.9977 | L217: =TRUNC((L209-12739)/10000,6) -> 3.7487 | M217: 1.0154 | N217: -0.3528 | O217: 2.1564 | P217: 0.5704 | Q217: 2.7141 | R217: 4.3308 | S217: 1.7527 | T217: 2.4468 | U217: -0.8271 | V217: -0.8415 | AG217: Y | AH217: =TRUNC((AH209-12739)/10000,6) -> 5.4653
A218: RW | B218: =B217*228.74 -> 1878.98473 | D218: =D217*228.74 -> 332.313472 | E218: 1616.025226 | F218: 293.542042 | G218: 337.73461 | H218: 1237.780762 | I218: -167.231814 | J218: -14.273376 | K218: 456.953898 | L218: 857.477638 | M218: 232.262596 | N218: -80.699472 | O218: 493.254936 | P218: 130.473296 | Q218: 620.823234 | R218: 990.627192 | S218: 400.912598 | T218: 559.681032 | U218: -189.190854 | V218: -192.48471 | AG218: RW | AH218: =AH217*228.74 -> 1250.132722
A219: RW | B219: =B218+2397 -> 4275.98473 | D219: =D218+2397 -> 2729.313472 | E219: 4013.025226 | F219: 2690.542042 | G219: 2734.73461 | H219: 3634.780762 | I219: 2229.768186 | J219: 2382.726624 | K219: 2853.953898 | L219: 3254.477638 | M219: 2629.262596 | N219: 2316.300528 | O219: 2890.254936 | P219: 2527.473296 | Q219: 3017.823234 | R219: 3387.627192 | S219: 2797.912598 | T219: 2956.681032 | U219: 2207.809146 | V219: 2204.51529 | AG219: RW | AH219: =AH218+2397 -> 3647.132722
A220: RW | B220: =B219*B217 -> 35125.07656 | D220: =D219*D217 -> 3965.146612 | E220: 28351.62192 | F220: 3452.772602 | G220: 4037.835652 | H220: 19668.88914 | I220: -1630.183521 | J220: -148.6821413 | K220: 5701.343702 | L220: 12200.06032 | M220: 2669.75324 | N220: -817.1908263 | O220: 6232.545744 | P220: 1441.670768 | Q220: 8190.674039 | R220: 14671.13584 | S220: 4903.901411 | T220: 7234.407149 | U220: -1826.078945 | V220: -1855.099617 | AG220: RW | AH220: =AH219*AH217 -> 19932.67447
A221: ST | B221: =ROUNDDOWN(B220+989,0) -> 36114 | D221: =ROUNDDOWN(D220+989,0) -> 4954 | E221: 29340 | F221: 4441 | G221: 5026 | H221: 20657 | I221: -641 | J221: 840 | K221: 6690 | L221: 13189 | M221: 3658 | N221: 171 | O221: 7221 | P221: 2430 | Q221: 9179 | R221: 15660 | S221: 5892 | T221: 8223 | U221: -837 | V221: -866 | AG221: ST | AH221: =ROUNDDOWN(AH220+989,0) -> 20921
A222: ST | B222: =ROUNDDOWN((B209*0.42)-7914,0) -> 31937 | D222: =ROUNDDOWN((D209*0.42)-7914,0) -> 3538 | E222: 27108 | F222: 2826 | G222: 3637 | H222: 20163 | I222: -5634 | J222: -2825 | K222: 5826 | L222: =ROUNDDOWN((L209*0.42)-7914,0) -> 13180 | M222: 1701 | N222: -4045 | O222: 6493 | P222: -167 | Q222: 8835 | R222: 15625 | S222: 4797 | T222: 7712 | U222: -6037 | V222: -6097 | AG222: ST | AH222: =ROUNDDOWN((AH209*0.42)-7914,0) -> 20390
A223: ST | B223: =ROUNDDOWN((B209*0.45)-15414,0) -> 27283 | D223: =ROUNDDOWN((D209*0.45)-15414,0) -> -3143 | E223: 22110 | F223: -3906 | G223: -3037 | H223: 14669 | I223: -12971 | J223: -9962 | K223: -691 | L223: =ROUNDDOWN((L209*0.45)-15414,0) -> 7187 | M223: -5112 | N223: -11269 | O223: 22 | P223: -7114 | Q223: 2532 | R223: 9807 | S223: -1794 | T223: 1329 | U223: -13403 | V223: -13468 | AG223: ST | AH223: =ROUNDDOWN((AH209*0.45)-15414,0) -> 14912
... 18 more rows

Sheet Steuer2017 (hidden)
A1: PersNr.: | B1: 100 | C1: PersNr.: | D1: 101 | E1: 102 | F1: 103 | G1: 104 | H1: 105 | I1: 106 | J1: 107 | K1: 108 | L1: 109 | M1: 110 | N1: 111 | O1: 112 | P1: 113 | Q1: 114 | R1: 115 | S1: 116 | T1: 117 | U1: 118 | V1: 119 | W1: 120 | X1: 121 | Y1: 122 | Z1: 123 | AA1: 124 | AB1: 125 | AC1: 126 | AD1: 127 | AE1: 128 | AF1: 129 | AG1: Lohnsteuer für Zusatzentgelte
A2: Eingangsparameter | AG2: Eingangsparameter
A3: AF | B3: 0 | D3: 0 | E3: 0 | F3: 0 | G3: 0 | H3: 0 | I3: 0 | J3: 0 | K3: 0 | L3: 0 | M3: 0 | N3: 0 | O3: 0 | P3: 0 | Q3: 0 | R3: 0 | S3: 0 | T3: 0 | U3: 0 | V3: 0 | W3: 0 | X3: 0 | Y3: 0 | Z3: 0 | AA3: 0 | AB3: 0 | AC3: 0 | AD3: 0 | AE3: 0 | AF3: 0 | AG3: AF | AH3: 0
A4: AJAHR | B4: 0 | D4: 0 | E4: 0 | F4: 0 | G4: 0 | H4: 0 | I4: 0 | J4: 0 | K4: 0 | L4: 0 | M4: 0 | N4: 0 | O4: 0 | P4: 0 | Q4: 0 | R4: 0 | S4: 0 | T4: 0 | U4: 0 | V4: 0 | W4: 0 | X4: 0 | Y4: 0 | Z4: 0 | AA4: 0 | AB4: 0 | AC4: 0 | AD4: 0 | AE4: 0 | AF4: 0 | AG4: AJAHR | AH4: 0
A5: ALTER1 | B5: 0 | D5: 0 | E5: 0 | F5: 0 | G5: 0 | H5: 0 | I5: 0 | J5: 0 | K5: 0 | L5: 0 | M5: 0 | N5: 0 | O5: 0 | P5: 0 | Q5: 0 | R5: 0 | S5: 0 | T5: 0 | U5: 0 | V5: 0 | W5: 0 | X5: 0 | Y5: 0 | Z5: 0 | AA5: 0 | AB5: 0 | AC5: 0 | AD5: 0 | AE5: 0 | AF5: 0 | AG5: ALTER1 | AH5: 0
A6: F | B6: 0 | D6: 0 | E6: 0 | F6: 0 | G6: 0 | H6: 0 | I6: 0 | J6: 0 | K6: 0 | L6: 0 | M6: 0 | N6: 0 | O6: 0 | P6: 0 | Q6: 0 | R6: 0 | S6: 0 | T6: 0 | U6: 0 | V6: 0 | W6: 0 | X6: 0 | Y6: 0 | Z6: 0 | AA6: 0 | AB6: 0 | AC6: 0 | AD6: 0 | AE6: 0 | AF6: 0 | AG6: F | AH6: 0
A7: KRV | B7: 2 | D7: 2 | E7: 2 | F7: 2 | G7: 2 | H7: 2 | I7: 2 | J7: 2 | K7: 2 | L7: 2 | M7: 2 | N7: 2 | O7: 2 | P7: 2 | Q7: 2 | R7: 2 | S7: 2 | T7: 2 | U7: 2 | V7: 2 | W7: 2 | X7: 2 | Y7: 2 | Z7: 2 | AA7: 2 | AB7: 2 | AC7: 2 | AD7: 2 | AE7: 2 | AF7: 2 | AG7: KRV | AH7: 2
A8: KVZ | B8: =IF(SozialV!$E8>0,SozialV!$E$6*100,0) -> 0 | D8: =IF(SozialV!$E9>0,SozialV!$E$6*100,0) -> 1.1 | E8: =IF(SozialV!$E10>0,SozialV!$E$6*100,0) -> 1.1 | F8: =IF(SozialV!$E11>0,SozialV!$E$6*100,0) -> 1.1 | G8: =IF(SozialV!$E12>0,SozialV!$E$6*100,0) -> 1.1 | H8: =IF(SozialV!$E13>0,SozialV!$E$6*100,0) -> 1.1 | I8: =IF(SozialV!$E14>0,SozialV!$E$6*100,0) -> 1.1 | J8: =IF(SozialV!$E15>0,SozialV!$E$6*100,0) -> 1.1 | K8: =IF(SozialV!$E16>0,SozialV!$E$6*100,0) -> 1.1 | L8: =IF(SozialV!$E17>0,SozialV!$E$6*100,0) -> 1.1 | M8: =IF(SozialV!$E18>0,SozialV!$E$6*100,0) -> 1.1 | N8: =IF(SozialV!$E19>0,SozialV!$E$6*100,0) -> 1.1 | O8: =IF(SozialV!$E20>0,SozialV!$E$6*100,0) -> 1.1 | P8: =IF(SozialV!$E21>0,SozialV!$E$6*100,0) -> 1.1 | Q8: =IF(SozialV!$E22>0,SozialV!$E$6*100,0) -> 1.1 | R8: =IF(SozialV!$E23>0,SozialV!$E$6*100,0) -> 1.1 | S8: =IF(SozialV!$E24>0,SozialV!$E$6*100,0) -> 1.1 | T8: =IF(SozialV!$E25>0,SozialV!$E$6*100,0) -> 1.1 | U8: =IF(SozialV!$E26>0,SozialV!$E$6*100,0) -> 1.1 | V8: =IF(SozialV!$E27>0,SozialV!$E$6*100,0) -> 1.1 | W8: =IF(SozialV!$E28>0,SozialV!$E$6*100,0) -> 0 | X8: =IF(SozialV!$E29>0,SozialV!$E$6*100,0) -> 0 | Y8: =IF(SozialV!$E30>0,SozialV!$E$6*100,0) -> 0 | Z8: =IF(SozialV!$E31>0,SozialV!$E$6*100,0) -> 0 | AA8: =IF(SozialV!$E32>0,SozialV!$E$6*100,0) -> 0 | AB8: =IF(SozialV!$E33>0,SozialV!$E$6*100,0) -> 0 | AC8: =IF(SozialV!$E34>0,SozialV!$E$6*100,0) -> 0 | AD8: =IF(SozialV!$E35>0,SozialV!$E$6*100,0) -> 0 | AE8: =IF(SozialV!$E36>0,SozialV!$E$6*100,0) -> 0 | AF8: =IF(SozialV!$E37>0,SozialV!$E$6*100,0) -> 0 | AG8: KVZ | AH8: =IF(SozialV!$E37>0,SozialV!$E$6*100,0) -> 0
A9: LZZ | B9: 2 | D9: 2 | E9: 2 | F9: 2 | G9: 2 | H9: 2 | I9: 2 | J9: 2 | K9: 2 | L9: 2 | M9: 2 | N9: 2 | O9: 2 | P9: 2 | Q9: 2 | R9: 2 | S9: 2 | T9: 2 | U9: 2 | V9: 2 | W9: 2 | X9: 2 | Y9: 2 | Z9: 2 | AA9: 2 | AB9: 2 | AC9: 2 | AD9: 2 | AE9: 2 | AF9: 2 | AG9: LZZ | AH9: 2
A10: LZZFREIB | B10: =ANDaten2!$I8 -> 0 | D10: =ANDaten2!$I9 -> 750 | E10: =ANDaten2!$I10 -> 0 | F10: =ANDaten2!$I11 -> 600 | G10: =ANDaten2!$I12 -> 0 | H10: =ANDaten2!$I13 -> 0 | I10: =ANDaten2!$I14 -> 0 | J10: =ANDaten2!$I15 -> 0 | K10: =ANDaten2!$I16 -> 0 | L10: =ANDaten2!$I17 -> 0 | M10: =ANDaten2!$I18 -> 0 | N10: =ANDaten2!$I19 -> 0 | O10: =ANDaten2!$I20 -> 0 | P10: =ANDaten2!$I21 -> 0 | Q10: =ANDaten2!$I22 -> 0 | R10: =ANDaten2!$I23 -> 0 | S10: =ANDaten2!$I24 -> 0 | T10: =ANDaten2!$I25 -> 0 | U10: =ANDaten2!$I26 -> 0 | V10: =ANDaten2!$I27 -> 0 | W10: =ANDaten2!$I28 -> 0 | X10: =ANDaten2!$I29 -> 0 | Y10: =ANDaten2!$I30 -> 0 | Z10: =ANDaten2!$I31 -> 0 | AA10: =ANDaten2!$I32 -> 0 | AB10: =ANDaten2!$I33 -> 0 | AC10: =ANDaten2!$I34 -> 0 | AD10: =ANDaten2!$I35 -> 0 | AE10: =ANDaten2!$I36 -> 0 | AF10: =ANDaten2!$I37 -> 0 | AG10: LZZFREIB | AH10: =Lohnsteuer!$F$55 -> 600
A11: LZZHINZU | B11: 0 | D11: 0 | E11: 0 | F11: 0 | G11: 0 | H11: 0 | I11: 0 | J11: 0 | K11: 0 | L11: 0 | M11: 0 | N11: 0 | O11: 0 | P11: 0 | Q11: 0 | R11: 0 | S11: 0 | T11: 0 | U11: 0 | V11: 0 | W11: 0 | X11: 0 | Y11: 0 | Z11: 0 | AA11: 0 | AB11: 0 | AC11: 0 | AD11: 0 | AE11: 0 | AF11: 0 | AG11: LZZHINZU | AH11: 0
A12: PKPV | B12: 0 | D12: 0 | E12: 0 | F12: 0 | G12: 0 | H12: 0 | I12: 0 | J12: 0 | K12: 0 | L12: 0 | M12: 0 | N12: 0 | O12: 0 | P12: 0 | Q12: 0 | R12: 0 | S12: 0 | T12: 0 | U12: 0 | V12: 0 | W12: 0 | X12: 0 | Y12: 0 | Z12: 0 | AA12: 0 | AB12: 0 | AC12: 0 | AD12: 0 | AE12: 0 | AF12: 0 | AG12: PKPV | AH12: 0
A13: PKV | B13: 1 | D13: 1 | E13: 1 | F13: 1 | G13: 1 | H13: 1 | I13: 1 | J13: 1 | K13: 1 | L13: 1 | M13: 1 | N13: 1 | O13: 1 | P13: 1 | Q13: 1 | R13: 1 | S13: 1 | T13: 1 | U13: 1 | V13: 1 | W13: 1 | X13: 1 | Y13: 1 | Z13: 1 | AA13: 1 | AB13: 1 | AC13: 1 | AD13: 1 | AE13: 1 | AF13: 1 | AG13: PKV | AH13: 1
A14: PVS | B14: 0 | D14: 0 | E14: 0 | F14: 0 | G14: 0 | H14: 0 | I14: 0 | J14: 0 | K14: 0 | L14: 0 | M14: 0 | N14: 0 | O14: 0 | P14: 0 | Q14: 0 | R14: 0 | S14: 0 | T14: 0 | U14: 0 | V14: 0 | W14: 0 | X14: 0 | Y14: 0 | Z14: 0 | AA14: 0 | AB14: 0 | AC14: 0 | AD14: 0 | AE14: 0 | AF14: 0 | AG14: PVS | AH14: 0
A15: PVZ | B15: 0 | D15: 0 | E15: 0 | F15: 0 | G15: 0 | H15: 0 | I15: 0 | J15: 0 | K15: 0 | L15: 0 | M15: 0 | N15: 0 | O15: 0 | P15: 0 | Q15: 0 | R15: 0 | S15: 0 | T15: 0 | U15: 0 | V15: 0 | W15: 0 | X15: 0 | Y15: 0 | Z15: 0 | AA15: 0 | AB15: 0 | AC15: 0 | AD15: 0 | AE15: 0 | AF15: 0 | AG15: PVZ | AH15: 0
A16: R | B16: 1 | D16: 1 | E16: 1 | F16: 1 | G16: 1 | H16: 1 | I16: 1 | J16: 1 | K16: 1 | L16: 1 | M16: 1 | N16: 1 | O16: 1 | P16: 1 | Q16: 1 | R16: 1 | S16: 1 | T16: 1 | U16: 1 | V16: 1 | W16: 1 | X16: 1 | Y16: 1 | Z16: 1 | AA16: 1 | AB16: 1 | AC16: 1 | AD16: 1 | AE16: 1 | AF16: 1 | AG16: R | AH16: 1
A17: RE4 | B17: =GehaltsL1!$K8*100 -> 850000 | D17: =GehaltsL1!$K9*100 -> 551500 | E17: =GehaltsL1!$K10*100 -> 730000 | F17: =GehaltsL1!$K11*100 -> 571500 | G17: =GehaltsL1!$K12*100 -> 651500 | H17: =GehaltsL1!$K13*100 -> 651500 | I17: =GehaltsL1!$K14*100 -> 66500 | J17: =GehaltsL1!$K15*100 -> 341500 | K17: =GehaltsL1!$K16*100 -> 301500 | L17: =GehaltsL1!$K17*100 -> 476500 | M17: =GehaltsL1!$K18*100 -> 476500 | N17: =GehaltsL1!$K19*100 -> 341500 | O17: =GehaltsL1!$K20*100 -> 340000 | P17: =GehaltsL1!$K21*100 -> 450000 | Q17: =GehaltsL1!$K22*100 -> 340000 | R17: =GehaltsL1!$K23*100 -> 501500 | S17: =GehaltsL1!$K24*100 -> 341500 | T17: =GehaltsL1!$K25*100 -> 340000 | U17: =GehaltsL1!$K26*100 -> 56500 | V17: =GehaltsL1!$K27*100 -> 55000 | W17: =GehaltsL1!$K28*100 ->  | X17: =GehaltsL1!$K29*100 ->  | Y17: =GehaltsL1!$K30*100 ->  | Z17: =GehaltsL1!$K31*100 ->  | AA17: =GehaltsL1!$K32*100 ->  | AB17: =GehaltsL1!$K33*100 ->  | AC17: =GehaltsL1!$K34*100 ->  | AD17: =GehaltsL1!$K35*100 ->  | AE17: =GehaltsL1!$K36*100 ->  | AF17: =GehaltsL1!$K37*100 ->  | AG17: RE4 | AH17: =(Lohnsteuer!$A$43+Lohnsteuer!$A$46+Lohnsteuer!$F$53-Lohnsteuer!$F$56)*100 -> 621500
A18: STERBE | B18: 0 | D18: 0 | E18: 0 | F18: 0 | G18: 0 | H18: 0 | I18: 0 | J18: 0 | K18: 0 | L18: 0 | M18: 0 | N18: 0 | O18: 0 | P18: 0 | Q18: 0 | R18: 0 | S18: 0 | T18: 0 | U18: 0 | V18: 0 | W18: 0 | X18: 0 | Y18: 0 | Z18: 0 | AA18: 0 | AB18: 0 | AC18: 0 | AD18: 0 | AE18: 0 | AF18: 0 | AG18: STERBE | AH18: 0
A19: STKL | B19: =ANDaten2!$G8 -> 4 | D19: =ANDaten2!$G9 -> 3 | E19: =ANDaten2!$G10 -> 1 | F19: =ANDaten2!$G11 -> 3 | G19: =ANDaten2!$G12 -> 3 | H19: =ANDaten2!$G13 -> 2 | I19: =ANDaten2!$G14 -> 1 | J19: =ANDaten2!$G15 -> 3 | K19: =ANDaten2!$G16 -> 1 | L19: =ANDaten2!$G17 -> 4 | M19: =ANDaten2!$G18 -> 3 | N19: =ANDaten2!$G19 -> 3 | O19: =ANDaten2!$G20 -> 4 | P19: =ANDaten2!$G21 -> 3 | Q19: =ANDaten2!$G22 -> 5 | R19: =ANDaten2!$G23 -> 1 | S19: =ANDaten2!$G24 -> 2 | T19: =ANDaten2!$G25 -> 4 | U19: =ANDaten2!$G26 -> 1 | V19: =ANDaten2!$G27 -> 1 | W19: =ANDaten2!$G27 -> 1 | X19: =ANDaten2!$G29 -> 0 | Y19: =ANDaten2!$G30 -> 0 | Z19: =ANDaten2!$G31 -> 0 | AA19: =ANDaten2!$G32 -> 0 | AB19: =ANDaten2!$G33 -> 0 | AC19: =ANDaten2!$G34 -> 0 | AD19: =ANDaten2!$G35 -> 0 | AE19: =ANDaten2!$G36 -> 0 | AF19: =ANDaten2!$G37 -> 0 | AG19: STKL | AH19: =Lohnsteuer!$A$23 -> 4
A20: VBEZ | B20: 0 | D20: 0 | E20: 0 | F20: 0 | G20: 0 | H20: 0 | I20: 0 | J20: 0 | K20: 0 | L20: 0 | M20: 0 | N20: 0 | O20: 0 | P20: 0 | Q20: 0 | R20: 0 | S20: 0 | T20: 0 | U20: 0 | V20: 0 | W20: 0 | X20: 0 | Y20: 0 | Z20: 0 | AA20: 0 | AB20: 0 | AC20: 0 | AD20: 0 | AE20: 0 | AF20: 0 | AG20: VBEZ | AH20: 0
A21: VBEZM | B21: 0 | D21: 0 | E21: 0 | F21: 0 | G21: 0 | H21: 0 | I21: 0 | J21: 0 | K21: 0 | L21: 0 | M21: 0 | N21: 0 | O21: 0 | P21: 0 | Q21: 0 | R21: 0 | S21: 0 | T21: 0 | U21: 0 | V21: 0 | W21: 0 | X21: 0 | Y21: 0 | Z21: 0 | AA21: 0 | AB21: 0 | AC21: 0 | AD21: 0 | AE21: 0 | AF21: 0 | AG21: VBEZM | AH21: 0
A22: VBEZS | B22: 0 | D22: 0 | E22: 0 | F22: 0 | G22: 0 | H22: 0 | I22: 0 | J22: 0 | K22: 0 | L22: 0 | M22: 0 | N22: 0 | O22: 0 | P22: 0 | Q22: 0 | R22: 0 | S22: 0 | T22: 0 | U22: 0 | V22: 0 | W22: 0 | X22: 0 | Y22: 0 | Z22: 0 | AA22: 0 | AB22: 0 | AC22: 0 | AD22: 0 | AE22: 0 | AF22: 0 | AG22: VBEZS | AH22: 0
A23: VJAHR | B23: 0 | D23: 0 | E23: 0 | F23: 0 | G23: 0 | H23: 0 | I23: 0 | J23: 0 | K23: 0 | L23: 0 | M23: 0 | N23: 0 | O23: 0 | P23: 0 | Q23: 0 | R23: 0 | S23: 0 | T23: 0 | U23: 0 | V23: 0 | W23: 0 | X23: 0 | Y23: 0 | Z23: 0 | AA23: 0 | AB23: 0 | AC23: 0 | AD23: 0 | AE23: 0 | AF23: 0 | AG23: VJAHR | AH23: 0
A24: ZKF | B24: =ANDaten2!$H8 -> 1 | D24: =ANDaten2!$H9 -> 1 | E24: =ANDaten2!$H10 -> 0 | F24: =ANDaten2!$H11 -> 2 | G24: =ANDaten2!$H12 -> 3 | H24: =ANDaten2!$H13 -> 1 | I24: =ANDaten2!$H14 -> 0 | J24: =ANDaten2!$H15 -> 2 | K24: =ANDaten2!$H16 -> 0 | L24: =ANDaten2!$H17 -> 1 | M24: =ANDaten2!$H18 -> 1 | N24: =ANDaten2!$H19 -> 3 | O24: =ANDaten2!$H20 -> 1 | P24: =ANDaten2!$H21 -> 2 | Q24: =ANDaten2!$H22 -> 0 | R24: =ANDaten2!$H23 -> 0 | S24: =ANDaten2!$H24 -> 1 | T24: =ANDaten2!$H25 -> 0 | U24: =ANDaten2!$H26 -> 0 | V24: =ANDaten2!$H27 -> 0 | W24: =ANDaten2!$H28 -> 0 | X24: =ANDaten2!$H29 -> 0 | Y24: =ANDaten2!$H30 -> 0 | Z24: =ANDaten2!$H31 -> 0 | AA24: =ANDaten2!$H32 -> 0 | AB24: =ANDaten2!$H33 -> 0 | AC24: =ANDaten2!$H34 -> 0 | AD24: =ANDaten2!$H35 -> 0 | AE24: =ANDaten2!$H36 -> 0 | AF24: =ANDaten2!$H37 -> 0 | AG24: ZKF | AH24: =Lohnsteuer!$A$26 -> 1
A25: ZMVB | B25: 0 | D25: 0 | E25: 0 | F25: 0 | G25: 0 | H25: 0 | I25: 0 | J25: 0 | K25: 0 | L25: 0 | M25: 0 | N25: 0 | O25: 0 | P25: 0 | Q25: 0 | R25: 0 | S25: 0 | T25: 0 | U25: 0 | V25: 0 | W25: 0 | X25: 0 | Y25: 0 | Z25: 0 | AA25: 0 | AB25: 0 | AC25: 0 | AD25: 0 | AE25: 0 | AF25: 0 | AG25: ZMVB | AH25: 0
A29: Interne Felder | AG29: Interne Felder
A31: MPARA | AG31: MPARA
A32: BBGRV | B32: =IF(OR(B7=0,B7=2),76200,68400) -> 76200 | D32: =IF(OR(D7=0,D7=2),76200,68400) -> 76200 | E32: 76200 | F32: 76200 | G32: 76200 | H32: 76200 | I32: 76200 | J32: 76200 | K32: 76200 | L32: 76200 | M32: 76200 | N32: 76200 | O32: 76200 | P32: 76200 | Q32: 76200 | R32: 76200 | S32: 76200 | T32: 76200 | U32: 76200 | V32: 76200 | W32: 76200 | X32: 76200 | Y32: 76200 | Z32: 76200 | AA32: 76200 | AB32: 76200 | AC32: 76200 | AD32: 76200 | AE32: 76200 | AF32: 76200 | AG32: BBGRV | AH32: =IF(OR(AH7=0,AH7=2),76200,68400) -> 76200
A33: RVSATZAN | B33: 0.0935 | D33: 0.0935 | E33: 0.0935 | F33: 0.0935 | G33: 0.0935 | H33: 0.0935 | I33: 0.0935 | J33: 0.0935 | K33: 0.0935 | L33: 0.0935 | M33: 0.0935 | N33: 0.0935 | O33: 0.0935 | P33: 0.0935 | Q33: 0.0935 | R33: 0.0935 | S33: 0.0935 | T33: 0.0935 | U33: 0.0935 | V33: 0.0935 | W33: 0.0935 | X33: 0.0935 | Y33: 0.0935 | Z33: 0.0935 | AA33: 0.0935 | AB33: 0.0935 | AC33: 0.0935 | AD33: 0.0935 | AE33: 0.0935 | AF33: 0.0935 | AG33: RVSATZAN | AH33: 0.0935
A34: TBSVORV | B34: 0.68 | D34: 0.68 | E34: 0.68 | F34: 0.68 | G34: 0.68 | H34: 0.68 | I34: 0.68 | J34: 0.68 | K34: 0.68 | L34: 0.68 | M34: 0.68 | N34: 0.68 | O34: 0.68 | P34: 0.68 | Q34: 0.68 | R34: 0.68 | S34: 0.68 | T34: 0.68 | U34: 0.68 | V34: 0.68 | W34: 0.68 | X34: 0.68 | Y34: 0.68 | Z34: 0.68 | AA34: 0.68 | AB34: 0.68 | AC34: 0.68 | AD34: 0.68 | AE34: 0.68 | AF34: 0.68 | AG34: TBSVORV | AH34: 0.68
A35: BBGKVPV | B35: 52200 | D35: 52200 | E35: 52200 | F35: 52200 | G35: 52200 | H35: 52200 | I35: 52200 | J35: 52200 | K35: 52200 | L35: 52200 | M35: 52200 | N35: 52200 | O35: 52200 | P35: 52200 | Q35: 52200 | R35: 52200 | S35: 52200 | T35: 52200 | U35: 52200 | V35: 52200 | W35: 52200 | X35: 52200 | Y35: 52200 | Z35: 52200 | AA35: 52200 | AB35: 52200 | AC35: 52200 | AD35: 52200 | AE35: 52200 | AF35: 52200 | AG35: BBGKVPV | AH35: 52200
A36: KVSATZAN | B36: =B8/100+0.07 -> 0.07 | D36: =D8/100+0.07 -> 0.081 | E36: 0.081 | F36: 0.081 | G36: 0.081 | H36: 0.081 | I36: 0.081 | J36: 0.081 | K36: 0.081 | L36: 0.081 | M36: 0.081 | N36: 0.081 | O36: 0.081 | P36: 0.081 | Q36: 0.081 | R36: 0.081 | S36: 0.081 | T36: 0.081 | U36: 0.081 | V36: 0.081 | W36: 0.07 | X36: 0.07 | Y36: 0.07 | Z36: 0.07 | AA36: 0.07 | AB36: 0.07 | AC36: 0.07 | AD36: 0.07 | AE36: 0.07 | AF36: 0.07 | AG36: KVSATZAN | AH36: =AH8/100+0.07 -> 0.07
A37: KVSATZAG | B37: 0.07 | D37: 0.07 | E37: 0.07 | F37: 0.07 | G37: 0.07 | H37: 0.07 | I37: 0.07 | J37: 0.07 | K37: 0.07 | L37: 0.07 | M37: 0.07 | N37: 0.07 | O37: 0.07 | P37: 0.07 | Q37: 0.07 | R37: 0.07 | S37: 0.07 | T37: 0.07 | U37: 0.07 | V37: 0.07 | W37: 0.07 | X37: 0.07 | Y37: 0.07 | Z37: 0.07 | AA37: 0.07 | AB37: 0.07 | AC37: 0.07 | AD37: 0.07 | AE37: 0.07 | AF37: 0.07 | AG37: KVSATZAG | AH37: 0.07
A38: PVSATZAN | B38: =IF(B14=1,0.01775,0.01275) -> 0.01275 | D38: =IF(D14=1,0.01775,0.01275) -> 0.01275 | E38: 0.01275 | F38: 0.01275 | G38: 0.01275 | H38: 0.01275 | I38: 0.01275 | J38: 0.01275 | K38: 0.01275 | L38: 0.01275 | M38: 0.01275 | N38: 0.01275 | O38: 0.01275 | P38: 0.01275 | Q38: 0.01275 | R38: 0.01275 | S38: 0.01275 | T38: 0.01275 | U38: 0.01275 | V38: 0.01275 | W38: 0.01275 | X38: 0.01275 | Y38: 0.01275 | Z38: 0.01275 | AA38: 0.01275 | AB38: 0.01275 | AC38: 0.01275 | AD38: 0.01275 | AE38: 0.01275 | AF38: 0.01275 | AG38: PVSATZAN | AH38: =IF(AH14=1,0.01775,0.01275) -> 0.01275
A39: PVSATZAG | B39: =IF(B14=1,0.00775,0.01275) -> 0.01275 | D39: =IF(D14=1,0.00775,0.01275) -> 0.01275 | E39: 0.01275 | F39: 0.01275 | G39: 0.01275 | H39: 0.01275 | I39: 0.01275 | J39: 0.01275 | K39: 0.01275 | L39: 0.01275 | M39: 0.01275 | N39: 0.01275 | O39: 0.01275 | P39: 0.01275 | Q39: 0.01275 | R39: 0.01275 | S39: 0.01275 | T39: 0.01275 | U39: 0.01275 | V39: 0.01275 | W39: 0.01275 | X39: 0.01275 | Y39: 0.01275 | Z39: 0.01275 | AA39: 0.01275 | AB39: 0.01275 | AC39: 0.01275 | AD39: 0.01275 | AE39: 0.01275 | AF39: 0.01275 | AG39: PVSATZAG | AH39: =IF(AH14=1,0.00775,0.01275) -> 0.01275
A40: PVSATZAN | B40: =IF(B15=1,B38+0.0025,B38) -> 0.01275 | D40: =IF(D15=1,D38+0.0025,D38) -> 0.01275 | E40: 0.01275 | F40: 0.01275 | G40: 0.01275 | H40: 0.01275 | I40: 0.01275 | J40: 0.01275 | K40: 0.01275 | L40: 0.01275 | M40: 0.01275 | N40: 0.01275 | O40: 0.01275 | P40: 0.01275 | Q40: 0.01275 | R40: 0.01275 | S40: 0.01275 | T40: 0.01275 | U40: 0.01275 | V40: 0.01275 | W40: 0.01275 | X40: 0.01275 | Y40: 0.01275 | Z40: 0.01275 | AA40: 0.01275 | AB40: 0.01275 | AC40: 0.01275 | AD40: 0.01275 | AE40: 0.01275 | AF40: 0.01275 | AG40: PVSATZAN | AH40: =IF(AH15=1,AH38+0.0025,AH38) -> 0.01275
A41: W1STKL5 | B41: 10240 | D41: 10240 | E41: 10240 | F41: 10240 | G41: 10240 | H41: 10240 | I41: 10240 | J41: 10240 | K41: 10240 | L41: 10240 | M41: 10240 | N41: 10240 | O41: 10240 | P41: 10240 | Q41: 10240 | R41: 10240 | S41: 10240 | T41: 10240 | U41: 10240 | V41: 10240 | W41: 10240 | X41: 10240 | Y41: 10240 | Z41: 10240 | AA41: 10240 | AB41: 10240 | AC41: 10240 | AD41: 10240 | AE41: 10240 | AF41: 10240 | AG41: W1STKL5 | AH41: 10240
A42: W2STKL5 | B42: 27029 | D42: 27029 | E42: 27029 | F42: 27029 | G42: 27029 | H42: 27029 | I42: 27029 | J42: 27029 | K42: 27029 | L42: 27029 | M42: 27029 | N42: 27029 | O42: 27029 | P42: 27029 | Q42: 27029 | R42: 27029 | S42: 27029 | T42: 27029 | U42: 27029 | V42: 27029 | W42: 27029 | X42: 27029 | Y42: 27029 | Z42: 27029 | AA42: 27029 | AB42: 27029 | AC42: 27029 | AD42: 27029 | AE42: 27029 | AF42: 27029 | AG42: W2STKL5 | AH42: 27029
A43: W3STKL5 | B43: 205043 | D43: 205043 | E43: 205043 | F43: 205043 | G43: 205043 | H43: 205043 | I43: 205043 | J43: 205043 | K43: 205043 | L43: 205043 | M43: 205043 | N43: 205043 | O43: 205043 | P43: 205043 | Q43: 205043 | R43: 205043 | S43: 205043 | T43: 205043 | U43: 205043 | V43: 205043 | W43: 205043 | X43: 205043 | Y43: 205043 | Z43: 205043 | AA43: 205043 | AB43: 205043 | AC43: 205043 | AD43: 205043 | AE43: 205043 | AF43: 205043 | AG43: W3STKL5 | AH43: 205043
A44: GFB | B44: 8820 | D44: 8820 | E44: 8820 | F44: 8820 | G44: 8820 | H44: 8820 | I44: 8820 | J44: 8820 | K44: 8820 | L44: 8820 | M44: 8820 | N44: 8820 | O44: 8820 | P44: 8820 | Q44: 8820 | R44: 8820 | S44: 8820 | T44: 8820 | U44: 8820 | V44: 8820 | W44: 8820 | X44: 8820 | Y44: 8820 | Z44: 8820 | AA44: 8820 | AB44: 8820 | AC44: 8820 | AD44: 8820 | AE44: 8820 | AF44: 8820 | AG44: GFB | AH44: 8820
A45: SOLZFREI | B45: 972 | D45: 972 | E45: 972 | F45: 972 | G45: 972 | H45: 972 | I45: 972 | J45: 972 | K45: 972 | L45: 972 | M45: 972 | N45: 972 | O45: 972 | P45: 972 | Q45: 972 | R45: 972 | S45: 972 | T45: 972 | U45: 972 | V45: 972 | W45: 972 | X45: 972 | Y45: 972 | Z45: 972 | AA45: 972 | AB45: 972 | AC45: 972 | AD45: 972 | AE45: 972 | AF45: 972 | AG45: SOLZFREI | AH45: 972
A47: MRE4JL | AG47: MRE4JL
A48: ZRE4J | B48: =IF(B9=1,B17/100,IF(B9=2,B17*12/100,IF(B9=3,B17*360/7/100,B17*360/100))) -> 102000 | D48: =IF(D9=1,D17/100,IF(D9=2,D17*12/100,IF(D9=3,D17*360/7/100,D17*360/100))) -> 66180 | E48: 87600 | F48: 68580 | G48: 78180 | H48: 78180 | I48: 7980 | J48: 40980 | K48: 36180 | L48: 57180 | M48: 57180 | N48: 40980 | O48: 40800 | P48: 54000 | Q48: 40800 | R48: 60180 | S48: 40980 | T48: 40800 | U48: 6780 | V48: 6600 | AG48: ZRE4J | AH48: =IF(AH9=1,AH17/100,IF(AH9=2,AH17*12/100,IF(AH9=3,AH17*360/7/100,AH17*360/100))) -> 74580
A49: ZVBEZJ | B49: =IF(B9=1,B20/100,IF(B9=2,B20*12/100,IF(B9=3,B20*360/7/100,B20*360/100))) -> 0 | D49: =IF(D9=1,D20/100,IF(D9=2,D20*12/100,IF(D9=3,D20*360/7/100,D20*360/100))) -> 0 | E49: 0 | F49: 0 | G49: 0 | H49: 0 | I49: 0 | J49: 0 | K49: 0 | L49: 0 | M49: 0 | N49: 0 | O49: 0 | P49: 0 | Q49: 0 | R49: 0 | S49: 0 | T49: 0 | U49: 0 | V49: 0 | W49: 0 | X49: 0 | Y49: 0 | Z49: 0 | AA49: 0 | AB49: 0 | AC49: 0 | AD49: 0 | AE49: 0 | AF49: 0 | AG49: ZVBEZJ | AH49: =IF(AH9=1,AH20/100,IF(AH9=2,AH20*12/100,IF(AH9=3,AH20*360/7/100,AH20*360/100))) -> 0
A50: JLFREIB | B50: =IF(B9=1,B10/100,IF(B9=2,B10*12/100,IF(B9=3,B10*360/7/100,B10*360/100))) -> 0 | D50: =IF(D9=1,D10/100,IF(D9=2,D10*12/100,IF(D9=3,D10*360/7/100,D10*360/100))) -> 90 | E50: 0 | F50: 72 | G50: 0 | H50: 0 | I50: 0 | J50: 0 | K50: 0 | L50: 0 | M50: 0 | N50: 0 | O50: 0 | P50: 0 | Q50: 0 | R50: 0 | S50: 0 | T50: 0 | U50: 0 | V50: 0 | W50: 0 | X50: 0 | Y50: 0 | Z50: 0 | AA50: 0 | AB50: 0 | AC50: 0 | AD50: 0 | AE50: 0 | AF50: 0 | AG50: JLFREIB | AH50: =IF(AH9=1,AH10/100,IF(AH9=2,AH10*12/100,IF(AH9=3,AH10*360/7/100,AH10*360/100))) -> 72
A51: JLHINZU | B51: =IF(B9=1,B11/100,IF(B9=2,B11*12/100,IF(B9=3,B11*360/7/100,B11*360/100))) -> 0 | D51: =IF(D9=1,D11/100,IF(D9=2,D11*12/100,IF(D9=3,D11*360/7/100,D11*360/100))) -> 0 | E51: 0 | F51: 0 | G51: 0 | H51: 0 | I51: 0 | J51: 0 | K51: 0 | L51: 0 | M51: 0 | N51: 0 | O51: 0 | P51: 0 | Q51: 0 | R51: 0 | S51: 0 | T51: 0 | U51: 0 | V51: 0 | W51: 0 | X51: 0 | Y51: 0 | Z51: 0 | AA51: 0 | AB51: 0 | AC51: 0 | AD51: 0 | AE51: 0 | AF51: 0 | AG51: JLHINZU | AH51: =IF(AH9=1,AH11/100,IF(AH9=2,AH11*12/100,IF(AH9=3,AH11*360/7/100,AH11*360/100))) -> 0
A52: F | B52: =IF(B3=0,1,B6) -> 1 | D52: =IF(D3=0,1,D6) -> 1 | E52: 1 | F52: 1 | G52: 1 | H52: 1 | I52: 1 | J52: 1 | K52: 1 | L52: 1 | M52: 1 | N52: 1 | O52: 1 | P52: 1 | Q52: 1 | R52: 1 | S52: 1 | T52: 1 | U52: 1 | V52: 1 | W52: 1 | X52: 1 | Y52: 1 | Z52: 1 | AA52: 1 | AB52: 1 | AC52: 1 | AD52: 1 | AE52: 1 | AF52: 1 | AG52: F | AH52: =IF(AH3=0,1,AH6) -> 1
A54: MRE4 | AG54: MRE4
A55: J | B55: =IF(B49=0,0,IF(B23<2006,1,IF(B23<2040,B23-2004,36))) -> 0 | D55: =IF(D49=0,0,IF(D23<2006,1,IF(D23<2040,D23-2004,36))) -> 0 | E55: 0 | F55: 0 | G55: 0 | H55: 0 | I55: 0 | J55: 0 | K55: 0 | L55: 0 | M55: 0 | N55: 0 | O55: 0 | P55: 0 | Q55: 0 | R55: 0 | S55: 0 | T55: 0 | U55: 0 | V55: 0 | W55: 0 | X55: 0 | Y55: 0 | Z55: 0 | AA55: 0 | AB55: 0 | AC55: 0 | AD55: 0 | AE55: 0 | AF55: 0 | AG55: J | AH55: =IF(AH49=0,0,IF(AH23<2006,1,IF(AH23<2040,AH23-2004,36))) -> 0
A56: TAB1 | B56: =IF(B49=0,0,0.4-(B55-1)*0.016+IF(B55>16,(B55-16)*0.008,0)) -> 0 | D56: =IF(D49=0,0,0.4-(D55-1)*0.016+IF(D55>16,(D55-16)*0.008,0)) -> 0 | E56: 0 | F56: 0 | G56: 0 | H56: 0 | I56: 0 | J56: 0 | K56: 0 | L56: 0 | M56: 0 | N56: 0 | O56: 0 | P56: 0 | Q56: 0 | R56: 0 | S56: 0 | T56: 0 | U56: 0 | V56: 0 | W56: 0 | X56: 0 | Y56: 0 | Z56: 0 | AA56: 0 | AB56: 0 | AC56: 0 | AD56: 0 | AE56: 0 | AF56: 0 | AG56: TAB1 | AH56: =IF(AH49=0,0,0.4-(AH55-1)*0.016+IF(AH55>16,(AH55-16)*0.008,0)) -> 0
A57: TAB2 | B57: =IF(B49=0,0,3000-(B55-1)*120+IF(B55>16,(B55-16)*60,0)) -> 0 | D57: =IF(D49=0,0,3000-(D55-1)*120+IF(D55>16,(D55-16)*60,0)) -> 0 | E57: 0 | F57: 0 | G57: 0 | H57: 0 | I57: 0 | J57: 0 | K57: 0 | L57: 0 | M57: 0 | N57: 0 | O57: 0 | P57: 0 | Q57: 0 | R57: 0 | S57: 0 | T57: 0 | U57: 0 | V57: 0 | W57: 0 | X57: 0 | Y57: 0 | Z57: 0 | AA57: 0 | AB57: 0 | AC57: 0 | AD57: 0 | AE57: 0 | AF57: 0 | AG57: TAB2 | AH57: =IF(AH49=0,0,3000-(AH55-1)*120+IF(AH55>16,(AH55-16)*60,0)) -> 0
A58: TAB3 | B58: =IF(B49=0,0,900-(B55-1)*36+IF(B55>16,(B55-16)*18,0)) -> 0 | D58: =IF(D49=0,0,900-(D55-1)*36+IF(D55>16,(D55-16)*18,0)) -> 0 | E58: 0 | F58: 0 | G58: 0 | H58: 0 | I58: 0 | J58: 0 | K58: 0 | L58: 0 | M58: 0 | N58: 0 | O58: 0 | P58: 0 | Q58: 0 | R58: 0 | S58: 0 | T58: 0 | U58: 0 | V58: 0 | W58: 0 | X58: 0 | Y58: 0 | Z58: 0 | AA58: 0 | AB58: 0 | AC58: 0 | AD58: 0 | AE58: 0 | AF58: 0 | AG58: TAB3 | AH58: =IF(AH49=0,0,900-(AH55-1)*36+IF(AH55>16,(AH55-16)*18,0)) -> 0
A59: VBEZB | B59: =IF(B49=0,0,IF(B9<>1,B21*12+B22,B21*B25+B22)) -> 0 | D59: =IF(D49=0,0,IF(D9<>1,D21*12+D22,D21*D25+D22)) -> 0 | E59: 0 | F59: 0 | G59: 0 | H59: 0 | I59: 0 | J59: 0 | K59: 0 | L59: 0 | M59: 0 | N59: 0 | O59: 0 | P59: 0 | Q59: 0 | R59: 0 | S59: 0 | T59: 0 | U59: 0 | V59: 0 | W59: 0 | X59: 0 | Y59: 0 | Z59: 0 | AA59: 0 | AB59: 0 | AC59: 0 | AD59: 0 | AE59: 0 | AF59: 0 | AG59: VBEZB | AH59: =IF(AH49=0,0,IF(AH9<>1,AH21*12+AH22,AH21*AH25+AH22)) -> 0
A60: HFVB | B60: =IF(B49=0,0,IF(B9<>1,B57,B57/12*B25)) -> 0 | D60: =IF(D49=0,0,IF(D9<>1,D57,D57/12*D25)) -> 0 | E60: 0 | F60: 0 | G60: 0 | H60: 0 | I60: 0 | J60: 0 | K60: 0 | L60: 0 | M60: 0 | N60: 0 | O60: 0 | P60: 0 | Q60: 0 | R60: 0 | S60: 0 | T60: 0 | U60: 0 | V60: 0 | W60: 0 | X60: 0 | Y60: 0 | Z60: 0 | AA60: 0 | AB60: 0 | AC60: 0 | AD60: 0 | AE60: 0 | AF60: 0 | AG60: HFVB | AH60: =IF(AH49=0,0,IF(AH9<>1,AH57,AH57/12*AH25)) -> 0
A61: FVBZ | B61: =IF(B49=0,0,IF(B9<>1,B58,ROUNDUP(B58/12*B25,0))) -> 0 | D61: =IF(D49=0,0,IF(D9<>1,D58,ROUNDUP(D58/12*D25,0))) -> 0 | E61: 0 | F61: 0 | G61: 0 | H61: 0 | I61: 0 | J61: 0 | K61: 0 | L61: 0 | M61: 0 | N61: 0 | O61: 0 | P61: 0 | Q61: 0 | R61: 0 | S61: 0 | T61: 0 | U61: 0 | V61: 0 | W61: 0 | X61: 0 | Y61: 0 | Z61: 0 | AA61: 0 | AB61: 0 | AC61: 0 | AD61: 0 | AE61: 0 | AF61: 0 | AG61: FVBZ | AH61: =IF(AH49=0,0,IF(AH9<>1,AH58,ROUNDUP(AH58/12*AH25,0))) -> 0
A62: FVB | B62: =IF(B49=0,0,ROUNDUP(B59*B56/100,2)) -> 0 | D62: =IF(D49=0,0,ROUNDUP(D59*D56/100,2)) -> 0 | E62: 0 | F62: 0 | G62: 0 | H62: 0 | I62: 0 | J62: 0 | K62: 0 | L62: 0 | M62: 0 | N62: 0 | O62: 0 | P62: 0 | Q62: 0 | R62: 0 | S62: 0 | T62: 0 | U62: 0 | V62: 0 | W62: 0 | X62: 0 | Y62: 0 | Z62: 0 | AA62: 0 | AB62: 0 | AC62: 0 | AD62: 0 | AE62: 0 | AF62: 0 | AG62: FVB | AH62: =IF(AH49=0,0,ROUNDUP(AH59*AH56/100,2)) -> 0
A63: FVB | B63: =IF(B62>B60,B60,B62) -> 0 | D63: =IF(D62>D60,D60,D62) -> 0 | E63: 0 | F63: 0 | G63: 0 | H63: 0 | I63: 0 | J63: 0 | K63: 0 | L63: 0 | M63: 0 | N63: 0 | O63: 0 | P63: 0 | Q63: 0 | R63: 0 | S63: 0 | T63: 0 | U63: 0 | V63: 0 | W63: 0 | X63: 0 | Y63: 0 | Z63: 0 | AA63: 0 | AB63: 0 | AC63: 0 | AD63: 0 | AE63: 0 | AF63: 0 | AG63: FVB | AH63: =IF(AH62>AH60,AH60,AH62) -> 0
A64: HFVBZ | B64: =B59/100-B63 -> 0 | D64: =D59/100-D63 -> 0 | E64: 0 | F64: 0 | G64: 0 | H64: 0 | I64: 0 | J64: 0 | K64: 0 | L64: 0 | M64: 0 | N64: 0 | O64: 0 | P64: 0 | Q64: 0 | R64: 0 | S64: 0 | T64: 0 | U64: 0 | V64: 0 | W64: 0 | X64: 0 | Y64: 0 | Z64: 0 | AA64: 0 | AB64: 0 | AC64: 0 | AD64: 0 | AE64: 0 | AF64: 0 | AG64: HFVBZ | AH64: =AH59/100-AH63 -> 0
A65: FVBZ | B65: =IF(B61>B64,ROUNDUP(B64,0),B61) -> 0 | D65: =IF(D61>D64,ROUNDUP(D64,0),D61) -> 0 | E65: 0 | F65: 0 | G65: 0 | H65: 0 | I65: 0 | J65: 0 | K65: 0 | L65: 0 | M65: 0 | N65: 0 | O65: 0 | P65: 0 | Q65: 0 | R65: 0 | S65: 0 | T65: 0 | U65: 0 | V65: 0 | W65: 0 | X65: 0 | Y65: 0 | Z65: 0 | AA65: 0 | AB65: 0 | AC65: 0 | AD65: 0 | AE65: 0 | AF65: 0 | AG65: FVBZ | AH65: =IF(AH61>AH64,ROUNDUP(AH64,0),AH61) -> 0
A67: MRE4ALTE | AG67: MRE4ALTE
A68: K | B68: =IF(B5=0,0,IF(B4<2006,1,IF(B4<2040,B4-2004,36))) -> 0 | D68: =IF(D5=0,0,IF(D4<2006,1,IF(D4<2040,D4-2004,36))) -> 0 | E68: 0 | F68: 0 | G68: 0 | H68: 0 | I68: 0 | J68: 0 | K68: 0 | L68: 0 | M68: 0 | N68: 0 | O68: 0 | P68: 0 | Q68: 0 | R68: 0 | S68: 0 | T68: 0 | U68: 0 | V68: 0 | W68: 0 | X68: 0 | Y68: 0 | Z68: 0 | AA68: 0 | AB68: 0 | AC68: 0 | AD68: 0 | AE68: 0 | AF68: 0 | AG68: K | AH68: =IF(AH5=0,0,IF(AH4<2006,1,IF(AH4<2040,AH4-2004,36))) -> 0
A69: TAB4 | B69: =IF(B5=0,0,0.4-(B68-1)*0.016+IF(B68>16,(B68-16)*0.008,0)) -> 0 | D69: =IF(D5=0,0,0.4-(D68-1)*0.016+IF(D68>16,(D68-16)*0.008,0)) -> 0 | E69: 0 | F69: 0 | G69: 0 | H69: 0 | I69: 0 | J69: 0 | K69: 0 | L69: 0 | M69: 0 | N69: 0 | O69: 0 | P69: 0 | Q69: 0 | R69: 0 | S69: 0 | T69: 0 | U69: 0 | V69: 0 | W69: 0 | X69: 0 | Y69: 0 | Z69: 0 | AA69: 0 | AB69: 0 | AC69: 0 | AD69: 0 | AE69: 0 | AF69: 0 | AG69: TAB4 | AH69: =IF(AH5=0,0,0.4-(AH68-1)*0.016+IF(AH68>16,(AH68-16)*0.008,0)) -> 0
A70: TAB5 | B70: =IF(B5=0,0,1900-(B68-1)*76+IF(B68>16,(B68-16)*38,0)) -> 0 | D70: =IF(D5=0,0,1900-(D68-1)*76+IF(D68>16,(D68-16)*38,0)) -> 0 | E70: 0 | F70: 0 | G70: 0 | H70: 0 | I70: 0 | J70: 0 | K70: 0 | L70: 0 | M70: 0 | N70: 0 | O70: 0 | P70: 0 | Q70: 0 | R70: 0 | S70: 0 | T70: 0 | U70: 0 | V70: 0 | W70: 0 | X70: 0 | Y70: 0 | Z70: 0 | AA70: 0 | AB70: 0 | AC70: 0 | AD70: 0 | AE70: 0 | AF70: 0 | AG70: TAB5 | AH70: =IF(AH5=0,0,1900-(AH68-1)*76+IF(AH68>16,(AH68-16)*38,0)) -> 0
A71: BMG | B71: =IF(B5=0,0,B48-B49) -> 0 | D71: =IF(D5=0,0,D48-D49) -> 0 | E71: 0 | F71: 0 | G71: 0 | H71: 0 | I71: 0 | J71: 0 | K71: 0 | L71: 0 | M71: 0 | N71: 0 | O71: 0 | P71: 0 | Q71: 0 | R71: 0 | S71: 0 | T71: 0 | U71: 0 | V71: 0 | W71: 0 | X71: 0 | Y71: 0 | Z71: 0 | AA71: 0 | AB71: 0 | AC71: 0 | AD71: 0 | AE71: 0 | AF71: 0 | AG71: BMG | AH71: =IF(AH5=0,0,AH48-AH49) -> 0
A72: ALTE | B72: =IF(B5=0,0,ROUNDUP(B71*B69,2)) -> 0 | D72: =IF(D5=0,0,ROUNDUP(D71*D69,2)) -> 0 | E72: 0 | F72: 0 | G72: 0 | H72: 0 | I72: 0 | J72: 0 | K72: 0 | L72: 0 | M72: 0 | N72: 0 | O72: 0 | P72: 0 | Q72: 0 | R72: 0 | S72: 0 | T72: 0 | U72: 0 | V72: 0 | W72: 0 | X72: 0 | Y72: 0 | Z72: 0 | AA72: 0 | AB72: 0 | AC72: 0 | AD72: 0 | AE72: 0 | AF72: 0 | AG72: ALTE | AH72: =IF(AH5=0,0,ROUNDUP(AH71*AH69,2)) -> 0
A73: HBALTE | B73: =B70 -> 0 | D73: =D70 -> 0 | E73: 0 | F73: 0 | G73: 0 | H73: 0 | I73: 0 | J73: 0 | K73: 0 | L73: 0 | M73: 0 | N73: 0 | O73: 0 | P73: 0 | Q73: 0 | R73: 0 | S73: 0 | T73: 0 | U73: 0 | V73: 0 | W73: 0 | X73: 0 | Y73: 0 | Z73: 0 | AA73: 0 | AB73: 0 | AC73: 0 | AD73: 0 | AE73: 0 | AF73: 0 | AG73: HBALTE | AH73: =AH70 -> 0
A74: ALTE | B74: =IF(B72>B73,B73,B72) -> 0 | D74: =IF(D72>D73,D73,D72) -> 0 | E74: 0 | F74: 0 | G74: 0 | H74: 0 | I74: 0 | J74: 0 | K74: 0 | L74: 0 | M74: 0 | N74: 0 | O74: 0 | P74: 0 | Q74: 0 | R74: 0 | S74: 0 | T74: 0 | U74: 0 | V74: 0 | W74: 0 | X74: 0 | Y74: 0 | Z74: 0 | AA74: 0 | AB74: 0 | AC74: 0 | AD74: 0 | AE74: 0 | AF74: 0 | AG74: ALTE | AH74: =IF(AH72>AH73,AH73,AH72) -> 0
A76: MRE4ABZ | AG76: MRE4ABZ
A77: ZRE4 | B77: =B48-B63-B74-B50+B51 -> 102000 | D77: =D48-D63-D74-D50+D51 -> 66090 | E77: 87600 | F77: 68508 | G77: 78180 | H77: 78180 | I77: 7980 | J77: 40980 | K77: 36180 | L77: 57180 | M77: 57180 | N77: 40980 | O77: 40800 | P77: 54000 | Q77: 40800 | R77: 60180 | S77: 40980 | T77: 40800 | U77: 6780 | V77: 6600 | AG77: ZRE4 | AH77: =AH48-AH63-AH74-AH50+AH51 -> 74508
A78: ZRE4 | B78: =IF(B77<0,0,B77) -> 102000 | D78: =IF(D77<0,0,D77) -> 66090 | E78: 87600 | F78: 68508 | G78: 78180 | H78: 78180 | I78: 7980 | J78: 40980 | K78: 36180 | L78: 57180 | M78: 57180 | N78: 40980 | O78: 40800 | P78: 54000 | Q78: 40800 | R78: 60180 | S78: 40980 | T78: 40800 | U78: 6780 | V78: 6600 | AG78: ZRE4 | AH78: =IF(AH77<0,0,AH77) -> 74508
A79: ZRE4VP | B79: =B48 -> 102000 | D79: =D48 -> 66180 | E79: 87600 | F79: 68580 | G79: 78180 | H79: 78180 | I79: 7980 | J79: 40980 | K79: 36180 | L79: 57180 | M79: 57180 | N79: 40980 | O79: 40800 | P79: 54000 | Q79: 40800 | R79: 60180 | S79: 40980 | T79: 40800 | U79: 6780 | V79: 6600 | AG79: ZRE4VP | AH79: =AH48 -> 74580
A80: ZVBEZ | B80: =B49-B63 -> 0 | D80: =D49-D63 -> 0 | E80: 0 | F80: 0 | G80: 0 | H80: 0 | I80: 0 | J80: 0 | K80: 0 | L80: 0 | M80: 0 | N80: 0 | O80: 0 | P80: 0 | Q80: 0 | R80: 0 | S80: 0 | T80: 0 | U80: 0 | V80: 0 | W80: 0 | X80: 0 | Y80: 0 | Z80: 0 | AA80: 0 | AB80: 0 | AC80: 0 | AD80: 0 | AE80: 0 | AF80: 0 | AG80: ZVBEZ | AH80: =AH49-AH63 -> 0
A81: ZVBEZ | B81: =IF(B80<0,0,B80) -> 0 | D81: =IF(D80<0,0,D80) -> 0 | E81: 0 | F81: 0 | G81: 0 | H81: 0 | I81: 0 | J81: 0 | K81: 0 | L81: 0 | M81: 0 | N81: 0 | O81: 0 | P81: 0 | Q81: 0 | R81: 0 | S81: 0 | T81: 0 | U81: 0 | V81: 0 | W81: 0 | X81: 0 | Y81: 0 | Z81: 0 | AA81: 0 | AB81: 0 | AC81: 0 | AD81: 0 | AE81: 0 | AF81: 0 | AG81: ZVBEZ | AH81: =IF(AH80<0,0,AH80) -> 0
A83: MZTABFB | AG83: MZTABFB
A84: KZTAB | B84: =IF(B19=3,2,1) -> 1 | D84: =IF(D19=3,2,1) -> 2 | E84: 1 | F84: 2 | G84: 2 | H84: 1 | I84: 1 | J84: 2 | K84: 1 | L84: 1 | M84: 2 | N84: 2 | O84: 1 | P84: 2 | Q84: 1 | R84: 1 | S84: 1 | T84: 1 | U84: 1 | V84: 1 | W84: 1 | X84: 1 | Y84: 1 | Z84: 1 | AA84: 1 | AB84: 1 | AC84: 1 | AD84: 1 | AE84: 1 | AF84: 1 | AG84: KZTAB | AH84: =IF(AH19=3,2,1) -> 1
A85: ANP | B85: =IF(B19>5,0,IF(B81=0,0,IF(B81-IF(B81<B65,B81,B65)<102,B81-IF(B81<B65,B81,B65),102)))+IF(B19>5,0,IF(B78=B81,0,IF(B78-B81<1000,B78-B81,1000))) -> 1000 | D85: =IF(D19>5,0,IF(D81=0,0,IF(D81-IF(D81<D65,D81,D65)<102,D81-IF(D81<D65,D81,D65),102)))+IF(D19>5,0,IF(D78=D81,0,IF(D78-D81<1000,D78-D81,1000))) -> 1000 | E85: 1000 | F85: 1000 | G85: 1000 | H85: 1000 | I85: 1000 | J85: 1000 | K85: 1000 | L85: 1000 | M85: 1000 | N85: 1000 | O85: 1000 | P85: 1000 | Q85: 1000 | R85: 1000 | S85: 1000 | T85: 1000 | U85: 1000 | V85: 1000 | AG85: ANP | AH85: =IF(AH19>5,0,IF(AH81=0,0,IF(AH81-IF(AH81<AH65,AH81,AH65)<102,AH81-IF(AH81<AH65,AH81,AH65),102)))+IF(AH19>5,0,IF(AH78=AH81,0,IF(AH78-AH81<1000,AH78-AH81,1000))) -> 1000
A86: EFA | B86: =IF(B19=2,1908,0) -> 0 | D86: =IF(D19=2,1908,0) -> 0 | E86: 0 | F86: 0 | G86: 0 | H86: 1908 | I86: 0 | J86: 0 | K86: 0 | L86: 0 | M86: 0 | N86: 0 | O86: 0 | P86: 0 | Q86: 0 | R86: 0 | S86: 1908 | T86: 0 | U86: 0 | V86: 0 | W86: 0 | X86: 0 | Y86: 0 | Z86: 0 | AA86: 0 | AB86: 0 | AC86: 0 | AD86: 0 | AE86: 0 | AF86: 0 | AG86: EFA | AH86: =IF(AH19=2,1908,0) -> 0
A87: SAP | B87: =IF(B19>5,0,36) -> 36 | D87: =IF(D19>5,0,36) -> 36 | E87: 36 | F87: 36 | G87: 36 | H87: 36 | I87: 36 | J87: 36 | K87: 36 | L87: 36 | M87: 36 | N87: 36 | O87: 36 | P87: 36 | Q87: 36 | R87: 36 | S87: 36 | T87: 36 | U87: 36 | V87: 36 | W87: 36 | X87: 36 | Y87: 36 | Z87: 36 | AA87: 36 | AB87: 36 | AC87: 36 | AD87: 36 | AE87: 36 | AF87: 36 | AG87: SAP | AH87: =IF(AH19>5,0,36) -> 36
A88: KFB | B88: =IF(B19<4,B24*7356,IF(B19=4,B24*3678,0)) -> 3678 | D88: =IF(D19<4,D24*7356,IF(D19=4,D24*3678,0)) -> 7356 | E88: 0 | F88: 14712 | G88: 22068 | H88: 7356 | I88: 0 | J88: 14712 | K88: 0 | L88: 3678 | M88: 7356 | N88: 22068 | O88: 3678 | P88: 14712 | Q88: 0 | R88: 0 | S88: 7356 | T88: 0 | U88: 0 | V88: 0 | W88: 0 | X88: 0 | Y88: 0 | Z88: 0 | AA88: 0 | AB88: 0 | AC88: 0 | AD88: 0 | AE88: 0 | AF88: 0 | AG88: KFB | AH88: =IF(AH19<4,AH24*7356,IF(AH19=4,AH24*3678,0)) -> 3678
A89: ZTABFB | B89: =B86+B85+B87+IF(B81<B65,B81,B65) -> 1036 | D89: =D86+D85+D87+IF(D81<D65,D81,D65) -> 1036 | E89: 1036 | F89: 1036 | G89: 1036 | H89: 2944 | I89: 1036 | J89: 1036 | K89: 1036 | L89: 1036 | M89: 1036 | N89: 1036 | O89: 1036 | P89: 1036 | Q89: 1036 | R89: 1036 | S89: 2944 | T89: 1036 | U89: 1036 | V89: 1036 | AG89: ZTABFB | AH89: =AH86+AH85+AH87+IF(AH81<AH65,AH81,AH65) -> 1036
A91: MLSTJAHR | AG91: MLSTJAHR
A93: UPEVP | AG93: UPEVP
A94: VSP1 | B94: 0 | D94: 0 | E94: 0 | F94: 0 | G94: 0 | H94: 0 | I94: 0 | J94: 0 | K94: 0 | L94: 0 | M94: 0 | N94: 0 | O94: 0 | P94: 0 | Q94: 0 | R94: 0 | S94: 0 | T94: 0 | U94: 0 | V94: 0 | W94: 0 | X94: 0 | Y94: 0 | Z94: 0 | AA94: 0 | AB94: 0 | AC94: 0 | AD94: 0 | AE94: 0 | AF94: 0 | AG94: VSP1 | AH94: 0
A95: ZRE4VP | B95: =IF(B79>B32,B32,B79) -> 76200 | D95: =IF(D79>D32,D32,D79) -> 66180 | E95: 76200 | F95: 68580 | G95: 76200 | H95: 76200 | I95: 7980 | J95: 40980 | K95: 36180 | L95: 57180 | M95: 57180 | N95: 40980 | O95: 40800 | P95: 54000 | Q95: 40800 | R95: 60180 | S95: 40980 | T95: 40800 | U95: 6780 | V95: 6600 | AG95: ZRE4VP | AH95: =IF(AH79>AH32,AH32,AH79) -> 74580
A96: VSP1 | B96: =TRUNC((B34*B95)*B33,2) -> 4844.79 | D96: =TRUNC((D34*D95)*D33,2) -> 4207.72 | E96: 4844.79 | F96: 4360.31 | G96: 4844.79 | H96: 4844.79 | I96: 507.36 | J96: 2605.5 | K96: 2300.32 | L96: 3635.5 | M96: 3635.5 | N96: 2605.5 | O96: 2594.06 | P96: 3433.32 | Q96: 2594.06 | R96: 3826.24 | S96: 2605.5 | T96: 2594.06 | U96: 431.07 | V96: 419.62 | AG96: VSP1 | AH96: =TRUNC((AH34*AH95)*AH33,2) -> 4741.79
A97: VSP1 | B97: =IF(B7>1,B94,B96) -> 0 | D97: =IF(D7>1,D94,D96) -> 0 | E97: 0 | F97: 0 | G97: 0 | H97: 0 | I97: 0 | J97: 0 | K97: 0 | L97: 0 | M97: 0 | N97: 0 | O97: 0 | P97: 0 | Q97: 0 | R97: 0 | S97: 0 | T97: 0 | U97: 0 | V97: 0 | W97: 0 | X97: 0 | Y97: 0 | Z97: 0 | AA97: 0 | AB97: 0 | AC97: 0 | AD97: 0 | AE97: 0 | AF97: 0 | AG97: VSP1 | AH97: =IF(AH7>1,AH94,AH96) -> 0
A98: VSP2 | B98: =TRUNC(0.12*B95,2) -> 9144 | D98: =TRUNC(0.12*D95,2) -> 7941.6 | E98: 9144 | F98: 8229.6 | G98: 9144 | H98: 9144 | I98: 957.6 | J98: 4917.6 | K98: 4341.6 | L98: 6861.6 | M98: 6861.6 | N98: 4917.6 | O98: 4896 | P98: 6480 | Q98: 4896 | R98: 7221.6 | S98: 4917.6 | T98: 4896 | U98: 813.6 | V98: 792 | AG98: VSP2 | AH98: =TRUNC(0.12*AH95,2) -> 8949.6
A99: VHB | B99: =IF(B19=3,3000,1900) -> 1900 | D99: =IF(D19=3,3000,1900) -> 3000 | E99: 1900 | F99: 3000 | G99: 3000 | H99: 1900 | I99: 1900 | J99: 3000 | K99: 1900 | L99: 1900 | M99: 3000 | N99: 3000 | O99: 1900 | P99: 3000 | Q99: 1900 | R99: 1900 | S99: 1900 | T99: 1900 | U99: 1900 | V99: 1900 | W99: 1900 | X99: 1900 | Y99: 1900 | Z99: 1900 | AA99: 1900 | AB99: 1900 | AC99: 1900 | AD99: 1900 | AE99: 1900 | AF99: 1900 | AG99: VHB | AH99: =IF(AH19=3,3000,1900) -> 1900
A100: VSP2 | B100: =IF(B98>B99,B99,B98) -> 1900 | D100: =IF(D98>D99,D99,D98) -> 3000 | E100: 1900 | F100: 3000 | G100: 3000 | H100: 1900 | I100: 957.6 | J100: 3000 | K100: 1900 | L100: 1900 | M100: 3000 | N100: 3000 | O100: 1900 | P100: 3000 | Q100: 1900 | R100: 1900 | S100: 1900 | T100: 1900 | U100: 813.6 | V100: 792 | AG100: VSP2 | AH100: =IF(AH98>AH99,AH99,AH98) -> 1900
A101: VSPN | B101: =ROUNDUP(B97+B100,0) -> 1900 | D101: =ROUNDUP(D97+D100,0) -> 3000 | E101: 1900 | F101: 3000 | G101: 3000 | H101: 1900 | I101: 958 | J101: 3000 | K101: 1900 | L101: 1900 | M101: 3000 | N101: 3000 | O101: 1900 | P101: 3000 | Q101: 1900 | R101: 1900 | S101: 1900 | T101: 1900 | U101: 814 | V101: 792 | AG101: VSPN | AH101: =ROUNDUP(AH97+AH100,0) -> 1900
A103: MVSP | AG103: MVSP
A104: ZRE4VP | B104: =IF(B95>B35,B35,B95) -> 52200 | D104: =IF(D95>D35,D35,D95) -> 52200 | E104: 52200 | F104: 52200 | G104: 52200 | H104: 52200 | I104: 7980 | J104: 40980 | K104: 36180 | L104: 52200 | M104: 52200 | N104: 40980 | O104: 40800 | P104: 52200 | Q104: 40800 | R104: 52200 | S104: 40980 | T104: 40800 | U104: 6780 | V104: 6600 | AG104: ZRE4VP | AH104: =IF(AH95>AH35,AH35,AH95) -> 52200
A105: VSP3: PKV=0 | B105: =B104*(B36+B40) -> 4319.55 | D105: =D104*(D36+D40) -> 4893.75 | E105: 4893.75 | F105: 4893.75 | G105: 4893.75 | H105: 4893.75 | I105: 748.125 | J105: 3841.875 | K105: 3391.875 | L105: 4893.75 | M105: 4893.75 | N105: 3841.875 | O105: 3825 | P105: 4893.75 | Q105: 3825 | R105: 4893.75 | S105: 3841.875 | T105: 3825 | U105: 635.625 | V105: 618.75 | AG105: VSP3: PKV=0 | AH105: =AH104*(AH36+AH40) -> 4319.55
A106: VSP3: STKL = 6 | B106: 0 | D106: 0 | E106: 0 | F106: 0 | G106: 0 | H106: 0 | I106: 0 | J106: 0 | K106: 0 | L106: 0 | M106: 0 | N106: 0 | O106: 0 | P106: 0 | Q106: 0 | R106: 0 | S106: 0 | T106: 0 | U106: 0 | V106: 0 | W106: 0 | X106: 0 | Y106: 0 | Z106: 0 | AA106: 0 | AB106: 0 | AC106: 0 | AD106: 0 | AE106: 0 | AF106: 0 | AG106: VSP3: STKL = 6 | AH106: 0
A107: VSP3: PKV=1 | B107: =B12*12/100 -> 0 | D107: =D12*12/100 -> 0 | E107: 0 | F107: 0 | G107: 0 | H107: 0 | I107: 0 | J107: 0 | K107: 0 | L107: 0 | M107: 0 | N107: 0 | O107: 0 | P107: 0 | Q107: 0 | R107: 0 | S107: 0 | T107: 0 | U107: 0 | V107: 0 | W107: 0 | X107: 0 | Y107: 0 | Z107: 0 | AA107: 0 | AB107: 0 | AC107: 0 | AD107: 0 | AE107: 0 | AF107: 0 | AG107: VSP3: PKV=1 | AH107: =AH12*12/100 -> 0
A108: VSP3: PKV=2 | B108: =B107-B104*(B37+B39) -> -4319.55 | D108: =D107-D104*(D37+D39) -> -4319.55 | E108: -4319.55 | F108: -4319.55 | G108: -4319.55 | H108: -4319.55 | I108: -660.345 | J108: -3391.095 | K108: -2993.895 | L108: -4319.55 | M108: -4319.55 | N108: -3391.095 | O108: -3376.2 | P108: -4319.55 | Q108: -3376.2 | R108: -4319.55 | S108: -3391.095 | T108: -3376.2 | U108: -561.045 | V108: -546.15 | AG108: VSP3: PKV=2 | AH108: =AH107-AH104*(AH37+AH39) -> -4319.55
A109: VSP3 | B109: =IF(B13=0,B105,IF(AND(B13>0,B19=6),B106,IF(B13=1,B107,B108))) -> 0 | D109: =IF(D13=0,D105,IF(AND(D13>0,D19=6),D106,IF(D13=1,D107,D108))) -> 0 | E109: 0 | F109: 0 | G109: 0 | H109: 0 | I109: 0 | J109: 0 | K109: 0 | L109: 0 | M109: 0 | N109: 0 | O109: 0 | P109: 0 | Q109: 0 | R109: 0 | S109: 0 | T109: 0 | U109: 0 | V109: 0 | W109: 0 | X109: 0 | Y109: 0 | Z109: 0 | AA109: 0 | AB109: 0 | AC109: 0 | AD109: 0 | AE109: 0 | AF109: 0 | AG109: VSP3 | AH109: =IF(AH13=0,AH105,IF(AND(AH13>0,AH19=6),AH106,IF(AH13=1,AH107,AH108))) -> 0
A110: VSP | B110: =ROUNDUP(B109+B97,0) -> 0 | D110: =ROUNDUP(D109+D97,0) -> 0 | E110: 0 | F110: 0 | G110: 0 | H110: 0 | I110: 0 | J110: 0 | K110: 0 | L110: 0 | M110: 0 | N110: 0 | O110: 0 | P110: 0 | Q110: 0 | R110: 0 | S110: 0 | T110: 0 | U110: 0 | V110: 0 | W110: 0 | X110: 0 | Y110: 0 | Z110: 0 | AA110: 0 | AB110: 0 | AC110: 0 | AD110: 0 | AE110: 0 | AF110: 0 | AG110: VSP | AH110: =ROUNDUP(AH109+AH97,0) -> 0
A112: UPEVP | AG112: UPEVP
A113: VSP | B113: =IF(B101>B110,B101,B110) -> 1900 | D113: =IF(D101>D110,D101,D110) -> 3000 | E113: 1900 | F113: 3000 | G113: 3000 | H113: 1900 | I113: 958 | J113: 3000 | K113: 1900 | L113: 1900 | M113: 3000 | N113: 3000 | O113: 1900 | P113: 3000 | Q113: 1900 | R113: 1900 | S113: 1900 | T113: 1900 | U113: 814 | V113: 792 | AG113: VSP | AH113: =IF(AH101>AH110,AH101,AH110) -> 1900
A115: MLSTJAHR | AG115: MLSTJAHR
A116: ZVE | B116: =B78-B89-B113 -> 99064 | D116: =D78-D89-D113 -> 62054 | E116: 84664 | F116: 64472 | G116: 74144 | H116: 73336 | I116: 5986 | J116: 36944 | K116: 33244 | L116: 54244 | M116: 53144 | N116: 36944 | O116: 37864 | P116: 49964 | Q116: 37864 | R116: 57244 | S116: 36136 | T116: 37864 | U116: 4930 | V116: 4772 | AG116: ZVE | AH116: =AH78-AH89-AH113 -> 71572
A118: UPMLST | AG118: UPMLST
A119: ZVE, X | B119: =IF(B116<1,0,ROUNDDOWN(B116/B84,0)) -> 99064 | D119: =IF(D116<1,0,ROUNDDOWN(D116/D84,0)) -> 31027 | E119: 84664 | F119: 32236 | G119: 37072 | H119: 73336 | I119: 5986 | J119: 18472 | K119: 33244 | L119: 54244 | M119: 26572 | N119: 18472 | O119: 37864 | P119: 24982 | Q119: 37864 | R119: 57244 | S119: 36136 | T119: 37864 | U119: 4930 | V119: 4772 | AG119: ZVE, X | AH119: =IF(AH116<1,0,ROUNDDOWN(AH116/AH84,0)) -> 71572
A121: UPTAB17 | AG121: UPTAB17
A122: ST | B122: 0 | D122: 0 | E122: 0 | F122: 0 | G122: 0 | H122: 0 | I122: 0 | J122: 0 | K122: 0 | L122: 0 | M122: 0 | N122: 0 | O122: 0 | P122: 0 | Q122: 0 | R122: 0 | S122: 0 | T122: 0 | U122: 0 | V122: 0 | W122: 0 | X122: 0 | Y122: 0 | Z122: 0 | AA122: 0 | AB122: 0 | AC122: 0 | AD122: 0 | AE122: 0 | AF122: 0 | AG122: ST | AH122: 0
A123: Y | B123: =IF(B19>4,0,TRUNC((B119-B44)/10000,6)) -> 9.0244 | D123: =IF(D19>4,0,TRUNC((D119-D44)/10000,6)) -> 2.2207 | E123: 7.5844 | F123: 2.3416 | G123: 2.8252 | H123: 6.4516 | I123: -0.2834 | J123: 0.9652 | K123: 2.4424 | L123: 4.5424 | M123: 1.7752 | N123: 0.9652 | O123: 2.9044 | P123: 1.6162 | Q123: 0 | R123: 4.8424 | S123: 2.7316 | T123: 2.9044 | U123: -0.389 | V123: -0.4048 | AG123: Y | AH123: =IF(AH19>4,0,TRUNC((AH119-AH44)/10000,6)) -> 6.2752
A124: RW | B124: =B123*1007.27 -> 9090.007388 | D124: =D123*1007.27 -> 2236.844489 | E124: 7639.538588 | F124: 2358.623432 | G124: 2845.739204 | H124: 6498.503132 | I124: -285.460318 | J124: 972.217004 | K124: 2460.156248 | L124: 4575.423248 | M124: 1788.105704 | N124: 972.217004 | O124: 2925.514988 | P124: 1627.949774 | Q124: 0 | R124: 4877.604248 | S124: 2751.458732 | T124: 2925.514988 | U124: -391.82803 | V124: -407.742896 | AG124: RW | AH124: =AH123*1007.27 -> 6320.820704
A125: RW | B125: =IF(B19>4,0,B124+1400) -> 10490.00739 | D125: =IF(D19>4,0,D124+1400) -> 3636.844489 | E125: 9039.538588 | F125: 3758.623432 | G125: 4245.739204 | H125: 7898.503132 | I125: 1114.539682 | J125: 2372.217004 | K125: 3860.156248 | L125: 5975.423248 | M125: 3188.105704 | N125: 2372.217004 | O125: 4325.514988 | P125: 3027.949774 | Q125: 0 | R125: 6277.604248 | S125: 4151.458732 | T125: 4325.514988 | U125: 1008.17197 | V125: 992.257104 | AG125: RW | AH125: =IF(AH19>4,0,AH124+1400) -> 7720.820704
A126: ST | B126: =ROUNDDOWN(B125*B123,0) -> 94666 | D126: =ROUNDDOWN(D125*D123,0) -> 8076 | E126: 68559 | F126: 8801 | G126: 11995 | H126: 50957 | I126: -315 | J126: 2289 | K126: 9428 | L126: 27142 | M126: 5659 | N126: 2289 | O126: 12563 | P126: 4893 | Q126: 0 | R126: 30398 | S126: 11340 | T126: 12563 | U126: -392 | V126: -401 | AG126: ST | AH126: =ROUNDDOWN(AH125*AH123,0) -> 48449
A127: Y | B127: =IF(B19>4,0,TRUNC((B119-13769)/10000,6)) -> 8.5295 | D127: =IF(D19>4,0,TRUNC((D119-13769)/10000,6)) -> 1.7258 | E127: 7.0895 | F127: 1.8467 | G127: 2.3303 | H127: 5.9567 | I127: -0.7783 | J127: 0.4703 | K127: 1.9475 | L127: 4.0475 | M127: 1.2803 | N127: 0.4703 | O127: 2.4095 | P127: 1.1213 | Q127: 0 | R127: 4.3475 | S127: 2.2367 | T127: 2.4095 | U127: -0.8839 | V127: -0.8997 | AG127: Y | AH127: =IF(AH19>4,0,TRUNC((AH119-13769)/10000,6)) -> 5.7803
A128: RW | B128: =B127*223.76 -> 1908.56092 | D128: =D127*223.76 -> 386.165008 | E128: 1586.34652 | F128: 413.217592 | G128: 521.427928 | H128: 1332.871192 | I128: -174.152408 | J128: 105.234328 | K128: 435.7726 | L128: 905.6686 | M128: 286.479928 | N128: 105.234328 | O128: 539.14972 | P128: 250.902088 | Q128: 0 | R128: 972.7966 | S128: 500.483992 | T128: 539.14972 | U128: -197.781464 | V128: -201.316872 | AG128: RW | AH128: =AH127*223.76 -> 1293.399928
A129: RW | B129: =IF(B19>4,0,B128+2397) -> 4305.56092 | D129: =IF(D19>4,0,D128+2397) -> 2783.165008 | E129: 3983.34652 | F129: 2810.217592 | G129: 2918.427928 | H129: 3729.871192 | I129: 2222.847592 | J129: 2502.234328 | K129: 2832.7726 | L129: 3302.6686 | M129: 2683.479928 | N129: 2502.234328 | O129: 2936.14972 | P129: 2647.902088 | Q129: 0 | R129: 3369.7966 | S129: 2897.483992 | T129: 2936.14972 | U129: 2199.218536 | V129: 2195.683128 | AG129: RW | AH129: =IF(AH19>4,0,AH128+2397) -> 3690.399928
A130: RW | B130: =B129*B127 -> 36724.28187 | D130: =D129*D127 -> 4803.186171 | E130: 28239.93515 | F130: 5189.628827 | G130: 6800.812601 | H130: 22217.72373 | I130: -1730.042281 | J130: 1176.800804 | K130: 5516.824639 | L130: 13367.55116 | M130: 3435.659352 | N130: 1176.800804 | O130: 7074.65275 | P130: 2969.092611 | Q130: 0 | R130: 14650.19072 | S130: 6480.802445 | T130: 7074.65275 | U130: -1943.889264 | V130: -1975.45611 | AG130: RW | AH130: =AH129*AH127 -> 21331.6187
A131: ST | B131: =IF(B19>4,0,ROUNDDOWN(B130+939.57,0)) -> 37663 | D131: =IF(D19>4,0,ROUNDDOWN(D130+939.57,0)) -> 5742 | E131: 29179 | F131: 6129 | G131: 7740 | H131: 23157 | I131: -790 | J131: 2116 | K131: 6456 | L131: 14307 | M131: 4375 | N131: 2116 | O131: 8014 | P131: 3908 | Q131: 0 | R131: 15589 | S131: 7420 | T131: 8014 | U131: -1004 | V131: -1035 | AG131: ST | AH131: =IF(AH19>4,0,ROUNDDOWN(AH130+939.57,0)) -> 22271
A132: ST | B132: =IF(B19>4,0,ROUNDDOWN((B119*0.42)-8475.44,0)) -> 33131 | D132: =IF(D19>4,0,ROUNDDOWN((D119*0.42)-8475.44,0)) -> 4555 | E132: 27083 | F132: 5063 | G132: 7094 | H132: 22325 | I132: -5961 | J132: -717 | K132: 5487 | L132: 14307 | M132: 2684 | N132: -717 | O132: 7427 | P132: 2017 | Q132: 0 | R132: 15567 | S132: 6701 | T132: 7427 | U132: -6404 | V132: -6471 | AG132: ST | AH132: =IF(AH19>4,0,ROUNDDOWN((AH119*0.42)-8475.44,0)) -> 21584
A133: ST | B133: =IF(B19>4,0,ROUNDDOWN((B119*0.45)-16164.53,0)) -> 28414 | D133: =IF(D19>4,0,ROUNDDOWN((D119*0.45)-16164.53,0)) -> -2202 | E133: 21934 | F133: -1658 | G133: 517 | H133: 16836 | I133: -13470 | J133: -7852 | K133: -1204 | L133: 8245 | M133: -4207 | N133: -7852 | O133: 874 | P133: -4922 | Q133: 0 | R133: 9595 | S133: 96 | T133: 874 | U133: -13946 | V133: -14017 | AG133: ST | AH133: =IF(AH19>4,0,ROUNDDOWN((AH119*0.45)-16164.53,0)) -> 16042
A134: ST | B134: =IF(B119<B44+1,B122,IF(B119<13770,B126*B84,IF(B119<54058,B131*B84,IF(B119<256304,B132*B84,B133*B84)))) -> 33131 | D134: =IF(D119<D44+1,D122,IF(D119<13770,D126*D84,IF(D119<54058,D131*D84,IF(D119<256304,D132*D84,D133*D84)))) -> 11484 | E134: 27083 | F134: 12258 | G134: 15480 | H134: 22325 | I134: 0 | J134: 4232 | K134: 6456 | L134: 14307 | M134: 8750 | N134: 4232 | O134: 8014 | P134: 7816 | Q134: 0 | R134: 15567 | S134: 7420 | T134: 8014 | U134: 0 | V134: 0 | AG134: ST | AH134: =IF(AH119<AH44+1,AH122,IF(AH119<13770,AH126*AH84,IF(AH119<54058,AH131*AH84,IF(AH119<256304,AH132*AH84,AH133*AH84)))) -> 21584
A136: MST5-6 | AG136: MST5-6
A137: ZZX | B137: =IF(B19>4,B119,0) -> 0 | D137: =IF(D19>4,D119,0) -> 0 | E137: 0 | F137: 0 | G137: 0 | H137: 0 | I137: 0 | J137: 0 | K137: 0 | L137: 0 | M137: 0 | N137: 0 | O137: 0 | P137: 0 | Q137: 37864 | R137: 0 | S137: 0 | T137: 0 | U137: 0 | V137: 0 | W137: 0 | X137: 0 | Y137: 0 | Z137: 0 | AA137: 0 | AB137: 0 | AC137: 0 | AD137: 0 | AE137: 0 | AF137: 0 | AG137: ZZX | AH137: =IF(AH19>4,AH119,0) -> 0
A138: ZX | B138: =IF(B137>B42,B42,B137) -> 0 | D138: =IF(D137>D42,D42,D137) -> 0 | E138: 0 | F138: 0 | G138: 0 | H138: 0 | I138: 0 | J138: 0 | K138: 0 | L138: 0 | M138: 0 | N138: 0 | O138: 0 | P138: 0 | Q138: 27029 | R138: 0 | S138: 0 | T138: 0 | U138: 0 | V138: 0 | W138: 0 | X138: 0 | Y138: 0 | Z138: 0 | AA138: 0 | AB138: 0 | AC138: 0 | AD138: 0 | AE138: 0 | AF138: 0 | AG138: ZX | AH138: =IF(AH137>AH42,AH42,AH137) -> 0
A140: UP5-6 | AG140: UP5-6
A141: X | B141: =B138*1.25 -> 0 | D141: =D138*1.25 -> 0 | E141: 0 | F141: 0 | G141: 0 | H141: 0 | I141: 0 | J141: 0 | K141: 0 | L141: 0 | M141: 0 | N141: 0 | O141: 0 | P141: 0 | Q141: 33786.25 | R141: 0 | S141: 0 | T141: 0 | U141: 0 | V141: 0 | W141: 0 | X141: 0 | Y141: 0 | Z141: 0 | AA141: 0 | AB141: 0 | AC141: 0 | AD141: 0 | AE141: 0 | AF141: 0 | AG141: X | AH141: =AH138*1.25 -> 0
A143: UPTAB17 | AG143: UPTAB17
A144: ST | B144: 0 | D144: 0 | E144: 0 | F144: 0 | G144: 0 | H144: 0 | I144: 0 | J144: 0 | K144: 0 | L144: 0 | M144: 0 | N144: 0 | O144: 0 | P144: 0 | Q144: 0 | R144: 0 | S144: 0 | T144: 0 | U144: 0 | V144: 0 | W144: 0 | X144: 0 | Y144: 0 | Z144: 0 | AA144: 0 | AB144: 0 | AC144: 0 | AD144: 0 | AE144: 0 | AF144: 0 | AG144: ST | AH144: 0
A145: Y | B145: =TRUNC((B141-B44)/10000,6) -> -0.882 | D145: =TRUNC((D141-D44)/10000,6) -> -0.882 | E145: -0.882 | F145: -0.882 | G145: -0.882 | H145: -0.882 | I145: -0.882 | J145: -0.882 | K145: -0.882 | L145: -0.882 | M145: -0.882 | N145: -0.882 | O145: -0.882 | P145: -0.882 | Q145: 2.496625 | R145: -0.882 | S145: -0.882 | T145: -0.882 | U145: -0.882 | V145: -0.882 | W145: -0.882 | X145: -0.882 | Y145: -0.882 | Z145: -0.882 | AA145: -0.882 | AB145: -0.882 | AC145: -0.882 | AD145: -0.882 | AE145: -0.882 | AF145: -0.882 | AG145: Y | AH145: =TRUNC((AH141-AH44)/10000,6) -> -0.882
A146: RW | B146: =B145*1007.27 -> -888.41214 | D146: =D145*1007.27 -> -888.41214 | E146: -888.41214 | F146: -888.41214 | G146: -888.41214 | H146: -888.41214 | I146: -888.41214 | J146: -888.41214 | K146: -888.41214 | L146: -888.41214 | M146: -888.41214 | N146: -888.41214 | O146: -888.41214 | P146: -888.41214 | Q146: 2514.775464 | R146: -888.41214 | S146: -888.41214 | T146: -888.41214 | U146: -888.41214 | V146: -888.41214 | W146: -888.41214 | X146: -888.41214 | Y146: -888.41214 | Z146: -888.41214 | AA146: -888.41214 | AB146: -888.41214 | AC146: -888.41214 | AD146: -888.41214 | AE146: -888.41214 | AF146: -888.41214 | AG146: RW | AH146: =AH145*1007.27 -> -888.41214
A147: RW | B147: =B146+1400 -> 511.58786 | D147: =D146+1400 -> 511.58786 | E147: 511.58786 | F147: 511.58786 | G147: 511.58786 | H147: 511.58786 | I147: 511.58786 | J147: 511.58786 | K147: 511.58786 | L147: 511.58786 | M147: 511.58786 | N147: 511.58786 | O147: 511.58786 | P147: 511.58786 | Q147: 3914.775464 | R147: 511.58786 | S147: 511.58786 | T147: 511.58786 | U147: 511.58786 | V147: 511.58786 | W147: 511.58786 | X147: 511.58786 | Y147: 511.58786 | Z147: 511.58786 | AA147: 511.58786 | AB147: 511.58786 | AC147: 511.58786 | AD147: 511.58786 | AE147: 511.58786 | AF147: 511.58786 | AG147: RW | AH147: =AH146+1400 -> 511.58786
A148: ST | B148: =ROUNDDOWN(B147*B145,0) -> -451 | D148: =ROUNDDOWN(D147*D145,0) -> -451 | E148: -451 | F148: -451 | G148: -451 | H148: -451 | I148: -451 | J148: -451 | K148: -451 | L148: -451 | M148: -451 | N148: -451 | O148: -451 | P148: -451 | Q148: 9773 | R148: -451 | S148: -451 | T148: -451 | U148: -451 | V148: -451 | W148: -451 | X148: -451 | Y148: -451 | Z148: -451 | AA148: -451 | AB148: -451 | AC148: -451 | AD148: -451 | AE148: -451 | AF148: -451 | AG148: ST | AH148: =ROUNDDOWN(AH147*AH145,0) -> -451
A149: Y | B149: =TRUNC((B141-13769)/10000,6) -> -1.3769 | D149: =TRUNC((D141-13769)/10000,6) -> -1.3769 | E149: -1.3769 | F149: -1.3769 | G149: -1.3769 | H149: -1.3769 | I149: -1.3769 | J149: -1.3769 | K149: -1.3769 | L149: -1.3769 | M149: -1.3769 | N149: -1.3769 | O149: -1.3769 | P149: -1.3769 | Q149: 2.001725 | R149: -1.3769 | S149: -1.3769 | T149: -1.3769 | U149: -1.3769 | V149: -1.3769 | W149: -1.3769 | X149: -1.3769 | Y149: -1.3769 | Z149: -1.3769 | AA149: -1.3769 | AB149: -1.3769 | AC149: -1.3769 | AD149: -1.3769 | AE149: -1.3769 | AF149: -1.3769 | AG149: Y | AH149: =TRUNC((AH141-13769)/10000,6) -> -1.3769
A150: RW | B150: =B149*223.76 -> -308.095144 | D150: =D149*223.76 -> -308.095144 | E150: -308.095144 | F150: -308.095144 | G150: -308.095144 | H150: -308.095144 | I150: -308.095144 | J150: -308.095144 | K150: -308.095144 | L150: -308.095144 | M150: -308.095144 | N150: -308.095144 | O150: -308.095144 | P150: -308.095144 | Q150: 447.905986 | R150: -308.095144 | S150: -308.095144 | T150: -308.095144 | U150: -308.095144 | V150: -308.095144 | W150: -308.095144 | X150: -308.095144 | Y150: -308.095144 | Z150: -308.095144 | AA150: -308.095144 | AB150: -308.095144 | AC150: -308.095144 | AD150: -308.095144 | AE150: -308.095144 | AF150: -308.095144 | AG150: RW | AH150: =AH149*223.76 -> -308.095144
A151: RW | B151: =B150+2397 -> 2088.904856 | D151: =D150+2397 -> 2088.904856 | E151: 2088.904856 | F151: 2088.904856 | G151: 2088.904856 | H151: 2088.904856 | I151: 2088.904856 | J151: 2088.904856 | K151: 2088.904856 | L151: 2088.904856 | M151: 2088.904856 | N151: 2088.904856 | O151: 2088.904856 | P151: 2088.904856 | Q151: 2844.905986 | R151: 2088.904856 | S151: 2088.904856 | T151: 2088.904856 | U151: 2088.904856 | V151: 2088.904856 | W151: 2088.904856 | X151: 2088.904856 | Y151: 2088.904856 | Z151: 2088.904856 | AA151: 2088.904856 | AB151: 2088.904856 | AC151: 2088.904856 | AD151: 2088.904856 | AE151: 2088.904856 | AF151: 2088.904856 | AG151: RW | AH151: =AH150+2397 -> 2088.904856
A152: RW | B152: =B151*B149 -> -2876.213096 | D152: =D151*D149 -> -2876.213096 | E152: -2876.213096 | F152: -2876.213096 | G152: -2876.213096 | H152: -2876.213096 | I152: -2876.213096 | J152: -2876.213096 | K152: -2876.213096 | L152: -2876.213096 | M152: -2876.213096 | N152: -2876.213096 | O152: -2876.213096 | P152: -2876.213096 | Q152: 5694.719435 | R152: -2876.213096 | S152: -2876.213096 | T152: -2876.213096 | U152: -2876.213096 | V152: -2876.213096 | W152: -2876.213096 | X152: -2876.213096 | Y152: -2876.213096 | Z152: -2876.213096 | AA152: -2876.213096 | AB152: -2876.213096 | AC152: -2876.213096 | AD152: -2876.213096 | AE152: -2876.213096 | AF152: -2876.213096 | AG152: RW | AH152: =AH151*AH149 -> -2876.213096
A153: ST | B153: =ROUNDDOWN(B152+939.57,0) -> -1936 | D153: =ROUNDDOWN(D152+939.57,0) -> -1936 | E153: -1936 | F153: -1936 | G153: -1936 | H153: -1936 | I153: -1936 | J153: -1936 | K153: -1936 | L153: -1936 | M153: -1936 | N153: -1936 | O153: -1936 | P153: -1936 | Q153: 6634 | R153: -1936 | S153: -1936 | T153: -1936 | U153: -1936 | V153: -1936 | W153: -1936 | X153: -1936 | Y153: -1936 | Z153: -1936 | AA153: -1936 | AB153: -1936 | AC153: -1936 | AD153: -1936 | AE153: -1936 | AF153: -1936 | AG153: ST | AH153: =ROUNDDOWN(AH152+939.57,0) -> -1936
A154: ST | B154: =ROUNDDOWN((B141*0.42)-8475.44,0) -> -8475 | D154: =ROUNDDOWN((D141*0.42)-8475.44,0) -> -8475 | E154: -8475 | F154: -8475 | G154: -8475 | H154: -8475 | I154: -8475 | J154: -8475 | K154: -8475 | L154: -8475 | M154: -8475 | N154: -8475 | O154: -8475 | P154: -8475 | Q154: 5714 | R154: -8475 | S154: -8475 | T154: -8475 | U154: -8475 | V154: -8475 | W154: -8475 | X154: -8475 | Y154: -8475 | Z154: -8475 | AA154: -8475 | AB154: -8475 | AC154: -8475 | AD154: -8475 | AE154: -8475 | AF154: -8475 | AG154: ST | AH154: =ROUNDDOWN((AH141*0.42)-8475.44,0) -> -8475
A155: ST | B155: =ROUNDDOWN((B141*0.45)-16164.53,0) -> -16164 | D155: =ROUNDDOWN((D141*0.45)-16164.53,0) -> -16164 | E155: -16164 | F155: -16164 | G155: -16164 | H155: -16164 | I155: -16164 | J155: -16164 | K155: -16164 | L155: -16164 | M155: -16164 | N155: -16164 | O155: -16164 | P155: -16164 | Q155: -960 | R155: -16164 | S155: -16164 | T155: -16164 | U155: -16164 | V155: -16164 | W155: -16164 | X155: -16164 | Y155: -16164 | Z155: -16164 | AA155: -16164 | AB155: -16164 | AC155: -16164 | AD155: -16164 | AE155: -16164 | AF155: -16164 | AG155: ST | AH155: =ROUNDDOWN((AH141*0.45)-16164.53,0) -> -16164
A156: ST | B156: =IF(B141<B44+1,B144,IF(B141<13770,B148*B84,IF(B141<54058,B153*B84,IF(B141<256304,B154*B84,B155*B84)))) -> 0 | D156: =IF(D141<D44+1,D144,IF(D141<13770,D148*D84,IF(D141<54058,D153*D84,IF(D141<256304,D154*D84,D155*D84)))) -> 0 | E156: 0 | F156: 0 | G156: 0 | H156: 0 | I156: 0 | J156: 0 | K156: 0 | L156: 0 | M156: 0 | N156: 0 | O156: 0 | P156: 0 | Q156: 6634 | R156: 0 | S156: 0 | T156: 0 | U156: 0 | V156: 0 | W156: 0 | X156: 0 | Y156: 0 | Z156: 0 | AA156: 0 | AB156: 0 | AC156: 0 | AD156: 0 | AE156: 0 | AF156: 0 | AG156: ST | AH156: =IF(AH141<AH44+1,AH144,IF(AH141<13770,AH148*AH84,IF(AH141<54058,AH153*AH84,IF(AH141<256304,AH154*AH84,AH155*AH84)))) -> 0
A157: ST1 | B157: =B156 -> 0 | D157: =D156 -> 0 | E157: 0 | F157: 0 | G157: 0 | H157: 0 | I157: 0 | J157: 0 | K157: 0 | L157: 0 | M157: 0 | N157: 0 | O157: 0 | P157: 0 | Q157: 6634 | R157: 0 | S157: 0 | T157: 0 | U157: 0 | V157: 0 | W157: 0 | X157: 0 | Y157: 0 | Z157: 0 | AA157: 0 | AB157: 0 | AC157: 0 | AD157: 0 | AE157: 0 | AF157: 0 | AG157: ST1 | AH157: =AH156 -> 0
A158: X | B158: =B138*0.75 -> 0 | D158: =D138*0.75 -> 0 | E158: 0 | F158: 0 | G158: 0 | H158: 0 | I158: 0 | J158: 0 | K158: 0 | L158: 0 | M158: 0 | N158: 0 | O158: 0 | P158: 0 | Q158: 20271.75 | R158: 0 | S158: 0 | T158: 0 | U158: 0 | V158: 0 | W158: 0 | X158: 0 | Y158: 0 | Z158: 0 | AA158: 0 | AB158: 0 | AC158: 0 | AD158: 0 | AE158: 0 | AF158: 0 | AG158: X | AH158: =AH138*0.75 -> 0
A160: UPTAB17 | AG160: UPTAB17
A161: ST | B161: 0 | D161: 0 | E161: 0 | F161: 0 | G161: 0 | H161: 0 | I161: 0 | J161: 0 | K161: 0 | L161: 0 | M161: 0 | N161: 0 | O161: 0 | P161: 0 | Q161: 0 | R161: 0 | S161: 0 | T161: 0 | U161: 0 | V161: 0 | W161: 0 | X161: 0 | Y161: 0 | Z161: 0 | AA161: 0 | AB161: 0 | AC161: 0 | AD161: 0 | AE161: 0 | AF161: 0 | AG161: ST | AH161: 0
A162: Y | B162: =TRUNC((B158-B44)/10000,6) -> -0.882 | D162: =TRUNC((D158-D44)/10000,6) -> -0.882 | E162: -0.882 | F162: -0.882 | G162: -0.882 | H162: -0.882 | I162: -0.882 | J162: -0.882 | K162: -0.882 | L162: -0.882 | M162: -0.882 | N162: -0.882 | O162: -0.882 | P162: -0.882 | Q162: 1.145175 | R162: -0.882 | S162: -0.882 | T162: -0.882 | U162: -0.882 | V162: -0.882 | W162: -0.882 | X162: -0.882 | Y162: -0.882 | Z162: -0.882 | AA162: -0.882 | AB162: -0.882 | AC162: -0.882 | AD162: -0.882 | AE162: -0.882 | AF162: -0.882 | AG162: Y | AH162: =TRUNC((AH158-AH44)/10000,6) -> -0.882
A163: RW | B163: =B162*1007.27 -> -888.41214 | D163: =D162*1007.27 -> -888.41214 | E163: -888.41214 | F163: -888.41214 | G163: -888.41214 | H163: -888.41214 | I163: -888.41214 | J163: -888.41214 | K163: -888.41214 | L163: -888.41214 | M163: -888.41214 | N163: -888.41214 | O163: -888.41214 | P163: -888.41214 | Q163: 1153.500422 | R163: -888.41214 | S163: -888.41214 | T163: -888.41214 | U163: -888.41214 | V163: -888.41214 | W163: -888.41214 | X163: -888.41214 | Y163: -888.41214 | Z163: -888.41214 | AA163: -888.41214 | AB163: -888.41214 | AC163: -888.41214 | AD163: -888.41214 | AE163: -888.41214 | AF163: -888.41214 | AG163: RW | AH163: =AH162*1007.27 -> -888.41214
A164: RW | B164: =B163+1400 -> 511.58786 | D164: =D163+1400 -> 511.58786 | E164: 511.58786 | F164: 511.58786 | G164: 511.58786 | H164: 511.58786 | I164: 511.58786 | J164: 511.58786 | K164: 511.58786 | L164: 511.58786 | M164: 511.58786 | N164: 511.58786 | O164: 511.58786 | P164: 511.58786 | Q164: 2553.500422 | R164: 511.58786 | S164: 511.58786 | T164: 511.58786 | U164: 511.58786 | V164: 511.58786 | W164: 511.58786 | X164: 511.58786 | Y164: 511.58786 | Z164: 511.58786 | AA164: 511.58786 | AB164: 511.58786 | AC164: 511.58786 | AD164: 511.58786 | AE164: 511.58786 | AF164: 511.58786 | AG164: RW | AH164: =AH163+1400 -> 511.58786
A165: ST | B165: =ROUNDDOWN(B164*B162,0) -> -451 | D165: =ROUNDDOWN(D164*D162,0) -> -451 | E165: -451 | F165: -451 | G165: -451 | H165: -451 | I165: -451 | J165: -451 | K165: -451 | L165: -451 | M165: -451 | N165: -451 | O165: -451 | P165: -451 | Q165: 2924 | R165: -451 | S165: -451 | T165: -451 | U165: -451 | V165: -451 | W165: -451 | X165: -451 | Y165: -451 | Z165: -451 | AA165: -451 | AB165: -451 | AC165: -451 | AD165: -451 | AE165: -451 | AF165: -451 | AG165: ST | AH165: =ROUNDDOWN(AH164*AH162,0) -> -451
A166: Y | B166: =TRUNC((B158-13769)/10000,6) -> -1.3769 | D166: =TRUNC((D158-13769)/10000,6) -> -1.3769 | E166: -1.3769 | F166: -1.3769 | G166: -1.3769 | H166: -1.3769 | I166: -1.3769 | J166: -1.3769 | K166: -1.3769 | L166: -1.3769 | M166: -1.3769 | N166: -1.3769 | O166: -1.3769 | P166: -1.3769 | Q166: 0.650275 | R166: -1.3769 | S166: -1.3769 | T166: -1.3769 | U166: -1.3769 | V166: -1.3769 | W166: -1.3769 | X166: -1.3769 | Y166: -1.3769 | Z166: -1.3769 | AA166: -1.3769 | AB166: -1.3769 | AC166: -1.3769 | AD166: -1.3769 | AE166: -1.3769 | AF166: -1.3769 | AG166: Y | AH166: =TRUNC((AH158-13769)/10000,6) -> -1.3769
A167: RW | B167: =B166*223.76 -> -308.095144 | D167: =D166*223.76 -> -308.095144 | E167: -308.095144 | F167: -308.095144 | G167: -308.095144 | H167: -308.095144 | I167: -308.095144 | J167: -308.095144 | K167: -308.095144 | L167: -308.095144 | M167: -308.095144 | N167: -308.095144 | O167: -308.095144 | P167: -308.095144 | Q167: 145.505534 | R167: -308.095144 | S167: -308.095144 | T167: -308.095144 | U167: -308.095144 | V167: -308.095144 | W167: -308.095144 | X167: -308.095144 | Y167: -308.095144 | Z167: -308.095144 | AA167: -308.095144 | AB167: -308.095144 | AC167: -308.095144 | AD167: -308.095144 | AE167: -308.095144 | AF167: -308.095144 | AG167: RW | AH167: =AH166*223.76 -> -308.095144
A168: RW | B168: =B167+2397 -> 2088.904856 | D168: =D167+2397 -> 2088.904856 | E168: 2088.904856 | F168: 2088.904856 | G168: 2088.904856 | H168: 2088.904856 | I168: 2088.904856 | J168: 2088.904856 | K168: 2088.904856 | L168: 2088.904856 | M168: 2088.904856 | N168: 2088.904856 | O168: 2088.904856 | P168: 2088.904856 | Q168: 2542.505534 | R168: 2088.904856 | S168: 2088.904856 | T168: 2088.904856 | U168: 2088.904856 | V168: 2088.904856 | W168: 2088.904856 | X168: 2088.904856 | Y168: 2088.904856 | Z168: 2088.904856 | AA168: 2088.904856 | AB168: 2088.904856 | AC168: 2088.904856 | AD168: 2088.904856 | AE168: 2088.904856 | AF168: 2088.904856 | AG168: RW | AH168: =AH167+2397 -> 2088.904856
A169: RW | B169: =B168*B166 -> -2876.213096 | D169: =D168*D166 -> -2876.213096 | E169: -2876.213096 | F169: -2876.213096 | G169: -2876.213096 | H169: -2876.213096 | I169: -2876.213096 | J169: -2876.213096 | K169: -2876.213096 | L169: -2876.213096 | M169: -2876.213096 | N169: -2876.213096 | O169: -2876.213096 | P169: -2876.213096 | Q169: 1653.327786 | R169: -2876.213096 | S169: -2876.213096 | T169: -2876.213096 | U169: -2876.213096 | V169: -2876.213096 | W169: -2876.213096 | X169: -2876.213096 | Y169: -2876.213096 | Z169: -2876.213096 | AA169: -2876.213096 | AB169: -2876.213096 | AC169: -2876.213096 | AD169: -2876.213096 | AE169: -2876.213096 | AF169: -2876.213096 | AG169: RW | AH169: =AH168*AH166 -> -2876.213096
A170: ST | B170: =ROUNDDOWN(B169+939.57,0) -> -1936 | D170: =ROUNDDOWN(D169+939.57,0) -> -1936 | E170: -1936 | F170: -1936 | G170: -1936 | H170: -1936 | I170: -1936 | J170: -1936 | K170: -1936 | L170: -1936 | M170: -1936 | N170: -1936 | O170: -1936 | P170: -1936 | Q170: 2592 | R170: -1936 | S170: -1936 | T170: -1936 | U170: -1936 | V170: -1936 | W170: -1936 | X170: -1936 | Y170: -1936 | Z170: -1936 | AA170: -1936 | AB170: -1936 | AC170: -1936 | AD170: -1936 | AE170: -1936 | AF170: -1936 | AG170: ST | AH170: =ROUNDDOWN(AH169+939.57,0) -> -1936
A171: ST | B171: =ROUNDDOWN((B158*0.42)-8475.44,0) -> -8475 | D171: =ROUNDDOWN((D158*0.42)-8475.44,0) -> -8475 | E171: -8475 | F171: -8475 | G171: -8475 | H171: -8475 | I171: -8475 | J171: -8475 | K171: -8475 | L171: -8475 | M171: -8475 | N171: -8475 | O171: -8475 | P171: -8475 | Q171: 38 | R171: -8475 | S171: -8475 | T171: -8475 | U171: -8475 | V171: -8475 | W171: -8475 | X171: -8475 | Y171: -8475 | Z171: -8475 | AA171: -8475 | AB171: -8475 | AC171: -8475 | AD171: -8475 | AE171: -8475 | AF171: -8475 | AG171: ST | AH171: =ROUNDDOWN((AH158*0.42)-8475.44,0) -> -8475
A172: ST | B172: =ROUNDDOWN((B158*0.45)-16164.53,0) -> -16164 | D172: =ROUNDDOWN((D158*0.45)-16164.53,0) -> -16164 | E172: -16164 | F172: -16164 | G172: -16164 | H172: -16164 | I172: -16164 | J172: -16164 | K172: -16164 | L172: -16164 | M172: -16164 | N172: -16164 | O172: -16164 | P172: -16164 | Q172: -7042 | R172: -16164 | S172: -16164 | T172: -16164 | U172: -16164 | V172: -16164 | W172: -16164 | X172: -16164 | Y172: -16164 | Z172: -16164 | AA172: -16164 | AB172: -16164 | AC172: -16164 | AD172: -16164 | AE172: -16164 | AF172: -16164 | AG172: ST | AH172: =ROUNDDOWN((AH158*0.45)-16164.53,0) -> -16164
A173: ST | B173: =IF(B158<B44+1,B161,IF(B158<13770,B165*B84,IF(B158<54058,B170*B84,IF(B158<256304,B171*B84,B172*B84)))) -> 0 | D173: =IF(D158<D44+1,D161,IF(D158<13770,D165*D84,IF(D158<54058,D170*D84,IF(D158<256304,D171*D84,D172*D84)))) -> 0 | E173: 0 | F173: 0 | G173: 0 | H173: 0 | I173: 0 | J173: 0 | K173: 0 | L173: 0 | M173: 0 | N173: 0 | O173: 0 | P173: 0 | Q173: 2592 | R173: 0 | S173: 0 | T173: 0 | U173: 0 | V173: 0 | W173: 0 | X173: 0 | Y173: 0 | Z173: 0 | AA173: 0 | AB173: 0 | AC173: 0 | AD173: 0 | AE173: 0 | AF173: 0 | AG173: ST | AH173: =IF(AH158<AH44+1,AH161,IF(AH158<13770,AH165*AH84,IF(AH158<54058,AH170*AH84,IF(AH158<256304,AH171*AH84,AH172*AH84)))) -> 0
A174: ST2 | B174: =B173 -> 0 | D174: =D173 -> 0 | E174: 0 | F174: 0 | G174: 0 | H174: 0 | I174: 0 | J174: 0 | K174: 0 | L174: 0 | M174: 0 | N174: 0 | O174: 0 | P174: 0 | Q174: 2592 | R174: 0 | S174: 0 | T174: 0 | U174: 0 | V174: 0 | W174: 0 | X174: 0 | Y174: 0 | Z174: 0 | AA174: 0 | AB174: 0 | AC174: 0 | AD174: 0 | AE174: 0 | AF174: 0 | AG174: ST2 | AH174: =AH173 -> 0
A175: DIFF | B175: =(B157-B174)*2 -> 0 | D175: =(D157-D174)*2 -> 0 | E175: 0 | F175: 0 | G175: 0 | H175: 0 | I175: 0 | J175: 0 | K175: 0 | L175: 0 | M175: 0 | N175: 0 | O175: 0 | P175: 0 | Q175: 8084 | R175: 0 | S175: 0 | T175: 0 | U175: 0 | V175: 0 | W175: 0 | X175: 0 | Y175: 0 | Z175: 0 | AA175: 0 | AB175: 0 | AC175: 0 | AD175: 0 | AE175: 0 | AF175: 0 | AG175: DIFF | AH175: =(AH157-AH174)*2 -> 0
A176: MIST | B176: =ROUNDDOWN(B138*0.14,0) -> 0 | D176: =ROUNDDOWN(D138*0.14,0) -> 0 | E176: 0 | F176: 0 | G176: 0 | H176: 0 | I176: 0 | J176: 0 | K176: 0 | L176: 0 | M176: 0 | N176: 0 | O176: 0 | P176: 0 | Q176: 3784 | R176: 0 | S176: 0 | T176: 0 | U176: 0 | V176: 0 | W176: 0 | X176: 0 | Y176: 0 | Z176: 0 | AA176: 0 | AB176: 0 | AC176: 0 | AD176: 0 | AE176: 0 | AF176: 0 | AG176: MIST | AH176: =ROUNDDOWN(AH138*0.14,0) -> 0
A177: ST | B177: =IF(B176>B175,B176,B175) -> 0 | D177: =IF(D176>D175,D176,D175) -> 0 | E177: 0 | F177: 0 | G177: 0 | H177: 0 | I177: 0 | J177: 0 | K177: 0 | L177: 0 | M177: 0 | N177: 0 | O177: 0 | P177: 0 | Q177: 8084 | R177: 0 | S177: 0 | T177: 0 | U177: 0 | V177: 0 | W177: 0 | X177: 0 | Y177: 0 | Z177: 0 | AA177: 0 | AB177: 0 | AC177: 0 | AD177: 0 | AE177: 0 | AF177: 0 | AG177: ST | AH177: =IF(AH176>AH175,AH176,AH175) -> 0
A178: ZX | B178: =IF(B137>B41,B41,B177) -> 0 | D178: =IF(D137>D41,D41,D177) -> 0 | E178: 0 | F178: 0 | G178: 0 | H178: 0 | I178: 0 | J178: 0 | K178: 0 | L178: 0 | M178: 0 | N178: 0 | O178: 0 | P178: 0 | Q178: 10240 | R178: 0 | S178: 0 | T178: 0 | U178: 0 | V178: 0 | W178: 0 | X178: 0 | Y178: 0 | Z178: 0 | AA178: 0 | AB178: 0 | AC178: 0 | AD178: 0 | AE178: 0 | AF178: 0 | AG178: ZX | AH178: =IF(AH137>AH41,AH41,AH177) -> 0
A179: VERGL | B179: =B177 -> 0 | D179: =D177 -> 0 | E179: 0 | F179: 0 | G179: 0 | H179: 0 | I179: 0 | J179: 0 | K179: 0 | L179: 0 | M179: 0 | N179: 0 | O179: 0 | P179: 0 | Q179: 8084 | R179: 0 | S179: 0 | T179: 0 | U179: 0 | V179: 0 | W179: 0 | X179: 0 | Y179: 0 | Z179: 0 | AA179: 0 | AB179: 0 | AC179: 0 | AD179: 0 | AE179: 0 | AF179: 0 | AG179: VERGL | AH179: =AH177 -> 0
A181: UP5-6 | AG181: UP5-6
A182: X | B182: =B178*1.25 -> 0 | D182: =D178*1.25 -> 0 | E182: 0 | F182: 0 | G182: 0 | H182: 0 | I182: 0 | J182: 0 | K182: 0 | L182: 0 | M182: 0 | N182: 0 | O182: 0 | P182: 0 | Q182: 12800 | R182: 0 | S182: 0 | T182: 0 | U182: 0 | V182: 0 | W182: 0 | X182: 0 | Y182: 0 | Z182: 0 | AA182: 0 | AB182: 0 | AC182: 0 | AD182: 0 | AE182: 0 | AF182: 0 | AG182: X | AH182: =AH178*1.25 -> 0
A184: UPTAB17 | AG184: UPTAB17
A185: ST | B185: 0 | D185: 0 | E185: 0 | F185: 0 | G185: 0 | H185: 0 | I185: 0 | J185: 0 | K185: 0 | L185: 0 | M185: 0 | N185: 0 | O185: 0 | P185: 0 | Q185: 0 | R185: 0 | S185: 0 | T185: 0 | U185: 0 | V185: 0 | W185: 0 | X185: 0 | Y185: 0 | Z185: 0 | AA185: 0 | AB185: 0 | AC185: 0 | AD185: 0 | AE185: 0 | AF185: 0 | AG185: ST | AH185: 0
A186: Y | B186: =TRUNC((B182-B44)/10000,6) -> -0.882 | D186: =TRUNC((D182-D44)/10000,6) -> -0.882 | E186: -0.882 | F186: -0.882 | G186: -0.882 | H186: -0.882 | I186: -0.882 | J186: -0.882 | K186: -0.882 | L186: -0.882 | M186: -0.882 | N186: -0.882 | O186: -0.882 | P186: -0.882 | Q186: 0.398 | R186: -0.882 | S186: -0.882 | T186: -0.882 | U186: -0.882 | V186: -0.882 | W186: -0.882 | X186: -0.882 | Y186: -0.882 | Z186: -0.882 | AA186: -0.882 | AB186: -0.882 | AC186: -0.882 | AD186: -0.882 | AE186: -0.882 | AF186: -0.882 | AG186: Y | AH186: =TRUNC((AH182-AH44)/10000,6) -> -0.882
A187: RW | B187: =B186*1007.27 -> -888.41214 | D187: =D186*1007.27 -> -888.41214 | E187: -888.41214 | F187: -888.41214 | G187: -888.41214 | H187: -888.41214 | I187: -888.41214 | J187: -888.41214 | K187: -888.41214 | L187: -888.41214 | M187: -888.41214 | N187: -888.41214 | O187: -888.41214 | P187: -888.41214 | Q187: 400.89346 | R187: -888.41214 | S187: -888.41214 | T187: -888.41214 | U187: -888.41214 | V187: -888.41214 | W187: -888.41214 | X187: -888.41214 | Y187: -888.41214 | Z187: -888.41214 | AA187: -888.41214 | AB187: -888.41214 | AC187: -888.41214 | AD187: -888.41214 | AE187: -888.41214 | AF187: -888.41214 | AG187: RW | AH187: =AH186*1007.27 -> -888.41214
A188: RW | B188: =B187+1400 -> 511.58786 | D188: =D187+1400 -> 511.58786 | E188: 511.58786 | F188: 511.58786 | G188: 511.58786 | H188: 511.58786 | I188: 511.58786 | J188: 511.58786 | K188: 511.58786 | L188: 511.58786 | M188: 511.58786 | N188: 511.58786 | O188: 511.58786 | P188: 511.58786 | Q188: 1800.89346 | R188: 511.58786 | S188: 511.58786 | T188: 511.58786 | U188: 511.58786 | V188: 511.58786 | W188: 511.58786 | X188: 511.58786 | Y188: 511.58786 | Z188: 511.58786 | AA188: 511.58786 | AB188: 511.58786 | AC188: 511.58786 | AD188: 511.58786 | AE188: 511.58786 | AF188: 511.58786 | AG188: RW | AH188: =AH187+1400 -> 511.58786
A189: ST | B189: =ROUNDDOWN(B188*B186,0) -> -451 | D189: =ROUNDDOWN(D188*D186,0) -> -451 | E189: -451 | F189: -451 | G189: -451 | H189: -451 | I189: -451 | J189: -451 | K189: -451 | L189: -451 | M189: -451 | N189: -451 | O189: -451 | P189: -451 | Q189: 716 | R189: -451 | S189: -451 | T189: -451 | U189: -451 | V189: -451 | W189: -451 | X189: -451 | Y189: -451 | Z189: -451 | AA189: -451 | AB189: -451 | AC189: -451 | AD189: -451 | AE189: -451 | AF189: -451 | AG189: ST | AH189: =ROUNDDOWN(AH188*AH186,0) -> -451
A190: Y | B190: =TRUNC((B182-13769)/10000,6) -> -1.3769 | D190: =TRUNC((D182-13769)/10000,6) -> -1.3769 | E190: -1.3769 | F190: -1.3769 | G190: -1.3769 | H190: -1.3769 | I190: -1.3769 | J190: -1.3769 | K190: -1.3769 | L190: -1.3769 | M190: -1.3769 | N190: -1.3769 | O190: -1.3769 | P190: -1.3769 | Q190: -0.0969 | R190: -1.3769 | S190: -1.3769 | T190: -1.3769 | U190: -1.3769 | V190: -1.3769 | W190: -1.3769 | X190: -1.3769 | Y190: -1.3769 | Z190: -1.3769 | AA190: -1.3769 | AB190: -1.3769 | AC190: -1.3769 | AD190: -1.3769 | AE190: -1.3769 | AF190: -1.3769 | AG190: Y | AH190: =TRUNC((AH182-13769)/10000,6) -> -1.3769
A191: RW | B191: =B190*223.76 -> -308.095144 | D191: =D190*223.76 -> -308.095144 | E191: -308.095144 | F191: -308.095144 | G191: -308.095144 | H191: -308.095144 | I191: -308.095144 | J191: -308.095144 | K191: -308.095144 | L191: -308.095144 | M191: -308.095144 | N191: -308.095144 | O191: -308.095144 | P191: -308.095144 | Q191: -21.682344 | R191: -308.095144 | S191: -308.095144 | T191: -308.095144 | U191: -308.095144 | V191: -308.095144 | W191: -308.095144 | X191: -308.095144 | Y191: -308.095144 | Z191: -308.095144 | AA191: -308.095144 | AB191: -308.095144 | AC191: -308.095144 | AD191: -308.095144 | AE191: -308.095144 | AF191: -308.095144 | AG191: RW | AH191: =AH190*223.76 -> -308.095144
A192: RW | B192: =B191+2397 -> 2088.904856 | D192: =D191+2397 -> 2088.904856 | E192: 2088.904856 | F192: 2088.904856 | G192: 2088.904856 | H192: 2088.904856 | I192: 2088.904856 | J192: 2088.904856 | K192: 2088.904856 | L192: 2088.904856 | M192: 2088.904856 | N192: 2088.904856 | O192: 2088.904856 | P192: 2088.904856 | Q192: 2375.317656 | R192: 2088.904856 | S192: 2088.904856 | T192: 2088.904856 | U192: 2088.904856 | V192: 2088.904856 | W192: 2088.904856 | X192: 2088.904856 | Y192: 2088.904856 | Z192: 2088.904856 | AA192: 2088.904856 | AB192: 2088.904856 | AC192: 2088.904856 | AD192: 2088.904856 | AE192: 2088.904856 | AF192: 2088.904856 | AG192: RW | AH192: =AH191+2397 -> 2088.904856
A193: RW | B193: =B192*B190 -> -2876.213096 | D193: =D192*D190 -> -2876.213096 | E193: -2876.213096 | F193: -2876.213096 | G193: -2876.213096 | H193: -2876.213096 | I193: -2876.213096 | J193: -2876.213096 | K193: -2876.213096 | L193: -2876.213096 | M193: -2876.213096 | N193: -2876.213096 | O193: -2876.213096 | P193: -2876.213096 | Q193: -230.1682809 | R193: -2876.213096 | S193: -2876.213096 | T193: -2876.213096 | U193: -2876.213096 | V193: -2876.213096 | W193: -2876.213096 | X193: -2876.213096 | Y193: -2876.213096 | Z193: -2876.213096 | AA193: -2876.213096 | AB193: -2876.213096 | AC193: -2876.213096 | AD193: -2876.213096 | AE193: -2876.213096 | AF193: -2876.213096 | AG193: RW | AH193: =AH192*AH190 -> -2876.213096
A194: ST | B194: =ROUNDDOWN(B193+939.57,0) -> -1936 | D194: =ROUNDDOWN(D193+939.57,0) -> -1936 | E194: -1936 | F194: -1936 | G194: -1936 | H194: -1936 | I194: -1936 | J194: -1936 | K194: -1936 | L194: -1936 | M194: -1936 | N194: -1936 | O194: -1936 | P194: -1936 | Q194: 709 | R194: -1936 | S194: -1936 | T194: -1936 | U194: -1936 | V194: -1936 | W194: -1936 | X194: -1936 | Y194: -1936 | Z194: -1936 | AA194: -1936 | AB194: -1936 | AC194: -1936 | AD194: -1936 | AE194: -1936 | AF194: -1936 | AG194: ST | AH194: =ROUNDDOWN(AH193+939.57,0) -> -1936
A195: ST | B195: =ROUNDDOWN((B182*0.42)-8475.44,0) -> -8475 | D195: =ROUNDDOWN((D182*0.42)-8475.44,0) -> -8475 | E195: -8475 | F195: -8475 | G195: -8475 | H195: -8475 | I195: -8475 | J195: -8475 | K195: -8475 | L195: -8475 | M195: -8475 | N195: -8475 | O195: -8475 | P195: -8475 | Q195: -3099 | R195: -8475 | S195: -8475 | T195: -8475 | U195: -8475 | V195: -8475 | W195: -8475 | X195: -8475 | Y195: -8475 | Z195: -8475 | AA195: -8475 | AB195: -8475 | AC195: -8475 | AD195: -8475 | AE195: -8475 | AF195: -8475 | AG195: ST | AH195: =ROUNDDOWN((AH182*0.42)-8475.44,0) -> -8475
A196: ST | B196: =ROUNDDOWN((B182*0.45)-16164.53,0) -> -16164 | D196: =ROUNDDOWN((D182*0.45)-16164.53,0) -> -16164 | E196: -16164 | F196: -16164 | G196: -16164 | H196: -16164 | I196: -16164 | J196: -16164 | K196: -16164 | L196: -16164 | M196: -16164 | N196: -16164 | O196: -16164 | P196: -16164 | Q196: -10404 | R196: -16164 | S196: -16164 | T196: -16164 | U196: -16164 | V196: -16164 | W196: -16164 | X196: -16164 | Y196: -16164 | Z196: -16164 | AA196: -16164 | AB196: -16164 | AC196: -16164 | AD196: -16164 | AE196: -16164 | AF196: -16164 | AG196: ST | AH196: =ROUNDDOWN((AH182*0.45)-16164.53,0) -> -16164
A197: ST | B197: =IF(B182<B44+1,B185,IF(B182<13770,B189*B84,IF(B182<54058,B194*B84,IF(B182<256304,B195*B84,B196*B84)))) -> 0 | D197: =IF(D182<D44+1,D185,IF(D182<13770,D189*D84,IF(D182<54058,D194*D84,IF(D182<256304,D195*D84,D196*D84)))) -> 0 | E197: 0 | F197: 0 | G197: 0 | H197: 0 | I197: 0 | J197: 0 | K197: 0 | L197: 0 | M197: 0 | N197: 0 | O197: 0 | P197: 0 | Q197: 716 | R197: 0 | S197: 0 | T197: 0 | U197: 0 | V197: 0 | W197: 0 | X197: 0 | Y197: 0 | Z197: 0 | AA197: 0 | AB197: 0 | AC197: 0 | AD197: 0 | AE197: 0 | AF197: 0 | AG197: ST | AH197: =IF(AH182<AH44+1,AH185,IF(AH182<13770,AH189*AH84,IF(AH182<54058,AH194*AH84,IF(AH182<256304,AH195*AH84,AH196*AH84)))) -> 0
A198: ST1 | B198: =B197 -> 0 | D198: =D197 -> 0 | E198: 0 | F198: 0 | G198: 0 | H198: 0 | I198: 0 | J198: 0 | K198: 0 | L198: 0 | M198: 0 | N198: 0 | O198: 0 | P198: 0 | Q198: 716 | R198: 0 | S198: 0 | T198: 0 | U198: 0 | V198: 0 | W198: 0 | X198: 0 | Y198: 0 | Z198: 0 | AA198: 0 | AB198: 0 | AC198: 0 | AD198: 0 | AE198: 0 | AF198: 0 | AG198: ST1 | AH198: =AH197 -> 0
A199: X | B199: =B178*0.75 -> 0 | D199: =D178*0.75 -> 0 | E199: 0 | F199: 0 | G199: 0 | H199: 0 | I199: 0 | J199: 0 | K199: 0 | L199: 0 | M199: 0 | N199: 0 | O199: 0 | P199: 0 | Q199: 7680 | R199: 0 | S199: 0 | T199: 0 | U199: 0 | V199: 0 | W199: 0 | X199: 0 | Y199: 0 | Z199: 0 | AA199: 0 | AB199: 0 | AC199: 0 | AD199: 0 | AE199: 0 | AF199: 0 | AG199: X | AH199: =AH178*0.75 -> 0
A201: UPTAB17 | AG201: UPTAB17
A202: ST | B202: 0 | D202: 0 | E202: 0 | F202: 0 | G202: 0 | H202: 0 | I202: 0 | J202: 0 | K202: 0 | L202: 0 | M202: 0 | N202: 0 | O202: 0 | P202: 0 | Q202: 0 | R202: 0 | S202: 0 | T202: 0 | U202: 0 | V202: 0 | W202: 0 | X202: 0 | Y202: 0 | Z202: 0 | AA202: 0 | AB202: 0 | AC202: 0 | AD202: 0 | AE202: 0 | AF202: 0 | AG202: ST | AH202: 0
A203: Y | B203: =TRUNC((B199-B44)/10000,6) -> -0.882 | D203: =TRUNC((D199-D44)/10000,6) -> -0.882 | E203: -0.882 | F203: -0.882 | G203: -0.882 | H203: -0.882 | I203: -0.882 | J203: -0.882 | K203: -0.882 | L203: -0.882 | M203: -0.882 | N203: -0.882 | O203: -0.882 | P203: -0.882 | Q203: -0.114 | R203: -0.882 | S203: -0.882 | T203: -0.882 | U203: -0.882 | V203: -0.882 | W203: -0.882 | X203: -0.882 | Y203: -0.882 | Z203: -0.882 | AA203: -0.882 | AB203: -0.882 | AC203: -0.882 | AD203: -0.882 | AE203: -0.882 | AF203: -0.882 | AG203: Y | AH203: =TRUNC((AH199-AH44)/10000,6) -> -0.882
A204: RW | B204: =B203*1007.27 -> -888.41214 | D204: =D203*1007.27 -> -888.41214 | E204: -888.41214 | F204: -888.41214 | G204: -888.41214 | H204: -888.41214 | I204: -888.41214 | J204: -888.41214 | K204: -888.41214 | L204: -888.41214 | M204: -888.41214 | N204: -888.41214 | O204: -888.41214 | P204: -888.41214 | Q204: -114.82878 | R204: -888.41214 | S204: -888.41214 | T204: -888.41214 | U204: -888.41214 | V204: -888.41214 | W204: -888.41214 | X204: -888.41214 | Y204: -888.41214 | Z204: -888.41214 | AA204: -888.41214 | AB204: -888.41214 | AC204: -888.41214 | AD204: -888.41214 | AE204: -888.41214 | AF204: -888.41214 | AG204: RW | AH204: =AH203*1007.27 -> -888.41214
A205: RW | B205: =B204+1400 -> 511.58786 | D205: =D204+1400 -> 511.58786 | E205: 511.58786 | F205: 511.58786 | G205: 511.58786 | H205: 511.58786 | I205: 511.58786 | J205: 511.58786 | K205: 511.58786 | L205: 511.58786 | M205: 511.58786 | N205: 511.58786 | O205: 511.58786 | P205: 511.58786 | Q205: 1285.17122 | R205: 511.58786 | S205: 511.58786 | T205: 511.58786 | U205: 511.58786 | V205: 511.58786 | W205: 511.58786 | X205: 511.58786 | Y205: 511.58786 | Z205: 511.58786 | AA205: 511.58786 | AB205: 511.58786 | AC205: 511.58786 | AD205: 511.58786 | AE205: 511.58786 | AF205: 511.58786 | AG205: RW | AH205: =AH204+1400 -> 511.58786
A206: ST | B206: =ROUNDDOWN(B205*B203,0) -> -451 | D206: =ROUNDDOWN(D205*D203,0) -> -451 | E206: -451 | F206: -451 | G206: -451 | H206: -451 | I206: -451 | J206: -451 | K206: -451 | L206: -451 | M206: -451 | N206: -451 | O206: -451 | P206: -451 | Q206: -146 | R206: -451 | S206: -451 | T206: -451 | U206: -451 | V206: -451 | W206: -451 | X206: -451 | Y206: -451 | Z206: -451 | AA206: -451 | AB206: -451 | AC206: -451 | AD206: -451 | AE206: -451 | AF206: -451 | AG206: ST | AH206: =ROUNDDOWN(AH205*AH203,0) -> -451
A207: Y | B207: =TRUNC((B199-13769)/10000,6) -> -1.3769 | D207: =TRUNC((D199-13769)/10000,6) -> -1.3769 | E207: -1.3769 | F207: -1.3769 | G207: -1.3769 | H207: -1.3769 | I207: -1.3769 | J207: -1.3769 | K207: -1.3769 | L207: -1.3769 | M207: -1.3769 | N207: -1.3769 | O207: -1.3769 | P207: -1.3769 | Q207: -0.6089 | R207: -1.3769 | S207: -1.3769 | T207: -1.3769 | U207: -1.3769 | V207: -1.3769 | W207: -1.3769 | X207: -1.3769 | Y207: -1.3769 | Z207: -1.3769 | AA207: -1.3769 | AB207: -1.3769 | AC207: -1.3769 | AD207: -1.3769 | AE207: -1.3769 | AF207: -1.3769 | AG207: Y | AH207: =TRUNC((AH199-13769)/10000,6) -> -1.3769
A208: RW | B208: =B207*223.76 -> -308.095144 | D208: =D207*223.76 -> -308.095144 | E208: -308.095144 | F208: -308.095144 | G208: -308.095144 | H208: -308.095144 | I208: -308.095144 | J208: -308.095144 | K208: -308.095144 | L208: -308.095144 | M208: -308.095144 | N208: -308.095144 | O208: -308.095144 | P208: -308.095144 | Q208: -136.247464 | R208: -308.095144 | S208: -308.095144 | T208: -308.095144 | U208: -308.095144 | V208: -308.095144 | W208: -308.095144 | X208: -308.095144 | Y208: -308.095144 | Z208: -308.095144 | AA208: -308.095144 | AB208: -308.095144 | AC208: -308.095144 | AD208: -308.095144 | AE208: -308.095144 | AF208: -308.095144 | AG208: RW | AH208: =AH207*223.76 -> -308.095144
A209: RW | B209: =B208+2397 -> 2088.904856 | D209: =D208+2397 -> 2088.904856 | E209: 2088.904856 | F209: 2088.904856 | G209: 2088.904856 | H209: 2088.904856 | I209: 2088.904856 | J209: 2088.904856 | K209: 2088.904856 | L209: 2088.904856 | M209: 2088.904856 | N209: 2088.904856 | O209: 2088.904856 | P209: 2088.904856 | Q209: 2260.752536 | R209: 2088.904856 | S209: 2088.904856 | T209: 2088.904856 | U209: 2088.904856 | V209: 2088.904856 | W209: 2088.904856 | X209: 2088.904856 | Y209: 2088.904856 | Z209: 2088.904856 | AA209: 2088.904856 | AB209: 2088.904856 | AC209: 2088.904856 | AD209: 2088.904856 | AE209: 2088.904856 | AF209: 2088.904856 | AG209: RW | AH209: =AH208+2397 -> 2088.904856
A210: RW | B210: =B209*B207 -> -2876.213096 | D210: =D209*D207 -> -2876.213096 | E210: -2876.213096 | F210: -2876.213096 | G210: -2876.213096 | H210: -2876.213096 | I210: -2876.213096 | J210: -2876.213096 | K210: -2876.213096 | L210: -2876.213096 | M210: -2876.213096 | N210: -2876.213096 | O210: -2876.213096 | P210: -2876.213096 | Q210: -1376.572219 | R210: -2876.213096 | S210: -2876.213096 | T210: -2876.213096 | U210: -2876.213096 | V210: -2876.213096 | W210: -2876.213096 | X210: -2876.213096 | Y210: -2876.213096 | Z210: -2876.213096 | AA210: -2876.213096 | AB210: -2876.213096 | AC210: -2876.213096 | AD210: -2876.213096 | AE210: -2876.213096 | AF210: -2876.213096 | AG210: RW | AH210: =AH209*AH207 -> -2876.213096
